Workbook

Sheet Report - ALL (DASHBOARD)
A2: Dashboard | B2: Select Parameter: | F2: Select Statistic: | I2: Select Seasonal Period: | L2: Do you want to convert CFS values to TAF/Mon? | W2: 173
W3: 1
W4: 12
L5: News | W5: TRUE
L6: - parameter list updated to include all items on the appendix list (in addition to other locations of interest)
L7: - year type sorting is now done by calendar year
L8: - year type sorting is provided for 60-20-20 index as well as 40-30-30 index
L9: - format modified to be consistent with appendix reports
L10: - check out the new spinners!
B13: =CONCATENATE('Report Data'!$P$7," / seasonal statistics (",$W$2,"-",$W$3,"-",$W$4,"-",IF(NOT($W$5),1,2),"a):") -> Sites TCCA Storage + Sites CVP Op Flex Storage / seasonal statistics (173-1-12-2a):
C17: ='Report Data'!P6 -> September
C18: ='Report Data'!P7 -> Sites TCCA Storage + Sites CVP Op Flex Storage
C19: ='Report Data'!P9 -> (S30_u1+S32/STORAGE)
C20: ='Report Data'!P8 -> Averages
C21: ='Report Data'!P11 -> Volume (TAF) | F21: =CONCATENATE("Difference from ",'Report Data'!Q13) -> Difference from NAA_011221
C25: =IF('Report Data'!O14=0,"",'Report Data'!O14) -> NAA_011221 | E25: =IFERROR('Report Data'!P14,"") -> 0
C26: =IF('Report Data'!O15=0,"",'Report Data'!O15) -> ALT1B_011221 | E26: =IFERROR('Report Data'!P15,"") -> 91.16702301 | F26: =IFERROR('Report Data'!Q15,"") -> 91.16702301
C27: =IF('Report Data'!O16=0,"",'Report Data'!O16) -> ALT1B_TCCAtoOpFlex | E27: =IFERROR('Report Data'!P16,"") -> 66.96205174 | F27: =IFERROR('Report Data'!Q16,"") -> 66.96205174
C28: =IF('Report Data'!O17=0,"",'Report Data'!O17) ->  | E28: =IFERROR('Report Data'!P17,"") ->  | F28: =IFERROR('Report Data'!Q17,"") -> 
C29: =IF('Report Data'!O18=0,"",'Report Data'!O18) ->  | E29: =IFERROR('Report Data'!P18,"") ->  | F29: =IFERROR('Report Data'!Q18,"") -> 
C30: =IF('Report Data'!O19=0,"",'Report Data'!O19) ->  | E30: =IFERROR('Report Data'!P19,"") ->  | F30: =IFERROR('Report Data'!Q19,"") -> 
B60: =CONCATENATE('Report Data'!$P$7," / monthly statistics (",$W$2,"-",$W$3,"-",$W$4,"-",IF(NOT($W$5),1,2),"b):") -> Sites TCCA Storage + Sites CVP Op Flex Storage / monthly statistics (173-1-12-2b):
B88: =CONCATENATE('Report Data'!$P$7," / time series (",$W$2,"-",$W$3,"-",$W$4,"-",IF(NOT($W$5),1,2),"c):") -> Sites TCCA Storage + Sites CVP Op Flex Storage / time series (173-1-12-2c):

Sheet Chart - Prob Exc
S2: Select Parameter: | X2: Select Statistic: | AB2: Select Seasonal Period: | AE2: Do you want to convert CFS values to TAF/Mon?

Sheet Chart - Pattern
S2: Select Parameter: | X2: Select Statistic: | AB2: Select Seasonal Period: | AE2: Do you want to convert CFS values to TAF/Mon?

Sheet Chart - WYT
S2: Select Parameter: | X2: Select Statistic: | AB2: Select Seasonal Period: | AE2: Do you want to convert CFS values to TAF/Mon?

Sheet Report Data
A2: Information, Tables and Calculations for Reports
A4: Table of Selected Values for Monthly Chart: | O4: Trend Evaluation: | U4: Water Year Type Averages:
A6: Title: | B6: ='Compile Data'!$B$5 -> Sites TCCA Storage + Sites CVP Op Flex Storage | O6: Title: | P6: =INDEX(Other!$B$9:$B$33,'Report - ALL (DASHBOARD)'!$W$4) -> September | U6: Title: | V6: =INDEX(Other!$B$9:$B$33,'Report - ALL (DASHBOARD)'!$W$4) -> September
B7: =INDEX(Other!$C$9:$C$35,'Report - ALL (DASHBOARD)'!$W$3) -> Averages | P7: ='Compile Data'!$B$5 -> Sites TCCA Storage + Sites CVP Op Flex Storage | V7: ='Compile Data'!$B$5 -> Sites TCCA Storage + Sites CVP Op Flex Storage
B8: =CONCATENATE("(",'Compile Data'!$B$6,"/",'Compile Data'!$B$7,")") -> (S30_u1+S32/STORAGE) | P8: =CONCATENATE(INDEX(Other!$C$9:$C$35,'Report - ALL (DASHBOARD)'!$W$3)," ",IF('Report - ALL (DASHBOARD)'!$W$3>4,IF(AND('Compile Data'!$B$10="TAF",'Compile Data'!$B$8="PER-AVER"),"Totals","Averages"),"")) -> Averages | V8: =CONCATENATE(INDEX(Other!$C$9:$C$35,'Report - ALL (DASHBOARD)'!$W$3)," ",IF('Report - ALL (DASHBOARD)'!$W$3>4,IF(AND('Compile Data'!$B$10="TAF",'Compile Data'!$B$8="PER-AVER"),"Totals","Averages"),"")) -> Averages
P9: =CONCATENATE("(",'Compile Data'!$B$6,"/",'Compile Data'!$B$7,")") -> (S30_u1+S32/STORAGE) | V9: =CONCATENATE("(",'Compile Data'!$B$6,"/",'Compile Data'!$B$7,")") -> (S30_u1+S32/STORAGE)
A11: Y-axis: | B11: =IF('Compile Data'!$B$10="CFS","Flow (CFS)",IF('Compile Data'!$B$10="TAF","Volume (TAF)",IF('Compile Data'!$B$10="KM","POSITION (KM)",""))) -> Volume (TAF) | P11: =IF('Compile Data'!$B$10="CFS","Flow (CFS)",IF('Compile Data'!$B$10="TAF","Volume (TAF)",IF('Compile Data'!$B$10="KM","POSITION (KM)",""))) -> Volume (TAF) | V11: =IF('Compile Data'!$B$10="CFS","Flow (CFS)",IF('Compile Data'!$B$10="TAF","Volume (TAF)",IF('Compile Data'!$B$10="KM","POSITION (KM)",""))) -> Volume (TAF)
Q12: Diff from | R12: Diff from
B13: OCT | C13: NOV | D13: DEC | E13: JAN | F13: FEB | G13: MAR | H13: APR | I13: MAY | J13: JUN | K13: JUL | L13: AUG | M13: SEP | P13: Value | Q13: =$O$14 -> NAA_011221 | R13: =$O$15 -> ALT1B_011221 | V13: Wet | W13: Above Normal | X13: Below Normal | Y13: Dry | Z13: Critically Dry
A14: ='Compile Data'!$B$1 -> NAA_011221 | B14: =INDEX('Compile Data'!L$95:L$120,'Report - ALL (DASHBOARD)'!$W$3) -> 0 | C14: =INDEX('Compile Data'!M$95:M$120,'Report - ALL (DASHBOARD)'!$W$3) -> 0 | D14: =INDEX('Compile Data'!N$95:N$120,'Report - ALL (DASHBOARD)'!$W$3) -> 0 | E14: =INDEX('Compile Data'!O$95:O$120,'Report - ALL (DASHBOARD)'!$W$3) -> 0 | F14: =INDEX('Compile Data'!P$95:P$120,'Report - ALL (DASHBOARD)'!$W$3) -> 0 | G14: =INDEX('Compile Data'!Q$95:Q$120,'Report - ALL (DASHBOARD)'!$W$3) -> 0 | H14: =INDEX('Compile Data'!R$95:R$120,'Report - ALL (DASHBOARD)'!$W$3) -> 0 | I14: =INDEX('Compile Data'!S$95:S$120,'Report - ALL (DASHBOARD)'!$W$3) -> 0 | J14: =INDEX('Compile Data'!T$95:T$120,'Report - ALL (DASHBOARD)'!$W$3) -> 0 | K14: =INDEX('Compile Data'!U$95:U$120,'Report - ALL (DASHBOARD)'!$W$3) -> 0 | L14: =INDEX('Compile Data'!V$95:V$120,'Report - ALL (DASHBOARD)'!$W$3) -> 0 | M14: =INDEX('Compile Data'!W$95:W$120,'Report - ALL (DASHBOARD)'!$W$3) -> 0 | O14: ='Compile Data'!$B$1 -> NAA_011221 | P14: =INDEX('Compile Data'!$L$95:$AI$120,'Report - ALL (DASHBOARD)'!$W$3,'Report - ALL (DASHBOARD)'!$W$4) -> 0 | U14: ='Compile Data'!$B$1 -> NAA_011221 | V14: =INDEX('Compile Data'!$L$95:$AI$120,14,'Report - ALL (DASHBOARD)'!$W$4) -> 0 | W14: =INDEX('Compile Data'!$L$95:$AI$120,15,'Report - ALL (DASHBOARD)'!$W$4) -> 0 | X14: =INDEX('Compile Data'!$L$95:$AI$120,16,'Report - ALL (DASHBOARD)'!$W$4) -> 0 | Y14: =INDEX('Compile Data'!$L$95:$AI$120,17,'Report - ALL (DASHBOARD)'!$W$4) -> 0 | Z14: =INDEX('Compile Data'!$L$95:$AI$120,18,'Report - ALL (DASHBOARD)'!$W$4) -> 0
A15: ='Compile Data'!$C$1 -> ALT1B_011221 | B15: =INDEX('Compile Data'!AL$95:AL$120,'Report - ALL (DASHBOARD)'!$W$3) -> 93.08830141 | C15: =INDEX('Compile Data'!AM$95:AM$120,'Report - ALL (DASHBOARD)'!$W$3) -> 92.99889001 | D15: =INDEX('Compile Data'!AN$95:AN$120,'Report - ALL (DASHBOARD)'!$W$3) -> 94.723998 | E15: =INDEX('Compile Data'!AO$95:AO$120,'Report - ALL (DASHBOARD)'!$W$3) -> 108.4414464 | F15: =INDEX('Compile Data'!AP$95:AP$120,'Report - ALL (DASHBOARD)'!$W$3) -> 120.9029186 | G15: =INDEX('Compile Data'!AQ$95:AQ$120,'Report - ALL (DASHBOARD)'!$W$3) -> 134.7387312 | H15: =INDEX('Compile Data'!AR$95:AR$120,'Report - ALL (DASHBOARD)'!$W$3) -> 131.2933039 | I15: =INDEX('Compile Data'!AS$95:AS$120,'Report - ALL (DASHBOARD)'!$W$3) -> 117.9528561 | J15: =INDEX('Compile Data'!AT$95:AT$120,'Report - ALL (DASHBOARD)'!$W$3) -> 102.6211415 | K15: =INDEX('Compile Data'!AU$95:AU$120,'Report - ALL (DASHBOARD)'!$W$3) -> 94.94771432 | L15: =INDEX('Compile Data'!AV$95:AV$120,'Report - ALL (DASHBOARD)'!$W$3) -> 91.82387067 | M15: =INDEX('Compile Data'!AW$95:AW$120,'Report - ALL (DASHBOARD)'!$W$3) -> 91.16702301 | O15: ='Compile Data'!$C$1 -> ALT1B_011221 | P15: =INDEX('Compile Data'!$AL$95:$BI$120,'Report - ALL (DASHBOARD)'!$W$3,'Report - ALL (DASHBOARD)'!$W$4) -> 91.16702301 | Q15: =$P15-$P$14 -> 91.16702301 | U15: ='Compile Data'!$C$1 -> ALT1B_011221 | V15: =INDEX('Compile Data'!$AL$95:$BI$120,14,'Report - ALL (DASHBOARD)'!$W$4) -> 201.9636269 | W15: =INDEX('Compile Data'!$AL$95:$BI$120,15,'Report - ALL (DASHBOARD)'!$W$4) -> 81.3084806 | X15: =INDEX('Compile Data'!$AL$95:$BI$120,16,'Report - ALL (DASHBOARD)'!$W$4) -> 50.0732418 | Y15: =INDEX('Compile Data'!$AL$95:$BI$120,17,'Report - ALL (DASHBOARD)'!$W$4) -> 28.39269183 | Z15: =INDEX('Compile Data'!$AL$95:$BI$120,18,'Report - ALL (DASHBOARD)'!$W$4) -> 3.070498391
A16: ='Compile Data'!$D$1 -> ALT1B_TCCAtoOpFlex | B16: =INDEX('Compile Data'!BL$95:BL$120,'Report - ALL (DASHBOARD)'!$W$3) -> 69.53765608 | C16: =INDEX('Compile Data'!BM$95:BM$120,'Report - ALL (DASHBOARD)'!$W$3) -> 70.50523203 | D16: =INDEX('Compile Data'!BN$95:BN$120,'Report - ALL (DASHBOARD)'!$W$3) -> 73.68730784 | E16: =INDEX('Compile Data'!BO$95:BO$120,'Report - ALL (DASHBOARD)'!$W$3) -> 88.68872719 | F16: =INDEX('Compile Data'!BP$95:BP$120,'Report - ALL (DASHBOARD)'!$W$3) -> 103.9118984 | G16: =INDEX('Compile Data'!BQ$95:BQ$120,'Report - ALL (DASHBOARD)'!$W$3) -> 127.7900822 | H16: =INDEX('Compile Data'!BR$95:BR$120,'Report - ALL (DASHBOARD)'!$W$3) -> 127.2674923 | I16: =INDEX('Compile Data'!BS$95:BS$120,'Report - ALL (DASHBOARD)'!$W$3) -> 114.4534795 | J16: =INDEX('Compile Data'!BT$95:BT$120,'Report - ALL (DASHBOARD)'!$W$3) -> 89.89780633 | K16: =INDEX('Compile Data'!BU$95:BU$120,'Report - ALL (DASHBOARD)'!$W$3) -> 70.81843427 | L16: =INDEX('Compile Data'!BV$95:BV$120,'Report - ALL (DASHBOARD)'!$W$3) -> 67.38258392 | M16: =INDEX('Compile Data'!BW$95:BW$120,'Report - ALL (DASHBOARD)'!$W$3) -> 66.96205174 | O16: ='Compile Data'!$D$1 -> ALT1B_TCCAtoOpFlex | P16: =INDEX('Compile Data'!$BL$95:$CI$120,'Report - ALL (DASHBOARD)'!$W$3,'Report - ALL (DASHBOARD)'!$W$4) -> 66.96205174 | Q16: 66.96205174 | R16: =$P16-$P$15 -> -24.20497127 | U16: ='Compile Data'!$D$1 -> ALT1B_TCCAtoOpFlex | V16: =INDEX('Compile Data'!$BL$95:$CI$120,14,'Report - ALL (DASHBOARD)'!$W$4) -> 204.7951898 | W16: =INDEX('Compile Data'!$BL$95:$CI$120,15,'Report - ALL (DASHBOARD)'!$W$4) -> 3.846463139 | X16: =INDEX('Compile Data'!$BL$95:$CI$120,16,'Report - ALL (DASHBOARD)'!$W$4) -> 1.529206904e-05 | Y16: =INDEX('Compile Data'!$BL$95:$CI$120,17,'Report - ALL (DASHBOARD)'!$W$4) -> 1.619165742 | Z16: =INDEX('Compile Data'!$BL$95:$CI$120,18,'Report - ALL (DASHBOARD)'!$W$4) -> 7.575879293
A17: ='Compile Data'!$E$1 -> 0 | B17: =INDEX('Compile Data'!CL$95:CL$120,'Report - ALL (DASHBOARD)'!$W$3) ->  | C17: =INDEX('Compile Data'!CM$95:CM$120,'Report - ALL (DASHBOARD)'!$W$3) ->  | D17: =INDEX('Compile Data'!CN$95:CN$120,'Report - ALL (DASHBOARD)'!$W$3) ->  | E17: =INDEX('Compile Data'!CO$95:CO$120,'Report - ALL (DASHBOARD)'!$W$3) ->  | F17: =INDEX('Compile Data'!CP$95:CP$120,'Report - ALL (DASHBOARD)'!$W$3) ->  | G17: =INDEX('Compile Data'!CQ$95:CQ$120,'Report - ALL (DASHBOARD)'!$W$3) ->  | H17: =INDEX('Compile Data'!CR$95:CR$120,'Report - ALL (DASHBOARD)'!$W$3) ->  | I17: =INDEX('Compile Data'!CS$95:CS$120,'Report - ALL (DASHBOARD)'!$W$3) ->  | J17: =INDEX('Compile Data'!CT$95:CT$120,'Report - ALL (DASHBOARD)'!$W$3) ->  | K17: =INDEX('Compile Data'!CU$95:CU$120,'Report - ALL (DASHBOARD)'!$W$3) ->  | L17: =INDEX('Compile Data'!CV$95:CV$120,'Report - ALL (DASHBOARD)'!$W$3) ->  | M17: =INDEX('Compile Data'!CW$95:CW$120,'Report - ALL (DASHBOARD)'!$W$3) ->  | O17: ='Compile Data'!$E$1 -> 0 | P17: =INDEX('Compile Data'!$CL$95:$DI$120,'Report - ALL (DASHBOARD)'!$W$3,'Report - ALL (DASHBOARD)'!$W$4) ->  | R17: =$P17-$P$15 ->  | U17: ='Compile Data'!$E$1 -> 0 | V17: =INDEX('Compile Data'!$CL$95:$DI$120,14,'Report - ALL (DASHBOARD)'!$W$4) ->  | W17: =INDEX('Compile Data'!$CL$95:$DI$120,15,'Report - ALL (DASHBOARD)'!$W$4) ->  | X17: =INDEX('Compile Data'!$CL$95:$DI$120,16,'Report - ALL (DASHBOARD)'!$W$4) ->  | Y17: =INDEX('Compile Data'!$CL$95:$DI$120,17,'Report - ALL (DASHBOARD)'!$W$4) ->  | Z17: =INDEX('Compile Data'!$CL$95:$DI$120,18,'Report - ALL (DASHBOARD)'!$W$4) -> 
A18: ='Compile Data'!$F$1 -> 0 | B18: =INDEX('Compile Data'!DL$95:DL$120,'Report - ALL (DASHBOARD)'!$W$3) ->  | C18: =INDEX('Compile Data'!DM$95:DM$120,'Report - ALL (DASHBOARD)'!$W$3) ->  | D18: =INDEX('Compile Data'!DN$95:DN$120,'Report - ALL (DASHBOARD)'!$W$3) ->  | E18: =INDEX('Compile Data'!DO$95:DO$120,'Report - ALL (DASHBOARD)'!$W$3) ->  | F18: =INDEX('Compile Data'!DP$95:DP$120,'Report - ALL (DASHBOARD)'!$W$3) ->  | G18: =INDEX('Compile Data'!DQ$95:DQ$120,'Report - ALL (DASHBOARD)'!$W$3) ->  | H18: =INDEX('Compile Data'!DR$95:DR$120,'Report - ALL (DASHBOARD)'!$W$3) ->  | I18: =INDEX('Compile Data'!DS$95:DS$120,'Report - ALL (DASHBOARD)'!$W$3) ->  | J18: =INDEX('Compile Data'!DT$95:DT$120,'Report - ALL (DASHBOARD)'!$W$3) ->  | K18: =INDEX('Compile Data'!DU$95:DU$120,'Report - ALL (DASHBOARD)'!$W$3) ->  | L18: =INDEX('Compile Data'!DV$95:DV$120,'Report - ALL (DASHBOARD)'!$W$3) ->  | M18: =INDEX('Compile Data'!DW$95:DW$120,'Report - ALL (DASHBOARD)'!$W$3) ->  | O18: ='Compile Data'!$F$1 -> 0 | P18: =INDEX('Compile Data'!$DL$95:$EI$120,'Report - ALL (DASHBOARD)'!$W$3,'Report - ALL (DASHBOARD)'!$W$4) ->  | Q18: =$P18-$P$14 ->  | R18: =$P18-$P$15 ->  | U18: ='Compile Data'!$F$1 -> 0 | V18: =INDEX('Compile Data'!$DL$95:$EI$120,14,'Report - ALL (DASHBOARD)'!$W$4) ->  | W18: =INDEX('Compile Data'!$DL$95:$EI$120,15,'Report - ALL (DASHBOARD)'!$W$4) ->  | X18: =INDEX('Compile Data'!$DL$95:$EI$120,16,'Report - ALL (DASHBOARD)'!$W$4) ->  | Y18: =INDEX('Compile Data'!$DL$95:$EI$120,17,'Report - ALL (DASHBOARD)'!$W$4) ->  | Z18: =INDEX('Compile Data'!$DL$95:$EI$120,18,'Report - ALL (DASHBOARD)'!$W$4) -> 
A19: ='Compile Data'!$G$1 -> 0 | B19: =INDEX('Compile Data'!EL$95:EL$120,'Report - ALL (DASHBOARD)'!$W$3) ->  | C19: =INDEX('Compile Data'!EM$95:EM$120,'Report - ALL (DASHBOARD)'!$W$3) ->  | D19: =INDEX('Compile Data'!EN$95:EN$120,'Report - ALL (DASHBOARD)'!$W$3) ->  | E19: =INDEX('Compile Data'!EO$95:EO$120,'Report - ALL (DASHBOARD)'!$W$3) ->  | F19: =INDEX('Compile Data'!EP$95:EP$120,'Report - ALL (DASHBOARD)'!$W$3) ->  | G19: =INDEX('Compile Data'!EQ$95:EQ$120,'Report - ALL (DASHBOARD)'!$W$3) ->  | H19: =INDEX('Compile Data'!ER$95:ER$120,'Report - ALL (DASHBOARD)'!$W$3) ->  | I19: =INDEX('Compile Data'!ES$95:ES$120,'Report - ALL (DASHBOARD)'!$W$3) ->  | J19: =INDEX('Compile Data'!ET$95:ET$120,'Report - ALL (DASHBOARD)'!$W$3) ->  | K19: =INDEX('Compile Data'!EU$95:EU$120,'Report - ALL (DASHBOARD)'!$W$3) ->  | L19: =INDEX('Compile Data'!EV$95:EV$120,'Report - ALL (DASHBOARD)'!$W$3) ->  | M19: =INDEX('Compile Data'!EW$95:EW$120,'Report - ALL (DASHBOARD)'!$W$3) ->  | O19: ='Compile Data'!$G$1 -> 0 | P19: =INDEX('Compile Data'!$EL$95:$FI$120,'Report - ALL (DASHBOARD)'!$W$3,'Report - ALL (DASHBOARD)'!$W$4) ->  | R19: =$P19-$P$15 ->  | U19: ='Compile Data'!$G$1 -> 0 | V19: =INDEX('Compile Data'!$EL$95:$FI$120,14,'Report - ALL (DASHBOARD)'!$W$4) ->  | W19: =INDEX('Compile Data'!$EL$95:$FI$120,15,'Report - ALL (DASHBOARD)'!$W$4) ->  | X19: =INDEX('Compile Data'!$EL$95:$FI$120,16,'Report - ALL (DASHBOARD)'!$W$4) ->  | Y19: =INDEX('Compile Data'!$EL$95:$FI$120,17,'Report - ALL (DASHBOARD)'!$W$4) ->  | Z19: =INDEX('Compile Data'!$EL$95:$FI$120,18,'Report - ALL (DASHBOARD)'!$W$4) -> 
A21: Annuals Plot: | O21: Exceedence Plot:
A23: Title: | B23: =INDEX(Other!$B$9:$B$33,'Report - ALL (DASHBOARD)'!$W$4) -> September | O23: Title: | P23: =INDEX(Other!$B$9:$B$33,'Report - ALL (DASHBOARD)'!$W$4) -> September
B24: ='Compile Data'!$B$5 -> Sites TCCA Storage + Sites CVP Op Flex Storage | P24: ='Compile Data'!$B$5 -> Sites TCCA Storage + Sites CVP Op Flex Storage
B25: =IF('Compile Data'!$B$10="CFS","Flow (CFS)",IF('Compile Data'!$B$10="TAF","Volume (TAF)",IF('Compile Data'!$B$10="KM","POSITION (KM)",""))) -> Volume (TAF) | P25: =IF('Compile Data'!$B$10="CFS","Flow (CFS)",IF('Compile Data'!$B$10="TAF","Volume (TAF)",IF('Compile Data'!$B$10="KM","POSITION (KM)",""))) -> Volume (TAF)
B27: ='Compile Data'!$B$1 -> NAA_011221 | C27: ='Compile Data'!$C$1 -> ALT1B_011221 | D27: ='Compile Data'!$D$1 -> ALT1B_TCCAtoOpFlex | E27: ='Compile Data'!$E$1 -> 0 | F27: ='Compile Data'!$F$1 -> 0 | G27: ='Compile Data'!$G$1 -> 0 | Q27: ='Compile Data'!$B$1 -> NAA_011221 | R27: ='Compile Data'!$C$1 -> ALT1B_011221 | S27: ='Compile Data'!$D$1 -> ALT1B_TCCAtoOpFlex | T27: ='Compile Data'!$E$1 -> 0 | U27: ='Compile Data'!$F$1 -> 0 | V27: ='Compile Data'!$G$1 -> 0
A28: 1922 | B28: =INDEX('Compile Data'!$L$12:$AI$93,$A28-1921,'Report - ALL (DASHBOARD)'!$W$4) -> 0 | C28: =INDEX('Compile Data'!$AL$12:$BI$93,$A28-1921,'Report - ALL (DASHBOARD)'!$W$4) -> 93.27820333 | D28: =INDEX('Compile Data'!$BL$12:$CI$93,$A28-1921,'Report - ALL (DASHBOARD)'!$W$4) -> 35.86764384 | E28: =INDEX('Compile Data'!$CL$12:$DI$93,$A28-1921,'Report - ALL (DASHBOARD)'!$W$4) ->  | F28: =INDEX('Compile Data'!$DL$12:$EI$93,$A28-1921,'Report - ALL (DASHBOARD)'!$W$4) ->  | G28: =INDEX('Compile Data'!$EL$12:$FI$93,$A28-1921,'Report - ALL (DASHBOARD)'!$W$4) ->  | O28: 1 | P28: =(O28-1)/81 -> 0 | Q28: =INDEX('Compile Data'!$L$123:$AI$204,$O28,'Report - ALL (DASHBOARD)'!$W$4) -> 0 | R28: =INDEX('Compile Data'!$AL$123:$BI$204,$O28,'Report - ALL (DASHBOARD)'!$W$4) -> 228.2460812 | S28: =INDEX('Compile Data'!$BL$123:$CI$204,$O28,'Report - ALL (DASHBOARD)'!$W$4) -> 227.8399659 | T28: =INDEX('Compile Data'!$CL$123:$DI$204,$O28,'Report - ALL (DASHBOARD)'!$W$4) ->  | U28: =INDEX('Compile Data'!$DL$123:$EI$204,$O28,'Report - ALL (DASHBOARD)'!$W$4) ->  | V28: =INDEX('Compile Data'!$EL$123:$FI$204,$O28,'Report - ALL (DASHBOARD)'!$W$4) -> 
A29: =A28+1 -> 1923 | B29: =INDEX('Compile Data'!$L$12:$AI$93,$A29-1921,'Report - ALL (DASHBOARD)'!$W$4) -> 0 | C29: =INDEX('Compile Data'!$AL$12:$BI$93,$A29-1921,'Report - ALL (DASHBOARD)'!$W$4) -> 46.48675412 | D29: =INDEX('Compile Data'!$BL$12:$CI$93,$A29-1921,'Report - ALL (DASHBOARD)'!$W$4) -> 0 | E29: =INDEX('Compile Data'!$CL$12:$DI$93,$A29-1921,'Report - ALL (DASHBOARD)'!$W$4) ->  | F29: =INDEX('Compile Data'!$DL$12:$EI$93,$A29-1921,'Report - ALL (DASHBOARD)'!$W$4) ->  | G29: =INDEX('Compile Data'!$EL$12:$FI$93,$A29-1921,'Report - ALL (DASHBOARD)'!$W$4) ->  | O29: 2 | P29: 0.01234567901 | Q29: =INDEX('Compile Data'!$L$123:$AI$204,$O29,'Report - ALL (DASHBOARD)'!$W$4) -> 0 | R29: =INDEX('Compile Data'!$AL$123:$BI$204,$O29,'Report - ALL (DASHBOARD)'!$W$4) -> 228.0720472 | S29: =INDEX('Compile Data'!$BL$123:$CI$204,$O29,'Report - ALL (DASHBOARD)'!$W$4) -> 227.7405415 | T29: =INDEX('Compile Data'!$CL$123:$DI$204,$O29,'Report - ALL (DASHBOARD)'!$W$4) ->  | U29: =INDEX('Compile Data'!$DL$123:$EI$204,$O29,'Report - ALL (DASHBOARD)'!$W$4) ->  | V29: =INDEX('Compile Data'!$EL$123:$FI$204,$O29,'Report - ALL (DASHBOARD)'!$W$4) -> 
A30: =A29+1 -> 1924 | B30: =INDEX('Compile Data'!$L$12:$AI$93,$A30-1921,'Report - ALL (DASHBOARD)'!$W$4) -> 0 | C30: =INDEX('Compile Data'!$AL$12:$BI$93,$A30-1921,'Report - ALL (DASHBOARD)'!$W$4) -> 0.0001384223887 | D30: =INDEX('Compile Data'!$BL$12:$CI$93,$A30-1921,'Report - ALL (DASHBOARD)'!$W$4) -> 0 | E30: =INDEX('Compile Data'!$CL$12:$DI$93,$A30-1921,'Report - ALL (DASHBOARD)'!$W$4) ->  | F30: =INDEX('Compile Data'!$DL$12:$EI$93,$A30-1921,'Report - ALL (DASHBOARD)'!$W$4) ->  | G30: =INDEX('Compile Data'!$EL$12:$FI$93,$A30-1921,'Report - ALL (DASHBOARD)'!$W$4) ->  | O30: 3 | P30: 0.02469135802 | Q30: =INDEX('Compile Data'!$L$123:$AI$204,$O30,'Report - ALL (DASHBOARD)'!$W$4) -> 0 | R30: =INDEX('Compile Data'!$AL$123:$BI$204,$O30,'Report - ALL (DASHBOARD)'!$W$4) -> 227.5108627 | S30: =INDEX('Compile Data'!$BL$123:$CI$204,$O30,'Report - ALL (DASHBOARD)'!$W$4) -> 227.6910629 | T30: =INDEX('Compile Data'!$CL$123:$DI$204,$O30,'Report - ALL (DASHBOARD)'!$W$4) ->  | U30: =INDEX('Compile Data'!$DL$123:$EI$204,$O30,'Report - ALL (DASHBOARD)'!$W$4) ->  | V30: =INDEX('Compile Data'!$EL$123:$FI$204,$O30,'Report - ALL (DASHBOARD)'!$W$4) -> 
A31: 1925 | B31: =INDEX('Compile Data'!$L$12:$AI$93,$A31-1921,'Report - ALL (DASHBOARD)'!$W$4) -> 0 | C31: =INDEX('Compile Data'!$AL$12:$BI$93,$A31-1921,'Report - ALL (DASHBOARD)'!$W$4) -> 0 | D31: =INDEX('Compile Data'!$BL$12:$CI$93,$A31-1921,'Report - ALL (DASHBOARD)'!$W$4) -> 0 | E31: =INDEX('Compile Data'!$CL$12:$DI$93,$A31-1921,'Report - ALL (DASHBOARD)'!$W$4) ->  | F31: =INDEX('Compile Data'!$DL$12:$EI$93,$A31-1921,'Report - ALL (DASHBOARD)'!$W$4) ->  | G31: =INDEX('Compile Data'!$EL$12:$FI$93,$A31-1921,'Report - ALL (DASHBOARD)'!$W$4) ->  | O31: 4 | P31: 0.03703703704 | Q31: =INDEX('Compile Data'!$L$123:$AI$204,$O31,'Report - ALL (DASHBOARD)'!$W$4) -> 0 | R31: =INDEX('Compile Data'!$AL$123:$BI$204,$O31,'Report - ALL (DASHBOARD)'!$W$4) -> 227.3811099 | S31: =INDEX('Compile Data'!$BL$123:$CI$204,$O31,'Report - ALL (DASHBOARD)'!$W$4) -> 227.4312795 | T31: =INDEX('Compile Data'!$CL$123:$DI$204,$O31,'Report - ALL (DASHBOARD)'!$W$4) ->  | U31: =INDEX('Compile Data'!$DL$123:$EI$204,$O31,'Report - ALL (DASHBOARD)'!$W$4) ->  | V31: =INDEX('Compile Data'!$EL$123:$FI$204,$O31,'Report - ALL (DASHBOARD)'!$W$4) -> 
A32: 1926 | B32: =INDEX('Compile Data'!$L$12:$AI$93,$A32-1921,'Report - ALL (DASHBOARD)'!$W$4) -> 0 | C32: =INDEX('Compile Data'!$AL$12:$BI$93,$A32-1921,'Report - ALL (DASHBOARD)'!$W$4) -> 4.313421989 | D32: =INDEX('Compile Data'!$BL$12:$CI$93,$A32-1921,'Report - ALL (DASHBOARD)'!$W$4) -> 0 | E32: =INDEX('Compile Data'!$CL$12:$DI$93,$A32-1921,'Report - ALL (DASHBOARD)'!$W$4) ->  | F32: =INDEX('Compile Data'!$DL$12:$EI$93,$A32-1921,'Report - ALL (DASHBOARD)'!$W$4) ->  | G32: =INDEX('Compile Data'!$EL$12:$FI$93,$A32-1921,'Report - ALL (DASHBOARD)'!$W$4) ->  | O32: 5 | P32: 0.04938271605 | Q32: =INDEX('Compile Data'!$L$123:$AI$204,$O32,'Report - ALL (DASHBOARD)'!$W$4) -> 0 | R32: =INDEX('Compile Data'!$AL$123:$BI$204,$O32,'Report - ALL (DASHBOARD)'!$W$4) -> 226.893471 | S32: =INDEX('Compile Data'!$BL$123:$CI$204,$O32,'Report - ALL (DASHBOARD)'!$W$4) -> 226.8329608 | T32: =INDEX('Compile Data'!$CL$123:$DI$204,$O32,'Report - ALL (DASHBOARD)'!$W$4) ->  | U32: =INDEX('Compile Data'!$DL$123:$EI$204,$O32,'Report - ALL (DASHBOARD)'!$W$4) ->  | V32: =INDEX('Compile Data'!$EL$123:$FI$204,$O32,'Report - ALL (DASHBOARD)'!$W$4) -> 
A33: 1927 | B33: =INDEX('Compile Data'!$L$12:$AI$93,$A33-1921,'Report - ALL (DASHBOARD)'!$W$4) -> 0 | C33: =INDEX('Compile Data'!$AL$12:$BI$93,$A33-1921,'Report - ALL (DASHBOARD)'!$W$4) -> 103.8317076 | D33: =INDEX('Compile Data'!$BL$12:$CI$93,$A33-1921,'Report - ALL (DASHBOARD)'!$W$4) -> 111.1094518 | E33: =INDEX('Compile Data'!$CL$12:$DI$93,$A33-1921,'Report - ALL (DASHBOARD)'!$W$4) ->  | F33: =INDEX('Compile Data'!$DL$12:$EI$93,$A33-1921,'Report - ALL (DASHBOARD)'!$W$4) ->  | G33: =INDEX('Compile Data'!$EL$12:$FI$93,$A33-1921,'Report - ALL (DASHBOARD)'!$W$4) ->  | O33: 6 | P33: 0.06172839506 | Q33: =INDEX('Compile Data'!$L$123:$AI$204,$O33,'Report - ALL (DASHBOARD)'!$W$4) -> 0 | R33: =INDEX('Compile Data'!$AL$123:$BI$204,$O33,'Report - ALL (DASHBOARD)'!$W$4) -> 225.6250399 | S33: =INDEX('Compile Data'!$BL$123:$CI$204,$O33,'Report - ALL (DASHBOARD)'!$W$4) -> 226.5936764 | T33: =INDEX('Compile Data'!$CL$123:$DI$204,$O33,'Report - ALL (DASHBOARD)'!$W$4) ->  | U33: =INDEX('Compile Data'!$DL$123:$EI$204,$O33,'Report - ALL (DASHBOARD)'!$W$4) ->  | V33: =INDEX('Compile Data'!$EL$123:$FI$204,$O33,'Report - ALL (DASHBOARD)'!$W$4) -> 
A34: 1928 | B34: =INDEX('Compile Data'!$L$12:$AI$93,$A34-1921,'Report - ALL (DASHBOARD)'!$W$4) -> 0 | C34: =INDEX('Compile Data'!$AL$12:$BI$93,$A34-1921,'Report - ALL (DASHBOARD)'!$W$4) -> 83.31357047 | D34: =INDEX('Compile Data'!$BL$12:$CI$93,$A34-1921,'Report - ALL (DASHBOARD)'!$W$4) -> 0 | E34: =INDEX('Compile Data'!$CL$12:$DI$93,$A34-1921,'Report - ALL (DASHBOARD)'!$W$4) ->  | F34: =INDEX('Compile Data'!$DL$12:$EI$93,$A34-1921,'Report - ALL (DASHBOARD)'!$W$4) ->  | G34: =INDEX('Compile Data'!$EL$12:$FI$93,$A34-1921,'Report - ALL (DASHBOARD)'!$W$4) ->  | O34: 7 | P34: 0.07407407407 | Q34: =INDEX('Compile Data'!$L$123:$AI$204,$O34,'Report - ALL (DASHBOARD)'!$W$4) -> 0 | R34: =INDEX('Compile Data'!$AL$123:$BI$204,$O34,'Report - ALL (DASHBOARD)'!$W$4) -> 225.5813958 | S34: =INDEX('Compile Data'!$BL$123:$CI$204,$O34,'Report - ALL (DASHBOARD)'!$W$4) -> 226.5508928 | T34: =INDEX('Compile Data'!$CL$123:$DI$204,$O34,'Report - ALL (DASHBOARD)'!$W$4) ->  | U34: =INDEX('Compile Data'!$DL$123:$EI$204,$O34,'Report - ALL (DASHBOARD)'!$W$4) ->  | V34: =INDEX('Compile Data'!$EL$123:$FI$204,$O34,'Report - ALL (DASHBOARD)'!$W$4) -> 
A35: 1929 | B35: =INDEX('Compile Data'!$L$12:$AI$93,$A35-1921,'Report - ALL (DASHBOARD)'!$W$4) -> 0 | C35: =INDEX('Compile Data'!$AL$12:$BI$93,$A35-1921,'Report - ALL (DASHBOARD)'!$W$4) -> 0 | D35: =INDEX('Compile Data'!$BL$12:$CI$93,$A35-1921,'Report - ALL (DASHBOARD)'!$W$4) -> 0 | E35: =INDEX('Compile Data'!$CL$12:$DI$93,$A35-1921,'Report - ALL (DASHBOARD)'!$W$4) ->  | F35: =INDEX('Compile Data'!$DL$12:$EI$93,$A35-1921,'Report - ALL (DASHBOARD)'!$W$4) ->  | G35: =INDEX('Compile Data'!$EL$12:$FI$93,$A35-1921,'Report - ALL (DASHBOARD)'!$W$4) ->  | O35: 8 | P35: 0.08641975309 | Q35: =INDEX('Compile Data'!$L$123:$AI$204,$O35,'Report - ALL (DASHBOARD)'!$W$4) -> 0 | R35: =INDEX('Compile Data'!$AL$123:$BI$204,$O35,'Report - ALL (DASHBOARD)'!$W$4) -> 225.0692735 | S35: =INDEX('Compile Data'!$BL$123:$CI$204,$O35,'Report - ALL (DASHBOARD)'!$W$4) -> 226.2506054 | T35: =INDEX('Compile Data'!$CL$123:$DI$204,$O35,'Report - ALL (DASHBOARD)'!$W$4) ->  | U35: =INDEX('Compile Data'!$DL$123:$EI$204,$O35,'Report - ALL (DASHBOARD)'!$W$4) ->  | V35: =INDEX('Compile Data'!$EL$123:$FI$204,$O35,'Report - ALL (DASHBOARD)'!$W$4) -> 
A36: 1930 | B36: =INDEX('Compile Data'!$L$12:$AI$93,$A36-1921,'Report - ALL (DASHBOARD)'!$W$4) -> 0 | C36: =INDEX('Compile Data'!$AL$12:$BI$93,$A36-1921,'Report - ALL (DASHBOARD)'!$W$4) -> 0 | D36: =INDEX('Compile Data'!$BL$12:$CI$93,$A36-1921,'Report - ALL (DASHBOARD)'!$W$4) -> 0 | E36: =INDEX('Compile Data'!$CL$12:$DI$93,$A36-1921,'Report - ALL (DASHBOARD)'!$W$4) ->  | F36: =INDEX('Compile Data'!$DL$12:$EI$93,$A36-1921,'Report - ALL (DASHBOARD)'!$W$4) ->  | G36: =INDEX('Compile Data'!$EL$12:$FI$93,$A36-1921,'Report - ALL (DASHBOARD)'!$W$4) ->  | O36: 9 | P36: 0.0987654321 | Q36: =INDEX('Compile Data'!$L$123:$AI$204,$O36,'Report - ALL (DASHBOARD)'!$W$4) -> 0 | R36: =INDEX('Compile Data'!$AL$123:$BI$204,$O36,'Report - ALL (DASHBOARD)'!$W$4) -> 224.4145874 | S36: =INDEX('Compile Data'!$BL$123:$CI$204,$O36,'Report - ALL (DASHBOARD)'!$W$4) -> 224.8032468 | T36: =INDEX('Compile Data'!$CL$123:$DI$204,$O36,'Report - ALL (DASHBOARD)'!$W$4) ->  | U36: =INDEX('Compile Data'!$DL$123:$EI$204,$O36,'Report - ALL (DASHBOARD)'!$W$4) ->  | V36: =INDEX('Compile Data'!$EL$123:$FI$204,$O36,'Report - ALL (DASHBOARD)'!$W$4) -> 
A37: 1931 | B37: =INDEX('Compile Data'!$L$12:$AI$93,$A37-1921,'Report - ALL (DASHBOARD)'!$W$4) -> 0 | C37: =INDEX('Compile Data'!$AL$12:$BI$93,$A37-1921,'Report - ALL (DASHBOARD)'!$W$4) -> 0 | D37: =INDEX('Compile Data'!$BL$12:$CI$93,$A37-1921,'Report - ALL (DASHBOARD)'!$W$4) -> 0 | E37: =INDEX('Compile Data'!$CL$12:$DI$93,$A37-1921,'Report - ALL (DASHBOARD)'!$W$4) ->  | F37: =INDEX('Compile Data'!$DL$12:$EI$93,$A37-1921,'Report - ALL (DASHBOARD)'!$W$4) ->  | G37: =INDEX('Compile Data'!$EL$12:$FI$93,$A37-1921,'Report - ALL (DASHBOARD)'!$W$4) ->  | O37: 10 | P37: 0.1111111111 | Q37: =INDEX('Compile Data'!$L$123:$AI$204,$O37,'Report - ALL (DASHBOARD)'!$W$4) -> 0 | R37: =INDEX('Compile Data'!$AL$123:$BI$204,$O37,'Report - ALL (DASHBOARD)'!$W$4) -> 224.3568522 | S37: =INDEX('Compile Data'!$BL$123:$CI$204,$O37,'Report - ALL (DASHBOARD)'!$W$4) -> 224.7507352 | T37: =INDEX('Compile Data'!$CL$123:$DI$204,$O37,'Report - ALL (DASHBOARD)'!$W$4) ->  | U37: =INDEX('Compile Data'!$DL$123:$EI$204,$O37,'Report - ALL (DASHBOARD)'!$W$4) ->  | V37: =INDEX('Compile Data'!$EL$123:$FI$204,$O37,'Report - ALL (DASHBOARD)'!$W$4) -> 
A38: 1932 | B38: =INDEX('Compile Data'!$L$12:$AI$93,$A38-1921,'Report - ALL (DASHBOARD)'!$W$4) -> 0 | C38: =INDEX('Compile Data'!$AL$12:$BI$93,$A38-1921,'Report - ALL (DASHBOARD)'!$W$4) -> 0.5180164918 | D38: =INDEX('Compile Data'!$BL$12:$CI$93,$A38-1921,'Report - ALL (DASHBOARD)'!$W$4) -> 0.01057265527 | E38: =INDEX('Compile Data'!$CL$12:$DI$93,$A38-1921,'Report - ALL (DASHBOARD)'!$W$4) ->  | F38: =INDEX('Compile Data'!$DL$12:$EI$93,$A38-1921,'Report - ALL (DASHBOARD)'!$W$4) ->  | G38: =INDEX('Compile Data'!$EL$12:$FI$93,$A38-1921,'Report - ALL (DASHBOARD)'!$W$4) ->  | O38: 11 | P38: 0.1234567901 | Q38: =INDEX('Compile Data'!$L$123:$AI$204,$O38,'Report - ALL (DASHBOARD)'!$W$4) -> 0 | R38: =INDEX('Compile Data'!$AL$123:$BI$204,$O38,'Report - ALL (DASHBOARD)'!$W$4) -> 224.3202883 | S38: =INDEX('Compile Data'!$BL$123:$CI$204,$O38,'Report - ALL (DASHBOARD)'!$W$4) -> 224.6107655 | T38: =INDEX('Compile Data'!$CL$123:$DI$204,$O38,'Report - ALL (DASHBOARD)'!$W$4) ->  | U38: =INDEX('Compile Data'!$DL$123:$EI$204,$O38,'Report - ALL (DASHBOARD)'!$W$4) ->  | V38: =INDEX('Compile Data'!$EL$123:$FI$204,$O38,'Report - ALL (DASHBOARD)'!$W$4) -> 
A39: 1933 | B39: =INDEX('Compile Data'!$L$12:$AI$93,$A39-1921,'Report - ALL (DASHBOARD)'!$W$4) -> 0 | C39: =INDEX('Compile Data'!$AL$12:$BI$93,$A39-1921,'Report - ALL (DASHBOARD)'!$W$4) -> 0 | D39: =INDEX('Compile Data'!$BL$12:$CI$93,$A39-1921,'Report - ALL (DASHBOARD)'!$W$4) -> 0 | E39: =INDEX('Compile Data'!$CL$12:$DI$93,$A39-1921,'Report - ALL (DASHBOARD)'!$W$4) ->  | F39: =INDEX('Compile Data'!$DL$12:$EI$93,$A39-1921,'Report - ALL (DASHBOARD)'!$W$4) ->  | G39: =INDEX('Compile Data'!$EL$12:$FI$93,$A39-1921,'Report - ALL (DASHBOARD)'!$W$4) ->  | O39: 12 | P39: 0.1358024691 | Q39: =INDEX('Compile Data'!$L$123:$AI$204,$O39,'Report - ALL (DASHBOARD)'!$W$4) -> 0 | R39: =INDEX('Compile Data'!$AL$123:$BI$204,$O39,'Report - ALL (DASHBOARD)'!$W$4) -> 224.224645 | S39: =INDEX('Compile Data'!$BL$123:$CI$204,$O39,'Report - ALL (DASHBOARD)'!$W$4) -> 224.0681255 | T39: =INDEX('Compile Data'!$CL$123:$DI$204,$O39,'Report - ALL (DASHBOARD)'!$W$4) ->  | U39: =INDEX('Compile Data'!$DL$123:$EI$204,$O39,'Report - ALL (DASHBOARD)'!$W$4) ->  | V39: =INDEX('Compile Data'!$EL$123:$FI$204,$O39,'Report - ALL (DASHBOARD)'!$W$4) -> 
A40: 1934 | B40: =INDEX('Compile Data'!$L$12:$AI$93,$A40-1921,'Report - ALL (DASHBOARD)'!$W$4) -> 0 | C40: =INDEX('Compile Data'!$AL$12:$BI$93,$A40-1921,'Report - ALL (DASHBOARD)'!$W$4) -> 0 | D40: =INDEX('Compile Data'!$BL$12:$CI$93,$A40-1921,'Report - ALL (DASHBOARD)'!$W$4) -> 0 | E40: =INDEX('Compile Data'!$CL$12:$DI$93,$A40-1921,'Report - ALL (DASHBOARD)'!$W$4) ->  | F40: =INDEX('Compile Data'!$DL$12:$EI$93,$A40-1921,'Report - ALL (DASHBOARD)'!$W$4) ->  | G40: =INDEX('Compile Data'!$EL$12:$FI$93,$A40-1921,'Report - ALL (DASHBOARD)'!$W$4) ->  | O40: 13 | P40: 0.1481481481 | Q40: =INDEX('Compile Data'!$L$123:$AI$204,$O40,'Report - ALL (DASHBOARD)'!$W$4) -> 0 | R40: =INDEX('Compile Data'!$AL$123:$BI$204,$O40,'Report - ALL (DASHBOARD)'!$W$4) -> 224.2190386 | S40: =INDEX('Compile Data'!$BL$123:$CI$204,$O40,'Report - ALL (DASHBOARD)'!$W$4) -> 223.8343061 | T40: =INDEX('Compile Data'!$CL$123:$DI$204,$O40,'Report - ALL (DASHBOARD)'!$W$4) ->  | U40: =INDEX('Compile Data'!$DL$123:$EI$204,$O40,'Report - ALL (DASHBOARD)'!$W$4) ->  | V40: =INDEX('Compile Data'!$EL$123:$FI$204,$O40,'Report - ALL (DASHBOARD)'!$W$4) -> 
A41: 1935 | B41: =INDEX('Compile Data'!$L$12:$AI$93,$A41-1921,'Report - ALL (DASHBOARD)'!$W$4) -> 0 | C41: =INDEX('Compile Data'!$AL$12:$BI$93,$A41-1921,'Report - ALL (DASHBOARD)'!$W$4) -> 0 | D41: =INDEX('Compile Data'!$BL$12:$CI$93,$A41-1921,'Report - ALL (DASHBOARD)'!$W$4) -> 0 | E41: =INDEX('Compile Data'!$CL$12:$DI$93,$A41-1921,'Report - ALL (DASHBOARD)'!$W$4) ->  | F41: =INDEX('Compile Data'!$DL$12:$EI$93,$A41-1921,'Report - ALL (DASHBOARD)'!$W$4) ->  | G41: =INDEX('Compile Data'!$EL$12:$FI$93,$A41-1921,'Report - ALL (DASHBOARD)'!$W$4) ->  | O41: 14 | P41: 0.1604938272 | Q41: =INDEX('Compile Data'!$L$123:$AI$204,$O41,'Report - ALL (DASHBOARD)'!$W$4) -> 0 | R41: =INDEX('Compile Data'!$AL$123:$BI$204,$O41,'Report - ALL (DASHBOARD)'!$W$4) -> 224.0452605 | S41: =INDEX('Compile Data'!$BL$123:$CI$204,$O41,'Report - ALL (DASHBOARD)'!$W$4) -> 223.8154455 | T41: =INDEX('Compile Data'!$CL$123:$DI$204,$O41,'Report - ALL (DASHBOARD)'!$W$4) ->  | U41: =INDEX('Compile Data'!$DL$123:$EI$204,$O41,'Report - ALL (DASHBOARD)'!$W$4) ->  | V41: =INDEX('Compile Data'!$EL$123:$FI$204,$O41,'Report - ALL (DASHBOARD)'!$W$4) -> 
A42: 1936 | B42: =INDEX('Compile Data'!$L$12:$AI$93,$A42-1921,'Report - ALL (DASHBOARD)'!$W$4) -> 0 | C42: =INDEX('Compile Data'!$AL$12:$BI$93,$A42-1921,'Report - ALL (DASHBOARD)'!$W$4) -> 8.398017599e-06 | D42: =INDEX('Compile Data'!$BL$12:$CI$93,$A42-1921,'Report - ALL (DASHBOARD)'!$W$4) -> 1.516327322e-05 | E42: =INDEX('Compile Data'!$CL$12:$DI$93,$A42-1921,'Report - ALL (DASHBOARD)'!$W$4) ->  | F42: =INDEX('Compile Data'!$DL$12:$EI$93,$A42-1921,'Report - ALL (DASHBOARD)'!$W$4) ->  | G42: =INDEX('Compile Data'!$EL$12:$FI$93,$A42-1921,'Report - ALL (DASHBOARD)'!$W$4) ->  | O42: 15 | P42: 0.1728395062 | Q42: =INDEX('Compile Data'!$L$123:$AI$204,$O42,'Report - ALL (DASHBOARD)'!$W$4) -> 0 | R42: =INDEX('Compile Data'!$AL$123:$BI$204,$O42,'Report - ALL (DASHBOARD)'!$W$4) -> 223.7971232 | S42: =INDEX('Compile Data'!$BL$123:$CI$204,$O42,'Report - ALL (DASHBOARD)'!$W$4) -> 223.7589767 | T42: =INDEX('Compile Data'!$CL$123:$DI$204,$O42,'Report - ALL (DASHBOARD)'!$W$4) ->  | U42: =INDEX('Compile Data'!$DL$123:$EI$204,$O42,'Report - ALL (DASHBOARD)'!$W$4) ->  | V42: =INDEX('Compile Data'!$EL$123:$FI$204,$O42,'Report - ALL (DASHBOARD)'!$W$4) -> 
A43: 1937 | B43: =INDEX('Compile Data'!$L$12:$AI$93,$A43-1921,'Report - ALL (DASHBOARD)'!$W$4) -> 0 | C43: =INDEX('Compile Data'!$AL$12:$BI$93,$A43-1921,'Report - ALL (DASHBOARD)'!$W$4) -> 0 | D43: =INDEX('Compile Data'!$BL$12:$CI$93,$A43-1921,'Report - ALL (DASHBOARD)'!$W$4) -> 0 | E43: =INDEX('Compile Data'!$CL$12:$DI$93,$A43-1921,'Report - ALL (DASHBOARD)'!$W$4) ->  | F43: =INDEX('Compile Data'!$DL$12:$EI$93,$A43-1921,'Report - ALL (DASHBOARD)'!$W$4) ->  | G43: =INDEX('Compile Data'!$EL$12:$FI$93,$A43-1921,'Report - ALL (DASHBOARD)'!$W$4) ->  | O43: 16 | P43: 0.1851851852 | Q43: =INDEX('Compile Data'!$L$123:$AI$204,$O43,'Report - ALL (DASHBOARD)'!$W$4) -> 0 | R43: =INDEX('Compile Data'!$AL$123:$BI$204,$O43,'Report - ALL (DASHBOARD)'!$W$4) -> 221.6761023 | S43: =INDEX('Compile Data'!$BL$123:$CI$204,$O43,'Report - ALL (DASHBOARD)'!$W$4) -> 223.7498808 | T43: =INDEX('Compile Data'!$CL$123:$DI$204,$O43,'Report - ALL (DASHBOARD)'!$W$4) ->  | U43: =INDEX('Compile Data'!$DL$123:$EI$204,$O43,'Report - ALL (DASHBOARD)'!$W$4) ->  | V43: =INDEX('Compile Data'!$EL$123:$FI$204,$O43,'Report - ALL (DASHBOARD)'!$W$4) -> 
A44: 1938 | B44: =INDEX('Compile Data'!$L$12:$AI$93,$A44-1921,'Report - ALL (DASHBOARD)'!$W$4) -> 0 | C44: =INDEX('Compile Data'!$AL$12:$BI$93,$A44-1921,'Report - ALL (DASHBOARD)'!$W$4) -> 157.33106 | D44: =INDEX('Compile Data'!$BL$12:$CI$93,$A44-1921,'Report - ALL (DASHBOARD)'!$W$4) -> 188.6719417 | E44: =INDEX('Compile Data'!$CL$12:$DI$93,$A44-1921,'Report - ALL (DASHBOARD)'!$W$4) ->  | F44: =INDEX('Compile Data'!$DL$12:$EI$93,$A44-1921,'Report - ALL (DASHBOARD)'!$W$4) ->  | G44: =INDEX('Compile Data'!$EL$12:$FI$93,$A44-1921,'Report - ALL (DASHBOARD)'!$W$4) ->  | O44: 17 | P44: 0.1975308642 | Q44: =INDEX('Compile Data'!$L$123:$AI$204,$O44,'Report - ALL (DASHBOARD)'!$W$4) -> 0 | R44: =INDEX('Compile Data'!$AL$123:$BI$204,$O44,'Report - ALL (DASHBOARD)'!$W$4) -> 221.3464284 | S44: =INDEX('Compile Data'!$BL$123:$CI$204,$O44,'Report - ALL (DASHBOARD)'!$W$4) -> 223.7175704 | T44: =INDEX('Compile Data'!$CL$123:$DI$204,$O44,'Report - ALL (DASHBOARD)'!$W$4) ->  | U44: =INDEX('Compile Data'!$DL$123:$EI$204,$O44,'Report - ALL (DASHBOARD)'!$W$4) ->  | V44: =INDEX('Compile Data'!$EL$123:$FI$204,$O44,'Report - ALL (DASHBOARD)'!$W$4) -> 
A45: 1939 | B45: =INDEX('Compile Data'!$L$12:$AI$93,$A45-1921,'Report - ALL (DASHBOARD)'!$W$4) -> 0 | C45: =INDEX('Compile Data'!$AL$12:$BI$93,$A45-1921,'Report - ALL (DASHBOARD)'!$W$4) -> 3.183047842 | D45: =INDEX('Compile Data'!$BL$12:$CI$93,$A45-1921,'Report - ALL (DASHBOARD)'!$W$4) -> 3.183050707 | E45: =INDEX('Compile Data'!$CL$12:$DI$93,$A45-1921,'Report - ALL (DASHBOARD)'!$W$4) ->  | F45: =INDEX('Compile Data'!$DL$12:$EI$93,$A45-1921,'Report - ALL (DASHBOARD)'!$W$4) ->  | G45: =INDEX('Compile Data'!$EL$12:$FI$93,$A45-1921,'Report - ALL (DASHBOARD)'!$W$4) ->  | O45: 18 | P45: 0.2098765432 | Q45: =INDEX('Compile Data'!$L$123:$AI$204,$O45,'Report - ALL (DASHBOARD)'!$W$4) -> 0 | R45: =INDEX('Compile Data'!$AL$123:$BI$204,$O45,'Report - ALL (DASHBOARD)'!$W$4) -> 221.2051307 | S45: =INDEX('Compile Data'!$BL$123:$CI$204,$O45,'Report - ALL (DASHBOARD)'!$W$4) -> 222.9069109 | T45: =INDEX('Compile Data'!$CL$123:$DI$204,$O45,'Report - ALL (DASHBOARD)'!$W$4) ->  | U45: =INDEX('Compile Data'!$DL$123:$EI$204,$O45,'Report - ALL (DASHBOARD)'!$W$4) ->  | V45: =INDEX('Compile Data'!$EL$123:$FI$204,$O45,'Report - ALL (DASHBOARD)'!$W$4) -> 
A46: 1940 | B46: =INDEX('Compile Data'!$L$12:$AI$93,$A46-1921,'Report - ALL (DASHBOARD)'!$W$4) -> 0 | C46: =INDEX('Compile Data'!$AL$12:$BI$93,$A46-1921,'Report - ALL (DASHBOARD)'!$W$4) -> 53.81694385 | D46: =INDEX('Compile Data'!$BL$12:$CI$93,$A46-1921,'Report - ALL (DASHBOARD)'!$W$4) -> 0 | E46: =INDEX('Compile Data'!$CL$12:$DI$93,$A46-1921,'Report - ALL (DASHBOARD)'!$W$4) ->  | F46: =INDEX('Compile Data'!$DL$12:$EI$93,$A46-1921,'Report - ALL (DASHBOARD)'!$W$4) ->  | G46: =INDEX('Compile Data'!$EL$12:$FI$93,$A46-1921,'Report - ALL (DASHBOARD)'!$W$4) ->  | O46: 19 | P46: 0.2222222222 | Q46: =INDEX('Compile Data'!$L$123:$AI$204,$O46,'Report - ALL (DASHBOARD)'!$W$4) -> 0 | R46: =INDEX('Compile Data'!$AL$123:$BI$204,$O46,'Report - ALL (DASHBOARD)'!$W$4) -> 214.3177768 | S46: =INDEX('Compile Data'!$BL$123:$CI$204,$O46,'Report - ALL (DASHBOARD)'!$W$4) -> 222.6119981 | T46: =INDEX('Compile Data'!$CL$123:$DI$204,$O46,'Report - ALL (DASHBOARD)'!$W$4) ->  | U46: =INDEX('Compile Data'!$DL$123:$EI$204,$O46,'Report - ALL (DASHBOARD)'!$W$4) ->  | V46: =INDEX('Compile Data'!$EL$123:$FI$204,$O46,'Report - ALL (DASHBOARD)'!$W$4) -> 
A47: 1941 | B47: =INDEX('Compile Data'!$L$12:$AI$93,$A47-1921,'Report - ALL (DASHBOARD)'!$W$4) -> 0 | C47: =INDEX('Compile Data'!$AL$12:$BI$93,$A47-1921,'Report - ALL (DASHBOARD)'!$W$4) -> 224.2190386 | D47: =INDEX('Compile Data'!$BL$12:$CI$93,$A47-1921,'Report - ALL (DASHBOARD)'!$W$4) -> 223.7498808 | E47: =INDEX('Compile Data'!$CL$12:$DI$93,$A47-1921,'Report - ALL (DASHBOARD)'!$W$4) ->  | F47: =INDEX('Compile Data'!$DL$12:$EI$93,$A47-1921,'Report - ALL (DASHBOARD)'!$W$4) ->  | G47: =INDEX('Compile Data'!$EL$12:$FI$93,$A47-1921,'Report - ALL (DASHBOARD)'!$W$4) ->  | O47: 20 | P47: 0.2345679012 | Q47: =INDEX('Compile Data'!$L$123:$AI$204,$O47,'Report - ALL (DASHBOARD)'!$W$4) -> 0 | R47: =INDEX('Compile Data'!$AL$123:$BI$204,$O47,'Report - ALL (DASHBOARD)'!$W$4) -> 192.9094959 | S47: =INDEX('Compile Data'!$BL$123:$CI$204,$O47,'Report - ALL (DASHBOARD)'!$W$4) -> 221.9237063 | T47: =INDEX('Compile Data'!$CL$123:$DI$204,$O47,'Report - ALL (DASHBOARD)'!$W$4) ->  | U47: =INDEX('Compile Data'!$DL$123:$EI$204,$O47,'Report - ALL (DASHBOARD)'!$W$4) ->  | V47: =INDEX('Compile Data'!$EL$123:$FI$204,$O47,'Report - ALL (DASHBOARD)'!$W$4) -> 
A48: 1942 | B48: =INDEX('Compile Data'!$L$12:$AI$93,$A48-1921,'Report - ALL (DASHBOARD)'!$W$4) -> 0 | C48: =INDEX('Compile Data'!$AL$12:$BI$93,$A48-1921,'Report - ALL (DASHBOARD)'!$W$4) -> 224.3202883 | D48: =INDEX('Compile Data'!$BL$12:$CI$93,$A48-1921,'Report - ALL (DASHBOARD)'!$W$4) -> 223.8154455 | E48: =INDEX('Compile Data'!$CL$12:$DI$93,$A48-1921,'Report - ALL (DASHBOARD)'!$W$4) ->  | F48: =INDEX('Compile Data'!$DL$12:$EI$93,$A48-1921,'Report - ALL (DASHBOARD)'!$W$4) ->  | G48: =INDEX('Compile Data'!$EL$12:$FI$93,$A48-1921,'Report - ALL (DASHBOARD)'!$W$4) ->  | O48: 21 | P48: 0.2469135802 | Q48: =INDEX('Compile Data'!$L$123:$AI$204,$O48,'Report - ALL (DASHBOARD)'!$W$4) -> 0 | R48: =INDEX('Compile Data'!$AL$123:$BI$204,$O48,'Report - ALL (DASHBOARD)'!$W$4) -> 175.0641824 | S48: =INDEX('Compile Data'!$BL$123:$CI$204,$O48,'Report - ALL (DASHBOARD)'!$W$4) -> 215.3030188 | T48: =INDEX('Compile Data'!$CL$123:$DI$204,$O48,'Report - ALL (DASHBOARD)'!$W$4) ->  | U48: =INDEX('Compile Data'!$DL$123:$EI$204,$O48,'Report - ALL (DASHBOARD)'!$W$4) ->  | V48: =INDEX('Compile Data'!$EL$123:$FI$204,$O48,'Report - ALL (DASHBOARD)'!$W$4) -> 
A49: 1943 | B49: =INDEX('Compile Data'!$L$12:$AI$93,$A49-1921,'Report - ALL (DASHBOARD)'!$W$4) -> 0 | C49: =INDEX('Compile Data'!$AL$12:$BI$93,$A49-1921,'Report - ALL (DASHBOARD)'!$W$4) -> 221.3464284 | D49: =INDEX('Compile Data'!$BL$12:$CI$93,$A49-1921,'Report - ALL (DASHBOARD)'!$W$4) -> 223.7175704 | E49: =INDEX('Compile Data'!$CL$12:$DI$93,$A49-1921,'Report - ALL (DASHBOARD)'!$W$4) ->  | F49: =INDEX('Compile Data'!$DL$12:$EI$93,$A49-1921,'Report - ALL (DASHBOARD)'!$W$4) ->  | G49: =INDEX('Compile Data'!$EL$12:$FI$93,$A49-1921,'Report - ALL (DASHBOARD)'!$W$4) ->  | O49: 22 | P49: 0.2592592593 | Q49: =INDEX('Compile Data'!$L$123:$AI$204,$O49,'Report - ALL (DASHBOARD)'!$W$4) -> 0 | R49: =INDEX('Compile Data'!$AL$123:$BI$204,$O49,'Report - ALL (DASHBOARD)'!$W$4) -> 157.33106 | S49: =INDEX('Compile Data'!$BL$123:$CI$204,$O49,'Report - ALL (DASHBOARD)'!$W$4) -> 188.6719417 | T49: =INDEX('Compile Data'!$CL$123:$DI$204,$O49,'Report - ALL (DASHBOARD)'!$W$4) ->  | U49: =INDEX('Compile Data'!$DL$123:$EI$204,$O49,'Report - ALL (DASHBOARD)'!$W$4) ->  | V49: =INDEX('Compile Data'!$EL$123:$FI$204,$O49,'Report - ALL (DASHBOARD)'!$W$4) -> 
A50: 1944 | B50: =INDEX('Compile Data'!$L$12:$AI$93,$A50-1921,'Report - ALL (DASHBOARD)'!$W$4) -> 0 | C50: =INDEX('Compile Data'!$AL$12:$BI$93,$A50-1921,'Report - ALL (DASHBOARD)'!$W$4) -> 38.75253455 | D50: =INDEX('Compile Data'!$BL$12:$CI$93,$A50-1921,'Report - ALL (DASHBOARD)'!$W$4) -> 5.514970616 | E50: =INDEX('Compile Data'!$CL$12:$DI$93,$A50-1921,'Report - ALL (DASHBOARD)'!$W$4) ->  | F50: =INDEX('Compile Data'!$DL$12:$EI$93,$A50-1921,'Report - ALL (DASHBOARD)'!$W$4) ->  | G50: =INDEX('Compile Data'!$EL$12:$FI$93,$A50-1921,'Report - ALL (DASHBOARD)'!$W$4) ->  | O50: 23 | P50: 0.2716049383 | Q50: =INDEX('Compile Data'!$L$123:$AI$204,$O50,'Report - ALL (DASHBOARD)'!$W$4) -> 0 | R50: =INDEX('Compile Data'!$AL$123:$BI$204,$O50,'Report - ALL (DASHBOARD)'!$W$4) -> 156.3272445 | S50: =INDEX('Compile Data'!$BL$123:$CI$204,$O50,'Report - ALL (DASHBOARD)'!$W$4) -> 130.232616 | T50: =INDEX('Compile Data'!$CL$123:$DI$204,$O50,'Report - ALL (DASHBOARD)'!$W$4) ->  | U50: =INDEX('Compile Data'!$DL$123:$EI$204,$O50,'Report - ALL (DASHBOARD)'!$W$4) ->  | V50: =INDEX('Compile Data'!$EL$123:$FI$204,$O50,'Report - ALL (DASHBOARD)'!$W$4) -> 
A51: 1945 | B51: =INDEX('Compile Data'!$L$12:$AI$93,$A51-1921,'Report - ALL (DASHBOARD)'!$W$4) -> 0 | C51: =INDEX('Compile Data'!$AL$12:$BI$93,$A51-1921,'Report - ALL (DASHBOARD)'!$W$4) -> 48.3465494 | D51: =INDEX('Compile Data'!$BL$12:$CI$93,$A51-1921,'Report - ALL (DASHBOARD)'!$W$4) -> 0 | E51: =INDEX('Compile Data'!$CL$12:$DI$93,$A51-1921,'Report - ALL (DASHBOARD)'!$W$4) ->  | F51: =INDEX('Compile Data'!$DL$12:$EI$93,$A51-1921,'Report - ALL (DASHBOARD)'!$W$4) ->  | G51: =INDEX('Compile Data'!$EL$12:$FI$93,$A51-1921,'Report - ALL (DASHBOARD)'!$W$4) ->  | O51: 24 | P51: 0.2839506173 | Q51: =INDEX('Compile Data'!$L$123:$AI$204,$O51,'Report - ALL (DASHBOARD)'!$W$4) -> 0 | R51: =INDEX('Compile Data'!$AL$123:$BI$204,$O51,'Report - ALL (DASHBOARD)'!$W$4) -> 133.7718726 | S51: =INDEX('Compile Data'!$BL$123:$CI$204,$O51,'Report - ALL (DASHBOARD)'!$W$4) -> 111.1094518 | T51: =INDEX('Compile Data'!$CL$123:$DI$204,$O51,'Report - ALL (DASHBOARD)'!$W$4) ->  | U51: =INDEX('Compile Data'!$DL$123:$EI$204,$O51,'Report - ALL (DASHBOARD)'!$W$4) ->  | V51: =INDEX('Compile Data'!$EL$123:$FI$204,$O51,'Report - ALL (DASHBOARD)'!$W$4) -> 
A52: 1946 | B52: =INDEX('Compile Data'!$L$12:$AI$93,$A52-1921,'Report - ALL (DASHBOARD)'!$W$4) -> 0 | C52: =INDEX('Compile Data'!$AL$12:$BI$93,$A52-1921,'Report - ALL (DASHBOARD)'!$W$4) -> 58.52984371 | D52: =INDEX('Compile Data'!$BL$12:$CI$93,$A52-1921,'Report - ALL (DASHBOARD)'!$W$4) -> 0.0001989256934 | E52: =INDEX('Compile Data'!$CL$12:$DI$93,$A52-1921,'Report - ALL (DASHBOARD)'!$W$4) ->  | F52: =INDEX('Compile Data'!$DL$12:$EI$93,$A52-1921,'Report - ALL (DASHBOARD)'!$W$4) ->  | G52: =INDEX('Compile Data'!$EL$12:$FI$93,$A52-1921,'Report - ALL (DASHBOARD)'!$W$4) ->  | O52: 25 | P52: 0.2962962963 | Q52: =INDEX('Compile Data'!$L$123:$AI$204,$O52,'Report - ALL (DASHBOARD)'!$W$4) -> 0 | R52: =INDEX('Compile Data'!$AL$123:$BI$204,$O52,'Report - ALL (DASHBOARD)'!$W$4) -> 133.4286302 | S52: =INDEX('Compile Data'!$BL$123:$CI$204,$O52,'Report - ALL (DASHBOARD)'!$W$4) -> 89.13942566 | T52: =INDEX('Compile Data'!$CL$123:$DI$204,$O52,'Report - ALL (DASHBOARD)'!$W$4) ->  | U52: =INDEX('Compile Data'!$DL$123:$EI$204,$O52,'Report - ALL (DASHBOARD)'!$W$4) ->  | V52: =INDEX('Compile Data'!$EL$123:$FI$204,$O52,'Report - ALL (DASHBOARD)'!$W$4) -> 
A53: 1947 | B53: =INDEX('Compile Data'!$L$12:$AI$93,$A53-1921,'Report - ALL (DASHBOARD)'!$W$4) -> 0 | C53: =INDEX('Compile Data'!$AL$12:$BI$93,$A53-1921,'Report - ALL (DASHBOARD)'!$W$4) -> 23.36279187 | D53: =INDEX('Compile Data'!$BL$12:$CI$93,$A53-1921,'Report - ALL (DASHBOARD)'!$W$4) -> 2.262838448 | E53: =INDEX('Compile Data'!$CL$12:$DI$93,$A53-1921,'Report - ALL (DASHBOARD)'!$W$4) ->  | F53: =INDEX('Compile Data'!$DL$12:$EI$93,$A53-1921,'Report - ALL (DASHBOARD)'!$W$4) ->  | G53: =INDEX('Compile Data'!$EL$12:$FI$93,$A53-1921,'Report - ALL (DASHBOARD)'!$W$4) ->  | O53: 26 | P53: 0.3086419753 | Q53: =INDEX('Compile Data'!$L$123:$AI$204,$O53,'Report - ALL (DASHBOARD)'!$W$4) -> 0 | R53: =INDEX('Compile Data'!$AL$123:$BI$204,$O53,'Report - ALL (DASHBOARD)'!$W$4) -> 132.9850912 | S53: =INDEX('Compile Data'!$BL$123:$CI$204,$O53,'Report - ALL (DASHBOARD)'!$W$4) -> 88.73582919 | T53: =INDEX('Compile Data'!$CL$123:$DI$204,$O53,'Report - ALL (DASHBOARD)'!$W$4) ->  | U53: =INDEX('Compile Data'!$DL$123:$EI$204,$O53,'Report - ALL (DASHBOARD)'!$W$4) ->  | V53: =INDEX('Compile Data'!$EL$123:$FI$204,$O53,'Report - ALL (DASHBOARD)'!$W$4) -> 
A54: 1948 | B54: =INDEX('Compile Data'!$L$12:$AI$93,$A54-1921,'Report - ALL (DASHBOARD)'!$W$4) -> 0 | C54: =INDEX('Compile Data'!$AL$12:$BI$93,$A54-1921,'Report - ALL (DASHBOARD)'!$W$4) -> 36.53922877 | D54: =INDEX('Compile Data'!$BL$12:$CI$93,$A54-1921,'Report - ALL (DASHBOARD)'!$W$4) -> 0 | E54: =INDEX('Compile Data'!$CL$12:$DI$93,$A54-1921,'Report - ALL (DASHBOARD)'!$W$4) ->  | F54: =INDEX('Compile Data'!$DL$12:$EI$93,$A54-1921,'Report - ALL (DASHBOARD)'!$W$4) ->  | G54: =INDEX('Compile Data'!$EL$12:$FI$93,$A54-1921,'Report - ALL (DASHBOARD)'!$W$4) ->  | O54: 27 | P54: 0.3209876543 | Q54: =INDEX('Compile Data'!$L$123:$AI$204,$O54,'Report - ALL (DASHBOARD)'!$W$4) -> 0 | R54: =INDEX('Compile Data'!$AL$123:$BI$204,$O54,'Report - ALL (DASHBOARD)'!$W$4) -> 132.1901013 | S54: =INDEX('Compile Data'!$BL$123:$CI$204,$O54,'Report - ALL (DASHBOARD)'!$W$4) -> 87.38917961 | T54: =INDEX('Compile Data'!$CL$123:$DI$204,$O54,'Report - ALL (DASHBOARD)'!$W$4) ->  | U54: =INDEX('Compile Data'!$DL$123:$EI$204,$O54,'Report - ALL (DASHBOARD)'!$W$4) ->  | V54: =INDEX('Compile Data'!$EL$123:$FI$204,$O54,'Report - ALL (DASHBOARD)'!$W$4) -> 
A55: 1949 | B55: =INDEX('Compile Data'!$L$12:$AI$93,$A55-1921,'Report - ALL (DASHBOARD)'!$W$4) -> 0 | C55: =INDEX('Compile Data'!$AL$12:$BI$93,$A55-1921,'Report - ALL (DASHBOARD)'!$W$4) -> 23.29399654 | D55: =INDEX('Compile Data'!$BL$12:$CI$93,$A55-1921,'Report - ALL (DASHBOARD)'!$W$4) -> 7.661863334e-07 | E55: =INDEX('Compile Data'!$CL$12:$DI$93,$A55-1921,'Report - ALL (DASHBOARD)'!$W$4) ->  | F55: =INDEX('Compile Data'!$DL$12:$EI$93,$A55-1921,'Report - ALL (DASHBOARD)'!$W$4) ->  | G55: =INDEX('Compile Data'!$EL$12:$FI$93,$A55-1921,'Report - ALL (DASHBOARD)'!$W$4) ->  | O55: 28 | P55: 0.3333333333 | Q55: =INDEX('Compile Data'!$L$123:$AI$204,$O55,'Report - ALL (DASHBOARD)'!$W$4) -> 0 | R55: =INDEX('Compile Data'!$AL$123:$BI$204,$O55,'Report - ALL (DASHBOARD)'!$W$4) -> 131.0443424 | S55: =INDEX('Compile Data'!$BL$123:$CI$204,$O55,'Report - ALL (DASHBOARD)'!$W$4) -> 35.86764384 | T55: =INDEX('Compile Data'!$CL$123:$DI$204,$O55,'Report - ALL (DASHBOARD)'!$W$4) ->  | U55: =INDEX('Compile Data'!$DL$123:$EI$204,$O55,'Report - ALL (DASHBOARD)'!$W$4) ->  | V55: =INDEX('Compile Data'!$EL$123:$FI$204,$O55,'Report - ALL (DASHBOARD)'!$W$4) -> 
A56: 1950 | B56: =INDEX('Compile Data'!$L$12:$AI$93,$A56-1921,'Report - ALL (DASHBOARD)'!$W$4) -> 0 | C56: =INDEX('Compile Data'!$AL$12:$BI$93,$A56-1921,'Report - ALL (DASHBOARD)'!$W$4) -> 0 | D56: =INDEX('Compile Data'!$BL$12:$CI$93,$A56-1921,'Report - ALL (DASHBOARD)'!$W$4) -> 0 | E56: =INDEX('Compile Data'!$CL$12:$DI$93,$A56-1921,'Report - ALL (DASHBOARD)'!$W$4) ->  | F56: =INDEX('Compile Data'!$DL$12:$EI$93,$A56-1921,'Report - ALL (DASHBOARD)'!$W$4) ->  | G56: =INDEX('Compile Data'!$EL$12:$FI$93,$A56-1921,'Report - ALL (DASHBOARD)'!$W$4) ->  | O56: 29 | P56: 0.3456790123 | Q56: =INDEX('Compile Data'!$L$123:$AI$204,$O56,'Report - ALL (DASHBOARD)'!$W$4) -> 0 | R56: =INDEX('Compile Data'!$AL$123:$BI$204,$O56,'Report - ALL (DASHBOARD)'!$W$4) -> 129.4826247 | S56: =INDEX('Compile Data'!$BL$123:$CI$204,$O56,'Report - ALL (DASHBOARD)'!$W$4) -> 8.549913833 | T56: =INDEX('Compile Data'!$CL$123:$DI$204,$O56,'Report - ALL (DASHBOARD)'!$W$4) ->  | U56: =INDEX('Compile Data'!$DL$123:$EI$204,$O56,'Report - ALL (DASHBOARD)'!$W$4) ->  | V56: =INDEX('Compile Data'!$EL$123:$FI$204,$O56,'Report - ALL (DASHBOARD)'!$W$4) -> 
A57: 1951 | B57: =INDEX('Compile Data'!$L$12:$AI$93,$A57-1921,'Report - ALL (DASHBOARD)'!$W$4) -> 0 | C57: =INDEX('Compile Data'!$AL$12:$BI$93,$A57-1921,'Report - ALL (DASHBOARD)'!$W$4) -> 68.81687109 | D57: =INDEX('Compile Data'!$BL$12:$CI$93,$A57-1921,'Report - ALL (DASHBOARD)'!$W$4) -> 0 | E57: =INDEX('Compile Data'!$CL$12:$DI$93,$A57-1921,'Report - ALL (DASHBOARD)'!$W$4) ->  | F57: =INDEX('Compile Data'!$DL$12:$EI$93,$A57-1921,'Report - ALL (DASHBOARD)'!$W$4) ->  | G57: =INDEX('Compile Data'!$EL$12:$FI$93,$A57-1921,'Report - ALL (DASHBOARD)'!$W$4) ->  | O57: 30 | P57: 0.3580246914 | Q57: =INDEX('Compile Data'!$L$123:$AI$204,$O57,'Report - ALL (DASHBOARD)'!$W$4) -> 0 | R57: =INDEX('Compile Data'!$AL$123:$BI$204,$O57,'Report - ALL (DASHBOARD)'!$W$4) -> 119.9941471 | S57: =INDEX('Compile Data'!$BL$123:$CI$204,$O57,'Report - ALL (DASHBOARD)'!$W$4) -> 8.00942356 | T57: =INDEX('Compile Data'!$CL$123:$DI$204,$O57,'Report - ALL (DASHBOARD)'!$W$4) ->  | U57: =INDEX('Compile Data'!$DL$123:$EI$204,$O57,'Report - ALL (DASHBOARD)'!$W$4) ->  | V57: =INDEX('Compile Data'!$EL$123:$FI$204,$O57,'Report - ALL (DASHBOARD)'!$W$4) -> 
A58: 1952 | B58: =INDEX('Compile Data'!$L$12:$AI$93,$A58-1921,'Report - ALL (DASHBOARD)'!$W$4) -> 0 | C58: =INDEX('Compile Data'!$AL$12:$BI$93,$A58-1921,'Report - ALL (DASHBOARD)'!$W$4) -> 225.6250399 | D58: =INDEX('Compile Data'!$BL$12:$CI$93,$A58-1921,'Report - ALL (DASHBOARD)'!$W$4) -> 227.8399659 | E58: =INDEX('Compile Data'!$CL$12:$DI$93,$A58-1921,'Report - ALL (DASHBOARD)'!$W$4) ->  | F58: =INDEX('Compile Data'!$DL$12:$EI$93,$A58-1921,'Report - ALL (DASHBOARD)'!$W$4) ->  | G58: =INDEX('Compile Data'!$EL$12:$FI$93,$A58-1921,'Report - ALL (DASHBOARD)'!$W$4) ->  | O58: 31 | P58: 0.3703703704 | Q58: =INDEX('Compile Data'!$L$123:$AI$204,$O58,'Report - ALL (DASHBOARD)'!$W$4) -> 0 | R58: =INDEX('Compile Data'!$AL$123:$BI$204,$O58,'Report - ALL (DASHBOARD)'!$W$4) -> 106.7177988 | S58: =INDEX('Compile Data'!$BL$123:$CI$204,$O58,'Report - ALL (DASHBOARD)'!$W$4) -> 6.170205084 | T58: =INDEX('Compile Data'!$CL$123:$DI$204,$O58,'Report - ALL (DASHBOARD)'!$W$4) ->  | U58: =INDEX('Compile Data'!$DL$123:$EI$204,$O58,'Report - ALL (DASHBOARD)'!$W$4) ->  | V58: =INDEX('Compile Data'!$EL$123:$FI$204,$O58,'Report - ALL (DASHBOARD)'!$W$4) -> 
A59: 1953 | B59: =INDEX('Compile Data'!$L$12:$AI$93,$A59-1921,'Report - ALL (DASHBOARD)'!$W$4) -> 0 | C59: =INDEX('Compile Data'!$AL$12:$BI$93,$A59-1921,'Report - ALL (DASHBOARD)'!$W$4) -> 228.0720472 | D59: =INDEX('Compile Data'!$BL$12:$CI$93,$A59-1921,'Report - ALL (DASHBOARD)'!$W$4) -> 227.6910629 | E59: =INDEX('Compile Data'!$CL$12:$DI$93,$A59-1921,'Report - ALL (DASHBOARD)'!$W$4) ->  | F59: =INDEX('Compile Data'!$DL$12:$EI$93,$A59-1921,'Report - ALL (DASHBOARD)'!$W$4) ->  | G59: =INDEX('Compile Data'!$EL$12:$FI$93,$A59-1921,'Report - ALL (DASHBOARD)'!$W$4) ->  | O59: 32 | P59: 0.3827160494 | Q59: =INDEX('Compile Data'!$L$123:$AI$204,$O59,'Report - ALL (DASHBOARD)'!$W$4) -> 0 | R59: =INDEX('Compile Data'!$AL$123:$BI$204,$O59,'Report - ALL (DASHBOARD)'!$W$4) -> 103.8317076 | S59: =INDEX('Compile Data'!$BL$123:$CI$204,$O59,'Report - ALL (DASHBOARD)'!$W$4) -> 5.514970616 | T59: =INDEX('Compile Data'!$CL$123:$DI$204,$O59,'Report - ALL (DASHBOARD)'!$W$4) ->  | U59: =INDEX('Compile Data'!$DL$123:$EI$204,$O59,'Report - ALL (DASHBOARD)'!$W$4) ->  | V59: =INDEX('Compile Data'!$EL$123:$FI$204,$O59,'Report - ALL (DASHBOARD)'!$W$4) -> 
A60: 1954 | B60: =INDEX('Compile Data'!$L$12:$AI$93,$A60-1921,'Report - ALL (DASHBOARD)'!$W$4) -> 0 | C60: =INDEX('Compile Data'!$AL$12:$BI$93,$A60-1921,'Report - ALL (DASHBOARD)'!$W$4) -> 133.4286302 | D60: =INDEX('Compile Data'!$BL$12:$CI$93,$A60-1921,'Report - ALL (DASHBOARD)'!$W$4) -> 0 | E60: =INDEX('Compile Data'!$CL$12:$DI$93,$A60-1921,'Report - ALL (DASHBOARD)'!$W$4) ->  | F60: =INDEX('Compile Data'!$DL$12:$EI$93,$A60-1921,'Report - ALL (DASHBOARD)'!$W$4) ->  | G60: =INDEX('Compile Data'!$EL$12:$FI$93,$A60-1921,'Report - ALL (DASHBOARD)'!$W$4) ->  | O60: 33 | P60: 0.3950617284 | Q60: =INDEX('Compile Data'!$L$123:$AI$204,$O60,'Report - ALL (DASHBOARD)'!$W$4) -> 0 | R60: =INDEX('Compile Data'!$AL$123:$BI$204,$O60,'Report - ALL (DASHBOARD)'!$W$4) -> 93.27820333 | S60: =INDEX('Compile Data'!$BL$123:$CI$204,$O60,'Report - ALL (DASHBOARD)'!$W$4) -> 3.385440235 | T60: =INDEX('Compile Data'!$CL$123:$DI$204,$O60,'Report - ALL (DASHBOARD)'!$W$4) ->  | U60: =INDEX('Compile Data'!$DL$123:$EI$204,$O60,'Report - ALL (DASHBOARD)'!$W$4) ->  | V60: =INDEX('Compile Data'!$EL$123:$FI$204,$O60,'Report - ALL (DASHBOARD)'!$W$4) -> 
A61: 1955 | B61: =INDEX('Compile Data'!$L$12:$AI$93,$A61-1921,'Report - ALL (DASHBOARD)'!$W$4) -> 0 | C61: =INDEX('Compile Data'!$AL$12:$BI$93,$A61-1921,'Report - ALL (DASHBOARD)'!$W$4) -> 57.67097224 | D61: =INDEX('Compile Data'!$BL$12:$CI$93,$A61-1921,'Report - ALL (DASHBOARD)'!$W$4) -> 3.385440235 | E61: =INDEX('Compile Data'!$CL$12:$DI$93,$A61-1921,'Report - ALL (DASHBOARD)'!$W$4) ->  | F61: =INDEX('Compile Data'!$DL$12:$EI$93,$A61-1921,'Report - ALL (DASHBOARD)'!$W$4) ->  | G61: =INDEX('Compile Data'!$EL$12:$FI$93,$A61-1921,'Report - ALL (DASHBOARD)'!$W$4) ->  | O61: 34 | P61: 0.4074074074 | Q61: =INDEX('Compile Data'!$L$123:$AI$204,$O61,'Report - ALL (DASHBOARD)'!$W$4) -> 0 | R61: =INDEX('Compile Data'!$AL$123:$BI$204,$O61,'Report - ALL (DASHBOARD)'!$W$4) -> 84.27255951 | S61: =INDEX('Compile Data'!$BL$123:$CI$204,$O61,'Report - ALL (DASHBOARD)'!$W$4) -> 3.183050707 | T61: =INDEX('Compile Data'!$CL$123:$DI$204,$O61,'Report - ALL (DASHBOARD)'!$W$4) ->  | U61: =INDEX('Compile Data'!$DL$123:$EI$204,$O61,'Report - ALL (DASHBOARD)'!$W$4) ->  | V61: =INDEX('Compile Data'!$EL$123:$FI$204,$O61,'Report - ALL (DASHBOARD)'!$W$4) -> 
A62: 1956 | B62: =INDEX('Compile Data'!$L$12:$AI$93,$A62-1921,'Report - ALL (DASHBOARD)'!$W$4) -> 0 | C62: =INDEX('Compile Data'!$AL$12:$BI$93,$A62-1921,'Report - ALL (DASHBOARD)'!$W$4) -> 156.3272445 | D62: =INDEX('Compile Data'!$BL$12:$CI$93,$A62-1921,'Report - ALL (DASHBOARD)'!$W$4) -> 130.232616 | E62: =INDEX('Compile Data'!$CL$12:$DI$93,$A62-1921,'Report - ALL (DASHBOARD)'!$W$4) ->  | F62: =INDEX('Compile Data'!$DL$12:$EI$93,$A62-1921,'Report - ALL (DASHBOARD)'!$W$4) ->  | G62: =INDEX('Compile Data'!$EL$12:$FI$93,$A62-1921,'Report - ALL (DASHBOARD)'!$W$4) ->  | O62: 35 | P62: 0.4197530864 | Q62: =INDEX('Compile Data'!$L$123:$AI$204,$O62,'Report - ALL (DASHBOARD)'!$W$4) -> 0 | R62: =INDEX('Compile Data'!$AL$123:$BI$204,$O62,'Report - ALL (DASHBOARD)'!$W$4) -> 84.16829562 | S62: =INDEX('Compile Data'!$BL$123:$CI$204,$O62,'Report - ALL (DASHBOARD)'!$W$4) -> 2.807674725 | T62: =INDEX('Compile Data'!$CL$123:$DI$204,$O62,'Report - ALL (DASHBOARD)'!$W$4) ->  | U62: =INDEX('Compile Data'!$DL$123:$EI$204,$O62,'Report - ALL (DASHBOARD)'!$W$4) ->  | V62: =INDEX('Compile Data'!$EL$123:$FI$204,$O62,'Report - ALL (DASHBOARD)'!$W$4) -> 
A63: 1957 | B63: =INDEX('Compile Data'!$L$12:$AI$93,$A63-1921,'Report - ALL (DASHBOARD)'!$W$4) -> 0 | C63: =INDEX('Compile Data'!$AL$12:$BI$93,$A63-1921,'Report - ALL (DASHBOARD)'!$W$4) -> 84.16829562 | D63: =INDEX('Compile Data'!$BL$12:$CI$93,$A63-1921,'Report - ALL (DASHBOARD)'!$W$4) -> 1.74 | E63: =INDEX('Compile Data'!$CL$12:$DI$93,$A63-1921,'Report - ALL (DASHBOARD)'!$W$4) ->  | F63: =INDEX('Compile Data'!$DL$12:$EI$93,$A63-1921,'Report - ALL (DASHBOARD)'!$W$4) ->  | G63: =INDEX('Compile Data'!$EL$12:$FI$93,$A63-1921,'Report - ALL (DASHBOARD)'!$W$4) ->  | O63: 36 | P63: 0.4320987654 | Q63: =INDEX('Compile Data'!$L$123:$AI$204,$O63,'Report - ALL (DASHBOARD)'!$W$4) -> 0 | R63: =INDEX('Compile Data'!$AL$123:$BI$204,$O63,'Report - ALL (DASHBOARD)'!$W$4) -> 83.31357047 | S63: =INDEX('Compile Data'!$BL$123:$CI$204,$O63,'Report - ALL (DASHBOARD)'!$W$4) -> 2.262838448 | T63: =INDEX('Compile Data'!$CL$123:$DI$204,$O63,'Report - ALL (DASHBOARD)'!$W$4) ->  | U63: =INDEX('Compile Data'!$DL$123:$EI$204,$O63,'Report - ALL (DASHBOARD)'!$W$4) ->  | V63: =INDEX('Compile Data'!$EL$123:$FI$204,$O63,'Report - ALL (DASHBOARD)'!$W$4) -> 
A64: 1958 | B64: =INDEX('Compile Data'!$L$12:$AI$93,$A64-1921,'Report - ALL (DASHBOARD)'!$W$4) -> 0 | C64: =INDEX('Compile Data'!$AL$12:$BI$93,$A64-1921,'Report - ALL (DASHBOARD)'!$W$4) -> 224.3568522 | D64: =INDEX('Compile Data'!$BL$12:$CI$93,$A64-1921,'Report - ALL (DASHBOARD)'!$W$4) -> 223.8343061 | E64: =INDEX('Compile Data'!$CL$12:$DI$93,$A64-1921,'Report - ALL (DASHBOARD)'!$W$4) ->  | F64: =INDEX('Compile Data'!$DL$12:$EI$93,$A64-1921,'Report - ALL (DASHBOARD)'!$W$4) ->  | G64: =INDEX('Compile Data'!$EL$12:$FI$93,$A64-1921,'Report - ALL (DASHBOARD)'!$W$4) ->  | O64: 37 | P64: 0.4444444444 | Q64: =INDEX('Compile Data'!$L$123:$AI$204,$O64,'Report - ALL (DASHBOARD)'!$W$4) -> 0 | R64: =INDEX('Compile Data'!$AL$123:$BI$204,$O64,'Report - ALL (DASHBOARD)'!$W$4) -> 83.29394836 | S64: =INDEX('Compile Data'!$BL$123:$CI$204,$O64,'Report - ALL (DASHBOARD)'!$W$4) -> 1.74 | T64: =INDEX('Compile Data'!$CL$123:$DI$204,$O64,'Report - ALL (DASHBOARD)'!$W$4) ->  | U64: =INDEX('Compile Data'!$DL$123:$EI$204,$O64,'Report - ALL (DASHBOARD)'!$W$4) ->  | V64: =INDEX('Compile Data'!$EL$123:$FI$204,$O64,'Report - ALL (DASHBOARD)'!$W$4) -> 
A65: 1959 | B65: =INDEX('Compile Data'!$L$12:$AI$93,$A65-1921,'Report - ALL (DASHBOARD)'!$W$4) -> 0 | C65: =INDEX('Compile Data'!$AL$12:$BI$93,$A65-1921,'Report - ALL (DASHBOARD)'!$W$4) -> 129.4826247 | D65: =INDEX('Compile Data'!$BL$12:$CI$93,$A65-1921,'Report - ALL (DASHBOARD)'!$W$4) -> 0 | E65: =INDEX('Compile Data'!$CL$12:$DI$93,$A65-1921,'Report - ALL (DASHBOARD)'!$W$4) ->  | F65: =INDEX('Compile Data'!$DL$12:$EI$93,$A65-1921,'Report - ALL (DASHBOARD)'!$W$4) ->  | G65: =INDEX('Compile Data'!$EL$12:$FI$93,$A65-1921,'Report - ALL (DASHBOARD)'!$W$4) ->  | O65: 38 | P65: 0.4567901235 | Q65: =INDEX('Compile Data'!$L$123:$AI$204,$O65,'Report - ALL (DASHBOARD)'!$W$4) -> 0 | R65: =INDEX('Compile Data'!$AL$123:$BI$204,$O65,'Report - ALL (DASHBOARD)'!$W$4) -> 83.11618157 | S65: =INDEX('Compile Data'!$BL$123:$CI$204,$O65,'Report - ALL (DASHBOARD)'!$W$4) -> 0.6081129565 | T65: =INDEX('Compile Data'!$CL$123:$DI$204,$O65,'Report - ALL (DASHBOARD)'!$W$4) ->  | U65: =INDEX('Compile Data'!$DL$123:$EI$204,$O65,'Report - ALL (DASHBOARD)'!$W$4) ->  | V65: =INDEX('Compile Data'!$EL$123:$FI$204,$O65,'Report - ALL (DASHBOARD)'!$W$4) -> 
A66: 1960 | B66: =INDEX('Compile Data'!$L$12:$AI$93,$A66-1921,'Report - ALL (DASHBOARD)'!$W$4) -> 0 | C66: =INDEX('Compile Data'!$AL$12:$BI$93,$A66-1921,'Report - ALL (DASHBOARD)'!$W$4) -> 39.29652604 | D66: =INDEX('Compile Data'!$BL$12:$CI$93,$A66-1921,'Report - ALL (DASHBOARD)'!$W$4) -> 6.170205084 | E66: =INDEX('Compile Data'!$CL$12:$DI$93,$A66-1921,'Report - ALL (DASHBOARD)'!$W$4) ->  | F66: =INDEX('Compile Data'!$DL$12:$EI$93,$A66-1921,'Report - ALL (DASHBOARD)'!$W$4) ->  | G66: =INDEX('Compile Data'!$EL$12:$FI$93,$A66-1921,'Report - ALL (DASHBOARD)'!$W$4) ->  | O66: 39 | P66: 0.4691358025 | Q66: =INDEX('Compile Data'!$L$123:$AI$204,$O66,'Report - ALL (DASHBOARD)'!$W$4) -> 0 | R66: =INDEX('Compile Data'!$AL$123:$BI$204,$O66,'Report - ALL (DASHBOARD)'!$W$4) -> 76.44902883 | S66: =INDEX('Compile Data'!$BL$123:$CI$204,$O66,'Report - ALL (DASHBOARD)'!$W$4) -> 0.6002300202 | T66: =INDEX('Compile Data'!$CL$123:$DI$204,$O66,'Report - ALL (DASHBOARD)'!$W$4) ->  | U66: =INDEX('Compile Data'!$DL$123:$EI$204,$O66,'Report - ALL (DASHBOARD)'!$W$4) ->  | V66: =INDEX('Compile Data'!$EL$123:$FI$204,$O66,'Report - ALL (DASHBOARD)'!$W$4) -> 
A67: 1961 | B67: =INDEX('Compile Data'!$L$12:$AI$93,$A67-1921,'Report - ALL (DASHBOARD)'!$W$4) -> 0 | C67: =INDEX('Compile Data'!$AL$12:$BI$93,$A67-1921,'Report - ALL (DASHBOARD)'!$W$4) -> 1.735056074e-07 | D67: =INDEX('Compile Data'!$BL$12:$CI$93,$A67-1921,'Report - ALL (DASHBOARD)'!$W$4) -> 0.0003681236104 | E67: =INDEX('Compile Data'!$CL$12:$DI$93,$A67-1921,'Report - ALL (DASHBOARD)'!$W$4) ->  | F67: =INDEX('Compile Data'!$DL$12:$EI$93,$A67-1921,'Report - ALL (DASHBOARD)'!$W$4) ->  | G67: =INDEX('Compile Data'!$EL$12:$FI$93,$A67-1921,'Report - ALL (DASHBOARD)'!$W$4) ->  | O67: 40 | P67: 0.4814814815 | Q67: =INDEX('Compile Data'!$L$123:$AI$204,$O67,'Report - ALL (DASHBOARD)'!$W$4) -> 0 | R67: =INDEX('Compile Data'!$AL$123:$BI$204,$O67,'Report - ALL (DASHBOARD)'!$W$4) -> 71.9305311 | S67: =INDEX('Compile Data'!$BL$123:$CI$204,$O67,'Report - ALL (DASHBOARD)'!$W$4) -> 0.07484550955 | T67: =INDEX('Compile Data'!$CL$123:$DI$204,$O67,'Report - ALL (DASHBOARD)'!$W$4) ->  | U67: =INDEX('Compile Data'!$DL$123:$EI$204,$O67,'Report - ALL (DASHBOARD)'!$W$4) ->  | V67: =INDEX('Compile Data'!$EL$123:$FI$204,$O67,'Report - ALL (DASHBOARD)'!$W$4) -> 
A68: 1962 | B68: =INDEX('Compile Data'!$L$12:$AI$93,$A68-1921,'Report - ALL (DASHBOARD)'!$W$4) -> 0 | C68: =INDEX('Compile Data'!$AL$12:$BI$93,$A68-1921,'Report - ALL (DASHBOARD)'!$W$4) -> 31.96038288 | D68: =INDEX('Compile Data'!$BL$12:$CI$93,$A68-1921,'Report - ALL (DASHBOARD)'!$W$4) -> 0 | E68: =INDEX('Compile Data'!$CL$12:$DI$93,$A68-1921,'Report - ALL (DASHBOARD)'!$W$4) ->  | F68: =INDEX('Compile Data'!$DL$12:$EI$93,$A68-1921,'Report - ALL (DASHBOARD)'!$W$4) ->  | G68: =INDEX('Compile Data'!$EL$12:$FI$93,$A68-1921,'Report - ALL (DASHBOARD)'!$W$4) ->  | O68: 41 | P68: 0.4938271605 | Q68: =INDEX('Compile Data'!$L$123:$AI$204,$O68,'Report - ALL (DASHBOARD)'!$W$4) -> 0 | R68: =INDEX('Compile Data'!$AL$123:$BI$204,$O68,'Report - ALL (DASHBOARD)'!$W$4) -> 68.81687109 | S68: =INDEX('Compile Data'!$BL$123:$CI$204,$O68,'Report - ALL (DASHBOARD)'!$W$4) -> 0.03862109614 | T68: =INDEX('Compile Data'!$CL$123:$DI$204,$O68,'Report - ALL (DASHBOARD)'!$W$4) ->  | U68: =INDEX('Compile Data'!$DL$123:$EI$204,$O68,'Report - ALL (DASHBOARD)'!$W$4) ->  | V68: =INDEX('Compile Data'!$EL$123:$FI$204,$O68,'Report - ALL (DASHBOARD)'!$W$4) -> 
A69: 1963 | B69: =INDEX('Compile Data'!$L$12:$AI$93,$A69-1921,'Report - ALL (DASHBOARD)'!$W$4) -> 0 | C69: =INDEX('Compile Data'!$AL$12:$BI$93,$A69-1921,'Report - ALL (DASHBOARD)'!$W$4) -> 119.9941471 | D69: =INDEX('Compile Data'!$BL$12:$CI$93,$A69-1921,'Report - ALL (DASHBOARD)'!$W$4) -> 89.13942566 | E69: =INDEX('Compile Data'!$CL$12:$DI$93,$A69-1921,'Report - ALL (DASHBOARD)'!$W$4) ->  | F69: =INDEX('Compile Data'!$DL$12:$EI$93,$A69-1921,'Report - ALL (DASHBOARD)'!$W$4) ->  | G69: =INDEX('Compile Data'!$EL$12:$FI$93,$A69-1921,'Report - ALL (DASHBOARD)'!$W$4) ->  | O69: 42 | P69: 0.5061728395 | Q69: =INDEX('Compile Data'!$L$123:$AI$204,$O69,'Report - ALL (DASHBOARD)'!$W$4) -> 0 | R69: =INDEX('Compile Data'!$AL$123:$BI$204,$O69,'Report - ALL (DASHBOARD)'!$W$4) -> 58.52984371 | S69: =INDEX('Compile Data'!$BL$123:$CI$204,$O69,'Report - ALL (DASHBOARD)'!$W$4) -> 0.01057265527 | T69: =INDEX('Compile Data'!$CL$123:$DI$204,$O69,'Report - ALL (DASHBOARD)'!$W$4) ->  | U69: =INDEX('Compile Data'!$DL$123:$EI$204,$O69,'Report - ALL (DASHBOARD)'!$W$4) ->  | V69: =INDEX('Compile Data'!$EL$123:$FI$204,$O69,'Report - ALL (DASHBOARD)'!$W$4) -> 
A70: 1964 | B70: =INDEX('Compile Data'!$L$12:$AI$93,$A70-1921,'Report - ALL (DASHBOARD)'!$W$4) -> 0 | C70: =INDEX('Compile Data'!$AL$12:$BI$93,$A70-1921,'Report - ALL (DASHBOARD)'!$W$4) -> 4.41696592 | D70: =INDEX('Compile Data'!$BL$12:$CI$93,$A70-1921,'Report - ALL (DASHBOARD)'!$W$4) -> 0 | E70: =INDEX('Compile Data'!$CL$12:$DI$93,$A70-1921,'Report - ALL (DASHBOARD)'!$W$4) ->  | F70: =INDEX('Compile Data'!$DL$12:$EI$93,$A70-1921,'Report - ALL (DASHBOARD)'!$W$4) ->  | G70: =INDEX('Compile Data'!$EL$12:$FI$93,$A70-1921,'Report - ALL (DASHBOARD)'!$W$4) ->  | O70: 43 | P70: 0.5185185185 | Q70: =INDEX('Compile Data'!$L$123:$AI$204,$O70,'Report - ALL (DASHBOARD)'!$W$4) -> 0 | R70: =INDEX('Compile Data'!$AL$123:$BI$204,$O70,'Report - ALL (DASHBOARD)'!$W$4) -> 57.67097224 | S70: =INDEX('Compile Data'!$BL$123:$CI$204,$O70,'Report - ALL (DASHBOARD)'!$W$4) -> 0.0003681236104 | T70: =INDEX('Compile Data'!$CL$123:$DI$204,$O70,'Report - ALL (DASHBOARD)'!$W$4) ->  | U70: =INDEX('Compile Data'!$DL$123:$EI$204,$O70,'Report - ALL (DASHBOARD)'!$W$4) ->  | V70: =INDEX('Compile Data'!$EL$123:$FI$204,$O70,'Report - ALL (DASHBOARD)'!$W$4) -> 
A71: 1965 | B71: =INDEX('Compile Data'!$L$12:$AI$93,$A71-1921,'Report - ALL (DASHBOARD)'!$W$4) -> 0 | C71: =INDEX('Compile Data'!$AL$12:$BI$93,$A71-1921,'Report - ALL (DASHBOARD)'!$W$4) -> 83.29394836 | D71: =INDEX('Compile Data'!$BL$12:$CI$93,$A71-1921,'Report - ALL (DASHBOARD)'!$W$4) -> 88.73582919 | E71: =INDEX('Compile Data'!$CL$12:$DI$93,$A71-1921,'Report - ALL (DASHBOARD)'!$W$4) ->  | F71: =INDEX('Compile Data'!$DL$12:$EI$93,$A71-1921,'Report - ALL (DASHBOARD)'!$W$4) ->  | G71: =INDEX('Compile Data'!$EL$12:$FI$93,$A71-1921,'Report - ALL (DASHBOARD)'!$W$4) ->  | O71: 44 | P71: 0.5308641975 | Q71: =INDEX('Compile Data'!$L$123:$AI$204,$O71,'Report - ALL (DASHBOARD)'!$W$4) -> 0 | R71: =INDEX('Compile Data'!$AL$123:$BI$204,$O71,'Report - ALL (DASHBOARD)'!$W$4) -> 53.81694385 | S71: =INDEX('Compile Data'!$BL$123:$CI$204,$O71,'Report - ALL (DASHBOARD)'!$W$4) -> 0.0001989256934 | T71: =INDEX('Compile Data'!$CL$123:$DI$204,$O71,'Report - ALL (DASHBOARD)'!$W$4) ->  | U71: =INDEX('Compile Data'!$DL$123:$EI$204,$O71,'Report - ALL (DASHBOARD)'!$W$4) ->  | V71: =INDEX('Compile Data'!$EL$123:$FI$204,$O71,'Report - ALL (DASHBOARD)'!$W$4) -> 
A72: 1966 | B72: =INDEX('Compile Data'!$L$12:$AI$93,$A72-1921,'Report - ALL (DASHBOARD)'!$W$4) -> 0 | C72: =INDEX('Compile Data'!$AL$12:$BI$93,$A72-1921,'Report - ALL (DASHBOARD)'!$W$4) -> 76.44902883 | D72: =INDEX('Compile Data'!$BL$12:$CI$93,$A72-1921,'Report - ALL (DASHBOARD)'!$W$4) -> 0 | E72: =INDEX('Compile Data'!$CL$12:$DI$93,$A72-1921,'Report - ALL (DASHBOARD)'!$W$4) ->  | F72: =INDEX('Compile Data'!$DL$12:$EI$93,$A72-1921,'Report - ALL (DASHBOARD)'!$W$4) ->  | G72: =INDEX('Compile Data'!$EL$12:$FI$93,$A72-1921,'Report - ALL (DASHBOARD)'!$W$4) ->  | O72: 45 | P72: 0.5432098765 | Q72: =INDEX('Compile Data'!$L$123:$AI$204,$O72,'Report - ALL (DASHBOARD)'!$W$4) -> 0 | R72: =INDEX('Compile Data'!$AL$123:$BI$204,$O72,'Report - ALL (DASHBOARD)'!$W$4) -> 49.3279225 | S72: =INDEX('Compile Data'!$BL$123:$CI$204,$O72,'Report - ALL (DASHBOARD)'!$W$4) -> 1.516327322e-05 | T72: =INDEX('Compile Data'!$CL$123:$DI$204,$O72,'Report - ALL (DASHBOARD)'!$W$4) ->  | U72: =INDEX('Compile Data'!$DL$123:$EI$204,$O72,'Report - ALL (DASHBOARD)'!$W$4) ->  | V72: =INDEX('Compile Data'!$EL$123:$FI$204,$O72,'Report - ALL (DASHBOARD)'!$W$4) -> 
A73: 1967 | B73: =INDEX('Compile Data'!$L$12:$AI$93,$A73-1921,'Report - ALL (DASHBOARD)'!$W$4) -> 0 | C73: =INDEX('Compile Data'!$AL$12:$BI$93,$A73-1921,'Report - ALL (DASHBOARD)'!$W$4) -> 224.224645 | D73: =INDEX('Compile Data'!$BL$12:$CI$93,$A73-1921,'Report - ALL (DASHBOARD)'!$W$4) -> 224.0681255 | E73: =INDEX('Compile Data'!$CL$12:$DI$93,$A73-1921,'Report - ALL (DASHBOARD)'!$W$4) ->  | F73: =INDEX('Compile Data'!$DL$12:$EI$93,$A73-1921,'Report - ALL (DASHBOARD)'!$W$4) ->  | G73: =INDEX('Compile Data'!$EL$12:$FI$93,$A73-1921,'Report - ALL (DASHBOARD)'!$W$4) ->  | O73: 46 | P73: 0.5555555556 | Q73: =INDEX('Compile Data'!$L$123:$AI$204,$O73,'Report - ALL (DASHBOARD)'!$W$4) -> 0 | R73: =INDEX('Compile Data'!$AL$123:$BI$204,$O73,'Report - ALL (DASHBOARD)'!$W$4) -> 48.3465494 | S73: =INDEX('Compile Data'!$BL$123:$CI$204,$O73,'Report - ALL (DASHBOARD)'!$W$4) -> 7.661863334e-07 | T73: =INDEX('Compile Data'!$CL$123:$DI$204,$O73,'Report - ALL (DASHBOARD)'!$W$4) ->  | U73: =INDEX('Compile Data'!$DL$123:$EI$204,$O73,'Report - ALL (DASHBOARD)'!$W$4) ->  | V73: =INDEX('Compile Data'!$EL$123:$FI$204,$O73,'Report - ALL (DASHBOARD)'!$W$4) -> 
A74: 1968 | B74: =INDEX('Compile Data'!$L$12:$AI$93,$A74-1921,'Report - ALL (DASHBOARD)'!$W$4) -> 0 | C74: =INDEX('Compile Data'!$AL$12:$BI$93,$A74-1921,'Report - ALL (DASHBOARD)'!$W$4) -> 131.0443424 | D74: =INDEX('Compile Data'!$BL$12:$CI$93,$A74-1921,'Report - ALL (DASHBOARD)'!$W$4) -> 0 | E74: =INDEX('Compile Data'!$CL$12:$DI$93,$A74-1921,'Report - ALL (DASHBOARD)'!$W$4) ->  | F74: =INDEX('Compile Data'!$DL$12:$EI$93,$A74-1921,'Report - ALL (DASHBOARD)'!$W$4) ->  | G74: =INDEX('Compile Data'!$EL$12:$FI$93,$A74-1921,'Report - ALL (DASHBOARD)'!$W$4) ->  | O74: 47 | P74: 0.5679012346 | Q74: =INDEX('Compile Data'!$L$123:$AI$204,$O74,'Report - ALL (DASHBOARD)'!$W$4) -> 0 | R74: =INDEX('Compile Data'!$AL$123:$BI$204,$O74,'Report - ALL (DASHBOARD)'!$W$4) -> 46.48675412 | S74: =INDEX('Compile Data'!$BL$123:$CI$204,$O74,'Report - ALL (DASHBOARD)'!$W$4) -> 5.471123527e-07 | T74: =INDEX('Compile Data'!$CL$123:$DI$204,$O74,'Report - ALL (DASHBOARD)'!$W$4) ->  | U74: =INDEX('Compile Data'!$DL$123:$EI$204,$O74,'Report - ALL (DASHBOARD)'!$W$4) ->  | V74: =INDEX('Compile Data'!$EL$123:$FI$204,$O74,'Report - ALL (DASHBOARD)'!$W$4) -> 
A75: 1969 | B75: =INDEX('Compile Data'!$L$12:$AI$93,$A75-1921,'Report - ALL (DASHBOARD)'!$W$4) -> 0 | C75: =INDEX('Compile Data'!$AL$12:$BI$93,$A75-1921,'Report - ALL (DASHBOARD)'!$W$4) -> 224.0452605 | D75: =INDEX('Compile Data'!$BL$12:$CI$93,$A75-1921,'Report - ALL (DASHBOARD)'!$W$4) -> 222.6119981 | E75: =INDEX('Compile Data'!$CL$12:$DI$93,$A75-1921,'Report - ALL (DASHBOARD)'!$W$4) ->  | F75: =INDEX('Compile Data'!$DL$12:$EI$93,$A75-1921,'Report - ALL (DASHBOARD)'!$W$4) ->  | G75: =INDEX('Compile Data'!$EL$12:$FI$93,$A75-1921,'Report - ALL (DASHBOARD)'!$W$4) ->  | O75: 48 | P75: 0.5802469136 | Q75: =INDEX('Compile Data'!$L$123:$AI$204,$O75,'Report - ALL (DASHBOARD)'!$W$4) -> 0 | R75: =INDEX('Compile Data'!$AL$123:$BI$204,$O75,'Report - ALL (DASHBOARD)'!$W$4) -> 44.54607331 | S75: =INDEX('Compile Data'!$BL$123:$CI$204,$O75,'Report - ALL (DASHBOARD)'!$W$4) -> 2.108368761e-07 | T75: =INDEX('Compile Data'!$CL$123:$DI$204,$O75,'Report - ALL (DASHBOARD)'!$W$4) ->  | U75: =INDEX('Compile Data'!$DL$123:$EI$204,$O75,'Report - ALL (DASHBOARD)'!$W$4) ->  | V75: =INDEX('Compile Data'!$EL$123:$FI$204,$O75,'Report - ALL (DASHBOARD)'!$W$4) -> 
A76: 1970 | B76: =INDEX('Compile Data'!$L$12:$AI$93,$A76-1921,'Report - ALL (DASHBOARD)'!$W$4) -> 0 | C76: =INDEX('Compile Data'!$AL$12:$BI$93,$A76-1921,'Report - ALL (DASHBOARD)'!$W$4) -> 221.6761023 | D76: =INDEX('Compile Data'!$BL$12:$CI$93,$A76-1921,'Report - ALL (DASHBOARD)'!$W$4) -> 226.5508928 | E76: =INDEX('Compile Data'!$CL$12:$DI$93,$A76-1921,'Report - ALL (DASHBOARD)'!$W$4) ->  | F76: =INDEX('Compile Data'!$DL$12:$EI$93,$A76-1921,'Report - ALL (DASHBOARD)'!$W$4) ->  | G76: =INDEX('Compile Data'!$EL$12:$FI$93,$A76-1921,'Report - ALL (DASHBOARD)'!$W$4) ->  | O76: 49 | P76: 0.5925925926 | Q76: =INDEX('Compile Data'!$L$123:$AI$204,$O76,'Report - ALL (DASHBOARD)'!$W$4) -> 0 | R76: =INDEX('Compile Data'!$AL$123:$BI$204,$O76,'Report - ALL (DASHBOARD)'!$W$4) -> 39.29652604 | S76: =INDEX('Compile Data'!$BL$123:$CI$204,$O76,'Report - ALL (DASHBOARD)'!$W$4) -> 0 | T76: =INDEX('Compile Data'!$CL$123:$DI$204,$O76,'Report - ALL (DASHBOARD)'!$W$4) ->  | U76: =INDEX('Compile Data'!$DL$123:$EI$204,$O76,'Report - ALL (DASHBOARD)'!$W$4) ->  | V76: =INDEX('Compile Data'!$EL$123:$FI$204,$O76,'Report - ALL (DASHBOARD)'!$W$4) -> 
A77: 1971 | B77: =INDEX('Compile Data'!$L$12:$AI$93,$A77-1921,'Report - ALL (DASHBOARD)'!$W$4) -> 0 | C77: =INDEX('Compile Data'!$AL$12:$BI$93,$A77-1921,'Report - ALL (DASHBOARD)'!$W$4) -> 228.2460812 | D77: =INDEX('Compile Data'!$BL$12:$CI$93,$A77-1921,'Report - ALL (DASHBOARD)'!$W$4) -> 227.4312795 | E77: =INDEX('Compile Data'!$CL$12:$DI$93,$A77-1921,'Report - ALL (DASHBOARD)'!$W$4) ->  | F77: =INDEX('Compile Data'!$DL$12:$EI$93,$A77-1921,'Report - ALL (DASHBOARD)'!$W$4) ->  | G77: =INDEX('Compile Data'!$EL$12:$FI$93,$A77-1921,'Report - ALL (DASHBOARD)'!$W$4) ->  | O77: 50 | P77: 0.6049382716 | Q77: =INDEX('Compile Data'!$L$123:$AI$204,$O77,'Report - ALL (DASHBOARD)'!$W$4) -> 0 | R77: =INDEX('Compile Data'!$AL$123:$BI$204,$O77,'Report - ALL (DASHBOARD)'!$W$4) -> 38.75253455 | S77: =INDEX('Compile Data'!$BL$123:$CI$204,$O77,'Report - ALL (DASHBOARD)'!$W$4) -> 0 | T77: =INDEX('Compile Data'!$CL$123:$DI$204,$O77,'Report - ALL (DASHBOARD)'!$W$4) ->  | U77: =INDEX('Compile Data'!$DL$123:$EI$204,$O77,'Report - ALL (DASHBOARD)'!$W$4) ->  | V77: =INDEX('Compile Data'!$EL$123:$FI$204,$O77,'Report - ALL (DASHBOARD)'!$W$4) -> 
A78: 1972 | B78: =INDEX('Compile Data'!$L$12:$AI$93,$A78-1921,'Report - ALL (DASHBOARD)'!$W$4) -> 0 | C78: =INDEX('Compile Data'!$AL$12:$BI$93,$A78-1921,'Report - ALL (DASHBOARD)'!$W$4) -> 106.7177988 | D78: =INDEX('Compile Data'!$BL$12:$CI$93,$A78-1921,'Report - ALL (DASHBOARD)'!$W$4) -> 0 | E78: =INDEX('Compile Data'!$CL$12:$DI$93,$A78-1921,'Report - ALL (DASHBOARD)'!$W$4) ->  | F78: =INDEX('Compile Data'!$DL$12:$EI$93,$A78-1921,'Report - ALL (DASHBOARD)'!$W$4) ->  | G78: =INDEX('Compile Data'!$EL$12:$FI$93,$A78-1921,'Report - ALL (DASHBOARD)'!$W$4) ->  | O78: 51 | P78: 0.6172839506 | Q78: =INDEX('Compile Data'!$L$123:$AI$204,$O78,'Report - ALL (DASHBOARD)'!$W$4) -> 0 | R78: =INDEX('Compile Data'!$AL$123:$BI$204,$O78,'Report - ALL (DASHBOARD)'!$W$4) -> 36.53922877 | S78: =INDEX('Compile Data'!$BL$123:$CI$204,$O78,'Report - ALL (DASHBOARD)'!$W$4) -> 0 | T78: =INDEX('Compile Data'!$CL$123:$DI$204,$O78,'Report - ALL (DASHBOARD)'!$W$4) ->  | U78: =INDEX('Compile Data'!$DL$123:$EI$204,$O78,'Report - ALL (DASHBOARD)'!$W$4) ->  | V78: =INDEX('Compile Data'!$EL$123:$FI$204,$O78,'Report - ALL (DASHBOARD)'!$W$4) -> 
A79: 1973 | B79: =INDEX('Compile Data'!$L$12:$AI$93,$A79-1921,'Report - ALL (DASHBOARD)'!$W$4) -> 0 | C79: =INDEX('Compile Data'!$AL$12:$BI$93,$A79-1921,'Report - ALL (DASHBOARD)'!$W$4) -> 132.9850912 | D79: =INDEX('Compile Data'!$BL$12:$CI$93,$A79-1921,'Report - ALL (DASHBOARD)'!$W$4) -> 0 | E79: =INDEX('Compile Data'!$CL$12:$DI$93,$A79-1921,'Report - ALL (DASHBOARD)'!$W$4) ->  | F79: =INDEX('Compile Data'!$DL$12:$EI$93,$A79-1921,'Report - ALL (DASHBOARD)'!$W$4) ->  | G79: =INDEX('Compile Data'!$EL$12:$FI$93,$A79-1921,'Report - ALL (DASHBOARD)'!$W$4) ->  | O79: 52 | P79: 0.6296296296 | Q79: =INDEX('Compile Data'!$L$123:$AI$204,$O79,'Report - ALL (DASHBOARD)'!$W$4) -> 0 | R79: =INDEX('Compile Data'!$AL$123:$BI$204,$O79,'Report - ALL (DASHBOARD)'!$W$4) -> 35.46882327 | S79: =INDEX('Compile Data'!$BL$123:$CI$204,$O79,'Report - ALL (DASHBOARD)'!$W$4) -> 0 | T79: =INDEX('Compile Data'!$CL$123:$DI$204,$O79,'Report - ALL (DASHBOARD)'!$W$4) ->  | U79: =INDEX('Compile Data'!$DL$123:$EI$204,$O79,'Report - ALL (DASHBOARD)'!$W$4) ->  | V79: =INDEX('Compile Data'!$EL$123:$FI$204,$O79,'Report - ALL (DASHBOARD)'!$W$4) -> 
A80: 1974 | B80: =INDEX('Compile Data'!$L$12:$AI$93,$A80-1921,'Report - ALL (DASHBOARD)'!$W$4) -> 0 | C80: =INDEX('Compile Data'!$AL$12:$BI$93,$A80-1921,'Report - ALL (DASHBOARD)'!$W$4) -> 225.0692735 | D80: =INDEX('Compile Data'!$BL$12:$CI$93,$A80-1921,'Report - ALL (DASHBOARD)'!$W$4) -> 223.7589767 | E80: =INDEX('Compile Data'!$CL$12:$DI$93,$A80-1921,'Report - ALL (DASHBOARD)'!$W$4) ->  | F80: =INDEX('Compile Data'!$DL$12:$EI$93,$A80-1921,'Report - ALL (DASHBOARD)'!$W$4) ->  | G80: =INDEX('Compile Data'!$EL$12:$FI$93,$A80-1921,'Report - ALL (DASHBOARD)'!$W$4) ->  | O80: 53 | P80: 0.6419753086 | Q80: =INDEX('Compile Data'!$L$123:$AI$204,$O80,'Report - ALL (DASHBOARD)'!$W$4) -> 0 | R80: =INDEX('Compile Data'!$AL$123:$BI$204,$O80,'Report - ALL (DASHBOARD)'!$W$4) -> 33.88113614 | S80: =INDEX('Compile Data'!$BL$123:$CI$204,$O80,'Report - ALL (DASHBOARD)'!$W$4) -> 0 | T80: =INDEX('Compile Data'!$CL$123:$DI$204,$O80,'Report - ALL (DASHBOARD)'!$W$4) ->  | U80: =INDEX('Compile Data'!$DL$123:$EI$204,$O80,'Report - ALL (DASHBOARD)'!$W$4) ->  | V80: =INDEX('Compile Data'!$EL$123:$FI$204,$O80,'Report - ALL (DASHBOARD)'!$W$4) -> 
A81: 1975 | B81: =INDEX('Compile Data'!$L$12:$AI$93,$A81-1921,'Report - ALL (DASHBOARD)'!$W$4) -> 0 | C81: =INDEX('Compile Data'!$AL$12:$BI$93,$A81-1921,'Report - ALL (DASHBOARD)'!$W$4) -> 214.3177768 | D81: =INDEX('Compile Data'!$BL$12:$CI$93,$A81-1921,'Report - ALL (DASHBOARD)'!$W$4) -> 215.3030188 | E81: =INDEX('Compile Data'!$CL$12:$DI$93,$A81-1921,'Report - ALL (DASHBOARD)'!$W$4) ->  | F81: =INDEX('Compile Data'!$DL$12:$EI$93,$A81-1921,'Report - ALL (DASHBOARD)'!$W$4) ->  | G81: =INDEX('Compile Data'!$EL$12:$FI$93,$A81-1921,'Report - ALL (DASHBOARD)'!$W$4) ->  | O81: 54 | P81: 0.6543209877 | Q81: =INDEX('Compile Data'!$L$123:$AI$204,$O81,'Report - ALL (DASHBOARD)'!$W$4) -> 0 | R81: =INDEX('Compile Data'!$AL$123:$BI$204,$O81,'Report - ALL (DASHBOARD)'!$W$4) -> 31.96038288 | S81: =INDEX('Compile Data'!$BL$123:$CI$204,$O81,'Report - ALL (DASHBOARD)'!$W$4) -> 0 | T81: =INDEX('Compile Data'!$CL$123:$DI$204,$O81,'Report - ALL (DASHBOARD)'!$W$4) ->  | U81: =INDEX('Compile Data'!$DL$123:$EI$204,$O81,'Report - ALL (DASHBOARD)'!$W$4) ->  | V81: =INDEX('Compile Data'!$EL$123:$FI$204,$O81,'Report - ALL (DASHBOARD)'!$W$4) -> 
A82: 1976 | B82: =INDEX('Compile Data'!$L$12:$AI$93,$A82-1921,'Report - ALL (DASHBOARD)'!$W$4) -> 0 | C82: =INDEX('Compile Data'!$AL$12:$BI$93,$A82-1921,'Report - ALL (DASHBOARD)'!$W$4) -> 33.88113614 | D82: =INDEX('Compile Data'!$BL$12:$CI$93,$A82-1921,'Report - ALL (DASHBOARD)'!$W$4) -> 87.38917961 | E82: =INDEX('Compile Data'!$CL$12:$DI$93,$A82-1921,'Report - ALL (DASHBOARD)'!$W$4) ->  | F82: =INDEX('Compile Data'!$DL$12:$EI$93,$A82-1921,'Report - ALL (DASHBOARD)'!$W$4) ->  | G82: =INDEX('Compile Data'!$EL$12:$FI$93,$A82-1921,'Report - ALL (DASHBOARD)'!$W$4) ->  | O82: 55 | P82: 0.6666666667 | Q82: =INDEX('Compile Data'!$L$123:$AI$204,$O82,'Report - ALL (DASHBOARD)'!$W$4) -> 0 | R82: =INDEX('Compile Data'!$AL$123:$BI$204,$O82,'Report - ALL (DASHBOARD)'!$W$4) -> 23.36279187 | S82: =INDEX('Compile Data'!$BL$123:$CI$204,$O82,'Report - ALL (DASHBOARD)'!$W$4) -> 0 | T82: =INDEX('Compile Data'!$CL$123:$DI$204,$O82,'Report - ALL (DASHBOARD)'!$W$4) ->  | U82: =INDEX('Compile Data'!$DL$123:$EI$204,$O82,'Report - ALL (DASHBOARD)'!$W$4) ->  | V82: =INDEX('Compile Data'!$EL$123:$FI$204,$O82,'Report - ALL (DASHBOARD)'!$W$4) -> 
A83: 1977 | B83: =INDEX('Compile Data'!$L$12:$AI$93,$A83-1921,'Report - ALL (DASHBOARD)'!$W$4) -> 0 | C83: =INDEX('Compile Data'!$AL$12:$BI$93,$A83-1921,'Report - ALL (DASHBOARD)'!$W$4) -> 8.132226092e-07 | D83: =INDEX('Compile Data'!$BL$12:$CI$93,$A83-1921,'Report - ALL (DASHBOARD)'!$W$4) -> 5.471123527e-07 | E83: =INDEX('Compile Data'!$CL$12:$DI$93,$A83-1921,'Report - ALL (DASHBOARD)'!$W$4) ->  | F83: =INDEX('Compile Data'!$DL$12:$EI$93,$A83-1921,'Report - ALL (DASHBOARD)'!$W$4) ->  | G83: =INDEX('Compile Data'!$EL$12:$FI$93,$A83-1921,'Report - ALL (DASHBOARD)'!$W$4) ->  | O83: 56 | P83: 0.6790123457 | Q83: =INDEX('Compile Data'!$L$123:$AI$204,$O83,'Report - ALL (DASHBOARD)'!$W$4) -> 0 | R83: =INDEX('Compile Data'!$AL$123:$BI$204,$O83,'Report - ALL (DASHBOARD)'!$W$4) -> 23.29399654 | S83: =INDEX('Compile Data'!$BL$123:$CI$204,$O83,'Report - ALL (DASHBOARD)'!$W$4) -> 0 | T83: =INDEX('Compile Data'!$CL$123:$DI$204,$O83,'Report - ALL (DASHBOARD)'!$W$4) ->  | U83: =INDEX('Compile Data'!$DL$123:$EI$204,$O83,'Report - ALL (DASHBOARD)'!$W$4) ->  | V83: =INDEX('Compile Data'!$EL$123:$FI$204,$O83,'Report - ALL (DASHBOARD)'!$W$4) -> 
A84: 1978 | B84: =INDEX('Compile Data'!$L$12:$AI$93,$A84-1921,'Report - ALL (DASHBOARD)'!$W$4) -> 0 | C84: =INDEX('Compile Data'!$AL$12:$BI$93,$A84-1921,'Report - ALL (DASHBOARD)'!$W$4) -> 17.80573337 | D84: =INDEX('Compile Data'!$BL$12:$CI$93,$A84-1921,'Report - ALL (DASHBOARD)'!$W$4) -> 8.549913833 | E84: =INDEX('Compile Data'!$CL$12:$DI$93,$A84-1921,'Report - ALL (DASHBOARD)'!$W$4) ->  | F84: =INDEX('Compile Data'!$DL$12:$EI$93,$A84-1921,'Report - ALL (DASHBOARD)'!$W$4) ->  | G84: =INDEX('Compile Data'!$EL$12:$FI$93,$A84-1921,'Report - ALL (DASHBOARD)'!$W$4) ->  | O84: 57 | P84: 0.6913580247 | Q84: =INDEX('Compile Data'!$L$123:$AI$204,$O84,'Report - ALL (DASHBOARD)'!$W$4) -> 0 | R84: =INDEX('Compile Data'!$AL$123:$BI$204,$O84,'Report - ALL (DASHBOARD)'!$W$4) -> 19.26984285 | S84: =INDEX('Compile Data'!$BL$123:$CI$204,$O84,'Report - ALL (DASHBOARD)'!$W$4) -> 0 | T84: =INDEX('Compile Data'!$CL$123:$DI$204,$O84,'Report - ALL (DASHBOARD)'!$W$4) ->  | U84: =INDEX('Compile Data'!$DL$123:$EI$204,$O84,'Report - ALL (DASHBOARD)'!$W$4) ->  | V84: =INDEX('Compile Data'!$EL$123:$FI$204,$O84,'Report - ALL (DASHBOARD)'!$W$4) -> 
A85: 1979 | B85: =INDEX('Compile Data'!$L$12:$AI$93,$A85-1921,'Report - ALL (DASHBOARD)'!$W$4) -> 0 | C85: =INDEX('Compile Data'!$AL$12:$BI$93,$A85-1921,'Report - ALL (DASHBOARD)'!$W$4) -> 35.46882327 | D85: =INDEX('Compile Data'!$BL$12:$CI$93,$A85-1921,'Report - ALL (DASHBOARD)'!$W$4) -> 0 | E85: =INDEX('Compile Data'!$CL$12:$DI$93,$A85-1921,'Report - ALL (DASHBOARD)'!$W$4) ->  | F85: =INDEX('Compile Data'!$DL$12:$EI$93,$A85-1921,'Report - ALL (DASHBOARD)'!$W$4) ->  | G85: =INDEX('Compile Data'!$EL$12:$FI$93,$A85-1921,'Report - ALL (DASHBOARD)'!$W$4) ->  | O85: 58 | P85: 0.7037037037 | Q85: =INDEX('Compile Data'!$L$123:$AI$204,$O85,'Report - ALL (DASHBOARD)'!$W$4) -> 0 | R85: =INDEX('Compile Data'!$AL$123:$BI$204,$O85,'Report - ALL (DASHBOARD)'!$W$4) -> 17.80573337 | S85: =INDEX('Compile Data'!$BL$123:$CI$204,$O85,'Report - ALL (DASHBOARD)'!$W$4) -> 0 | T85: =INDEX('Compile Data'!$CL$123:$DI$204,$O85,'Report - ALL (DASHBOARD)'!$W$4) ->  | U85: =INDEX('Compile Data'!$DL$123:$EI$204,$O85,'Report - ALL (DASHBOARD)'!$W$4) ->  | V85: =INDEX('Compile Data'!$EL$123:$FI$204,$O85,'Report - ALL (DASHBOARD)'!$W$4) -> 
A86: 1980 | B86: =INDEX('Compile Data'!$L$12:$AI$93,$A86-1921,'Report - ALL (DASHBOARD)'!$W$4) -> 0 | C86: =INDEX('Compile Data'!$AL$12:$BI$93,$A86-1921,'Report - ALL (DASHBOARD)'!$W$4) -> 83.11618157 | D86: =INDEX('Compile Data'!$BL$12:$CI$93,$A86-1921,'Report - ALL (DASHBOARD)'!$W$4) -> 0 | E86: =INDEX('Compile Data'!$CL$12:$DI$93,$A86-1921,'Report - ALL (DASHBOARD)'!$W$4) ->  | F86: =INDEX('Compile Data'!$DL$12:$EI$93,$A86-1921,'Report - ALL (DASHBOARD)'!$W$4) ->  | G86: =INDEX('Compile Data'!$EL$12:$FI$93,$A86-1921,'Report - ALL (DASHBOARD)'!$W$4) ->  | O86: 59 | P86: 0.7160493827 | Q86: =INDEX('Compile Data'!$L$123:$AI$204,$O86,'Report - ALL (DASHBOARD)'!$W$4) -> 0 | R86: =INDEX('Compile Data'!$AL$123:$BI$204,$O86,'Report - ALL (DASHBOARD)'!$W$4) -> 5.31360166 | S86: =INDEX('Compile Data'!$BL$123:$CI$204,$O86,'Report - ALL (DASHBOARD)'!$W$4) -> 0 | T86: =INDEX('Compile Data'!$CL$123:$DI$204,$O86,'Report - ALL (DASHBOARD)'!$W$4) ->  | U86: =INDEX('Compile Data'!$DL$123:$EI$204,$O86,'Report - ALL (DASHBOARD)'!$W$4) ->  | V86: =INDEX('Compile Data'!$EL$123:$FI$204,$O86,'Report - ALL (DASHBOARD)'!$W$4) -> 
A87: 1981 | B87: =INDEX('Compile Data'!$L$12:$AI$93,$A87-1921,'Report - ALL (DASHBOARD)'!$W$4) -> 0 | C87: =INDEX('Compile Data'!$AL$12:$BI$93,$A87-1921,'Report - ALL (DASHBOARD)'!$W$4) -> 84.27255951 | D87: =INDEX('Compile Data'!$BL$12:$CI$93,$A87-1921,'Report - ALL (DASHBOARD)'!$W$4) -> 0 | E87: =INDEX('Compile Data'!$CL$12:$DI$93,$A87-1921,'Report - ALL (DASHBOARD)'!$W$4) ->  | F87: =INDEX('Compile Data'!$DL$12:$EI$93,$A87-1921,'Report - ALL (DASHBOARD)'!$W$4) ->  | G87: =INDEX('Compile Data'!$EL$12:$FI$93,$A87-1921,'Report - ALL (DASHBOARD)'!$W$4) ->  | O87: 60 | P87: 0.7283950617 | Q87: =INDEX('Compile Data'!$L$123:$AI$204,$O87,'Report - ALL (DASHBOARD)'!$W$4) -> 0 | R87: =INDEX('Compile Data'!$AL$123:$BI$204,$O87,'Report - ALL (DASHBOARD)'!$W$4) -> 4.41696592 | S87: =INDEX('Compile Data'!$BL$123:$CI$204,$O87,'Report - ALL (DASHBOARD)'!$W$4) -> 0 | T87: =INDEX('Compile Data'!$CL$123:$DI$204,$O87,'Report - ALL (DASHBOARD)'!$W$4) ->  | U87: =INDEX('Compile Data'!$DL$123:$EI$204,$O87,'Report - ALL (DASHBOARD)'!$W$4) ->  | V87: =INDEX('Compile Data'!$EL$123:$FI$204,$O87,'Report - ALL (DASHBOARD)'!$W$4) -> 
A88: 1982 | B88: =INDEX('Compile Data'!$L$12:$AI$93,$A88-1921,'Report - ALL (DASHBOARD)'!$W$4) -> 0 | C88: =INDEX('Compile Data'!$AL$12:$BI$93,$A88-1921,'Report - ALL (DASHBOARD)'!$W$4) -> 225.5813958 | D88: =INDEX('Compile Data'!$BL$12:$CI$93,$A88-1921,'Report - ALL (DASHBOARD)'!$W$4) -> 224.6107655 | E88: =INDEX('Compile Data'!$CL$12:$DI$93,$A88-1921,'Report - ALL (DASHBOARD)'!$W$4) ->  | F88: =INDEX('Compile Data'!$DL$12:$EI$93,$A88-1921,'Report - ALL (DASHBOARD)'!$W$4) ->  | G88: =INDEX('Compile Data'!$EL$12:$FI$93,$A88-1921,'Report - ALL (DASHBOARD)'!$W$4) ->  | O88: 61 | P88: 0.7407407407 | Q88: =INDEX('Compile Data'!$L$123:$AI$204,$O88,'Report - ALL (DASHBOARD)'!$W$4) -> 0 | R88: =INDEX('Compile Data'!$AL$123:$BI$204,$O88,'Report - ALL (DASHBOARD)'!$W$4) -> 4.313421989 | S88: =INDEX('Compile Data'!$BL$123:$CI$204,$O88,'Report - ALL (DASHBOARD)'!$W$4) -> 0 | T88: =INDEX('Compile Data'!$CL$123:$DI$204,$O88,'Report - ALL (DASHBOARD)'!$W$4) ->  | U88: =INDEX('Compile Data'!$DL$123:$EI$204,$O88,'Report - ALL (DASHBOARD)'!$W$4) ->  | V88: =INDEX('Compile Data'!$EL$123:$FI$204,$O88,'Report - ALL (DASHBOARD)'!$W$4) -> 
A89: 1983 | B89: =INDEX('Compile Data'!$L$12:$AI$93,$A89-1921,'Report - ALL (DASHBOARD)'!$W$4) -> 0 | C89: =INDEX('Compile Data'!$AL$12:$BI$93,$A89-1921,'Report - ALL (DASHBOARD)'!$W$4) -> 227.5108627 | D89: =INDEX('Compile Data'!$BL$12:$CI$93,$A89-1921,'Report - ALL (DASHBOARD)'!$W$4) -> 226.8329608 | E89: =INDEX('Compile Data'!$CL$12:$DI$93,$A89-1921,'Report - ALL (DASHBOARD)'!$W$4) ->  | F89: =INDEX('Compile Data'!$DL$12:$EI$93,$A89-1921,'Report - ALL (DASHBOARD)'!$W$4) ->  | G89: =INDEX('Compile Data'!$EL$12:$FI$93,$A89-1921,'Report - ALL (DASHBOARD)'!$W$4) ->  | O89: 62 | P89: 0.7530864198 | Q89: =INDEX('Compile Data'!$L$123:$AI$204,$O89,'Report - ALL (DASHBOARD)'!$W$4) -> 0 | R89: =INDEX('Compile Data'!$AL$123:$BI$204,$O89,'Report - ALL (DASHBOARD)'!$W$4) -> 3.183047842 | S89: =INDEX('Compile Data'!$BL$123:$CI$204,$O89,'Report - ALL (DASHBOARD)'!$W$4) -> 0 | T89: =INDEX('Compile Data'!$CL$123:$DI$204,$O89,'Report - ALL (DASHBOARD)'!$W$4) ->  | U89: =INDEX('Compile Data'!$DL$123:$EI$204,$O89,'Report - ALL (DASHBOARD)'!$W$4) ->  | V89: =INDEX('Compile Data'!$EL$123:$FI$204,$O89,'Report - ALL (DASHBOARD)'!$W$4) -> 
A90: 1984 | B90: =INDEX('Compile Data'!$L$12:$AI$93,$A90-1921,'Report - ALL (DASHBOARD)'!$W$4) -> 0 | C90: =INDEX('Compile Data'!$AL$12:$BI$93,$A90-1921,'Report - ALL (DASHBOARD)'!$W$4) -> 224.4145874 | D90: =INDEX('Compile Data'!$BL$12:$CI$93,$A90-1921,'Report - ALL (DASHBOARD)'!$W$4) -> 224.8032468 | E90: =INDEX('Compile Data'!$CL$12:$DI$93,$A90-1921,'Report - ALL (DASHBOARD)'!$W$4) ->  | F90: =INDEX('Compile Data'!$DL$12:$EI$93,$A90-1921,'Report - ALL (DASHBOARD)'!$W$4) ->  | G90: =INDEX('Compile Data'!$EL$12:$FI$93,$A90-1921,'Report - ALL (DASHBOARD)'!$W$4) ->  | O90: 63 | P90: 0.7654320988 | Q90: =INDEX('Compile Data'!$L$123:$AI$204,$O90,'Report - ALL (DASHBOARD)'!$W$4) -> 0 | R90: =INDEX('Compile Data'!$AL$123:$BI$204,$O90,'Report - ALL (DASHBOARD)'!$W$4) -> 2.363468896 | S90: =INDEX('Compile Data'!$BL$123:$CI$204,$O90,'Report - ALL (DASHBOARD)'!$W$4) -> 0 | T90: =INDEX('Compile Data'!$CL$123:$DI$204,$O90,'Report - ALL (DASHBOARD)'!$W$4) ->  | U90: =INDEX('Compile Data'!$DL$123:$EI$204,$O90,'Report - ALL (DASHBOARD)'!$W$4) ->  | V90: =INDEX('Compile Data'!$EL$123:$FI$204,$O90,'Report - ALL (DASHBOARD)'!$W$4) -> 
A91: 1985 | B91: =INDEX('Compile Data'!$L$12:$AI$93,$A91-1921,'Report - ALL (DASHBOARD)'!$W$4) -> 0 | C91: =INDEX('Compile Data'!$AL$12:$BI$93,$A91-1921,'Report - ALL (DASHBOARD)'!$W$4) -> 132.1901013 | D91: =INDEX('Compile Data'!$BL$12:$CI$93,$A91-1921,'Report - ALL (DASHBOARD)'!$W$4) -> 0 | E91: =INDEX('Compile Data'!$CL$12:$DI$93,$A91-1921,'Report - ALL (DASHBOARD)'!$W$4) ->  | F91: =INDEX('Compile Data'!$DL$12:$EI$93,$A91-1921,'Report - ALL (DASHBOARD)'!$W$4) ->  | G91: =INDEX('Compile Data'!$EL$12:$FI$93,$A91-1921,'Report - ALL (DASHBOARD)'!$W$4) ->  | O91: 64 | P91: 0.7777777778 | Q91: =INDEX('Compile Data'!$L$123:$AI$204,$O91,'Report - ALL (DASHBOARD)'!$W$4) -> 0 | R91: =INDEX('Compile Data'!$AL$123:$BI$204,$O91,'Report - ALL (DASHBOARD)'!$W$4) -> 0.6099210387 | S91: =INDEX('Compile Data'!$BL$123:$CI$204,$O91,'Report - ALL (DASHBOARD)'!$W$4) -> 0 | T91: =INDEX('Compile Data'!$CL$123:$DI$204,$O91,'Report - ALL (DASHBOARD)'!$W$4) ->  | U91: =INDEX('Compile Data'!$DL$123:$EI$204,$O91,'Report - ALL (DASHBOARD)'!$W$4) ->  | V91: =INDEX('Compile Data'!$EL$123:$FI$204,$O91,'Report - ALL (DASHBOARD)'!$W$4) -> 
A92: 1986 | B92: =INDEX('Compile Data'!$L$12:$AI$93,$A92-1921,'Report - ALL (DASHBOARD)'!$W$4) -> 0 | C92: =INDEX('Compile Data'!$AL$12:$BI$93,$A92-1921,'Report - ALL (DASHBOARD)'!$W$4) -> 192.9094959 | D92: =INDEX('Compile Data'!$BL$12:$CI$93,$A92-1921,'Report - ALL (DASHBOARD)'!$W$4) -> 221.9237063 | E92: =INDEX('Compile Data'!$CL$12:$DI$93,$A92-1921,'Report - ALL (DASHBOARD)'!$W$4) ->  | F92: =INDEX('Compile Data'!$DL$12:$EI$93,$A92-1921,'Report - ALL (DASHBOARD)'!$W$4) ->  | G92: =INDEX('Compile Data'!$EL$12:$FI$93,$A92-1921,'Report - ALL (DASHBOARD)'!$W$4) ->  | O92: 65 | P92: =(O92-1)/81 -> 0.7901234568 | Q92: =INDEX('Compile Data'!$L$123:$AI$204,$O92,'Report - ALL (DASHBOARD)'!$W$4) -> 0 | R92: =INDEX('Compile Data'!$AL$123:$BI$204,$O92,'Report - ALL (DASHBOARD)'!$W$4) -> 0.60099336 | S92: =INDEX('Compile Data'!$BL$123:$CI$204,$O92,'Report - ALL (DASHBOARD)'!$W$4) -> 0 | T92: =INDEX('Compile Data'!$CL$123:$DI$204,$O92,'Report - ALL (DASHBOARD)'!$W$4) ->  | U92: =INDEX('Compile Data'!$DL$123:$EI$204,$O92,'Report - ALL (DASHBOARD)'!$W$4) ->  | V92: =INDEX('Compile Data'!$EL$123:$FI$204,$O92,'Report - ALL (DASHBOARD)'!$W$4) -> 
A93: 1987 | B93: =INDEX('Compile Data'!$L$12:$AI$93,$A93-1921,'Report - ALL (DASHBOARD)'!$W$4) -> 0 | C93: =INDEX('Compile Data'!$AL$12:$BI$93,$A93-1921,'Report - ALL (DASHBOARD)'!$W$4) -> 5.31360166 | D93: =INDEX('Compile Data'!$BL$12:$CI$93,$A93-1921,'Report - ALL (DASHBOARD)'!$W$4) -> 0 | E93: =INDEX('Compile Data'!$CL$12:$DI$93,$A93-1921,'Report - ALL (DASHBOARD)'!$W$4) ->  | F93: =INDEX('Compile Data'!$DL$12:$EI$93,$A93-1921,'Report - ALL (DASHBOARD)'!$W$4) ->  | G93: =INDEX('Compile Data'!$EL$12:$FI$93,$A93-1921,'Report - ALL (DASHBOARD)'!$W$4) ->  | O93: 66 | P93: 0.8024691358 | Q93: =INDEX('Compile Data'!$L$123:$AI$204,$O93,'Report - ALL (DASHBOARD)'!$W$4) -> 0 | R93: =INDEX('Compile Data'!$AL$123:$BI$204,$O93,'Report - ALL (DASHBOARD)'!$W$4) -> 0.5180164918 | S93: =INDEX('Compile Data'!$BL$123:$CI$204,$O93,'Report - ALL (DASHBOARD)'!$W$4) -> 0 | T93: =INDEX('Compile Data'!$CL$123:$DI$204,$O93,'Report - ALL (DASHBOARD)'!$W$4) ->  | U93: =INDEX('Compile Data'!$DL$123:$EI$204,$O93,'Report - ALL (DASHBOARD)'!$W$4) ->  | V93: =INDEX('Compile Data'!$EL$123:$FI$204,$O93,'Report - ALL (DASHBOARD)'!$W$4) -> 
A94: =A93+1 -> 1988 | B94: =INDEX('Compile Data'!$L$12:$AI$93,$A94-1921,'Report - ALL (DASHBOARD)'!$W$4) -> 0 | C94: =INDEX('Compile Data'!$AL$12:$BI$93,$A94-1921,'Report - ALL (DASHBOARD)'!$W$4) -> 0 | D94: =INDEX('Compile Data'!$BL$12:$CI$93,$A94-1921,'Report - ALL (DASHBOARD)'!$W$4) -> 0 | E94: =INDEX('Compile Data'!$CL$12:$DI$93,$A94-1921,'Report - ALL (DASHBOARD)'!$W$4) ->  | F94: =INDEX('Compile Data'!$DL$12:$EI$93,$A94-1921,'Report - ALL (DASHBOARD)'!$W$4) ->  | G94: =INDEX('Compile Data'!$EL$12:$FI$93,$A94-1921,'Report - ALL (DASHBOARD)'!$W$4) ->  | O94: 67 | P94: 0.8148148148 | Q94: =INDEX('Compile Data'!$L$123:$AI$204,$O94,'Report - ALL (DASHBOARD)'!$W$4) -> 0 | R94: =INDEX('Compile Data'!$AL$123:$BI$204,$O94,'Report - ALL (DASHBOARD)'!$W$4) -> 0.000243060135 | S94: =INDEX('Compile Data'!$BL$123:$CI$204,$O94,'Report - ALL (DASHBOARD)'!$W$4) -> 0 | T94: =INDEX('Compile Data'!$CL$123:$DI$204,$O94,'Report - ALL (DASHBOARD)'!$W$4) ->  | U94: =INDEX('Compile Data'!$DL$123:$EI$204,$O94,'Report - ALL (DASHBOARD)'!$W$4) ->  | V94: =INDEX('Compile Data'!$EL$123:$FI$204,$O94,'Report - ALL (DASHBOARD)'!$W$4) -> 
A95: 1989 | B95: =INDEX('Compile Data'!$L$12:$AI$93,$A95-1921,'Report - ALL (DASHBOARD)'!$W$4) -> 0 | C95: =INDEX('Compile Data'!$AL$12:$BI$93,$A95-1921,'Report - ALL (DASHBOARD)'!$W$4) -> 0.6099210387 | D95: =INDEX('Compile Data'!$BL$12:$CI$93,$A95-1921,'Report - ALL (DASHBOARD)'!$W$4) -> 0.6081129565 | E95: =INDEX('Compile Data'!$CL$12:$DI$93,$A95-1921,'Report - ALL (DASHBOARD)'!$W$4) ->  | F95: =INDEX('Compile Data'!$DL$12:$EI$93,$A95-1921,'Report - ALL (DASHBOARD)'!$W$4) ->  | G95: =INDEX('Compile Data'!$EL$12:$FI$93,$A95-1921,'Report - ALL (DASHBOARD)'!$W$4) ->  | O95: 68 | P95: 0.8271604938 | Q95: =INDEX('Compile Data'!$L$123:$AI$204,$O95,'Report - ALL (DASHBOARD)'!$W$4) -> 0 | R95: =INDEX('Compile Data'!$AL$123:$BI$204,$O95,'Report - ALL (DASHBOARD)'!$W$4) -> 0.0001384223887 | S95: =INDEX('Compile Data'!$BL$123:$CI$204,$O95,'Report - ALL (DASHBOARD)'!$W$4) -> 0 | T95: =INDEX('Compile Data'!$CL$123:$DI$204,$O95,'Report - ALL (DASHBOARD)'!$W$4) ->  | U95: =INDEX('Compile Data'!$DL$123:$EI$204,$O95,'Report - ALL (DASHBOARD)'!$W$4) ->  | V95: =INDEX('Compile Data'!$EL$123:$FI$204,$O95,'Report - ALL (DASHBOARD)'!$W$4) -> 
A96: 1990 | B96: =INDEX('Compile Data'!$L$12:$AI$93,$A96-1921,'Report - ALL (DASHBOARD)'!$W$4) -> 0 | C96: =INDEX('Compile Data'!$AL$12:$BI$93,$A96-1921,'Report - ALL (DASHBOARD)'!$W$4) -> 2.363468896 | D96: =INDEX('Compile Data'!$BL$12:$CI$93,$A96-1921,'Report - ALL (DASHBOARD)'!$W$4) -> 2.807674725 | E96: =INDEX('Compile Data'!$CL$12:$DI$93,$A96-1921,'Report - ALL (DASHBOARD)'!$W$4) ->  | F96: =INDEX('Compile Data'!$DL$12:$EI$93,$A96-1921,'Report - ALL (DASHBOARD)'!$W$4) ->  | G96: =INDEX('Compile Data'!$EL$12:$FI$93,$A96-1921,'Report - ALL (DASHBOARD)'!$W$4) ->  | O96: 69 | P96: 0.8395061728 | Q96: =INDEX('Compile Data'!$L$123:$AI$204,$O96,'Report - ALL (DASHBOARD)'!$W$4) -> 0 | R96: =INDEX('Compile Data'!$AL$123:$BI$204,$O96,'Report - ALL (DASHBOARD)'!$W$4) -> 8.398017599e-06 | S96: =INDEX('Compile Data'!$BL$123:$CI$204,$O96,'Report - ALL (DASHBOARD)'!$W$4) -> 0 | T96: =INDEX('Compile Data'!$CL$123:$DI$204,$O96,'Report - ALL (DASHBOARD)'!$W$4) ->  | U96: =INDEX('Compile Data'!$DL$123:$EI$204,$O96,'Report - ALL (DASHBOARD)'!$W$4) ->  | V96: =INDEX('Compile Data'!$EL$123:$FI$204,$O96,'Report - ALL (DASHBOARD)'!$W$4) -> 
A97: 1991 | B97: =INDEX('Compile Data'!$L$12:$AI$93,$A97-1921,'Report - ALL (DASHBOARD)'!$W$4) -> 0 | C97: =INDEX('Compile Data'!$AL$12:$BI$93,$A97-1921,'Report - ALL (DASHBOARD)'!$W$4) -> 0.60099336 | D97: =INDEX('Compile Data'!$BL$12:$CI$93,$A97-1921,'Report - ALL (DASHBOARD)'!$W$4) -> 0.6002300202 | E97: =INDEX('Compile Data'!$CL$12:$DI$93,$A97-1921,'Report - ALL (DASHBOARD)'!$W$4) ->  | F97: =INDEX('Compile Data'!$DL$12:$EI$93,$A97-1921,'Report - ALL (DASHBOARD)'!$W$4) ->  | G97: =INDEX('Compile Data'!$EL$12:$FI$93,$A97-1921,'Report - ALL (DASHBOARD)'!$W$4) ->  | O97: 70 | P97: 0.8518518519 | Q97: =INDEX('Compile Data'!$L$123:$AI$204,$O97,'Report - ALL (DASHBOARD)'!$W$4) -> 0 | R97: =INDEX('Compile Data'!$AL$123:$BI$204,$O97,'Report - ALL (DASHBOARD)'!$W$4) -> 8.132226092e-07 | S97: =INDEX('Compile Data'!$BL$123:$CI$204,$O97,'Report - ALL (DASHBOARD)'!$W$4) -> 0 | T97: =INDEX('Compile Data'!$CL$123:$DI$204,$O97,'Report - ALL (DASHBOARD)'!$W$4) ->  | U97: =INDEX('Compile Data'!$DL$123:$EI$204,$O97,'Report - ALL (DASHBOARD)'!$W$4) ->  | V97: =INDEX('Compile Data'!$EL$123:$FI$204,$O97,'Report - ALL (DASHBOARD)'!$W$4) -> 
A98: 1992 | B98: =INDEX('Compile Data'!$L$12:$AI$93,$A98-1921,'Report - ALL (DASHBOARD)'!$W$4) -> 0 | C98: =INDEX('Compile Data'!$AL$12:$BI$93,$A98-1921,'Report - ALL (DASHBOARD)'!$W$4) -> 0 | D98: =INDEX('Compile Data'!$BL$12:$CI$93,$A98-1921,'Report - ALL (DASHBOARD)'!$W$4) -> 0.03862109614 | E98: =INDEX('Compile Data'!$CL$12:$DI$93,$A98-1921,'Report - ALL (DASHBOARD)'!$W$4) ->  | F98: =INDEX('Compile Data'!$DL$12:$EI$93,$A98-1921,'Report - ALL (DASHBOARD)'!$W$4) ->  | G98: =INDEX('Compile Data'!$EL$12:$FI$93,$A98-1921,'Report - ALL (DASHBOARD)'!$W$4) ->  | O98: 71 | P98: 0.8641975309 | Q98: =INDEX('Compile Data'!$L$123:$AI$204,$O98,'Report - ALL (DASHBOARD)'!$W$4) -> 0 | R98: =INDEX('Compile Data'!$AL$123:$BI$204,$O98,'Report - ALL (DASHBOARD)'!$W$4) -> 1.735056074e-07 | S98: =INDEX('Compile Data'!$BL$123:$CI$204,$O98,'Report - ALL (DASHBOARD)'!$W$4) -> 0 | T98: =INDEX('Compile Data'!$CL$123:$DI$204,$O98,'Report - ALL (DASHBOARD)'!$W$4) ->  | U98: =INDEX('Compile Data'!$DL$123:$EI$204,$O98,'Report - ALL (DASHBOARD)'!$W$4) ->  | V98: =INDEX('Compile Data'!$EL$123:$FI$204,$O98,'Report - ALL (DASHBOARD)'!$W$4) -> 
A99: 1993 | B99: =INDEX('Compile Data'!$L$12:$AI$93,$A99-1921,'Report - ALL (DASHBOARD)'!$W$4) -> 0 | C99: =INDEX('Compile Data'!$AL$12:$BI$93,$A99-1921,'Report - ALL (DASHBOARD)'!$W$4) -> 19.26984285 | D99: =INDEX('Compile Data'!$BL$12:$CI$93,$A99-1921,'Report - ALL (DASHBOARD)'!$W$4) -> 0 | E99: =INDEX('Compile Data'!$CL$12:$DI$93,$A99-1921,'Report - ALL (DASHBOARD)'!$W$4) ->  | F99: =INDEX('Compile Data'!$DL$12:$EI$93,$A99-1921,'Report - ALL (DASHBOARD)'!$W$4) ->  | G99: =INDEX('Compile Data'!$EL$12:$FI$93,$A99-1921,'Report - ALL (DASHBOARD)'!$W$4) ->  | O99: 72 | P99: 0.8765432099 | Q99: =INDEX('Compile Data'!$L$123:$AI$204,$O99,'Report - ALL (DASHBOARD)'!$W$4) -> 0 | R99: =INDEX('Compile Data'!$AL$123:$BI$204,$O99,'Report - ALL (DASHBOARD)'!$W$4) -> 0 | S99: =INDEX('Compile Data'!$BL$123:$CI$204,$O99,'Report - ALL (DASHBOARD)'!$W$4) -> 0 | T99: =INDEX('Compile Data'!$CL$123:$DI$204,$O99,'Report - ALL (DASHBOARD)'!$W$4) ->  | U99: =INDEX('Compile Data'!$DL$123:$EI$204,$O99,'Report - ALL (DASHBOARD)'!$W$4) ->  | V99: =INDEX('Compile Data'!$EL$123:$FI$204,$O99,'Report - ALL (DASHBOARD)'!$W$4) -> 
A100: 1994 | B100: =INDEX('Compile Data'!$L$12:$AI$93,$A100-1921,'Report - ALL (DASHBOARD)'!$W$4) -> 0 | C100: =INDEX('Compile Data'!$AL$12:$BI$93,$A100-1921,'Report - ALL (DASHBOARD)'!$W$4) -> 0.000243060135 | D100: =INDEX('Compile Data'!$BL$12:$CI$93,$A100-1921,'Report - ALL (DASHBOARD)'!$W$4) -> 0.07484550955 | E100: =INDEX('Compile Data'!$CL$12:$DI$93,$A100-1921,'Report - ALL (DASHBOARD)'!$W$4) ->  | F100: =INDEX('Compile Data'!$DL$12:$EI$93,$A100-1921,'Report - ALL (DASHBOARD)'!$W$4) ->  | G100: =INDEX('Compile Data'!$EL$12:$FI$93,$A100-1921,'Report - ALL (DASHBOARD)'!$W$4) ->  | O100: 73 | P100: 0.8888888889 | Q100: =INDEX('Compile Data'!$L$123:$AI$204,$O100,'Report - ALL (DASHBOARD)'!$W$4) -> 0 | R100: =INDEX('Compile Data'!$AL$123:$BI$204,$O100,'Report - ALL (DASHBOARD)'!$W$4) -> 0 | S100: =INDEX('Compile Data'!$BL$123:$CI$204,$O100,'Report - ALL (DASHBOARD)'!$W$4) -> 0 | T100: =INDEX('Compile Data'!$CL$123:$DI$204,$O100,'Report - ALL (DASHBOARD)'!$W$4) ->  | U100: =INDEX('Compile Data'!$DL$123:$EI$204,$O100,'Report - ALL (DASHBOARD)'!$W$4) ->  | V100: =INDEX('Compile Data'!$EL$123:$FI$204,$O100,'Report - ALL (DASHBOARD)'!$W$4) -> 
A101: 1995 | B101: =INDEX('Compile Data'!$L$12:$AI$93,$A101-1921,'Report - ALL (DASHBOARD)'!$W$4) -> 0 | C101: =INDEX('Compile Data'!$AL$12:$BI$93,$A101-1921,'Report - ALL (DASHBOARD)'!$W$4) -> 175.0641824 | D101: =INDEX('Compile Data'!$BL$12:$CI$93,$A101-1921,'Report - ALL (DASHBOARD)'!$W$4) -> 226.2506054 | E101: =INDEX('Compile Data'!$CL$12:$DI$93,$A101-1921,'Report - ALL (DASHBOARD)'!$W$4) ->  | F101: =INDEX('Compile Data'!$DL$12:$EI$93,$A101-1921,'Report - ALL (DASHBOARD)'!$W$4) ->  | G101: =INDEX('Compile Data'!$EL$12:$FI$93,$A101-1921,'Report - ALL (DASHBOARD)'!$W$4) ->  | O101: 74 | P101: 0.9012345679 | Q101: =INDEX('Compile Data'!$L$123:$AI$204,$O101,'Report - ALL (DASHBOARD)'!$W$4) -> 0 | R101: =INDEX('Compile Data'!$AL$123:$BI$204,$O101,'Report - ALL (DASHBOARD)'!$W$4) -> 0 | S101: =INDEX('Compile Data'!$BL$123:$CI$204,$O101,'Report - ALL (DASHBOARD)'!$W$4) -> 0 | T101: =INDEX('Compile Data'!$CL$123:$DI$204,$O101,'Report - ALL (DASHBOARD)'!$W$4) ->  | U101: =INDEX('Compile Data'!$DL$123:$EI$204,$O101,'Report - ALL (DASHBOARD)'!$W$4) ->  | V101: =INDEX('Compile Data'!$EL$123:$FI$204,$O101,'Report - ALL (DASHBOARD)'!$W$4) -> 
A102: 1996 | B102: =INDEX('Compile Data'!$L$12:$AI$93,$A102-1921,'Report - ALL (DASHBOARD)'!$W$4) -> 0 | C102: =INDEX('Compile Data'!$AL$12:$BI$93,$A102-1921,'Report - ALL (DASHBOARD)'!$W$4) -> 223.7971232 | D102: =INDEX('Compile Data'!$BL$12:$CI$93,$A102-1921,'Report - ALL (DASHBOARD)'!$W$4) -> 224.7507352 | E102: =INDEX('Compile Data'!$CL$12:$DI$93,$A102-1921,'Report - ALL (DASHBOARD)'!$W$4) ->  | F102: =INDEX('Compile Data'!$DL$12:$EI$93,$A102-1921,'Report - ALL (DASHBOARD)'!$W$4) ->  | G102: =INDEX('Compile Data'!$EL$12:$FI$93,$A102-1921,'Report - ALL (DASHBOARD)'!$W$4) ->  | O102: 75 | P102: 0.9135802469 | Q102: =INDEX('Compile Data'!$L$123:$AI$204,$O102,'Report - ALL (DASHBOARD)'!$W$4) -> 0 | R102: =INDEX('Compile Data'!$AL$123:$BI$204,$O102,'Report - ALL (DASHBOARD)'!$W$4) -> 0 | S102: =INDEX('Compile Data'!$BL$123:$CI$204,$O102,'Report - ALL (DASHBOARD)'!$W$4) -> 0 | T102: =INDEX('Compile Data'!$CL$123:$DI$204,$O102,'Report - ALL (DASHBOARD)'!$W$4) ->  | U102: =INDEX('Compile Data'!$DL$123:$EI$204,$O102,'Report - ALL (DASHBOARD)'!$W$4) ->  | V102: =INDEX('Compile Data'!$EL$123:$FI$204,$O102,'Report - ALL (DASHBOARD)'!$W$4) -> 
A103: 1997 | B103: =INDEX('Compile Data'!$L$12:$AI$93,$A103-1921,'Report - ALL (DASHBOARD)'!$W$4) -> 0 | C103: =INDEX('Compile Data'!$AL$12:$BI$93,$A103-1921,'Report - ALL (DASHBOARD)'!$W$4) -> 221.2051307 | D103: =INDEX('Compile Data'!$BL$12:$CI$93,$A103-1921,'Report - ALL (DASHBOARD)'!$W$4) -> 222.9069109 | E103: =INDEX('Compile Data'!$CL$12:$DI$93,$A103-1921,'Report - ALL (DASHBOARD)'!$W$4) ->  | F103: =INDEX('Compile Data'!$DL$12:$EI$93,$A103-1921,'Report - ALL (DASHBOARD)'!$W$4) ->  | G103: =INDEX('Compile Data'!$EL$12:$FI$93,$A103-1921,'Report - ALL (DASHBOARD)'!$W$4) ->  | O103: 76 | P103: 0.9259259259 | Q103: =INDEX('Compile Data'!$L$123:$AI$204,$O103,'Report - ALL (DASHBOARD)'!$W$4) -> 0 | R103: =INDEX('Compile Data'!$AL$123:$BI$204,$O103,'Report - ALL (DASHBOARD)'!$W$4) -> 0 | S103: =INDEX('Compile Data'!$BL$123:$CI$204,$O103,'Report - ALL (DASHBOARD)'!$W$4) -> 0 | T103: =INDEX('Compile Data'!$CL$123:$DI$204,$O103,'Report - ALL (DASHBOARD)'!$W$4) ->  | U103: =INDEX('Compile Data'!$DL$123:$EI$204,$O103,'Report - ALL (DASHBOARD)'!$W$4) ->  | V103: =INDEX('Compile Data'!$EL$123:$FI$204,$O103,'Report - ALL (DASHBOARD)'!$W$4) -> 
A104: 1998 | B104: =INDEX('Compile Data'!$L$12:$AI$93,$A104-1921,'Report - ALL (DASHBOARD)'!$W$4) -> 0 | C104: =INDEX('Compile Data'!$AL$12:$BI$93,$A104-1921,'Report - ALL (DASHBOARD)'!$W$4) -> 227.3811099 | D104: =INDEX('Compile Data'!$BL$12:$CI$93,$A104-1921,'Report - ALL (DASHBOARD)'!$W$4) -> 226.5936764 | E104: =INDEX('Compile Data'!$CL$12:$DI$93,$A104-1921,'Report - ALL (DASHBOARD)'!$W$4) ->  | F104: =INDEX('Compile Data'!$DL$12:$EI$93,$A104-1921,'Report - ALL (DASHBOARD)'!$W$4) ->  | G104: =INDEX('Compile Data'!$EL$12:$FI$93,$A104-1921,'Report - ALL (DASHBOARD)'!$W$4) ->  | O104: 77 | P104: 0.9382716049 | Q104: =INDEX('Compile Data'!$L$123:$AI$204,$O104,'Report - ALL (DASHBOARD)'!$W$4) -> 0 | R104: =INDEX('Compile Data'!$AL$123:$BI$204,$O104,'Report - ALL (DASHBOARD)'!$W$4) -> 0 | S104: =INDEX('Compile Data'!$BL$123:$CI$204,$O104,'Report - ALL (DASHBOARD)'!$W$4) -> 0 | T104: =INDEX('Compile Data'!$CL$123:$DI$204,$O104,'Report - ALL (DASHBOARD)'!$W$4) ->  | U104: =INDEX('Compile Data'!$DL$123:$EI$204,$O104,'Report - ALL (DASHBOARD)'!$W$4) ->  | V104: =INDEX('Compile Data'!$EL$123:$FI$204,$O104,'Report - ALL (DASHBOARD)'!$W$4) -> 
A105: 1999 | B105: =INDEX('Compile Data'!$L$12:$AI$93,$A105-1921,'Report - ALL (DASHBOARD)'!$W$4) -> 0 | C105: =INDEX('Compile Data'!$AL$12:$BI$93,$A105-1921,'Report - ALL (DASHBOARD)'!$W$4) -> 226.893471 | D105: =INDEX('Compile Data'!$BL$12:$CI$93,$A105-1921,'Report - ALL (DASHBOARD)'!$W$4) -> 227.7405415 | E105: =INDEX('Compile Data'!$CL$12:$DI$93,$A105-1921,'Report - ALL (DASHBOARD)'!$W$4) ->  | F105: =INDEX('Compile Data'!$DL$12:$EI$93,$A105-1921,'Report - ALL (DASHBOARD)'!$W$4) ->  | G105: =INDEX('Compile Data'!$EL$12:$FI$93,$A105-1921,'Report - ALL (DASHBOARD)'!$W$4) ->  | O105: 78 | P105: 0.950617284 | Q105: =INDEX('Compile Data'!$L$123:$AI$204,$O105,'Report - ALL (DASHBOARD)'!$W$4) -> 0 | R105: =INDEX('Compile Data'!$AL$123:$BI$204,$O105,'Report - ALL (DASHBOARD)'!$W$4) -> 0 | S105: =INDEX('Compile Data'!$BL$123:$CI$204,$O105,'Report - ALL (DASHBOARD)'!$W$4) -> 0 | T105: =INDEX('Compile Data'!$CL$123:$DI$204,$O105,'Report - ALL (DASHBOARD)'!$W$4) ->  | U105: =INDEX('Compile Data'!$DL$123:$EI$204,$O105,'Report - ALL (DASHBOARD)'!$W$4) ->  | V105: =INDEX('Compile Data'!$EL$123:$FI$204,$O105,'Report - ALL (DASHBOARD)'!$W$4) -> 
A106: 2000 | B106: =INDEX('Compile Data'!$L$12:$AI$93,$A106-1921,'Report - ALL (DASHBOARD)'!$W$4) -> 0 | C106: =INDEX('Compile Data'!$AL$12:$BI$93,$A106-1921,'Report - ALL (DASHBOARD)'!$W$4) -> 133.7718726 | D106: =INDEX('Compile Data'!$BL$12:$CI$93,$A106-1921,'Report - ALL (DASHBOARD)'!$W$4) -> 0 | E106: =INDEX('Compile Data'!$CL$12:$DI$93,$A106-1921,'Report - ALL (DASHBOARD)'!$W$4) ->  | F106: =INDEX('Compile Data'!$DL$12:$EI$93,$A106-1921,'Report - ALL (DASHBOARD)'!$W$4) ->  | G106: =INDEX('Compile Data'!$EL$12:$FI$93,$A106-1921,'Report - ALL (DASHBOARD)'!$W$4) ->  | O106: 79 | P106: 0.962962963 | Q106: =INDEX('Compile Data'!$L$123:$AI$204,$O106,'Report - ALL (DASHBOARD)'!$W$4) -> 0 | R106: =INDEX('Compile Data'!$AL$123:$BI$204,$O106,'Report - ALL (DASHBOARD)'!$W$4) -> 0 | S106: =INDEX('Compile Data'!$BL$123:$CI$204,$O106,'Report - ALL (DASHBOARD)'!$W$4) -> 0 | T106: =INDEX('Compile Data'!$CL$123:$DI$204,$O106,'Report - ALL (DASHBOARD)'!$W$4) ->  | U106: =INDEX('Compile Data'!$DL$123:$EI$204,$O106,'Report - ALL (DASHBOARD)'!$W$4) ->  | V106: =INDEX('Compile Data'!$EL$123:$FI$204,$O106,'Report - ALL (DASHBOARD)'!$W$4) -> 
A107: 2001 | B107: =INDEX('Compile Data'!$L$12:$AI$93,$A107-1921,'Report - ALL (DASHBOARD)'!$W$4) -> 0 | C107: =INDEX('Compile Data'!$AL$12:$BI$93,$A107-1921,'Report - ALL (DASHBOARD)'!$W$4) -> 49.3279225 | D107: =INDEX('Compile Data'!$BL$12:$CI$93,$A107-1921,'Report - ALL (DASHBOARD)'!$W$4) -> 8.00942356 | E107: =INDEX('Compile Data'!$CL$12:$DI$93,$A107-1921,'Report - ALL (DASHBOARD)'!$W$4) ->  | F107: =INDEX('Compile Data'!$DL$12:$EI$93,$A107-1921,'Report - ALL (DASHBOARD)'!$W$4) ->  | G107: =INDEX('Compile Data'!$EL$12:$FI$93,$A107-1921,'Report - ALL (DASHBOARD)'!$W$4) ->  | O107: 80 | P107: 0.975308642 | Q107: =INDEX('Compile Data'!$L$123:$AI$204,$O107,'Report - ALL (DASHBOARD)'!$W$4) -> 0 | R107: =INDEX('Compile Data'!$AL$123:$BI$204,$O107,'Report - ALL (DASHBOARD)'!$W$4) -> 0 | S107: =INDEX('Compile Data'!$BL$123:$CI$204,$O107,'Report - ALL (DASHBOARD)'!$W$4) -> 0 | T107: =INDEX('Compile Data'!$CL$123:$DI$204,$O107,'Report - ALL (DASHBOARD)'!$W$4) ->  | U107: =INDEX('Compile Data'!$DL$123:$EI$204,$O107,'Report - ALL (DASHBOARD)'!$W$4) ->  | V107: =INDEX('Compile Data'!$EL$123:$FI$204,$O107,'Report - ALL (DASHBOARD)'!$W$4) -> 
A108: 2002 | B108: =INDEX('Compile Data'!$L$12:$AI$93,$A108-1921,'Report - ALL (DASHBOARD)'!$W$4) -> 0 | C108: =INDEX('Compile Data'!$AL$12:$BI$93,$A108-1921,'Report - ALL (DASHBOARD)'!$W$4) -> 44.54607331 | D108: =INDEX('Compile Data'!$BL$12:$CI$93,$A108-1921,'Report - ALL (DASHBOARD)'!$W$4) -> 2.108368761e-07 | E108: =INDEX('Compile Data'!$CL$12:$DI$93,$A108-1921,'Report - ALL (DASHBOARD)'!$W$4) ->  | F108: =INDEX('Compile Data'!$DL$12:$EI$93,$A108-1921,'Report - ALL (DASHBOARD)'!$W$4) ->  | G108: =INDEX('Compile Data'!$EL$12:$FI$93,$A108-1921,'Report - ALL (DASHBOARD)'!$W$4) ->  | O108: 81 | P108: 0.987654321 | Q108: =INDEX('Compile Data'!$L$123:$AI$204,$O108,'Report - ALL (DASHBOARD)'!$W$4) -> 0 | R108: =INDEX('Compile Data'!$AL$123:$BI$204,$O108,'Report - ALL (DASHBOARD)'!$W$4) -> 0 | S108: =INDEX('Compile Data'!$BL$123:$CI$204,$O108,'Report - ALL (DASHBOARD)'!$W$4) -> 0 | T108: =INDEX('Compile Data'!$CL$123:$DI$204,$O108,'Report - ALL (DASHBOARD)'!$W$4) ->  | U108: =INDEX('Compile Data'!$DL$123:$EI$204,$O108,'Report - ALL (DASHBOARD)'!$W$4) ->  | V108: =INDEX('Compile Data'!$EL$123:$FI$204,$O108,'Report - ALL (DASHBOARD)'!$W$4) -> 
A109: 2003 | B109: =INDEX('Compile Data'!$L$12:$AI$93,$A109-1921,'Report - ALL (DASHBOARD)'!$W$4) -> 0 | C109: =INDEX('Compile Data'!$AL$12:$BI$93,$A109-1921,'Report - ALL (DASHBOARD)'!$W$4) -> 71.9305311 | D109: =INDEX('Compile Data'!$BL$12:$CI$93,$A109-1921,'Report - ALL (DASHBOARD)'!$W$4) -> 0 | E109: =INDEX('Compile Data'!$CL$12:$DI$93,$A109-1921,'Report - ALL (DASHBOARD)'!$W$4) ->  | F109: =INDEX('Compile Data'!$DL$12:$EI$93,$A109-1921,'Report - ALL (DASHBOARD)'!$W$4) ->  | G109: =INDEX('Compile Data'!$EL$12:$FI$93,$A109-1921,'Report - ALL (DASHBOARD)'!$W$4) ->  | O109: 82 | P109: 1 | Q109: =INDEX('Compile Data'!$L$123:$AI$204,$O109,'Report - ALL (DASHBOARD)'!$W$4) -> 0 | R109: =INDEX('Compile Data'!$AL$123:$BI$204,$O109,'Report - ALL (DASHBOARD)'!$W$4) -> 0 | S109: =INDEX('Compile Data'!$BL$123:$CI$204,$O109,'Report - ALL (DASHBOARD)'!$W$4) -> 0 | T109: =INDEX('Compile Data'!$CL$123:$DI$204,$O109,'Report - ALL (DASHBOARD)'!$W$4) ->  | U109: =INDEX('Compile Data'!$DL$123:$EI$204,$O109,'Report - ALL (DASHBOARD)'!$W$4) ->  | V109: =INDEX('Compile Data'!$EL$123:$FI$204,$O109,'Report - ALL (DASHBOARD)'!$W$4) -> 

Sheet Compile Data
B1: =Control!$B$5 -> NAA_011221 | C1: =Control!$B$6 -> ALT1B_011221 | D1: =Control!$B$7 -> ALT1B_TCCAtoOpFlex | E1: =Control!$B$8 -> 0 | F1: =Control!$B$9 -> 0 | G1: =Control!$B$10 -> 0 | AE1: =$B$8 -> INST-VAL | BE1: =$C$8 -> INST-VAL | CE1: =$D$8 -> INST-VAL | DE1: =$E$8 -> INST-VAL | EE1: =$F$8 -> INST-VAL | FE1: =$G$8 -> INST-VAL
A2: Index: | B2: ='Report - ALL (DASHBOARD)'!W2 -> 173 | C2: =B2 -> 173 | D2: 173 | E2: 173 | F2: 173 | G2: 173
A3: Convert? | B3: =IF('Report - ALL (DASHBOARD)'!W5,1,0) -> 1 | C3: 1 | D3: 1 | E3: 1 | F3: 1 | G3: 1
A4: Column: | B4: =TRIM(VLOOKUP(B$2+2,DSSPathnames!$H$7:$K$180,2)) -> FS | C4: FS | D4: FS | E4: FS | F4: FS | G4: FS
A5: Title: | B5: =TRIM(VLOOKUP(B$2+2,DSSPathnames!$H$7:$K$180,4)) -> Sites TCCA Storage + Sites CVP Op Flex Storage | C5: =TRIM(VLOOKUP(C$2+2,DSSPathnames!$H$7:$K$180,4)) -> Sites TCCA Storage + Sites CVP Op Flex Storage | D5: =TRIM(VLOOKUP(D$2+2,DSSPathnames!$H$7:$K$180,4)) -> Sites TCCA Storage + Sites CVP Op Flex Storage | E5: =TRIM(VLOOKUP(E$2+2,DSSPathnames!$H$7:$K$180,4)) -> Sites TCCA Storage + Sites CVP Op Flex Storage | F5: =TRIM(VLOOKUP(F$2+2,DSSPathnames!$H$7:$K$180,4)) -> Sites TCCA Storage + Sites CVP Op Flex Storage | G5: =TRIM(VLOOKUP(G$2+2,DSSPathnames!$H$7:$K$180,4)) -> Sites TCCA Storage + Sites CVP Op Flex Storage
A6: Parameter: | B6: =INDIRECT(CONCATENATE("'",B$1,"'!",B$4,2)) -> S30_u1+S32 | C6: S30_u1+S32 | D6: S30_u1+S32
B7: =INDIRECT(CONCATENATE("'",B$1,"'!",B$4,3)) -> STORAGE | C7: STORAGE | D7: STORAGE
A8: Type: | B8: =TRIM(VLOOKUP(B$2+2,DSSPathnames!$H$7:$K$180,3)) -> INST-VAL | C8: =TRIM(VLOOKUP(C$2+2,DSSPathnames!$H$7:$K$180,3)) -> INST-VAL | D8: =TRIM(VLOOKUP(D$2+2,DSSPathnames!$H$7:$K$180,3)) -> INST-VAL | E8: =TRIM(VLOOKUP(E$2+2,DSSPathnames!$H$7:$K$180,3)) -> INST-VAL | F8: =TRIM(VLOOKUP(F$2+2,DSSPathnames!$H$7:$K$180,3)) -> INST-VAL | G8: =TRIM(VLOOKUP(G$2+2,DSSPathnames!$H$7:$K$180,3)) -> INST-VAL | K8: =CONCATENATE(TRIM(B$1),": ",TRIM(B$5)," - ",TRIM(B$6)," ",TRIM(B$7)," (",TRIM(B$10),") ",TRIM(B$11)) -> NAA_011221: Sites TCCA Storage + Sites CVP Op Flex Storage - S30_u1+S32 STORAGE (TAF) | AK8: =CONCATENATE(TRIM(C$1),": ",TRIM(C$5)," - ",TRIM(C$6)," ",TRIM(C$7)," (",TRIM(C$10),") ",TRIM(C$11)) -> ALT1B_011221: Sites TCCA Storage + Sites CVP Op Flex Storage - S30_u1+S32 STORAGE (TAF) | BK8: =CONCATENATE(TRIM(D$1),": ",TRIM(D$5)," - ",TRIM(D$6)," ",TRIM(D$7)," (",TRIM(D$10),") ",TRIM(D$11)) -> ALT1B_TCCAtoOpFlex: Sites TCCA Storage + Sites CVP Op Flex Storage - S30_u1+S32 STORAGE (TAF) | CK8: =CONCATENATE(TRIM(E$1),": ",TRIM(E$5)," - ",TRIM(E$6)," ",TRIM(E$7)," (",TRIM(E$10),") ",TRIM(E$11)) ->  | DK8: =CONCATENATE(TRIM(F$1),": ",TRIM(F$5)," - ",TRIM(F$6)," ",TRIM(F$7)," (",TRIM(F$10),") ",TRIM(F$11)) ->  | EK8: =CONCATENATE(TRIM(G$1),": ",TRIM(G$5)," - ",TRIM(G$6)," ",TRIM(G$7)," (",TRIM(G$10),") ",TRIM(G$11)) -> 
A9: Units-native: | B9: =TRIM(INDIRECT(CONCATENATE("'",B$1,"'!",B$4,11))) -> TAF | C9: TAF | D9: TAF
A10: Units-shown: | B10: =IF(AND(B$3>0,B$9="CFS"),"TAF",B$9) -> TAF | C10: TAF | D10: TAF | Y10: Jan-Dec | Z10: Mar-Feb | AA10: Oct-Sep | AC10: Nov-Mar | AD10: Aug-Oct | AE10: Oct-Jan | AF10: Dec-Feb | AG10: Mar-Jun | AH10: Jun-Sep | AI10: Sep-Nov | AY10: Jan-Dec | AZ10: Mar-Feb | BA10: Oct-Sep | BC10: Nov-Mar | BD10: Aug-Oct | BE10: Oct-Jan | BF10: Dec-Feb | BG10: Mar-Jun | BH10: Jun-Sep | BI10: Sep-Nov | BY10: Jan-Dec | BZ10: Mar-Feb | CA10: Oct-Sep | CC10: Nov-Mar | CD10: Aug-Oct | CE10: Oct-Jan | CF10: Dec-Feb | CG10: Mar-Jun | CH10: Jun-Sep | CI10: Sep-Nov | CY10: Jan-Dec | CZ10: Mar-Feb | DA10: Oct-Sep | DC10: Nov-Mar | DD10: Aug-Oct | DE10: Oct-Jan | DF10: Dec-Feb | DG10: Mar-Jun | DH10: Jun-Sep | DI10: Sep-Nov | DY10: Jan-Dec | DZ10: Mar-Feb | EA10: Oct-Sep | EC10: Nov-Mar | ED10: Aug-Oct | EE10: Oct-Jan | EF10: Dec-Feb | EG10: Mar-Jun | EH10: Jun-Sep | EI10: Sep-Nov | EY10: Jan-Dec | EZ10: Mar-Feb | FA10: Oct-Sep | FC10: Nov-Mar | FD10: Aug-Oct | FE10: Oct-Jan | FF10: Dec-Feb | FG10: Mar-Jun | FH10: Jun-Sep | FI10: Sep-Nov
A11: Date | B11: =IF(ISNUMBER(FIND("PRV",B$6)),"SHIFTED","") ->  | C11: =IF(ISNUMBER(FIND("PRV",C$6)),"SHIFTED","") ->  | D11: =IF(ISNUMBER(FIND("PRV",D$6)),"SHIFTED","") ->  | E11: =IF(ISNUMBER(FIND("PRV",E$6)),"SHIFTED","") ->  | F11: =IF(ISNUMBER(FIND("PRV",F$6)),"SHIFTED","") ->  | K11: YEAR | L11: OCT | M11: NOV | N11: DEC | O11: JAN | P11: FEB | Q11: MAR | R11: APR | S11: MAY | T11: JUN | U11: JUL | V11: AUG | W11: SEP | Y11: =IF(AND($B$10="TAF",$B$8="PER-AVER"),"TOT","AVG") -> AVG | Z11: =IF(AND($B$10="TAF",$B$8="PER-AVER"),"TOT","AVG") -> AVG | AA11: =IF(AND($B$10="TAF",$B$8="PER-AVER"),"TOT","AVG") -> AVG | AC11: =IF(AND($B$10="TAF",$B$8="PER-AVER"),"TOT","AVG") -> AVG | AD11: AVG | AE11: AVG | AF11: AVG | AG11: AVG | AH11: AVG | AI11: AVG | AK11: YEAR | AL11: OCT | AM11: NOV | AN11: DEC | AO11: JAN | AP11: FEB | AQ11: MAR | AR11: APR | AS11: MAY | AT11: JUN | AU11: JUL | AV11: AUG | AW11: SEP | AY11: =IF(AND($C$10="TAF",$C$8="PER-AVER"),"TOT","AVG") -> AVG | AZ11: =IF(AND($C$10="TAF",$C$8="PER-AVER"),"TOT","AVG") -> AVG | BA11: =IF(AND($C$10="TAF",$C$8="PER-AVER"),"TOT","AVG") -> AVG | BC11: =IF(AND($B$10="TAF",$B$8="PER-AVER"),"TOT","AVG") -> AVG | BD11: =IF(AND($B$10="TAF",$B$8="PER-AVER"),"TOT","AVG") -> AVG | BE11: =IF(AND($C$10="TAF",$C$8="PER-AVER"),"TOT","AVG") -> AVG | BF11: =IF(AND($C$10="TAF",$C$8="PER-AVER"),"TOT","AVG") -> AVG | BG11: =IF(AND($C$10="TAF",$C$8="PER-AVER"),"TOT","AVG") -> AVG | BH11: =IF(AND($C$10="TAF",$C$8="PER-AVER"),"TOT","AVG") -> AVG | BI11: =IF(AND($C$10="TAF",$C$8="PER-AVER"),"TOT","AVG") -> AVG | BK11: YEAR | BL11: OCT | BM11: NOV | BN11: DEC | BO11: JAN | BP11: FEB | BQ11: MAR | BR11: APR | BS11: MAY | BT11: JUN | BU11: JUL | BV11: AUG | BW11: SEP | BY11: =IF(AND($D$10="TAF",$D$8="PER-AVER"),"TOT","AVG") -> AVG | BZ11: =IF(AND($D$10="TAF",$D$8="PER-AVER"),"TOT","AVG") -> AVG | CA11: =IF(AND($D$10="TAF",$D$8="PER-AVER"),"TOT","AVG") -> AVG | CC11: =IF(AND($B$10="TAF",$B$8="PER-AVER"),"TOT","AVG") -> AVG | CD11: =IF(AND($B$10="TAF",$B$8="PER-AVER"),"TOT","AVG") -> AVG | CE11: =IF(AND($D$10="TAF",$D$8="PER-AVER"),"TOT","AVG") -> AVG | CF11: =IF(AND($D$10="TAF",$D$8="PER-AVER"),"TOT","AVG") -> AVG | CG11: =IF(AND($D$10="TAF",$D$8="PER-AVER"),"TOT","AVG") -> AVG | CH11: =IF(AND($D$10="TAF",$D$8="PER-AVER"),"TOT","AVG") -> AVG | CI11: =IF(AND($D$10="TAF",$D$8="PER-AVER"),"TOT","AVG") -> AVG | CK11: YEAR | CL11: OCT | CM11: NOV | CN11: DEC | CO11: JAN | CP11: FEB | CQ11: MAR | CR11: APR | CS11: MAY | CT11: JUN | CU11: JUL | CV11: AUG | CW11: SEP | CY11: =IF(AND($E$10="TAF",$E$8="PER-AVER"),"TOT","AVG") ->  | CZ11: =IF(AND($E$10="TAF",$E$8="PER-AVER"),"TOT","AVG") ->  | DA11: =IF(AND($E$10="TAF",$E$8="PER-AVER"),"TOT","AVG") ->  | DC11: =IF(AND($B$10="TAF",$B$8="PER-AVER"),"TOT","AVG") -> AVG | DD11: =IF(AND($B$10="TAF",$B$8="PER-AVER"),"TOT","AVG") -> AVG | DE11: =IF(AND($E$10="TAF",$E$8="PER-AVER"),"TOT","AVG") ->  | DF11: =IF(AND($E$10="TAF",$E$8="PER-AVER"),"TOT","AVG") ->  | DG11: =IF(AND($E$10="TAF",$E$8="PER-AVER"),"TOT","AVG") ->  | DH11: =IF(AND($E$10="TAF",$E$8="PER-AVER"),"TOT","AVG") ->  | DI11: =IF(AND($E$10="TAF",$E$8="PER-AVER"),"TOT","AVG") ->  | DK11: YEAR | DL11: OCT | DM11: NOV | DN11: DEC | DO11: JAN | DP11: FEB | DQ11: MAR | DR11: APR | DS11: MAY | DT11: JUN | DU11: JUL | DV11: AUG | DW11: SEP | DY11: =IF(AND($F$10="TAF",$F$8="PER-AVER"),"TOT","AVG") ->  | DZ11: =IF(AND($F$10="TAF",$F$8="PER-AVER"),"TOT","AVG") ->  | EA11: =IF(AND($F$10="TAF",$F$8="PER-AVER"),"TOT","AVG") ->  | EC11: =IF(AND($B$10="TAF",$B$8="PER-AVER"),"TOT","AVG") -> AVG | ED11: =IF(AND($B$10="TAF",$B$8="PER-AVER"),"TOT","AVG") -> AVG | EE11: =IF(AND($F$10="TAF",$F$8="PER-AVER"),"TOT","AVG") ->  | EF11: =IF(AND($F$10="TAF",$F$8="PER-AVER"),"TOT","AVG") ->  | EG11: =IF(AND($F$10="TAF",$F$8="PER-AVER"),"TOT","AVG") ->  | EH11: =IF(AND($F$10="TAF",$F$8="PER-AVER"),"TOT","AVG") ->  | EI11: =IF(AND($F$10="TAF",$F$8="PER-AVER"),"TOT","AVG") ->  | EK11: YEAR | EL11: OCT | EM11: NOV | EN11: DEC | EO11: JAN | EP11: FEB | EQ11: MAR | ER11: APR | ES11: MAY | ET11: JUN | EU11: JUL | EV11: AUG | EW11: SEP | EY11: =IF(AND($F$10="TAF",$F$8="PER-AVER"),"TOT","AVG") ->  | EZ11: =IF(AND($F$10="TAF",$F$8="PER-AVER"),"TOT","AVG") ->  | FA11: =IF(AND($F$10="TAF",$F$8="PER-AVER"),"TOT","AVG") ->  | FC11: =IF(AND($B$10="TAF",$B$8="PER-AVER"),"TOT","AVG") -> AVG | FD11: =IF(AND($B$10="TAF",$B$8="PER-AVER"),"TOT","AVG") -> AVG | FE11: =IF(AND($F$10="TAF",$F$8="PER-AVER"),"TOT","AVG") ->  | FF11: =IF(AND($F$10="TAF",$F$8="PER-AVER"),"TOT","AVG") ->  | FG11: =IF(AND($F$10="TAF",$F$8="PER-AVER"),"TOT","AVG") ->  | FH11: =IF(AND($F$10="TAF",$F$8="PER-AVER"),"TOT","AVG") ->  | FI11: =IF(AND($F$10="TAF",$F$8="PER-AVER"),"TOT","AVG") -> 
A12: 1921-09-30 | K12: 1922 | L12: =B13 -> 0 | M12: =B14 -> 0 | N12: =B15 -> 0 | O12: =B16 -> 0 | P12: =B17 -> 0 | Q12: =B18 -> 0 | R12: =B19 -> 0 | S12: =B20 -> 0 | T12: =B21 -> 0 | U12: =B22 -> 0 | V12: =B23 -> 0 | W12: =B24 -> 0 | Y12: =IF(Y$11="AVG",AVERAGE(O12:W12,L13:N13),SUM(O12:W12,L13:N13)) -> 0 | Z12: =IF(Z$11="AVG",AVERAGE(Q12:W12,L13:P13),SUM(Q12:W12,L13:P13)) -> 0 | AA12: =IF(AA$11="AVG",AVERAGE(L12:W12),SUM(L12:W12)) -> 0 | AC12: =IF(AC$11="AVG",IF(AE$1="INST-VAL",AVERAGE(L12:P12,M12:Q12),AVERAGE(M12:Q12)),SUM(M12:Q12)) -> 0 | AD12: =IF(AD$11="AVG",IF(AE$1="INST-VAL",AVERAGE(U12:W12,V12:W12,L13),AVERAGE(V12:W12,L13)),SUM(V12:W12,L13)) -> 0 | AE12: =IF(AE$11="AVG",IF(AE$1="INST-VAL",AVERAGE(W11,L12:N12,L12:O12),AVERAGE(L12:O12)),SUM(L12:O12)) -> 0 | AF12: =IF(AF$11="AVG",IF(AE$1="INST-VAL",AVERAGE(M12:O12,N12:P12),AVERAGE(N12:P12)),SUM(N12:P12)) -> 0 | AG12: =IF(AG$11="AVG",IF(AE$1="INST-VAL",AVERAGE(P12:S12,Q12:T12),AVERAGE(Q12:T12)),SUM(Q12:T12)) -> 0 | AH12: =IF(AH$11="AVG",IF(AE$1="INST-VAL",AVERAGE(S12:V12,T12:W12),AVERAGE(T12:W12)),SUM(T12:W12)) -> 0 | AI12: =IF(AI$11="AVG",IF(AE$1="INST-VAL",AVERAGE(V12:W12,L13,W12,L13:M13),AVERAGE(W12,L13:M13)),SUM(W12,L13:M13)) -> 0 | AK12: 1922 | AL12: =C13 -> 131.592467 | AM12: =C14 -> 113.1934456 | AN12: =C15 -> 129.2701754 | AO12: =C16 -> 129.333203 | AP12: =C17 -> 135.011032 | AQ12: =C18 -> 150.9611909 | AR12: =C19 -> 150.4714384 | AS12: =C20 -> 136.5491801 | AT12: =C21 -> 136.0646905 | AU12: =C22 -> 94.70267237 | AV12: =C23 -> 93.92742917 | AW12: =C24 -> 93.27820333 | AY12: =IF(AY$11="AVG",AVERAGE(AO12:AW12,AL13:AN13),SUM(AO12:AW12,AL13:AN13)) -> 117.2839555 | AZ12: =IF(AZ$11="AVG",AVERAGE(AQ12:AW12,AL13:AP13),SUM(AQ12:AW12,AL13:AP13)) -> 111.9084869 | BA12: =IF(BA$11="AVG",AVERAGE(AL12:AW12),SUM(AL12:AW12)) -> 124.529594 | BC12: =IF(BC$11="AVG",IF(BE$1="INST-VAL",AVERAGE(AL12:AP12,AM12:AQ12),AVERAGE(AM12:AQ12)),SUM(AM12:AQ12)) -> 129.616937 | BD12: =IF(BD$11="AVG",IF(BE$1="INST-VAL",AVERAGE(AU12:AW12,AV12:AW12,AL13),AVERAGE(AV12:AW12,AL13)),SUM(AV12:AW12,AL13)) -> 93.7116292 | BE12: =IF(BE$11="AVG",IF(BE$1="INST-VAL",AVERAGE(AW11,AL12:AN12,AL12:AO12),AVERAGE(AL12:AO12)),SUM(AL12:AO12)) -> 125.3493399 | BF12: =IF(BF$11="AVG",IF(BE$1="INST-VAL",AVERAGE(AM12:AO12,AN12:AP12),AVERAGE(AN12:AP12)),SUM(AN12:AP12)) -> 127.5685391 | BG12: =IF(BG$11="AVG",IF(BE$1="INST-VAL",AVERAGE(AP12:AS12,AQ12:AT12),AVERAGE(AQ12:AT12)),SUM(AQ12:AT12)) -> 143.3799177 | BH12: =IF(BH$11="AVG",IF(BE$1="INST-VAL",AVERAGE(AS12:AV12,AT12:AW12),AVERAGE(AT12:AW12)),SUM(AT12:AW12)) -> 109.9021209 | BI12: =IF(BI$11="AVG",IF(BE$1="INST-VAL",AVERAGE(AV12:AW12,AL13,AW12,AL13:AM13),AVERAGE(AW12,AL13:AM13)),SUM(AW12,AL13:AM13)) -> 93.9218979 | BK12: 1922 | BL12: =D13 -> 131.6456537 | BM12: =D14 -> 113.2519675 | BN12: =D15 -> 145.8682766 | BO12: =D16 -> 145.9316257 | BP12: =D17 -> 157.1218202 | BQ12: =D18 -> 189.713465 | BR12: =D19 -> 189.1564991 | BS12: =D20 -> 198.357054 | BT12: =D21 -> 197.5447115 | BU12: =D22 -> 99.99345875 | BV12: =D23 -> 62.21574116 | BW12: =D24 -> 35.86764384 | BY12: =IF(BY$11="AVG",AVERAGE(BO12:BW12,BL13:BN13),SUM(BO12:BW12,BL13:BN13)) -> 108.063728 | BZ12: =IF(BZ$11="AVG",AVERAGE(BQ12:BW12,BL13:BP13),SUM(BQ12:BW12,BL13:BP13)) -> 84.15985189 | CA12: =IF(CA$11="AVG",AVERAGE(BL12:BW12),SUM(BL12:BW12)) -> 138.8889931 | CC12: =IF(CC$11="AVG",IF(CE$1="INST-VAL",AVERAGE(BL12:BP12,BM12:BQ12),AVERAGE(BM12:BQ12)),SUM(BM12:BQ12)) -> 144.5706499 | CD12: =IF(CD$11="AVG",IF(CE$1="INST-VAL",AVERAGE(BU12:BW12,BV12:BW12,BL13),AVERAGE(BV12:BW12,BL13)),SUM(BV12:BW12,BL13)) -> 49.36003812 | CE12: =IF(CE$11="AVG",IF(CE$1="INST-VAL",AVERAGE(BW11,BL12:BN12,BL12:BO12),AVERAGE(BL12:BO12)),SUM(BL12:BO12)) -> 132.4947745 | CF12: =IF(CF$11="AVG",IF(CE$1="INST-VAL",AVERAGE(BM12:BO12,BN12:BP12),AVERAGE(BN12:BP12)),SUM(BN12:BP12)) -> 142.328932 | CG12: =IF(CG$11="AVG",IF(CE$1="INST-VAL",AVERAGE(BP12:BS12,BQ12:BT12),AVERAGE(BQ12:BT12)),SUM(BQ12:BT12)) -> 188.640071 | CH12: =IF(CH$11="AVG",IF(CE$1="INST-VAL",AVERAGE(BS12:BV12,BT12:BW12),AVERAGE(BT12:BW12)),SUM(BT12:BW12)) -> 119.2165651 | CI12: =IF(CI$11="AVG",IF(CE$1="INST-VAL",AVERAGE(BV12:BW12,BL13,BW12,BL13:BM13),AVERAGE(BW12,BL13:BM13)),SUM(BW12,BL13:BM13)) -> 24.05971812 | CK12: 1922 | CL12: =E13 ->  | CM12: =E14 ->  | CN12: =E15 ->  | CO12: =E16 ->  | CP12: =E17 ->  | CQ12: =E18 ->  | CR12: =E19 ->  | CS12: =E20 ->  | CT12: =E21 ->  | CU12: =E22 ->  | CV12: =E23 ->  | CW12: =E24 ->  | CY12: =IF(CY$11="AVG",AVERAGE(CO12:CW12,CL13:CN13),SUM(CO12:CW12,CL13:CN13)) ->  | CZ12: =IF(CZ$11="AVG",AVERAGE(CQ12:CW12,CL13:CP13),SUM(CQ12:CW12,CL13:CP13)) ->  | DA12: =IF(DA$11="AVG",AVERAGE(CL12:CW12),SUM(CL12:CW12)) ->  | DC12: =IF(DC$11="AVG",IF(DE$1="INST-VAL",AVERAGE(CL12:CP12,CM12:CQ12),AVERAGE(CM12:CQ12)),SUM(CM12:CQ12)) ->  | DD12: =IF(DD$11="AVG",IF(DE$1="INST-VAL",AVERAGE(CU12:CW12,CV12:CW12,CL13),AVERAGE(CV12:CW12,CL13)),SUM(CV12:CW12,CL13)) ->  | DE12: =IF(DE$11="AVG",IF(DE$1="INST-VAL",AVERAGE(CW11,CL12:CN12,CL12:CO12),AVERAGE(CL12:CO12)),SUM(CL12:CO12)) ->  | DF12: =IF(DF$11="AVG",IF(DE$1="INST-VAL",AVERAGE(CM12:CO12,CN12:CP12),AVERAGE(CN12:CP12)),SUM(CN12:CP12)) ->  | DG12: =IF(DG$11="AVG",IF(DE$1="INST-VAL",AVERAGE(CP12:CS12,CQ12:CT12),AVERAGE(CQ12:CT12)),SUM(CQ12:CT12)) ->  | DH12: =IF(DH$11="AVG",IF(DE$1="INST-VAL",AVERAGE(CS12:CV12,CT12:CW12),AVERAGE(CT12:CW12)),SUM(CT12:CW12)) ->  | DI12: =IF(DI$11="AVG",IF(DE$1="INST-VAL",AVERAGE(CV12:CW12,CL13,CW12,CL13:CM13),AVERAGE(CW12,CL13:CM13)),SUM(CW12,CL13:CM13)) ->  | DK12: 1922 | DL12: =F13 ->  | DM12: =F14 ->  | DN12: =F15 ->  | DO12: =F16 ->  | DP12: =F17 ->  | DQ12: =F18 ->  | DR12: =F19 ->  | DS12: =F20 ->  | DT12: =F21 ->  | DU12: =F22 ->  | DV12: =F23 ->  | DW12: =F24 ->  | DY12: =IF(DY$11="AVG",AVERAGE(DO12:DW12,DL13:DN13),SUM(DO12:DW12,DL13:DN13)) ->  | DZ12: =IF(DZ$11="AVG",AVERAGE(DQ12:DW12,DL13:DP13),SUM(DQ12:DW12,DL13:DP13)) ->  | EA12: =IF(EA$11="AVG",AVERAGE(DL12:DW12),SUM(DL12:DW12)) ->  | EC12: =IF(EC$11="AVG",IF(EE$1="INST-VAL",AVERAGE(DL12:DP12,DM12:DQ12),AVERAGE(DM12:DQ12)),SUM(DM12:DQ12)) ->  | ED12: =IF(ED$11="AVG",IF(EE$1="INST-VAL",AVERAGE(DU12:DW12,DV12:DW12,DL13),AVERAGE(DV12:DW12,DL13)),SUM(DV12:DW12,DL13)) ->  | EE12: =IF(EE$11="AVG",IF(EE$1="INST-VAL",AVERAGE(DW11,DL12:DN12,DL12:DO12),AVERAGE(DL12:DO12)),SUM(DL12:DO12)) ->  | EF12: =IF(EF$11="AVG",IF(EE$1="INST-VAL",AVERAGE(DM12:DO12,DN12:DP12),AVERAGE(DN12:DP12)),SUM(DN12:DP12)) ->  | EG12: =IF(EG$11="AVG",IF(EE$1="INST-VAL",AVERAGE(DP12:DS12,DQ12:DT12),AVERAGE(DQ12:DT12)),SUM(DQ12:DT12)) ->  | EH12: =IF(EH$11="AVG",IF(EE$1="INST-VAL",AVERAGE(DS12:DV12,DT12:DW12),AVERAGE(DT12:DW12)),SUM(DT12:DW12)) ->  | EI12: =IF(EI$11="AVG",IF(EE$1="INST-VAL",AVERAGE(DV12:DW12,DL13,DW12,DL13:DM13),AVERAGE(DW12,DL13:DM13)),SUM(DW12,DL13:DM13)) ->  | EK12: 1922 | EL12: =G13 ->  | EM12: =G14 ->  | EN12: =G15 ->  | EO12: =G16 ->  | EP12: =G17 ->  | EQ12: =G18 ->  | ER12: =G19 ->  | ES12: =G20 ->  | ET12: =G21 ->  | EU12: =G22 ->  | EV12: =G23 ->  | EW12: =G24 ->  | EY12: =IF(EY$11="AVG",AVERAGE(EO12:EW12,EL13:EN13),SUM(EO12:EW12,EL13:EN13)) ->  | EZ12: =IF(EZ$11="AVG",AVERAGE(EQ12:EW12,EL13:EP13),SUM(EQ12:EW12,EL13:EP13)) ->  | FA12: =IF(FA$11="AVG",AVERAGE(EL12:EW12),SUM(EL12:EW12)) ->  | FC12: =IF(FC$11="AVG",IF(FE$1="INST-VAL",AVERAGE(EL12:EP12,EM12:EQ12),AVERAGE(EM12:EQ12)),SUM(EM12:EQ12)) ->  | FD12: =IF(FD$11="AVG",IF(FE$1="INST-VAL",AVERAGE(EU12:EW12,EV12:EW12,EL13),AVERAGE(EV12:EW12,EL13)),SUM(EV12:EW12,EL13)) ->  | FE12: =IF(FE$11="AVG",IF(FE$1="INST-VAL",AVERAGE(EW11,EL12:EN12,EL12:EO12),AVERAGE(EL12:EO12)),SUM(EL12:EO12)) ->  | FF12: =IF(FF$11="AVG",IF(FE$1="INST-VAL",AVERAGE(EM12:EO12,EN12:EP12),AVERAGE(EN12:EP12)),SUM(EN12:EP12)) ->  | FG12: =IF(FG$11="AVG",IF(FE$1="INST-VAL",AVERAGE(EP12:ES12,EQ12:ET12),AVERAGE(EQ12:ET12)),SUM(EQ12:ET12)) ->  | FH12: =IF(FH$11="AVG",IF(FE$1="INST-VAL",AVERAGE(ES12:EV12,ET12:EW12),AVERAGE(ET12:EW12)),SUM(ET12:EW12)) ->  | FI12: =IF(FI$11="AVG",IF(FE$1="INST-VAL",AVERAGE(EV12:EW12,EL13,EW12,EL13:EM13),AVERAGE(EW12,EL13:EM13)),SUM(EW12,EL13:EM13)) -> 
A13: 1921-10-31 | B13: =INDIRECT(CONCATENATE("'",B$1,"'!",B$4,(YEAR($A13)-1921)*12+MONTH($A13)+3+IF(ISNUMBER(FIND("PRV",B$6)),1,0)))*IF(AND(B$3>0,TRIM(B$9)="CFS"),Conversions!$C13,1) -> 0 | C13: =INDIRECT(CONCATENATE("'",C$1,"'!",C$4,(YEAR($A13)-1921)*12+MONTH($A13)+3+IF(ISNUMBER(FIND("PRV",C$6)),1,0)))*IF(AND(C$3>0,TRIM(C$9)="CFS"),Conversions!$C13,1) -> 131.592467 | D13: =INDIRECT(CONCATENATE("'",D$1,"'!",D$4,(YEAR($A13)-1921)*12+MONTH($A13)+3+IF(ISNUMBER(FIND("PRV",D$6)),1,0)))*IF(AND(D$3>0,TRIM(D$9)="CFS"),Conversions!$C13,1) -> 131.6456537 | E13: =INDIRECT(CONCATENATE("'",E$1,"'!",E$4,(YEAR($A13)-1921)*12+MONTH($A13)+3+IF(ISNUMBER(FIND("PRV",E$6)),1,0)))*IF(AND(E$3>0,TRIM(E$9)="CFS"),Conversions!$C13,1) ->  | F13: =INDIRECT(CONCATENATE("'",F$1,"'!",F$4,(YEAR($A13)-1921)*12+MONTH($A13)+3+IF(ISNUMBER(FIND("PRV",F$6)),1,0)))*IF(AND(F$3>0,TRIM(F$9)="CFS"),Conversions!$C13,1) ->  | G13: =INDIRECT(CONCATENATE("'",G$1,"'!",G$4,(YEAR($A13)-1921)*12+MONTH($A13)+3+IF(ISNUMBER(FIND("PRV",G$6)),1,0)))*IF(AND(G$3>0,TRIM(G$9)="CFS"),Conversions!$C13,1) ->  | K13: 1923 | L13: =B25 -> 0 | M13: =B26 -> 0 | N13: =B27 -> 0 | O13: =B28 -> 0 | P13: =B29 -> 0 | Q13: =B30 -> 0 | R13: =B31 -> 0 | S13: =B32 -> 0 | T13: =B33 -> 0 | U13: =B34 -> 0 | V13: =B35 -> 0 | W13: =B36 -> 0 | Y13: 0 | Z13: 0 | AA13: 0 | AC13: =IF(AC$11="AVG",IF(AE$1="INST-VAL",AVERAGE(L13:P13,M13:Q13),AVERAGE(M13:Q13)),SUM(M13:Q13)) -> 0 | AD13: =IF(AD$11="AVG",IF(AE$1="INST-VAL",AVERAGE(U13:W13,V13:W13,L14),AVERAGE(V13:W13,L14)),SUM(V13:W13,L14)) -> 0 | AE13: =IF(AE$11="AVG",IF(AE$1="INST-VAL",AVERAGE(W12,L13:N13,L13:O13),AVERAGE(L13:O13)),SUM(L13:O13)) -> 0 | AF13: 0 | AG13: 0 | AH13: 0 | AI13: 0 | AK13: 1923 | AL13: =C25 -> 93.15583781 | AM13: =C26 -> 96.73587593 | AN13: =C27 -> 97.21671201 | AO13: =C28 -> 103.0729266 | AP13: =C29 -> 96.76568508 | AQ13: =C30 -> 96.24573723 | AR13: =C31 -> 93.76813634 | AS13: =C32 -> 48.46463838 | AT13: =C33 -> 48.71898216 | AU13: =C34 -> 47.14319164 | AV13: =C35 -> 46.73558329 | AW13: =C36 -> 46.48675412 | AY13: 64.67685097 | AZ13: 55.97439952 | BA13: 76.20917172 | BC13: =IF(BC$11="AVG",IF(BE$1="INST-VAL",AVERAGE(AL13:AP13,AM13:AQ13),AVERAGE(AM13:AQ13)),SUM(AM13:AQ13)) -> 97.69839743 | BD13: =IF(BD$11="AVG",IF(BE$1="INST-VAL",AVERAGE(AU13:AW13,AV13:AW13,AL14),AVERAGE(AV13:AW13,AL14)),SUM(AV13:AW13,AL14)) -> 47.57201294 | BE13: 96.32099768 | BF13: 99.01347305 | BG13: 77.80521139 | BH13: 47.51836334 | BI13: 49.00232426 | BK13: 1923 | BL13: =D25 -> 0 | BM13: =D26 -> 10.40727991 | BN13: =D27 -> 10.45543728 | BO13: =D28 -> 16.20693216 | BP13: =D29 -> 0 | BQ13: =D30 -> 0.26 | BR13: =D31 -> 0.3397087944 | BS13: =D32 -> 0.5978036814 | BT13: =D33 -> 1.124629651 | BU13: =D34 -> 8.709853958e-05 | BV13: =D35 -> 0 | BW13: =D36 -> 0 | BY13: 2.36615148 | BZ13: 1.015696939 | CA13: 3.282656548 | CC13: =IF(CC$11="AVG",IF(CE$1="INST-VAL",AVERAGE(BL13:BP13,BM13:BQ13),AVERAGE(BM13:BQ13)),SUM(BM13:BQ13)) -> 7.43992987 | CD13: =IF(CD$11="AVG",IF(CE$1="INST-VAL",AVERAGE(BU13:BW13,BV13:BW13,BL14),AVERAGE(BV13:BW13,BL14)),SUM(BV13:BW13,BL14)) -> 0.9176670563 | CE13: 11.7250013 | CF13: 10.62200313 | CG13: 0.4399568253 | CH13: 0.3559046475 | CI13: 2.561726616 | CK13: 1923 | CL13: =E25 ->  | CM13: =E26 ->  | CN13: =E27 ->  | CO13: =E28 ->  | CP13: =E29 ->  | CQ13: =E30 ->  | CR13: =E31 ->  | CS13: =E32 ->  | CT13: =E33 ->  | CU13: =E34 ->  | CV13: =E35 ->  | CW13: =E36 ->  | DK13: 1923 | DL13: =F25 ->  | DM13: =F26 ->  | DN13: =F27 ->  | DO13: =F28 ->  | DP13: =F29 ->  | DQ13: =F30 ->  | DR13: =F31 ->  | DS13: =F32 ->  | DT13: =F33 ->  | DU13: =F34 ->  | DV13: =F35 ->  | DW13: =F36 ->  | EK13: 1923 | EL13: =G25 ->  | EM13: =G26 ->  | EN13: =G27 ->  | EO13: =G28 ->  | EP13: =G29 ->  | EQ13: =G30 ->  | ER13: =G31 ->  | ES13: =G32 ->  | ET13: =G33 ->  | EU13: =G34 ->  | EV13: =G35 ->  | EW13: =G36 -> 
A14: 1921-11-30 | B14: =INDIRECT(CONCATENATE("'",B$1,"'!",B$4,(YEAR($A14)-1921)*12+MONTH($A14)+3+IF(ISNUMBER(FIND("PRV",B$6)),1,0)))*IF(AND(B$3>0,TRIM(B$9)="CFS"),Conversions!$C14,1) -> 0 | C14: =INDIRECT(CONCATENATE("'",C$1,"'!",C$4,(YEAR($A14)-1921)*12+MONTH($A14)+3+IF(ISNUMBER(FIND("PRV",C$6)),1,0)))*IF(AND(C$3>0,TRIM(C$9)="CFS"),Conversions!$C14,1) -> 113.1934456 | D14: =INDIRECT(CONCATENATE("'",D$1,"'!",D$4,(YEAR($A14)-1921)*12+MONTH($A14)+3+IF(ISNUMBER(FIND("PRV",D$6)),1,0)))*IF(AND(D$3>0,TRIM(D$9)="CFS"),Conversions!$C14,1) -> 113.2519675 | E14: =INDIRECT(CONCATENATE("'",E$1,"'!",E$4,(YEAR($A14)-1921)*12+MONTH($A14)+3+IF(ISNUMBER(FIND("PRV",E$6)),1,0)))*IF(AND(E$3>0,TRIM(E$9)="CFS"),Conversions!$C14,1) ->  | F14: =INDIRECT(CONCATENATE("'",F$1,"'!",F$4,(YEAR($A14)-1921)*12+MONTH($A14)+3+IF(ISNUMBER(FIND("PRV",F$6)),1,0)))*IF(AND(F$3>0,TRIM(F$9)="CFS"),Conversions!$C14,1) ->  | G14: =INDIRECT(CONCATENATE("'",G$1,"'!",G$4,(YEAR($A14)-1921)*12+MONTH($A14)+3+IF(ISNUMBER(FIND("PRV",G$6)),1,0)))*IF(AND(G$3>0,TRIM(G$9)="CFS"),Conversions!$C14,1) ->  | K14: 1924 | L14: =B37 -> 0 | M14: =B38 -> 0 | N14: =B39 -> 0 | O14: =B40 -> 0 | P14: =B41 -> 0 | Q14: =B42 -> 0 | R14: =B43 -> 0 | S14: =B44 -> 0 | T14: =B45 -> 0 | U14: =B46 -> 0 | V14: =B47 -> 0 | W14: =B48 -> 0 | Y14: 0 | Z14: 0 | AA14: 0 | AC14: =IF(AC$11="AVG",IF(AE$1="INST-VAL",AVERAGE(L14:P14,M14:Q14),AVERAGE(M14:Q14)),SUM(M14:Q14)) -> 0 | AD14: =IF(AD$11="AVG",IF(AE$1="INST-VAL",AVERAGE(U14:W14,V14:W14,L15),AVERAGE(V14:W14,L15)),SUM(V14:W14,L15)) -> 0 | AE14: =IF(AE$11="AVG",IF(AE$1="INST-VAL",AVERAGE(W13,L14:N14,L14:O14),AVERAGE(L14:O14)),SUM(L14:O14)) -> 0 | AF14: 0 | AG14: 0 | AH14: 0 | AI14: 0 | AK14: 1924 | AL14: =C37 -> 51.8442112 | AM14: =C38 -> 50.61643162 | AN14: =C39 -> 46.25993392 | AO14: =C40 -> 47.3025248 | AP14: =C41 -> 48.1066695 | AQ14: =C42 -> 104.2957041 | AR14: =C43 -> 82.26230442 | AS14: =C44 -> 57.3012118 | AT14: =C45 -> 30.91430893 | AU14: =C46 -> 1.389360668 | AV14: =C47 -> 0.3566451079 | AW14: =C48 -> 0.0001384223887 | AY14: 31.83228344 | AZ14: 28.31267881 | BA14: 43.3874537 | BC14: =IF(BC$11="AVG",IF(BE$1="INST-VAL",AVERAGE(AL14:AP14,AM14:AQ14),AVERAGE(AM14:AQ14)),SUM(AM14:AQ14)) -> 54.07110349 | BD14: 0.3504879547 | BE14: 48.90380405 | BF14: 47.64133642 | BG14: 70.84242737 | BH14: 15.32774745 | BI14: 0.05948699211 | BK14: 1924 | BL14: =D37 -> 5.505915239 | BM14: =D38 -> 4.358529217 | BN14: =D39 -> 0.0002119196301 | BO14: =D40 -> 0.0007382007657 | BP14: =D41 -> 0.0007394694311 | BQ14: =D42 -> 60.00027949 | BR14: =D43 -> 40.14778371 | BS14: =D44 -> 15.51011819 | BT14: =D45 -> 0 | BU14: =D46 -> 0 | BV14: =D47 -> 0 | BW14: =D48 -> 0 | BY14: 11.89033429 | BZ14: 18.94242536 | CA14: 10.46035962 | CC14: =IF(CC$11="AVG",IF(CE$1="INST-VAL",AVERAGE(BL14:BP14,BM14:BQ14),AVERAGE(BM14:BQ14)),SUM(BM14:BQ14)) -> 7.422663234 | CD14: 0 | CE14: 2.466256369 | CF14: 0.7268614878 | CG14: 28.91463778 | CH14: 1.938764774 | CI14: 0 | CK14: 1924 | CL14: =E37 ->  | CM14: =E38 ->  | CN14: =E39 ->  | CO14: =E40 ->  | CP14: =E41 ->  | CQ14: =E42 ->  | CR14: =E43 ->  | CS14: =E44 ->  | CT14: =E45 ->  | CU14: =E46 ->  | CV14: =E47 ->  | CW14: =E48 ->  | DK14: 1924 | DL14: =F37 ->  | DM14: =F38 ->  | DN14: =F39 ->  | DO14: =F40 ->  | DP14: =F41 ->  | DQ14: =F42 ->  | DR14: =F43 ->  | DS14: =F44 ->  | DT14: =F45 ->  | DU14: =F46 ->  | DV14: =F47 ->  | DW14: =F48 ->  | EK14: 1924 | EL14: =G37 ->  | EM14: =G38 ->  | EN14: =G39 ->  | EO14: =G40 ->  | EP14: =G41 ->  | EQ14: =G42 ->  | ER14: =G43 ->  | ES14: =G44 ->  | ET14: =G45 ->  | EU14: =G46 ->  | EV14: =G47 ->  | EW14: =G48 -> 
A15: 1921-12-31 | B15: =INDIRECT(CONCATENATE("'",B$1,"'!",B$4,(YEAR($A15)-1921)*12+MONTH($A15)+3+IF(ISNUMBER(FIND("PRV",B$6)),1,0)))*IF(AND(B$3>0,TRIM(B$9)="CFS"),Conversions!$C15,1) -> 0 | C15: =INDIRECT(CONCATENATE("'",C$1,"'!",C$4,(YEAR($A15)-1921)*12+MONTH($A15)+3+IF(ISNUMBER(FIND("PRV",C$6)),1,0)))*IF(AND(C$3>0,TRIM(C$9)="CFS"),Conversions!$C15,1) -> 129.2701754 | D15: =INDIRECT(CONCATENATE("'",D$1,"'!",D$4,(YEAR($A15)-1921)*12+MONTH($A15)+3+IF(ISNUMBER(FIND("PRV",D$6)),1,0)))*IF(AND(D$3>0,TRIM(D$9)="CFS"),Conversions!$C15,1) -> 145.8682766 | E15: =INDIRECT(CONCATENATE("'",E$1,"'!",E$4,(YEAR($A15)-1921)*12+MONTH($A15)+3+IF(ISNUMBER(FIND("PRV",E$6)),1,0)))*IF(AND(E$3>0,TRIM(E$9)="CFS"),Conversions!$C15,1) ->  | F15: =INDIRECT(CONCATENATE("'",F$1,"'!",F$4,(YEAR($A15)-1921)*12+MONTH($A15)+3+IF(ISNUMBER(FIND("PRV",F$6)),1,0)))*IF(AND(F$3>0,TRIM(F$9)="CFS"),Conversions!$C15,1) ->  | G15: =INDIRECT(CONCATENATE("'",G$1,"'!",G$4,(YEAR($A15)-1921)*12+MONTH($A15)+3+IF(ISNUMBER(FIND("PRV",G$6)),1,0)))*IF(AND(G$3>0,TRIM(G$9)="CFS"),Conversions!$C15,1) ->  | K15: 1925 | L15: =B49 -> 0 | M15: =B50 -> 0 | N15: =B51 -> 0 | O15: =B52 -> 0 | P15: =B53 -> 0 | Q15: =B54 -> 0 | R15: =B55 -> 0 | S15: =B56 -> 0 | T15: =B57 -> 0 | U15: =B58 -> 0 | V15: =B59 -> 0 | W15: =B60 -> 0 | Y15: 0 | Z15: 0 | AA15: 0 | AC15: =IF(AC$11="AVG",IF(AE$1="INST-VAL",AVERAGE(L15:P15,M15:Q15),AVERAGE(M15:Q15)),SUM(M15:Q15)) -> 0 | AD15: 0 | AE15: 0 | AF15: 0 | AG15: 0 | AH15: 0 | AI15: 0 | AK15: 1925 | AL15: =C49 -> 0 | AM15: =C50 -> 0 | AN15: =C51 -> 10.05853362 | AO15: =C52 -> 10.99865585 | AP15: =C53 -> 42.1752828 | AQ15: =C54 -> 11.50608549 | AR15: =C55 -> 11.54872278 | AS15: =C56 -> 11.74520916 | AT15: =C57 -> 0.002548541769 | AU15: =C58 -> 1.177081478 | AV15: =C59 -> 0.00123187183 | AW15: =C60 -> 0 | AY15: 7.429568164 | AZ15: 6.31091357 | BA15: 8.267779299 | BC15: =IF(BC$11="AVG",IF(BE$1="INST-VAL",AVERAGE(AL15:AP15,AM15:AQ15),AVERAGE(AM15:AQ15)),SUM(AM15:AQ15)) -> 13.797103 | BD15: =IF(BD$11="AVG",IF(BE$1="INST-VAL",AVERAGE(AU15:AW15,AV15:AW15,AL16),AVERAGE(AV15:AW15,AL16)),SUM(AV15:AW15,AL16)) -> 0.1965908703 | BE15: 3.889482689 | BF15: 14.04827696 | BG15: 13.97223328 | BH15: 1.763366618 | BI15: 0.0002053119717 | BK15: 1925 | BL15: =D49 -> 0 | BM15: =D50 -> 0 | BN15: =D51 -> 27.02435238 | BO15: =D52 -> 27.0246416 | BP15: =D53 -> 57.601929 | BQ15: =D54 -> 48.19216773 | BR15: =D55 -> 48.026958 | BS15: =D56 -> 47.74806029 | BT15: =D57 -> 0.009713160339 | BU15: =D58 -> 0.6782734968 | BV15: =D59 -> 0.0007587589386 | BW15: =D60 -> 0 | BY15: 19.35261599 | BZ15: 13.49348214 | CA15: 21.35890454 | CC15: 27.14940137 | CD15: 0.6047801362 | CE15: 10.1341683 | CF15: 27.61665283 | CG15: 43.19325178 | CH15: 6.140693891 | CI15: 0.9830897273 | CK15: 1925 | CL15: =E49 ->  | CM15: =E50 ->  | CN15: =E51 ->  | CO15: =E52 ->  | CP15: =E53 ->  | CQ15: =E54 ->  | CR15: =E55 ->  | CS15: =E56 ->  | CT15: =E57 ->  | CU15: =E58 ->  | CV15: =E59 ->  | CW15: =E60 ->  | DK15: 1925 | DL15: =F49 ->  | DM15: =F50 ->  | DN15: =F51 ->  | DO15: =F52 ->  | DP15: =F53 ->  | DQ15: =F54 ->  | DR15: =F55 ->  | DS15: =F56 ->  | DT15: =F57 ->  | DU15: =F58 ->  | DV15: =F59 ->  | DW15: =F60 ->  | EK15: 1925 | EL15: =G49 ->  | EM15: =G50 ->  | EN15: =G51 ->  | EO15: =G52 ->  | EP15: =G53 ->  | EQ15: =G54 ->  | ER15: =G55 ->  | ES15: =G56 ->  | ET15: =G57 ->  | EU15: =G58 ->  | EV15: =G59 ->  | EW15: =G60 -> 
A16: 1922-01-31 | B16: =INDIRECT(CONCATENATE("'",B$1,"'!",B$4,(YEAR($A16)-1921)*12+MONTH($A16)+3+IF(ISNUMBER(FIND("PRV",B$6)),1,0)))*IF(AND(B$3>0,TRIM(B$9)="CFS"),Conversions!$C16,1) -> 0 | C16: =INDIRECT(CONCATENATE("'",C$1,"'!",C$4,(YEAR($A16)-1921)*12+MONTH($A16)+3+IF(ISNUMBER(FIND("PRV",C$6)),1,0)))*IF(AND(C$3>0,TRIM(C$9)="CFS"),Conversions!$C16,1) -> 129.333203 | D16: =INDIRECT(CONCATENATE("'",D$1,"'!",D$4,(YEAR($A16)-1921)*12+MONTH($A16)+3+IF(ISNUMBER(FIND("PRV",D$6)),1,0)))*IF(AND(D$3>0,TRIM(D$9)="CFS"),Conversions!$C16,1) -> 145.9316257 | E16: =INDIRECT(CONCATENATE("'",E$1,"'!",E$4,(YEAR($A16)-1921)*12+MONTH($A16)+3+IF(ISNUMBER(FIND("PRV",E$6)),1,0)))*IF(AND(E$3>0,TRIM(E$9)="CFS"),Conversions!$C16,1) ->  | F16: =INDIRECT(CONCATENATE("'",F$1,"'!",F$4,(YEAR($A16)-1921)*12+MONTH($A16)+3+IF(ISNUMBER(FIND("PRV",F$6)),1,0)))*IF(AND(F$3>0,TRIM(F$9)="CFS"),Conversions!$C16,1) ->  | G16: =INDIRECT(CONCATENATE("'",G$1,"'!",G$4,(YEAR($A16)-1921)*12+MONTH($A16)+3+IF(ISNUMBER(FIND("PRV",G$6)),1,0)))*IF(AND(G$3>0,TRIM(G$9)="CFS"),Conversions!$C16,1) ->  | K16: 1926 | L16: =B61 -> 0 | M16: =B62 -> 0 | N16: =B63 -> 0 | O16: =B64 -> 0 | P16: =B65 -> 0 | Q16: =B66 -> 0 | R16: =B67 -> 0 | S16: =B68 -> 0 | T16: =B69 -> 0 | U16: =B70 -> 0 | V16: =B71 -> 0 | W16: =B72 -> 0 | Y16: 0 | Z16: 0 | AA16: 0 | AC16: 0 | AD16: 0 | AE16: 0 | AF16: 0 | AG16: 0 | AH16: 0 | AI16: 0 | AK16: 1926 | AL16: =C61 -> 0 | AM16: =C62 -> 0 | AN16: =C63 -> 0 | AO16: =C64 -> 13.05703902 | AP16: =C65 -> 26.6930445 | AQ16: =C66 -> 7.348332302 | AR16: =C67 -> 5.381389345 | AS16: =C68 -> 0.3390774165 | AT16: =C69 -> 0.3332867764 | AU16: =C70 -> 0.6670864431 | AV16: =C71 -> 1.709795074 | AW16: =C72 -> 4.313421989 | AY16: 5.664041299 | AZ16: 7.498631511 | BA16: 4.986872739 | BC16: 8.684849933 | BD16: 2.118920095 | BE16: 1.632129877 | BF16: 8.801187089 | BG16: 6.645491175 | BH16: 1.259104499 | BI16: 2.058903969 | BK16: 1926 | BL16: =D61 -> 2.948889803 | BM16: =D62 -> 0 | BN16: =D63 -> 0 | BO16: =D64 -> 0 | BP16: =D65 -> 14.31696445 | BQ16: =D66 -> 0 | BR16: =D67 -> 0.08 | BS16: =D68 -> 0.3390992912 | BT16: =D69 -> 0.3335221714 | BU16: =D70 -> 0.7072455266 | BV16: =D71 -> 0 | BW16: =D72 -> 0 | BY16: 3.013288951 | BZ16: 8.0536544 | CA16: 1.56047677 | CC16: 3.158281869 | CD16: 0.3864062204 | CE16: 0.7372224506 | CF16: 2.386160741 | CG16: 1.93608565 | CH16: 0.3025793359 | CI16: 1.547588989 | CK16: 1926 | CL16: =E61 ->  | CM16: =E62 ->  | CN16: =E63 ->  | CO16: =E64 ->  | CP16: =E65 ->  | CQ16: =E66 ->  | CR16: =E67 ->  | CS16: =E68 ->  | CT16: =E69 ->  | CU16: =E70 ->  | CV16: =E71 ->  | CW16: =E72 ->  | DK16: 1926 | DL16: =F61 ->  | DM16: =F62 ->  | DN16: =F63 ->  | DO16: =F64 ->  | DP16: =F65 ->  | DQ16: =F66 ->  | DR16: =F67 ->  | DS16: =F68 ->  | DT16: =F69 ->  | DU16: =F70 ->  | DV16: =F71 ->  | DW16: =F72 ->  | EK16: 1926 | EL16: =G61 ->  | EM16: =G62 ->  | EN16: =G63 ->  | EO16: =G64 ->  | EP16: =G65 ->  | EQ16: =G66 ->  | ER16: =G67 ->  | ES16: =G68 ->  | ET16: =G69 ->  | EU16: =G70 ->  | EV16: =G71 ->  | EW16: =G72 -> 
A17: 1922-02-28 | B17: =INDIRECT(CONCATENATE("'",B$1,"'!",B$4,(YEAR($A17)-1921)*12+MONTH($A17)+3+IF(ISNUMBER(FIND("PRV",B$6)),1,0)))*IF(AND(B$3>0,TRIM(B$9)="CFS"),Conversions!$C17,1) -> 0 | C17: =INDIRECT(CONCATENATE("'",C$1,"'!",C$4,(YEAR($A17)-1921)*12+MONTH($A17)+3+IF(ISNUMBER(FIND("PRV",C$6)),1,0)))*IF(AND(C$3>0,TRIM(C$9)="CFS"),Conversions!$C17,1) -> 135.011032 | D17: =INDIRECT(CONCATENATE("'",D$1,"'!",D$4,(YEAR($A17)-1921)*12+MONTH($A17)+3+IF(ISNUMBER(FIND("PRV",D$6)),1,0)))*IF(AND(D$3>0,TRIM(D$9)="CFS"),Conversions!$C17,1) -> 157.1218202 | E17: =INDIRECT(CONCATENATE("'",E$1,"'!",E$4,(YEAR($A17)-1921)*12+MONTH($A17)+3+IF(ISNUMBER(FIND("PRV",E$6)),1,0)))*IF(AND(E$3>0,TRIM(E$9)="CFS"),Conversions!$C17,1) ->  | F17: =INDIRECT(CONCATENATE("'",F$1,"'!",F$4,(YEAR($A17)-1921)*12+MONTH($A17)+3+IF(ISNUMBER(FIND("PRV",F$6)),1,0)))*IF(AND(F$3>0,TRIM(F$9)="CFS"),Conversions!$C17,1) ->  | G17: =INDIRECT(CONCATENATE("'",G$1,"'!",G$4,(YEAR($A17)-1921)*12+MONTH($A17)+3+IF(ISNUMBER(FIND("PRV",G$6)),1,0)))*IF(AND(G$3>0,TRIM(G$9)="CFS"),Conversions!$C17,1) ->  | K17: 1927 | L17: =B73 -> 0 | M17: =B74 -> 0 | N17: =B75 -> 0 | O17: =B76 -> 0 | P17: =B77 -> 0 | Q17: =B78 -> 0 | R17: =B79 -> 0 | S17: =B80 -> 0 | T17: =B81 -> 0 | U17: =B82 -> 0 | V17: =B83 -> 0 | W17: =B84 -> 0 | Y17: 0 | Z17: 0 | AA17: 0 | AC17: 0 | AD17: 0 | AE17: 0 | AF17: 0 | AG17: 0 | AH17: 0 | AI17: 0 | AK17: 1927 | AL17: =C73 -> 0 | AM17: =C74 -> 2.016784759 | AN17: =C75 -> 6.109237969 | AO17: =C76 -> 15.00010553 | AP17: =C77 -> 46.76506053 | AQ17: =C78 -> 72.46895801 | AR17: =C79 -> 105.2349953 | AS17: =C80 -> 104.5342628 | AT17: =C81 -> 103.5958429 | AU17: =C82 -> 105.6471298 | AV17: =C83 -> 104.6171774 | AW17: =C84 -> 103.8317076 | AY17: 92.07430847 | AZ17: 108.1794109 | BA17: 64.15177188 | BC17: 21.22513356 | BD17: 104.3403074 | BE17: 4.445696621 | BF17: 15.16675538 | BG17: 89.35466696 | BH17: 104.5107838 | BI17: 106.4851629 | BK17: 1927 | BL17: =D73 -> 1.611191796 | BM17: =D74 -> 6.063150344 | BN17: =D75 -> 12.70829383 | BO17: =D76 -> 21.55370065 | BP17: =D77 -> 53.24764918 | BQ17: =D78 -> 79.33563365 | BR17: =D79 -> 112.1403843 | BS17: =D80 -> 111.4933513 | BT17: =D81 -> 110.626836 | BU17: =D82 -> 112.7865939 | BV17: =D83 -> 111.8346992 | BW17: =D84 -> 111.1094518 | BY17: 99.09841672 | BZ17: 115.3244632 | CA17: 70.37591133 | CC17: =IF(CC$11="AVG",IF(CE$1="INST-VAL",AVERAGE(BL17:BP17,BM17:BQ17),AVERAGE(BM17:BQ17)),SUM(BM17:BQ17)) -> 26.80924135 | CD17: =IF(CD$11="AVG",IF(CE$1="INST-VAL",AVERAGE(BU17:BW17,BV17:BW17,BL18),AVERAGE(BV17:BW17,BL18)),SUM(BV17:BW17,BL18)) -> 111.5792164 | CE17: 7.789871575 | CF17: 21.30579808 | CG17: 96.22665297 | CH17: 111.6373827 | CI17: 113.7638012 | CK17: 1927 | CL17: =E73 ->  | CM17: =E74 ->  | CN17: =E75 ->  | CO17: =E76 ->  | CP17: =E77 ->  | CQ17: =E78 ->  | CR17: =E79 ->  | CS17: =E80 ->  | CT17: =E81 ->  | CU17: =E82 ->  | CV17: =E83 ->  | CW17: =E84 ->  | DK17: 1927 | DL17: =F73 ->  | DM17: =F74 ->  | DN17: =F75 ->  | DO17: =F76 ->  | DP17: =F77 ->  | DQ17: =F78 ->  | DR17: =F79 ->  | DS17: =F80 ->  | DT17: =F81 ->  | DU17: =F82 ->  | DV17: =F83 ->  | DW17: =F84 ->  | EK17: 1927 | EL17: =G73 ->  | EM17: =G74 ->  | EN17: =G75 ->  | EO17: =G76 ->  | EP17: =G77 ->  | EQ17: =G78 ->  | ER17: =G79 ->  | ES17: =G80 ->  | ET17: =G81 ->  | EU17: =G82 ->  | EV17: =G83 ->  | EW17: =G84 -> 
A18: 1922-03-31 | B18: =INDIRECT(CONCATENATE("'",B$1,"'!",B$4,(YEAR($A18)-1921)*12+MONTH($A18)+3+IF(ISNUMBER(FIND("PRV",B$6)),1,0)))*IF(AND(B$3>0,TRIM(B$9)="CFS"),Conversions!$C18,1) -> 0 | C18: =INDIRECT(CONCATENATE("'",C$1,"'!",C$4,(YEAR($A18)-1921)*12+MONTH($A18)+3+IF(ISNUMBER(FIND("PRV",C$6)),1,0)))*IF(AND(C$3>0,TRIM(C$9)="CFS"),Conversions!$C18,1) -> 150.9611909 | D18: =INDIRECT(CONCATENATE("'",D$1,"'!",D$4,(YEAR($A18)-1921)*12+MONTH($A18)+3+IF(ISNUMBER(FIND("PRV",D$6)),1,0)))*IF(AND(D$3>0,TRIM(D$9)="CFS"),Conversions!$C18,1) -> 189.713465 | E18: =INDIRECT(CONCATENATE("'",E$1,"'!",E$4,(YEAR($A18)-1921)*12+MONTH($A18)+3+IF(ISNUMBER(FIND("PRV",E$6)),1,0)))*IF(AND(E$3>0,TRIM(E$9)="CFS"),Conversions!$C18,1) ->  | F18: =INDIRECT(CONCATENATE("'",F$1,"'!",F$4,(YEAR($A18)-1921)*12+MONTH($A18)+3+IF(ISNUMBER(FIND("PRV",F$6)),1,0)))*IF(AND(F$3>0,TRIM(F$9)="CFS"),Conversions!$C18,1) ->  | G18: =INDIRECT(CONCATENATE("'",G$1,"'!",G$4,(YEAR($A18)-1921)*12+MONTH($A18)+3+IF(ISNUMBER(FIND("PRV",G$6)),1,0)))*IF(AND(G$3>0,TRIM(G$9)="CFS"),Conversions!$C18,1) ->  | K18: 1928 | L18: =B85 -> 0 | M18: =B86 -> 0 | N18: =B87 -> 0 | O18: =B88 -> 0 | P18: =B89 -> 0 | Q18: =B90 -> 0 | R18: =B91 -> 0 | S18: =B92 -> 0 | T18: =B93 -> 0 | U18: =B94 -> 0 | V18: =B95 -> 0 | W18: =B96 -> 0 | Y18: 0 | Z18: 0 | AA18: 0 | AC18: 0 | AD18: 0 | AE18: 0 | AF18: 0 | AG18: 0 | AH18: 0 | AI18: 0 | AK18: 1928 | AL18: =C85 -> 103.4969447 | AM18: =C86 -> 119.6364956 | AN18: =C87 -> 120.0630214 | AO18: =C88 -> 124.7493027 | AP18: =C89 -> 130.2770925 | AQ18: =C90 -> 151.8930833 | AR18: =C91 -> 149.3433622 | AS18: =C92 -> 148.2623105 | AT18: =C93 -> 85.68615231 | AU18: =C94 -> 84.76984813 | AV18: =C95 -> 85.19322556 | AW18: =C96 -> 83.31357047 | AY18: 107.7441982 | AZ18: 100.8135101 | BA18: 115.5570341 | BC18: 124.4841853 | BD18: 84.12337118 | BE18: 114.3717417 | BF18: 123.2563727 | BG18: 139.3700946 | BH18: 92.85929162 | BI18: 83.47988409 | BK18: 1928 | BL18: =D85 -> 110.8004025 | BM18: =D86 -> 126.9283991 | BN18: =D87 -> 127.323899 | BO18: =D88 -> 131.9987489 | BP18: =D89 -> 137.515159 | BQ18: =D90 -> 159.1309544 | BR18: =D91 -> 158.6691621 | BS18: =D92 -> 157.6397947 | BT18: =D93 -> 65.42361908 | BU18: =D94 -> 0 | BV18: =D95 -> 1.25 | BW18: =D96 -> 0 | BY18: 67.63561985 | BZ18: 45.6070069 | CA18: 98.05667824 | CC18: 131.7463769 | CD18: 0.4166666667 | CE18: 121.6517003 | CF18: 130.514809 | CG18: 144.2273251 | CH18: 36.37337911 | CI18: 0.2083333333 | CK18: 1928 | CL18: =E85 ->  | CM18: =E86 ->  | CN18: =E87 ->  | CO18: =E88 ->  | CP18: =E89 ->  | CQ18: =E90 ->  | CR18: =E91 ->  | CS18: =E92 ->  | CT18: =E93 ->  | CU18: =E94 ->  | CV18: =E95 ->  | CW18: =E96 ->  | DC18: =IF(DC$11="AVG",IF(DE$1="INST-VAL",AVERAGE(CL18:CP18,CM18:CQ18),AVERAGE(CM18:CQ18)),SUM(CM18:CQ18)) ->  | DD18: =IF(DD$11="AVG",IF(DE$1="INST-VAL",AVERAGE(CU18:CW18,CV18:CW18,CL19),AVERAGE(CV18:CW18,CL19)),SUM(CV18:CW18,CL19)) ->  | DK18: 1928 | DL18: =F85 ->  | DM18: =F86 ->  | DN18: =F87 ->  | DO18: =F88 ->  | DP18: =F89 ->  | DQ18: =F90 ->  | DR18: =F91 ->  | DS18: =F92 ->  | DT18: =F93 ->  | DU18: =F94 ->  | DV18: =F95 ->  | DW18: =F96 ->  | EC18: =IF(EC$11="AVG",IF(EE$1="INST-VAL",AVERAGE(DL18:DP18,DM18:DQ18),AVERAGE(DM18:DQ18)),SUM(DM18:DQ18)) ->  | ED18: =IF(ED$11="AVG",IF(EE$1="INST-VAL",AVERAGE(DU18:DW18,DV18:DW18,DL19),AVERAGE(DV18:DW18,DL19)),SUM(DV18:DW18,DL19)) ->  | EK18: 1928 | EL18: =G85 ->  | EM18: =G86 ->  | EN18: =G87 ->  | EO18: =G88 ->  | EP18: =G89 ->  | EQ18: =G90 ->  | ER18: =G91 ->  | ES18: =G92 ->  | ET18: =G93 ->  | EU18: =G94 ->  | EV18: =G95 ->  | EW18: =G96 ->  | FC18: =IF(FC$11="AVG",IF(FE$1="INST-VAL",AVERAGE(EL18:EP18,EM18:EQ18),AVERAGE(EM18:EQ18)),SUM(EM18:EQ18)) -> 
A19: 1922-04-30 | B19: =INDIRECT(CONCATENATE("'",B$1,"'!",B$4,(YEAR($A19)-1921)*12+MONTH($A19)+3+IF(ISNUMBER(FIND("PRV",B$6)),1,0)))*IF(AND(B$3>0,TRIM(B$9)="CFS"),Conversions!$C19,1) -> 0 | C19: =INDIRECT(CONCATENATE("'",C$1,"'!",C$4,(YEAR($A19)-1921)*12+MONTH($A19)+3+IF(ISNUMBER(FIND("PRV",C$6)),1,0)))*IF(AND(C$3>0,TRIM(C$9)="CFS"),Conversions!$C19,1) -> 150.4714384 | D19: =INDIRECT(CONCATENATE("'",D$1,"'!",D$4,(YEAR($A19)-1921)*12+MONTH($A19)+3+IF(ISNUMBER(FIND("PRV",D$6)),1,0)))*IF(AND(D$3>0,TRIM(D$9)="CFS"),Conversions!$C19,1) -> 189.1564991 | E19: =INDIRECT(CONCATENATE("'",E$1,"'!",E$4,(YEAR($A19)-1921)*12+MONTH($A19)+3+IF(ISNUMBER(FIND("PRV",E$6)),1,0)))*IF(AND(E$3>0,TRIM(E$9)="CFS"),Conversions!$C19,1) ->  | F19: =INDIRECT(CONCATENATE("'",F$1,"'!",F$4,(YEAR($A19)-1921)*12+MONTH($A19)+3+IF(ISNUMBER(FIND("PRV",F$6)),1,0)))*IF(AND(F$3>0,TRIM(F$9)="CFS"),Conversions!$C19,1) ->  | G19: =INDIRECT(CONCATENATE("'",G$1,"'!",G$4,(YEAR($A19)-1921)*12+MONTH($A19)+3+IF(ISNUMBER(FIND("PRV",G$6)),1,0)))*IF(AND(G$3>0,TRIM(G$9)="CFS"),Conversions!$C19,1) ->  | K19: 1929 | L19: =B97 -> 0 | M19: =B98 -> 0 | N19: =B99 -> 0 | O19: =B100 -> 0 | P19: =B101 -> 0 | Q19: =B102 -> 0 | R19: =B103 -> 0 | S19: =B104 -> 0 | T19: =B105 -> 0 | U19: =B106 -> 0 | V19: =B107 -> 0 | W19: =B108 -> 0 | Y19: 0 | Z19: 0 | AA19: 0 | AC19: 0 | AD19: 0 | AE19: 0 | AF19: 0 | AG19: 0 | AH19: 0 | AI19: 0 | AK19: 1929 | AL19: =C97 -> 82.95678689 | AM19: =C98 -> 83.14536428 | AN19: =C99 -> 83.34027939 | AO19: =C100 -> 84.24068754 | AP19: =C101 -> 87.61745087 | AQ19: =C102 -> 86.93722701 | AR19: =C103 -> 67.82118298 | AS19: =C104 -> 36.97875177 | AT19: =C105 -> 10.86940147 | AU19: =C106 -> 0.001976429133 | AV19: =C107 -> 1.331353771e-06 | AW19: =C108 -> 0 | AY19: 31.38720921 | AZ19: 18.01911103 | BA19: 51.99242583 | BC19: 84.65815781 | BD19: 0.3636350332 | BE19: 83.30488989 | BF19: 84.3207915 | BG19: 60.24514698 | BH19: 7.340188778 | BI19: 0.726610591 | BK19: 1929 | BL19: =D97 -> 0 | BM19: =D98 -> 0 | BN19: =D99 -> 0 | BO19: =D100 -> 0.94 | BP19: =D101 -> 4.230552575 | BQ19: =D102 -> 4.483424425 | BR19: =D103 -> 4.549389496 | BS19: =D104 -> 4.780632465 | BT19: =D105 -> 4.744031189 | BU19: =D106 -> 0.00281986789 | BV19: =D107 -> 1.85706962e-06 | BW19: =D108 -> 0 | BY19: 2.160664421 | BZ19: 2.682869435 | CA19: 1.97757099 | CC19: 1.482452958 | CD19: 0.3666574587 | CE19: 0.1175 | CF19: 1.018425429 | CG19: 4.575184567 | CH19: 1.784292287 | CI19: 0.732374033 | CK19: 1929 | CL19: =E97 ->  | CM19: =E98 ->  | CN19: =E99 ->  | CO19: =E100 ->  | CP19: =E101 ->  | CQ19: =E102 ->  | CR19: =E103 ->  | CS19: =E104 ->  | CT19: =E105 ->  | CU19: =E106 ->  | CV19: =E107 ->  | CW19: =E108 ->  | DK19: 1929 | DL19: =F97 ->  | DM19: =F98 ->  | DN19: =F99 ->  | DO19: =F100 ->  | DP19: =F101 ->  | DQ19: =F102 ->  | DR19: =F103 ->  | DS19: =F104 ->  | DT19: =F105 ->  | DU19: =F106 ->  | DV19: =F107 ->  | DW19: =F108 ->  | EK19: 1929 | EL19: =G97 ->  | EM19: =G98 ->  | EN19: =G99 ->  | EO19: =G100 ->  | EP19: =G101 ->  | EQ19: =G102 ->  | ER19: =G103 ->  | ES19: =G104 ->  | ET19: =G105 ->  | EU19: =G106 ->  | EV19: =G107 ->  | EW19: =G108 -> 
A20: 1922-05-31 | B20: =INDIRECT(CONCATENATE("'",B$1,"'!",B$4,(YEAR($A20)-1921)*12+MONTH($A20)+3+IF(ISNUMBER(FIND("PRV",B$6)),1,0)))*IF(AND(B$3>0,TRIM(B$9)="CFS"),Conversions!$C20,1) -> 0 | C20: =INDIRECT(CONCATENATE("'",C$1,"'!",C$4,(YEAR($A20)-1921)*12+MONTH($A20)+3+IF(ISNUMBER(FIND("PRV",C$6)),1,0)))*IF(AND(C$3>0,TRIM(C$9)="CFS"),Conversions!$C20,1) -> 136.5491801 | D20: =INDIRECT(CONCATENATE("'",D$1,"'!",D$4,(YEAR($A20)-1921)*12+MONTH($A20)+3+IF(ISNUMBER(FIND("PRV",D$6)),1,0)))*IF(AND(D$3>0,TRIM(D$9)="CFS"),Conversions!$C20,1) -> 198.357054 | E20: =INDIRECT(CONCATENATE("'",E$1,"'!",E$4,(YEAR($A20)-1921)*12+MONTH($A20)+3+IF(ISNUMBER(FIND("PRV",E$6)),1,0)))*IF(AND(E$3>0,TRIM(E$9)="CFS"),Conversions!$C20,1) ->  | F20: =INDIRECT(CONCATENATE("'",F$1,"'!",F$4,(YEAR($A20)-1921)*12+MONTH($A20)+3+IF(ISNUMBER(FIND("PRV",F$6)),1,0)))*IF(AND(F$3>0,TRIM(F$9)="CFS"),Conversions!$C20,1) ->  | G20: =INDIRECT(CONCATENATE("'",G$1,"'!",G$4,(YEAR($A20)-1921)*12+MONTH($A20)+3+IF(ISNUMBER(FIND("PRV",G$6)),1,0)))*IF(AND(G$3>0,TRIM(G$9)="CFS"),Conversions!$C20,1) ->  | K20: 1930 | L20: =B109 -> 0 | M20: =B110 -> 0 | N20: =B111 -> 0 | O20: =B112 -> 0 | P20: =B113 -> 0 | Q20: =B114 -> 0 | R20: =B115 -> 0 | S20: =B116 -> 0 | T20: =B117 -> 0 | U20: =B118 -> 0 | V20: =B119 -> 0 | W20: =B120 -> 0 | Y20: 0 | Z20: 0 | AA20: 0 | AC20: 0 | AD20: 0 | AE20: 0 | AF20: 0 | AG20: 0 | AH20: 0 | AI20: 0 | AK20: 1930 | AL20: =C109 -> 2.179831107 | AM20: =C110 -> 0 | AN20: =C111 -> 0 | AO20: =C112 -> 3.95666609 | AP20: =C113 -> 7.484294171 | AQ20: =C114 -> 26.99960098 | AR20: =C115 -> 22.24588817 | AS20: =C116 -> 0 | AT20: =C117 -> 0 | AU20: =C118 -> 0.8134189015 | AV20: =C119 -> 0.0007527791082 | AW20: =C120 -> 0 | AY20: 5.125051758 | AZ20: 4.171638403 | BA20: 5.306704351 | BC20: 5.206135261 | BD20: 0.1358207433 | BE20: 1.039541038 | BF20: 2.566271058 | BG20: 13.24690906 | BH20: 0.2035429202 | BI20: 0.0001254631847 | BK20: 1930 | BL20: =D109 -> 2.19712117 | BM20: =D110 -> 0 | BN20: =D111 -> 0 | BO20: =D112 -> 3.957466374 | BP20: =D113 -> 7.479546377 | BQ20: =D114 -> 46.33136495 | BR20: =D115 -> 46.20419069 | BS20: =D116 -> 0 | BT20: =D117 -> 0 | BU20: =D118 -> 0.114638758 | BV20: =D119 -> 0.0001145134986 | BW20: =D120 -> 0 | BY20: 8.800252692 | BZ20: 7.931990048 | CA20: 8.857036903 | CC20: 7.140251163 | CD20: 0.1035000085 | CE20: 1.043963589 | CF20: 2.565746521 | CG20: 24.06883221 | CH20: 0.02868831788 | CI20: 0.2529154412 | CK20: 1930 | CL20: =E109 ->  | CM20: =E110 ->  | CN20: =E111 ->  | CO20: =E112 ->  | CP20: =E113 ->  | CQ20: =E114 ->  | CR20: =E115 ->  | CS20: =E116 ->  | CT20: =E117 ->  | CU20: =E118 ->  | CV20: =E119 ->  | CW20: =E120 ->  | DK20: 1930 | DL20: =F109 ->  | DM20: =F110 ->  | DN20: =F111 ->  | DO20: =F112 ->  | DP20: =F113 ->  | DQ20: =F114 ->  | DR20: =F115 ->  | DS20: =F116 ->  | DT20: =F117 ->  | DU20: =F118 ->  | DV20: =F119 ->  | DW20: =F120 ->  | EK20: 1930 | EL20: =G109 ->  | EM20: =G110 ->  | EN20: =G111 ->  | EO20: =G112 ->  | EP20: =G113 ->  | EQ20: =G114 ->  | ER20: =G115 ->  | ES20: =G116 ->  | ET20: =G117 ->  | EU20: =G118 ->  | EV20: =G119 ->  | EW20: =G120 -> 
A21: 1922-06-30 | B21: =INDIRECT(CONCATENATE("'",B$1,"'!",B$4,(YEAR($A21)-1921)*12+MONTH($A21)+3+IF(ISNUMBER(FIND("PRV",B$6)),1,0)))*IF(AND(B$3>0,TRIM(B$9)="CFS"),Conversions!$C21,1) -> 0 | C21: =INDIRECT(CONCATENATE("'",C$1,"'!",C$4,(YEAR($A21)-1921)*12+MONTH($A21)+3+IF(ISNUMBER(FIND("PRV",C$6)),1,0)))*IF(AND(C$3>0,TRIM(C$9)="CFS"),Conversions!$C21,1) -> 136.0646905 | D21: =INDIRECT(CONCATENATE("'",D$1,"'!",D$4,(YEAR($A21)-1921)*12+MONTH($A21)+3+IF(ISNUMBER(FIND("PRV",D$6)),1,0)))*IF(AND(D$3>0,TRIM(D$9)="CFS"),Conversions!$C21,1) -> 197.5447115 | E21: =INDIRECT(CONCATENATE("'",E$1,"'!",E$4,(YEAR($A21)-1921)*12+MONTH($A21)+3+IF(ISNUMBER(FIND("PRV",E$6)),1,0)))*IF(AND(E$3>0,TRIM(E$9)="CFS"),Conversions!$C21,1) ->  | F21: =INDIRECT(CONCATENATE("'",F$1,"'!",F$4,(YEAR($A21)-1921)*12+MONTH($A21)+3+IF(ISNUMBER(FIND("PRV",F$6)),1,0)))*IF(AND(F$3>0,TRIM(F$9)="CFS"),Conversions!$C21,1) ->  | G21: =INDIRECT(CONCATENATE("'",G$1,"'!",G$4,(YEAR($A21)-1921)*12+MONTH($A21)+3+IF(ISNUMBER(FIND("PRV",G$6)),1,0)))*IF(AND(G$3>0,TRIM(G$9)="CFS"),Conversions!$C21,1) ->  | K21: 1931 | L21: =B121 -> 0 | M21: =B122 -> 0 | N21: =B123 -> 0 | O21: =B124 -> 0 | P21: =B125 -> 0 | Q21: =B126 -> 0 | R21: =B127 -> 0 | S21: =B128 -> 0 | T21: =B129 -> 0 | U21: =B130 -> 0 | V21: =B131 -> 0 | W21: =B132 -> 0 | Y21: 0 | Z21: 0 | AA21: 0 | AC21: 0 | AD21: 0 | AE21: 0 | AF21: 0 | AG21: 0 | AH21: 0 | AI21: 0 | AK21: 1931 | AL21: =C121 -> 0 | AM21: =C122 -> 0 | AN21: =C123 -> 0 | AO21: =C124 -> 0 | AP21: =C125 -> 0 | AQ21: =C126 -> 59.9987178 | AR21: =C127 -> 33.64128743 | AS21: =C128 -> 7.404543159 | AT21: =C129 -> 0 | AU21: =C130 -> 0 | AV21: =C131 -> 0 | AW21: =C132 -> 0 | AY21: 9.135393116 | AZ21: 12.43918381 | BA21: 8.420379033 | BC21: 5.99987178 | BD21: 0 | BE21: 0 | BF21: 0 | BG21: 25.2611371 | BH21: 0.9255678949 | BI21: 0 | BK21: 1931 | BL21: =D121 -> 0.506132266 | BM21: =D122 -> 0.5051136014 | BN21: =D123 -> 0.50446477 | BO21: =D124 -> 0.509047786 | BP21: =D125 -> 0.5088132436 | BQ21: =D126 -> 60.50475916 | BR21: =D127 -> 39.14333055 | BS21: =D128 -> 18.29878596 | BT21: =D129 -> 0 | BU21: =D130 -> 0 | BV21: =D131 -> 0 | BW21: =D132 -> 0 | BY21: 10.62767047 | BZ21: 13.89262909 | CA21: 10.04003728 | CC21: 6.506577022 | CD21: 0 | CE21: 0.4425586326 | CF21: 0.5068253262 | CG21: 29.55032057 | CH21: 2.287348245 | CI21: 0 | CK21: 1931 | CL21: =E121 ->  | CM21: =E122 ->  | CN21: =E123 ->  | CO21: =E124 ->  | CP21: =E125 ->  | CQ21: =E126 ->  | CR21: =E127 ->  | CS21: =E128 ->  | CT21: =E129 ->  | CU21: =E130 ->  | CV21: =E131 ->  | CW21: =E132 ->  | DK21: 1931 | DL21: =F121 ->  | DM21: =F122 ->  | DN21: =F123 ->  | DO21: =F124 ->  | DP21: =F125 ->  | DQ21: =F126 ->  | DR21: =F127 ->  | DS21: =F128 ->  | DT21: =F129 ->  | DU21: =F130 ->  | DV21: =F131 ->  | DW21: =F132 ->  | EK21: 1931 | EL21: =G121 ->  | EM21: =G122 ->  | EN21: =G123 ->  | EO21: =G124 ->  | EP21: =G125 ->  | EQ21: =G126 ->  | ER21: =G127 ->  | ES21: =G128 ->  | ET21: =G129 ->  | EU21: =G130 ->  | EV21: =G131 ->  | EW21: =G132 -> 
A22: 1922-07-31 | B22: =INDIRECT(CONCATENATE("'",B$1,"'!",B$4,(YEAR($A22)-1921)*12+MONTH($A22)+3+IF(ISNUMBER(FIND("PRV",B$6)),1,0)))*IF(AND(B$3>0,TRIM(B$9)="CFS"),Conversions!$C22,1) -> 0 | C22: =INDIRECT(CONCATENATE("'",C$1,"'!",C$4,(YEAR($A22)-1921)*12+MONTH($A22)+3+IF(ISNUMBER(FIND("PRV",C$6)),1,0)))*IF(AND(C$3>0,TRIM(C$9)="CFS"),Conversions!$C22,1) -> 94.70267237 | D22: =INDIRECT(CONCATENATE("'",D$1,"'!",D$4,(YEAR($A22)-1921)*12+MONTH($A22)+3+IF(ISNUMBER(FIND("PRV",D$6)),1,0)))*IF(AND(D$3>0,TRIM(D$9)="CFS"),Conversions!$C22,1) -> 99.99345875 | E22: =INDIRECT(CONCATENATE("'",E$1,"'!",E$4,(YEAR($A22)-1921)*12+MONTH($A22)+3+IF(ISNUMBER(FIND("PRV",E$6)),1,0)))*IF(AND(E$3>0,TRIM(E$9)="CFS"),Conversions!$C22,1) ->  | F22: =INDIRECT(CONCATENATE("'",F$1,"'!",F$4,(YEAR($A22)-1921)*12+MONTH($A22)+3+IF(ISNUMBER(FIND("PRV",F$6)),1,0)))*IF(AND(F$3>0,TRIM(F$9)="CFS"),Conversions!$C22,1) ->  | G22: =INDIRECT(CONCATENATE("'",G$1,"'!",G$4,(YEAR($A22)-1921)*12+MONTH($A22)+3+IF(ISNUMBER(FIND("PRV",G$6)),1,0)))*IF(AND(G$3>0,TRIM(G$9)="CFS"),Conversions!$C22,1) ->  | K22: 1932 | L22: =B133 -> 0 | M22: =B134 -> 0 | N22: =B135 -> 0 | O22: =B136 -> 0 | P22: =B137 -> 0 | Q22: =B138 -> 0 | R22: =B139 -> 0 | S22: =B140 -> 0 | T22: =B141 -> 0 | U22: =B142 -> 0 | V22: =B143 -> 0 | W22: =B144 -> 0 | Y22: 0 | Z22: 0 | AA22: 0 | AC22: 0 | AD22: 0 | AE22: 0 | AF22: 0 | AG22: 0 | AH22: 0 | AI22: 0 | AK22: 1932 | AL22: =C133 -> 0 | AM22: =C134 -> 0 | AN22: =C135 -> 8.580168992 | AO22: =C136 -> 14.14048814 | AP22: =C137 -> 25.50500016 | AQ22: =C138 -> 25.13683482 | AR22: =C139 -> 0 | AS22: =C140 -> 0 | AT22: =C141 -> 0 | AU22: =C142 -> 0.542872104 | AV22: =C143 -> 0.5291565697 | AW22: =C144 -> 0.5180164918 | AY22: 5.658795782 | AZ22: 6.452126287 | BA22: 6.246044772 | BC22: 12.15881494 | BD22: 0.524823721 | BE22: 3.912603265 | BF22: 11.82438574 | BG22: 9.472333724 | BH22: 0.3327592299 | BI22: 0.5162760585 | BK22: 1932 | BL22: =D133 -> 0 | BM22: =D134 -> 0 | BN22: =D135 -> 8.567308899 | BO22: =D136 -> 14.11493054 | BP22: =D137 -> 26.08243402 | BQ22: =D138 -> 25.74084068 | BR22: =D139 -> 5.428268448 | BS22: =D140 -> 5.371259888 | BT22: =D141 -> 5.274180223 | BU22: =D142 -> 0.01107587772 | BV22: =D143 -> 0.01079753171 | BW22: =D144 -> 0.01057265527 | BY22: 6.839637635 | BZ22: 7.570869846 | CA22: 7.550972398 | CC22: 12.32701876 | CD22: 0.01071006508 | CE22: 3.906193543 | CF22: 11.90781882 | CG22: 13.05466904 | CH22: 1.996742476 | CI22: 0.01053666689 | CK22: 1932 | CL22: =E133 ->  | CM22: =E134 ->  | CN22: =E135 ->  | CO22: =E136 ->  | CP22: =E137 ->  | CQ22: =E138 ->  | CR22: =E139 ->  | CS22: =E140 ->  | CT22: =E141 ->  | CU22: =E142 ->  | CV22: =E143 ->  | CW22: =E144 ->  | DK22: 1932 | DL22: =F133 ->  | DM22: =F134 ->  | DN22: =F135 ->  | DO22: =F136 ->  | DP22: =F137 ->  | DQ22: =F138 ->  | DR22: =F139 ->  | DS22: =F140 ->  | DT22: =F141 ->  | DU22: =F142 ->  | DV22: =F143 ->  | DW22: =F144 ->  | EK22: 1932 | EL22: =G133 ->  | EM22: =G134 ->  | EN22: =G135 ->  | EO22: =G136 ->  | EP22: =G137 ->  | EQ22: =G138 ->  | ER22: =G139 ->  | ES22: =G140 ->  | ET22: =G141 ->  | EU22: =G142 ->  | EV22: =G143 ->  | EW22: =G144 -> 
A23: 1922-08-31 | B23: =INDIRECT(CONCATENATE("'",B$1,"'!",B$4,(YEAR($A23)-1921)*12+MONTH($A23)+3+IF(ISNUMBER(FIND("PRV",B$6)),1,0)))*IF(AND(B$3>0,TRIM(B$9)="CFS"),Conversions!$C23,1) -> 0 | C23: =INDIRECT(CONCATENATE("'",C$1,"'!",C$4,(YEAR($A23)-1921)*12+MONTH($A23)+3+IF(ISNUMBER(FIND("PRV",C$6)),1,0)))*IF(AND(C$3>0,TRIM(C$9)="CFS"),Conversions!$C23,1) -> 93.92742917 | D23: =INDIRECT(CONCATENATE("'",D$1,"'!",D$4,(YEAR($A23)-1921)*12+MONTH($A23)+3+IF(ISNUMBER(FIND("PRV",D$6)),1,0)))*IF(AND(D$3>0,TRIM(D$9)="CFS"),Conversions!$C23,1) -> 62.21574116 | E23: =INDIRECT(CONCATENATE("'",E$1,"'!",E$4,(YEAR($A23)-1921)*12+MONTH($A23)+3+IF(ISNUMBER(FIND("PRV",E$6)),1,0)))*IF(AND(E$3>0,TRIM(E$9)="CFS"),Conversions!$C23,1) ->  | F23: =INDIRECT(CONCATENATE("'",F$1,"'!",F$4,(YEAR($A23)-1921)*12+MONTH($A23)+3+IF(ISNUMBER(FIND("PRV",F$6)),1,0)))*IF(AND(F$3>0,TRIM(F$9)="CFS"),Conversions!$C23,1) ->  | G23: =INDIRECT(CONCATENATE("'",G$1,"'!",G$4,(YEAR($A23)-1921)*12+MONTH($A23)+3+IF(ISNUMBER(FIND("PRV",G$6)),1,0)))*IF(AND(G$3>0,TRIM(G$9)="CFS"),Conversions!$C23,1) ->  | K23: 1933 | L23: =B145 -> 0 | M23: =B146 -> 0 | N23: =B147 -> 0 | O23: =B148 -> 0 | P23: =B149 -> 0 | Q23: =B150 -> 0 | R23: =B151 -> 0 | S23: =B152 -> 0 | T23: =B153 -> 0 | U23: =B154 -> 0 | V23: =B155 -> 0 | W23: =B156 -> 0 | Y23: 0 | Z23: 0 | AA23: 0 | AC23: 0 | AD23: 0 | AE23: 0 | AF23: 0 | AG23: 0 | AH23: 0 | AI23: 0 | AK23: 1933 | AL23: =C145 -> 0.5117240988 | AM23: =C146 -> 0.5090185997 | AN23: =C147 -> 0.5124384121 | AO23: =C148 -> 24.29123495 | AP23: =C149 -> 24.87421941 | AQ23: =C150 -> 21.94889805 | AR23: =C151 -> 0 | AS23: =C152 -> 0 | AT23: =C153 -> 0 | AU23: =C154 -> 0 | AV23: =C155 -> 0 | AW23: =C156 -> 0 | AY23: 7.794941122 | AZ23: 8.343176928 | BA23: 6.053961126 | BC23: 12.28344449 | BD23: 0 | BE23: 3.484451707 | BF23: 12.49843079 | BG23: 8.596501938 | BH23: 0 | BI23: 0 | BK23: 1933 | BL23: =D145 -> 0.01044413882 | BM23: =D146 -> 0.01038888144 | BN23: =D147 -> 0.01045872802 | BO23: =D148 -> 24.18654119 | BP23: =D149 -> 24.78560991 | BQ23: =D150 -> 22.91391784 | BR23: =D151 -> 0 | BS23: =D152 -> 0 | BT23: =D153 -> 0 | BU23: =D154 -> 0 | BV23: =D155 -> 0 | BW23: =D156 -> 0 | BY23: 7.743321823 | BZ23: 8.070700861 | CA23: 5.99311339 | CC23: 12.09103594 | CD23: 0 | CE23: 3.032462168 | CF23: 12.1983331 | CG23: 8.826680697 | CH23: 0 | CI23: 0 | CK23: 1933 | CL23: =E145 ->  | CM23: =E146 ->  | CN23: =E147 ->  | CO23: =E148 ->  | CP23: =E149 ->  | CQ23: =E150 ->  | CR23: =E151 ->  | CS23: =E152 ->  | CT23: =E153 ->  | CU23: =E154 ->  | CV23: =E155 ->  | CW23: =E156 ->  | DK23: 1933 | DL23: =F145 ->  | DM23: =F146 ->  | DN23: =F147 ->  | DO23: =F148 ->  | DP23: =F149 ->  | DQ23: =F150 ->  | DR23: =F151 ->  | DS23: =F152 ->  | DT23: =F153 ->  | DU23: =F154 ->  | DV23: =F155 ->  | DW23: =F156 ->  | EK23: 1933 | EL23: =G145 ->  | EM23: =G146 ->  | EN23: =G147 ->  | EO23: =G148 ->  | EP23: =G149 ->  | EQ23: =G150 ->  | ER23: =G151 ->  | ES23: =G152 ->  | ET23: =G153 ->  | EU23: =G154 ->  | EV23: =G155 ->  | EW23: =G156 -> 
A24: 1922-09-30 | B24: =INDIRECT(CONCATENATE("'",B$1,"'!",B$4,(YEAR($A24)-1921)*12+MONTH($A24)+3+IF(ISNUMBER(FIND("PRV",B$6)),1,0)))*IF(AND(B$3>0,TRIM(B$9)="CFS"),Conversions!$C24,1) -> 0 | C24: =INDIRECT(CONCATENATE("'",C$1,"'!",C$4,(YEAR($A24)-1921)*12+MONTH($A24)+3+IF(ISNUMBER(FIND("PRV",C$6)),1,0)))*IF(AND(C$3>0,TRIM(C$9)="CFS"),Conversions!$C24,1) -> 93.27820333 | D24: =INDIRECT(CONCATENATE("'",D$1,"'!",D$4,(YEAR($A24)-1921)*12+MONTH($A24)+3+IF(ISNUMBER(FIND("PRV",D$6)),1,0)))*IF(AND(D$3>0,TRIM(D$9)="CFS"),Conversions!$C24,1) -> 35.86764384 | E24: =INDIRECT(CONCATENATE("'",E$1,"'!",E$4,(YEAR($A24)-1921)*12+MONTH($A24)+3+IF(ISNUMBER(FIND("PRV",E$6)),1,0)))*IF(AND(E$3>0,TRIM(E$9)="CFS"),Conversions!$C24,1) ->  | F24: =INDIRECT(CONCATENATE("'",F$1,"'!",F$4,(YEAR($A24)-1921)*12+MONTH($A24)+3+IF(ISNUMBER(FIND("PRV",F$6)),1,0)))*IF(AND(F$3>0,TRIM(F$9)="CFS"),Conversions!$C24,1) ->  | G24: =INDIRECT(CONCATENATE("'",G$1,"'!",G$4,(YEAR($A24)-1921)*12+MONTH($A24)+3+IF(ISNUMBER(FIND("PRV",G$6)),1,0)))*IF(AND(G$3>0,TRIM(G$9)="CFS"),Conversions!$C24,1) ->  | K24: 1934 | L24: =B157 -> 0 | M24: =B158 -> 0 | N24: =B159 -> 0 | O24: =B160 -> 0 | P24: =B161 -> 0 | Q24: =B162 -> 0 | R24: =B163 -> 0 | S24: =B164 -> 0 | T24: =B165 -> 0 | U24: =B166 -> 0 | V24: =B167 -> 0 | W24: =B168 -> 0 | Y24: 0 | Z24: 0 | AA24: 0 | AC24: 0 | AD24: 0 | AE24: 0 | AF24: 0 | AG24: 0 | AH24: 0 | AI24: 0 | AK24: 1934 | AL24: =C157 -> 0 | AM24: =C158 -> 0 | AN24: =C159 -> 22.42494107 | AO24: =C160 -> 27.38613648 | AP24: =C161 -> 28.35814754 | AQ24: =C162 -> 17.12654862 | AR24: =C163 -> 0 | AS24: =C164 -> 0 | AT24: =C165 -> 0 | AU24: =C166 -> 0 | AV24: =C167 -> 0 | AW24: =C168 -> 0 | AY24: 6.144742671 | AZ24: 5.150972733 | BA24: 7.941314475 | BC24: 17.34649988 | BD24: 0 | BE24: 9.029502326 | BF24: 21.33005044 | BG24: 7.826405597 | BH24: 0 | BI24: 0.06055758164 | BK24: 1934 | BL24: =D157 -> 0 | BM24: =D158 -> 0 | BN24: =D159 -> 21.03379295 | BO24: =D160 -> 25.98663253 | BP24: =D161 -> 26.91406702 | BQ24: =D162 -> 15.73177708 | BR24: =D163 -> 0 | BS24: =D164 -> 0 | BT24: =D165 -> 0 | BU24: =D166 -> 0 | BV24: =D167 -> 0 | BW24: =D168 -> 0 | BY24: 5.719373053 | BZ24: 4.662991813 | CA24: 7.472189132 | CC24: 16.36007621 | CD24: 0 | CE24: 8.506777303 | CF24: 20.159153 | CG24: 7.297202648 | CH24: 0 | CI24: 0 | CK24: 1934 | CL24: =E157 ->  | CM24: =E158 ->  | CN24: =E159 ->  | CO24: =E160 ->  | CP24: =E161 ->  | CQ24: =E162 ->  | CR24: =E163 ->  | CS24: =E164 ->  | CT24: =E165 ->  | CU24: =E166 ->  | CV24: =E167 ->  | CW24: =E168 ->  | DK24: 1934 | DL24: =F157 ->  | DM24: =F158 ->  | DN24: =F159 ->  | DO24: =F160 ->  | DP24: =F161 ->  | DQ24: =F162 ->  | DR24: =F163 ->  | DS24: =F164 ->  | DT24: =F165 ->  | DU24: =F166 ->  | DV24: =F167 ->  | DW24: =F168 ->  | EK24: 1934 | EL24: =G157 ->  | EM24: =G158 ->  | EN24: =G159 ->  | EO24: =G160 ->  | EP24: =G161 ->  | EQ24: =G162 ->  | ER24: =G163 ->  | ES24: =G164 ->  | ET24: =G165 ->  | EU24: =G166 ->  | EV24: =G167 ->  | EW24: =G168 -> 
A25: 1922-10-31 | B25: =INDIRECT(CONCATENATE("'",B$1,"'!",B$4,(YEAR($A25)-1921)*12+MONTH($A25)+3+IF(ISNUMBER(FIND("PRV",B$6)),1,0)))*IF(AND(B$3>0,TRIM(B$9)="CFS"),Conversions!$C25,1) -> 0 | C25: =INDIRECT(CONCATENATE("'",C$1,"'!",C$4,(YEAR($A25)-1921)*12+MONTH($A25)+3+IF(ISNUMBER(FIND("PRV",C$6)),1,0)))*IF(AND(C$3>0,TRIM(C$9)="CFS"),Conversions!$C25,1) -> 93.15583781 | D25: =INDIRECT(CONCATENATE("'",D$1,"'!",D$4,(YEAR($A25)-1921)*12+MONTH($A25)+3+IF(ISNUMBER(FIND("PRV",D$6)),1,0)))*IF(AND(D$3>0,TRIM(D$9)="CFS"),Conversions!$C25,1) -> 0 | E25: =INDIRECT(CONCATENATE("'",E$1,"'!",E$4,(YEAR($A25)-1921)*12+MONTH($A25)+3+IF(ISNUMBER(FIND("PRV",E$6)),1,0)))*IF(AND(E$3>0,TRIM(E$9)="CFS"),Conversions!$C25,1) ->  | F25: =INDIRECT(CONCATENATE("'",F$1,"'!",F$4,(YEAR($A25)-1921)*12+MONTH($A25)+3+IF(ISNUMBER(FIND("PRV",F$6)),1,0)))*IF(AND(F$3>0,TRIM(F$9)="CFS"),Conversions!$C25,1) ->  | G25: =INDIRECT(CONCATENATE("'",G$1,"'!",G$4,(YEAR($A25)-1921)*12+MONTH($A25)+3+IF(ISNUMBER(FIND("PRV",G$6)),1,0)))*IF(AND(G$3>0,TRIM(G$9)="CFS"),Conversions!$C25,1) ->  | K25: 1935 | L25: =B169 -> 0 | M25: =B170 -> 0 | N25: =B171 -> 0 | O25: =B172 -> 0 | P25: =B173 -> 0 | Q25: =B174 -> 0 | R25: =B175 -> 0 | S25: =B176 -> 0 | T25: =B177 -> 0 | U25: =B178 -> 0 | V25: =B179 -> 0 | W25: =B180 -> 0 | Y25: 0 | Z25: 0 | AA25: 0 | AC25: 0 | AD25: 0 | AE25: 0 | AF25: 0 | AG25: 0 | AH25: 0 | AI25: 0 | AK25: 1935 | AL25: =C169 -> 0 | AM25: =C170 -> 0.3633454898 | AN25: =C171 -> 0.5027339274 | AO25: =C172 -> 9.209164508 | AP25: =C173 -> 34.60988025 | AQ25: =C174 -> 48.348137 | AR25: =C175 -> 76.71039334 | AS25: =C176 -> 64.09270151 | AT25: =C177 -> 17.65831741 | AU25: =C178 -> 1.958350676e-06 | AV25: =C179 -> 0 | AW25: =C180 -> 0 | AY25: 20.88572031 | AZ25: 21.53914936 | BA25: 20.95788962 | BC25: 13.77183854 | BD25: 3.263917793e-07 | BE25: 1.367665418 | BF25: 9.066170436 | BG25: 53.82133267 | BH25: 12.42616753 | BI25: 3.970820624e-06 | BK25: 1935 | BL25: =D169 -> 0 | BM25: =D170 -> 0 | BN25: =D171 -> 0 | BO25: =D172 -> 7.691851455 | BP25: =D173 -> 32.53227323 | BQ25: =D174 -> 39.5417425 | BR25: =D175 -> 69.12337746 | BS25: =D176 -> 68.85804449 | BT25: =D177 -> 0.01097348336 | BU25: =D178 -> 4.741121268e-06 | BV25: =D179 -> 0 | BW25: =D180 -> 0 | BY25: 18.14652635 | BZ25: 19.09267513 | CA25: 18.14652228 | CC25: 11.99899919 | CD25: 7.90186878e-07 | CE25: 0.9614814319 | CF25: 7.985996023 | CG25: 48.44869695 | CH25: 8.610000117 | CI25: 4.068726144e-06 | CK25: 1935 | CL25: =E169 ->  | CM25: =E170 ->  | CN25: =E171 ->  | CO25: =E172 ->  | CP25: =E173 ->  | CQ25: =E174 ->  | CR25: =E175 ->  | CS25: =E176 ->  | CT25: =E177 ->  | CU25: =E178 ->  | CV25: =E179 ->  | CW25: =E180 ->  | DK25: 1935 | DL25: =F169 ->  | DM25: =F170 ->  | DN25: =F171 ->  | DO25: =F172 ->  | DP25: =F173 ->  | DQ25: =F174 ->  | DR25: =F175 ->  | DS25: =F176 ->  | DT25: =F177 ->  | DU25: =F178 ->  | DV25: =F179 ->  | DW25: =F180 ->  | EK25: 1935 | EL25: =G169 ->  | EM25: =G170 ->  | EN25: =G171 ->  | EO25: =G172 ->  | EP25: =G173 ->  | EQ25: =G174 ->  | ER25: =G175 ->  | ES25: =G176 ->  | ET25: =G177 ->  | EU25: =G178 ->  | EV25: =G179 ->  | EW25: =G180 -> 
A26: 1922-11-30 | B26: =INDIRECT(CONCATENATE("'",B$1,"'!",B$4,(YEAR($A26)-1921)*12+MONTH($A26)+3+IF(ISNUMBER(FIND("PRV",B$6)),1,0)))*IF(AND(B$3>0,TRIM(B$9)="CFS"),Conversions!$C26,1) -> 0 | C26: =INDIRECT(CONCATENATE("'",C$1,"'!",C$4,(YEAR($A26)-1921)*12+MONTH($A26)+3+IF(ISNUMBER(FIND("PRV",C$6)),1,0)))*IF(AND(C$3>0,TRIM(C$9)="CFS"),Conversions!$C26,1) -> 96.73587593 | D26: =INDIRECT(CONCATENATE("'",D$1,"'!",D$4,(YEAR($A26)-1921)*12+MONTH($A26)+3+IF(ISNUMBER(FIND("PRV",D$6)),1,0)))*IF(AND(D$3>0,TRIM(D$9)="CFS"),Conversions!$C26,1) -> 10.40727991 | E26: =INDIRECT(CONCATENATE("'",E$1,"'!",E$4,(YEAR($A26)-1921)*12+MONTH($A26)+3+IF(ISNUMBER(FIND("PRV",E$6)),1,0)))*IF(AND(E$3>0,TRIM(E$9)="CFS"),Conversions!$C26,1) ->  | F26: =INDIRECT(CONCATENATE("'",F$1,"'!",F$4,(YEAR($A26)-1921)*12+MONTH($A26)+3+IF(ISNUMBER(FIND("PRV",F$6)),1,0)))*IF(AND(F$3>0,TRIM(F$9)="CFS"),Conversions!$C26,1) ->  | G26: =INDIRECT(CONCATENATE("'",G$1,"'!",G$4,(YEAR($A26)-1921)*12+MONTH($A26)+3+IF(ISNUMBER(FIND("PRV",G$6)),1,0)))*IF(AND(G$3>0,TRIM(G$9)="CFS"),Conversions!$C26,1) ->  | K26: 1936 | L26: =B181 -> 0 | M26: =B182 -> 0 | N26: =B183 -> 0 | O26: =B184 -> 0 | P26: =B185 -> 0 | Q26: =B186 -> 0 | R26: =B187 -> 0 | S26: =B188 -> 0 | T26: =B189 -> 0 | U26: =B190 -> 0 | V26: =B191 -> 0 | W26: =B192 -> 0 | Y26: 0 | Z26: 0 | AA26: 0 | AC26: 0 | AD26: 0 | AE26: 0 | AF26: 0 | AG26: 0 | AH26: 0 | AI26: 0 | AK26: 1936 | AL26: =C181 -> 0 | AM26: =C182 -> 2.382492374e-05 | AN26: =C183 -> 2.389579414e-05 | AO26: =C184 -> 12.99907516 | AP26: =C185 -> 38.6611182 | AQ26: =C186 -> 70.57872514 | AR26: =C187 -> 66.72288812 | AS26: =C188 -> 59.80747348 | AT26: =C189 -> 51.97442907 | AU26: =C190 -> 3.795520506 | AV26: =C191 -> 8.489195332e-06 | AW26: =C192 -> 8.398017599e-06 | AY26: 25.37841232 | AZ26: 21.96621891 | BA26: 25.37827452 | BC26: 17.38992073 | BD26: 0.6325923801 | BE26: 1.624896325 | BF26: 10.77655669 | BG26: 60.60671509 | BH26: 21.41842475 | BI26: 0.00014584588 | BK26: 1936 | BL26: =D181 -> 0 | BM26: =D182 -> 2.441235687e-05 | BN26: =D183 -> 2.448356702e-05 | BO26: =D184 -> 13.00093256 | BP26: =D185 -> 38.57697737 | BQ26: =D186 -> 70.54906497 | BR26: =D187 -> 70.39014911 | BS26: =D188 -> 70.08858843 | BT26: =D189 -> 70.00249015 | BU26: =D190 -> 0.02937175462 | BV26: =D191 -> 1.532702656e-05 | BW26: =D192 -> 1.516327322e-05 | BY26: 27.7199396 | BZ26: 24.31417242 | CA26: 27.71980448 | CC26: 17.37049826 | CD26: 0.00490545587 | CE26: 1.625128794 | CF26: 10.76315265 | CG26: 66.32938407 | CH26: 26.26904476 | CI26: 0.0001466656888 | CK26: 1936 | CL26: =E181 ->  | CM26: =E182 ->  | CN26: =E183 ->  | CO26: =E184 ->  | CP26: =E185 ->  | CQ26: =E186 ->  | CR26: =E187 ->  | CS26: =E188 ->  | CT26: =E189 ->  | CU26: =E190 ->  | CV26: =E191 ->  | CW26: =E192 ->  | DK26: 1936 | DL26: =F181 ->  | DM26: =F182 ->  | DN26: =F183 ->  | DO26: =F184 ->  | DP26: =F185 ->  | DQ26: =F186 ->  | DR26: =F187 ->  | DS26: =F188 ->  | DT26: =F189 ->  | DU26: =F190 ->  | DV26: =F191 ->  | DW26: =F192 ->  | EK26: 1936 | EL26: =G181 ->  | EM26: =G182 ->  | EN26: =G183 ->  | EO26: =G184 ->  | EP26: =G185 ->  | EQ26: =G186 ->  | ER26: =G187 ->  | ES26: =G188 ->  | ET26: =G189 ->  | EU26: =G190 ->  | EV26: =G191 ->  | EW26: =G192 -> 
A27: 1922-12-31 | B27: =INDIRECT(CONCATENATE("'",B$1,"'!",B$4,(YEAR($A27)-1921)*12+MONTH($A27)+3+IF(ISNUMBER(FIND("PRV",B$6)),1,0)))*IF(AND(B$3>0,TRIM(B$9)="CFS"),Conversions!$C27,1) -> 0 | C27: =INDIRECT(CONCATENATE("'",C$1,"'!",C$4,(YEAR($A27)-1921)*12+MONTH($A27)+3+IF(ISNUMBER(FIND("PRV",C$6)),1,0)))*IF(AND(C$3>0,TRIM(C$9)="CFS"),Conversions!$C27,1) -> 97.21671201 | D27: =INDIRECT(CONCATENATE("'",D$1,"'!",D$4,(YEAR($A27)-1921)*12+MONTH($A27)+3+IF(ISNUMBER(FIND("PRV",D$6)),1,0)))*IF(AND(D$3>0,TRIM(D$9)="CFS"),Conversions!$C27,1) -> 10.45543728 | E27: =INDIRECT(CONCATENATE("'",E$1,"'!",E$4,(YEAR($A27)-1921)*12+MONTH($A27)+3+IF(ISNUMBER(FIND("PRV",E$6)),1,0)))*IF(AND(E$3>0,TRIM(E$9)="CFS"),Conversions!$C27,1) ->  | F27: =INDIRECT(CONCATENATE("'",F$1,"'!",F$4,(YEAR($A27)-1921)*12+MONTH($A27)+3+IF(ISNUMBER(FIND("PRV",F$6)),1,0)))*IF(AND(F$3>0,TRIM(F$9)="CFS"),Conversions!$C27,1) ->  | G27: =INDIRECT(CONCATENATE("'",G$1,"'!",G$4,(YEAR($A27)-1921)*12+MONTH($A27)+3+IF(ISNUMBER(FIND("PRV",G$6)),1,0)))*IF(AND(G$3>0,TRIM(G$9)="CFS"),Conversions!$C27,1) ->  | K27: 1937 | L27: =B193 -> 0 | M27: =B194 -> 0 | N27: =B195 -> 0 | O27: =B196 -> 0 | P27: =B197 -> 0 | Q27: =B198 -> 0 | R27: =B199 -> 0 | S27: =B200 -> 0 | T27: =B201 -> 0 | U27: =B202 -> 0 | V27: =B203 -> 0 | W27: =B204 -> 0 | Y27: 0 | Z27: 0 | AA27: 0 | AC27: 0 | AD27: 0 | AE27: 0 | AF27: 0 | AG27: 0 | AH27: 0 | AI27: 0 | AK27: 1937 | AL27: =C193 -> 0 | AM27: =C194 -> 0.0008497900493 | AN27: =C195 -> 0.0008515208902 | AO27: =C196 -> 0.0008552503689 | AP27: =C197 -> 10.71301718 | AQ27: =C198 -> 35.74877715 | AR27: =C199 -> 31.5808139 | AS27: =C200 -> 18.67628015 | AT27: =C201 -> 0.002157045082 | AU27: =C202 -> 0.002124923095 | AV27: =C203 -> 1.879465064e-06 | AW27: =C204 -> 0 | AY27: 10.03249965 | AZ27: 16.94338822 | BA27: 8.0604774 | BC27: 5.717992464 | BD27: 0.0003547803375 | BE27: 0.0005332837832 | BF27: 1.786213419 | BG27: 22.84086458 | BH27: 2.335605981 | BI27: 3.132441773e-07 | BK27: 1937 | BL27: =D193 -> 0 | BM27: =D194 -> 0.0008343405601 | BN27: =D195 -> 0.0008360314992 | BO27: =D196 -> 0.0008599306822 | BP27: =D197 -> 10.70784379 | BQ27: =D198 -> 35.72033228 | BR27: =D199 -> 35.61664045 | BS27: =D200 -> 35.53081662 | BT27: =D201 -> 0.005012097406 | BU27: =D202 -> 0.004937774059 | BV27: =D203 -> 4.328779258e-06 | BW27: =D204 -> 0 | BY27: 11.7710265 | BZ27: 18.65790626 | CA27: 9.799009804 | CC27: 5.714108047 | CD27: 0.0008244052695 | CE27: 0.0005269797592 | CF27: 1.785345009 | CG27: 28.05605432 | CH27: 4.443840627 | CI27: 7.214632097e-07 | CK27: 1937 | CL27: =E193 ->  | CM27: =E194 ->  | CN27: =E195 ->  | CO27: =E196 ->  | CP27: =E197 ->  | CQ27: =E198 ->  | CR27: =E199 ->  | CS27: =E200 ->  | CT27: =E201 ->  | CU27: =E202 ->  | CV27: =E203 ->  | CW27: =E204 ->  | DK27: 1937 | DL27: =F193 ->  | DM27: =F194 ->  | DN27: =F195 ->  | DO27: =F196 ->  | DP27: =F197 ->  | DQ27: =F198 ->  | DR27: =F199 ->  | DS27: =F200 ->  | DT27: =F201 ->  | DU27: =F202 ->  | DV27: =F203 ->  | DW27: =F204 ->  | EK27: 1937 | EL27: =G193 ->  | EM27: =G194 ->  | EN27: =G195 ->  | EO27: =G196 ->  | EP27: =G197 ->  | EQ27: =G198 ->  | ER27: =G199 ->  | ES27: =G200 ->  | ET27: =G201 ->  | EU27: =G202 ->  | EV27: =G203 ->  | EW27: =G204 -> 
A28: 1923-01-31 | B28: =INDIRECT(CONCATENATE("'",B$1,"'!",B$4,(YEAR($A28)-1921)*12+MONTH($A28)+3+IF(ISNUMBER(FIND("PRV",B$6)),1,0)))*IF(AND(B$3>0,TRIM(B$9)="CFS"),Conversions!$C28,1) -> 0 | C28: =INDIRECT(CONCATENATE("'",C$1,"'!",C$4,(YEAR($A28)-1921)*12+MONTH($A28)+3+IF(ISNUMBER(FIND("PRV",C$6)),1,0)))*IF(AND(C$3>0,TRIM(C$9)="CFS"),Conversions!$C28,1) -> 103.0729266 | D28: =INDIRECT(CONCATENATE("'",D$1,"'!",D$4,(YEAR($A28)-1921)*12+MONTH($A28)+3+IF(ISNUMBER(FIND("PRV",D$6)),1,0)))*IF(AND(D$3>0,TRIM(D$9)="CFS"),Conversions!$C28,1) -> 16.20693216 | E28: =INDIRECT(CONCATENATE("'",E$1,"'!",E$4,(YEAR($A28)-1921)*12+MONTH($A28)+3+IF(ISNUMBER(FIND("PRV",E$6)),1,0)))*IF(AND(E$3>0,TRIM(E$9)="CFS"),Conversions!$C28,1) ->  | F28: =INDIRECT(CONCATENATE("'",F$1,"'!",F$4,(YEAR($A28)-1921)*12+MONTH($A28)+3+IF(ISNUMBER(FIND("PRV",F$6)),1,0)))*IF(AND(F$3>0,TRIM(F$9)="CFS"),Conversions!$C28,1) ->  | G28: =INDIRECT(CONCATENATE("'",G$1,"'!",G$4,(YEAR($A28)-1921)*12+MONTH($A28)+3+IF(ISNUMBER(FIND("PRV",G$6)),1,0)))*IF(AND(G$3>0,TRIM(G$9)="CFS"),Conversions!$C28,1) ->  | K28: 1938 | L28: =B205 -> 0 | M28: =B206 -> 0 | N28: =B207 -> 0 | O28: =B208 -> 0 | P28: =B209 -> 0 | Q28: =B210 -> 0 | R28: =B211 -> 0 | S28: =B212 -> 0 | T28: =B213 -> 0 | U28: =B214 -> 0 | V28: =B215 -> 0 | W28: =B216 -> 0 | Y28: 0 | Z28: 0 | AA28: 0 | AC28: 0 | AD28: 0 | AE28: 0 | AF28: 0 | AG28: 0 | AH28: 0 | AI28: 0 | AK28: 1938 | AL28: =C205 -> 0 | AM28: =C206 -> 0 | AN28: =C207 -> 23.66596826 | AO28: =C208 -> 30.86336071 | AP28: =C209 -> 62.78117463 | AQ28: =C210 -> 98.68597027 | AR28: =C211 -> 134.5667806 | AS28: =C212 -> 156.5995615 | AT28: =C213 -> 160.9288634 | AU28: =C214 -> 159.4835318 | AV28: =C215 -> 158.2346148 | AW28: =C216 -> 157.33106 | AY28: 128.0702369 | AZ28: 140.4777409 | BA28: 95.26174051 | BC28: 33.33069775 | BD28: 157.9385045 | BE28: 9.774412154 | BF28: 28.6399721 | BG28: 125.4268329 | BH28: 158.9030802 | BI28: 154.3393723 | BK28: 1938 | BL28: =D205 -> 0 | BM28: =D206 -> 0 | BN28: =D207 -> 23.66587076 | BO28: =D208 -> 30.79097334 | BP28: =D209 -> 62.56028751 | BQ28: =D210 -> 98.39592269 | BR28: =D211 -> 135.7721394 | BS28: =D212 -> 182.3822261 | BT28: =D213 -> 192.5946537 | BU28: =D214 -> 191.0185093 | BV28: =D215 -> 189.6569437 | BW28: =D216 -> 188.6719417 | BY28: 148.5946051 | BZ28: 166.244553 | CA28: 107.9591223 | CC28: 33.24301859 | CD28: 189.3339677 | CE28: 9.765339358 | CF28: 28.57899595 | CG28: 136.0319397 | CH28: 189.6992977 | CI28: 185.6782978 | CK28: 1938 | CL28: =E205 ->  | CM28: =E206 ->  | CN28: =E207 ->  | CO28: =E208 ->  | CP28: =E209 ->  | CQ28: =E210 ->  | CR28: =E211 ->  | CS28: =E212 ->  | CT28: =E213 ->  | CU28: =E214 ->  | CV28: =E215 ->  | CW28: =E216 ->  | DK28: 1938 | DL28: =F205 ->  | DM28: =F206 ->  | DN28: =F207 ->  | DO28: =F208 ->  | DP28: =F209 ->  | DQ28: =F210 ->  | DR28: =F211 ->  | DS28: =F212 ->  | DT28: =F213 ->  | DU28: =F214 ->  | DV28: =F215 ->  | DW28: =F216 ->  | EK28: 1938 | EL28: =G205 ->  | EM28: =G206 ->  | EN28: =G207 ->  | EO28: =G208 ->  | EP28: =G209 ->  | EQ28: =G210 ->  | ER28: =G211 ->  | ES28: =G212 ->  | ET28: =G213 ->  | EU28: =G214 ->  | EV28: =G215 ->  | EW28: =G216 -> 
A29: 1923-02-28 | B29: =INDIRECT(CONCATENATE("'",B$1,"'!",B$4,(YEAR($A29)-1921)*12+MONTH($A29)+3+IF(ISNUMBER(FIND("PRV",B$6)),1,0)))*IF(AND(B$3>0,TRIM(B$9)="CFS"),Conversions!$C29,1) -> 0 | C29: =INDIRECT(CONCATENATE("'",C$1,"'!",C$4,(YEAR($A29)-1921)*12+MONTH($A29)+3+IF(ISNUMBER(FIND("PRV",C$6)),1,0)))*IF(AND(C$3>0,TRIM(C$9)="CFS"),Conversions!$C29,1) -> 96.76568508 | D29: =INDIRECT(CONCATENATE("'",D$1,"'!",D$4,(YEAR($A29)-1921)*12+MONTH($A29)+3+IF(ISNUMBER(FIND("PRV",D$6)),1,0)))*IF(AND(D$3>0,TRIM(D$9)="CFS"),Conversions!$C29,1) -> 0 | E29: =INDIRECT(CONCATENATE("'",E$1,"'!",E$4,(YEAR($A29)-1921)*12+MONTH($A29)+3+IF(ISNUMBER(FIND("PRV",E$6)),1,0)))*IF(AND(E$3>0,TRIM(E$9)="CFS"),Conversions!$C29,1) ->  | F29: =INDIRECT(CONCATENATE("'",F$1,"'!",F$4,(YEAR($A29)-1921)*12+MONTH($A29)+3+IF(ISNUMBER(FIND("PRV",F$6)),1,0)))*IF(AND(F$3>0,TRIM(F$9)="CFS"),Conversions!$C29,1) ->  | G29: =INDIRECT(CONCATENATE("'",G$1,"'!",G$4,(YEAR($A29)-1921)*12+MONTH($A29)+3+IF(ISNUMBER(FIND("PRV",G$6)),1,0)))*IF(AND(G$3>0,TRIM(G$9)="CFS"),Conversions!$C29,1) ->  | K29: 1939 | L29: =B217 -> 0 | M29: =B218 -> 0 | N29: =B219 -> 0 | O29: =B220 -> 0 | P29: =B221 -> 0 | Q29: =B222 -> 0 | R29: =B223 -> 0 | S29: =B224 -> 0 | T29: =B225 -> 0 | U29: =B226 -> 0 | V29: =B227 -> 0 | W29: =B228 -> 0 | Y29: 0 | Z29: 0 | AA29: 0 | AC29: 0 | AD29: 0 | AE29: 0 | AF29: 0 | AG29: 0 | AH29: 0 | AI29: 0 | AK29: 1939 | AL29: =C217 -> 157.0161455 | AM29: =C218 -> 139.1072082 | AN29: =C219 -> 121.2445711 | AO29: =C220 -> 121.3212013 | AP29: =C221 -> 121.2133823 | AQ29: =C222 -> 110.8649676 | AR29: =C223 -> 73.93591549 | AS29: =C224 -> 46.61661445 | AT29: =C225 -> 26.48933724 | AU29: =C226 -> 3.355431532 | AV29: =C227 -> 0 | AW29: =C228 -> 3.183047842 | AY29: 43.32461222 | AZ29: 25.70699333 | BA29: 77.02898522 | BC29: 127.3653839 | BD29: 3.33096926 | BE29: 139.1735139 | BF29: 124.2420226 | BG29: 76.31721434 | BH29: 13.68614998 | BI29: 4.92346255 | BK29: 1939 | BL29: =D217 -> 188.3275263 | BM29: =D218 -> 170.4139075 | BN29: =D219 -> 152.5502298 | BO29: =D220 -> 152.6348454 | BP29: =D221 -> 152.5157908 | BQ29: =D222 -> 152.3171569 | BR29: =D223 -> 133.7367115 | BS29: =D224 -> 44.59921131 | BT29: =D225 -> 0.004922168609 | BU29: =D226 -> 1.758466072e-06 | BV29: =D227 -> 0 | BW29: =D228 -> 3.183050707 | BY29: 54.20731195 | BZ29: 31.77736203 | CA29: 95.85694618 | CC29: 159.687423 | CD29: 2.771826619 | CE29: 170.4862643 | CF29: 155.5499748 | CG29: 101.7283591 | CH29: 5.974013734 | CI29: 4.585137804 | CK29: 1939 | CL29: =E217 ->  | CM29: =E218 ->  | CN29: =E219 ->  | CO29: =E220 ->  | CP29: =E221 ->  | CQ29: =E222 ->  | CR29: =E223 ->  | CS29: =E224 ->  | CT29: =E225 ->  | CU29: =E226 ->  | CV29: =E227 ->  | CW29: =E228 ->  | DK29: 1939 | DL29: =F217 ->  | DM29: =F218 ->  | DN29: =F219 ->  | DO29: =F220 ->  | DP29: =F221 ->  | DQ29: =F222 ->  | DR29: =F223 ->  | DS29: =F224 ->  | DT29: =F225 ->  | DU29: =F226 ->  | DV29: =F227 ->  | DW29: =F228 ->  | EK29: 1939 | EL29: =G217 ->  | EM29: =G218 ->  | EN29: =G219 ->  | EO29: =G220 ->  | EP29: =G221 ->  | EQ29: =G222 ->  | ER29: =G223 ->  | ES29: =G224 ->  | ET29: =G225 ->  | EU29: =G226 ->  | EV29: =G227 ->  | EW29: =G228 -> 
A30: 1923-03-31 | B30: =INDIRECT(CONCATENATE("'",B$1,"'!",B$4,(YEAR($A30)-1921)*12+MONTH($A30)+3+IF(ISNUMBER(FIND("PRV",B$6)),1,0)))*IF(AND(B$3>0,TRIM(B$9)="CFS"),Conversions!$C30,1) -> 0 | C30: =INDIRECT(CONCATENATE("'",C$1,"'!",C$4,(YEAR($A30)-1921)*12+MONTH($A30)+3+IF(ISNUMBER(FIND("PRV",C$6)),1,0)))*IF(AND(C$3>0,TRIM(C$9)="CFS"),Conversions!$C30,1) -> 96.24573723 | D30: =INDIRECT(CONCATENATE("'",D$1,"'!",D$4,(YEAR($A30)-1921)*12+MONTH($A30)+3+IF(ISNUMBER(FIND("PRV",D$6)),1,0)))*IF(AND(D$3>0,TRIM(D$9)="CFS"),Conversions!$C30,1) -> 0.26 | E30: =INDIRECT(CONCATENATE("'",E$1,"'!",E$4,(YEAR($A30)-1921)*12+MONTH($A30)+3+IF(ISNUMBER(FIND("PRV",E$6)),1,0)))*IF(AND(E$3>0,TRIM(E$9)="CFS"),Conversions!$C30,1) ->  | F30: =INDIRECT(CONCATENATE("'",F$1,"'!",F$4,(YEAR($A30)-1921)*12+MONTH($A30)+3+IF(ISNUMBER(FIND("PRV",F$6)),1,0)))*IF(AND(F$3>0,TRIM(F$9)="CFS"),Conversions!$C30,1) ->  | G30: =INDIRECT(CONCATENATE("'",G$1,"'!",G$4,(YEAR($A30)-1921)*12+MONTH($A30)+3+IF(ISNUMBER(FIND("PRV",G$6)),1,0)))*IF(AND(G$3>0,TRIM(G$9)="CFS"),Conversions!$C30,1) ->  | K30: 1940 | L30: =B229 -> 0 | M30: =B230 -> 0 | N30: =B231 -> 0 | O30: =B232 -> 0 | P30: =B233 -> 0 | Q30: =B234 -> 0 | R30: =B235 -> 0 | S30: =B236 -> 0 | T30: =B237 -> 0 | U30: =B238 -> 0 | V30: =B239 -> 0 | W30: =B240 -> 0 | Y30: 0 | Z30: 0 | AA30: 0 | AC30: 0 | AD30: 0 | AE30: 0 | AF30: 0 | AG30: 0 | AH30: 0 | AI30: 0 | AK30: 1940 | AL30: =C229 -> 10.26428835 | AM30: =C230 -> 2.646102921 | AN30: =C231 -> 0.005057588781 | AO30: =C232 -> 7.229605344 | AP30: =C233 -> 23.89355154 | AQ30: =C234 -> 59.65875207 | AR30: =C235 -> 94.6510655 | AS30: =C236 -> 94.31215498 | AT30: =C237 -> 55.39194924 | AU30: =C238 -> 58.48645027 | AV30: =C239 -> 54.21980546 | AW30: =C240 -> 53.81694385 | AY30: 55.27687487 | AZ30: 70.59750091 | BA30: 42.88131059 | BC30: 13.74716752 | BD30: 54.70649161 | BE30: 4.530443862 | BF30: 6.834830054 | BG30: 72.06618074 | BH30: 60.5406886 | BI30: 53.81347736 | BK30: 1940 | BL30: =D229 -> 10.26485654 | BM30: =D230 -> 0.6150123226 | BN30: =D231 -> 0.6161838895 | BO30: =D232 -> 7.890074092 | BP30: =D233 -> 28.10116321 | BQ30: =D234 -> 63.87310449 | BR30: =D235 -> 98.90041715 | BS30: =D236 -> 98.61162198 | BT30: =D237 -> 5.081468013 | BU30: =D238 -> 0 | BV30: =D239 -> 0 | BW30: =D240 -> 0 | BY30: 25.20482074 | BZ30: 35.18475222 | CA30: 26.16282514 | CC30: 14.85828281 | CD30: 0 | CE30: 4.258153789 | CF30: 7.621448582 | CG30: 69.49411481 | CH30: 13.59681975 | CI30: 0 | CK30: 1940 | CL30: =E229 ->  | CM30: =E230 ->  | CN30: =E231 ->  | CO30: =E232 ->  | CP30: =E233 ->  | CQ30: =E234 ->  | CR30: =E235 ->  | CS30: =E236 ->  | CT30: =E237 ->  | CU30: =E238 ->  | CV30: =E239 ->  | CW30: =E240 ->  | DK30: 1940 | DL30: =F229 ->  | DM30: =F230 ->  | DN30: =F231 ->  | DO30: =F232 ->  | DP30: =F233 ->  | DQ30: =F234 ->  | DR30: =F235 ->  | DS30: =F236 ->  | DT30: =F237 ->  | DU30: =F238 ->  | DV30: =F239 ->  | DW30: =F240 ->  | EK30: 1940 | EL30: =G229 ->  | EM30: =G230 ->  | EN30: =G231 ->  | EO30: =G232 ->  | EP30: =G233 ->  | EQ30: =G234 ->  | ER30: =G235 ->  | ES30: =G236 ->  | ET30: =G237 ->  | EU30: =G238 ->  | EV30: =G239 ->  | EW30: =G240 -> 
A31: 1923-04-30 | B31: =INDIRECT(CONCATENATE("'",B$1,"'!",B$4,(YEAR($A31)-1921)*12+MONTH($A31)+3+IF(ISNUMBER(FIND("PRV",B$6)),1,0)))*IF(AND(B$3>0,TRIM(B$9)="CFS"),Conversions!$C31,1) -> 0 | C31: =INDIRECT(CONCATENATE("'",C$1,"'!",C$4,(YEAR($A31)-1921)*12+MONTH($A31)+3+IF(ISNUMBER(FIND("PRV",C$6)),1,0)))*IF(AND(C$3>0,TRIM(C$9)="CFS"),Conversions!$C31,1) -> 93.76813634 | D31: =INDIRECT(CONCATENATE("'",D$1,"'!",D$4,(YEAR($A31)-1921)*12+MONTH($A31)+3+IF(ISNUMBER(FIND("PRV",D$6)),1,0)))*IF(AND(D$3>0,TRIM(D$9)="CFS"),Conversions!$C31,1) -> 0.3397087944 | E31: =INDIRECT(CONCATENATE("'",E$1,"'!",E$4,(YEAR($A31)-1921)*12+MONTH($A31)+3+IF(ISNUMBER(FIND("PRV",E$6)),1,0)))*IF(AND(E$3>0,TRIM(E$9)="CFS"),Conversions!$C31,1) ->  | F31: =INDIRECT(CONCATENATE("'",F$1,"'!",F$4,(YEAR($A31)-1921)*12+MONTH($A31)+3+IF(ISNUMBER(FIND("PRV",F$6)),1,0)))*IF(AND(F$3>0,TRIM(F$9)="CFS"),Conversions!$C31,1) ->  | G31: =INDIRECT(CONCATENATE("'",G$1,"'!",G$4,(YEAR($A31)-1921)*12+MONTH($A31)+3+IF(ISNUMBER(FIND("PRV",G$6)),1,0)))*IF(AND(G$3>0,TRIM(G$9)="CFS"),Conversions!$C31,1) ->  | K31: 1941 | L31: =B241 -> 0 | M31: =B242 -> 0 | N31: =B243 -> 0 | O31: =B244 -> 0 | P31: =B245 -> 0 | Q31: =B246 -> 0 | R31: =B247 -> 0 | S31: =B248 -> 0 | T31: =B249 -> 0 | U31: =B250 -> 0 | V31: =B251 -> 0 | W31: =B252 -> 0 | Y31: 0 | Z31: 0 | AA31: 0 | AC31: 0 | AD31: 0 | AE31: 0 | AF31: 0 | AG31: 0 | AH31: 0 | AI31: 0 | AK31: 1941 | AL31: =C241 -> 53.67900075 | AM31: =C242 -> 53.66916947 | AN31: =C243 -> 54.31405001 | AO31: =C244 -> 89.25070906 | AP31: =C245 -> 125.7199603 | AQ31: =C246 -> 208.1348159 | AR31: =C247 -> 229.0375711 | AS31: =C248 -> 228.6635635 | AT31: =C249 -> 228.4995802 | AU31: =C250 -> 226.7979356 | AV31: =C251 -> 225.34733 | AW31: =C252 -> 224.2190386 | AY31: 204.8588782 | AZ31: 225.173006 | BA31: 162.277727 | BC31: 90.77215943 | BD31: 224.9630557 | BE31: 58.29901167 | BF31: 77.75310798 | BG31: 210.7364302 | BH31: 226.7715367 | BI31: 224.2256377 | BK31: 1941 | BL31: =D241 -> 0 | BM31: =D242 -> 0 | BN31: =D243 -> 0 | BO31: =D244 -> 34.33585011 | BP31: =D245 -> 121.4145649 | BQ31: =D246 -> 229.1791806 | BR31: =D247 -> 229.1760954 | BS31: =D248 -> 228.2346986 | BT31: =D249 -> 227.7400963 | BU31: =D250 -> 226.1537168 | BV31: =D251 -> 224.8015879 | BW31: =D252 -> 223.7498808 | BY31: 201.3346394 | BZ31: 226.6601765 | CA31: 145.398806 | CC31: 54.06800106 | CD31: 224.4433938 | CE31: 4.291981263 | CF31: 31.68104418 | CG31: 215.2918263 | CH31: 226.1719227 | CI31: 223.7560305 | CK31: 1941 | CL31: =E241 ->  | CM31: =E242 ->  | CN31: =E243 ->  | CO31: =E244 ->  | CP31: =E245 ->  | CQ31: =E246 ->  | CR31: =E247 ->  | CS31: =E248 ->  | CT31: =E249 ->  | CU31: =E250 ->  | CV31: =E251 ->  | CW31: =E252 ->  | DK31: 1941 | DL31: =F241 ->  | DM31: =F242 ->  | DN31: =F243 ->  | DO31: =F244 ->  | DP31: =F245 ->  | DQ31: =F246 ->  | DR31: =F247 ->  | DS31: =F248 ->  | DT31: =F249 ->  | DU31: =F250 ->  | DV31: =F251 ->  | DW31: =F252 ->  | EK31: 1941 | EL31: =G241 ->  | EM31: =G242 ->  | EN31: =G243 ->  | EO31: =G244 ->  | EP31: =G245 ->  | EQ31: =G246 ->  | ER31: =G247 ->  | ES31: =G248 ->  | ET31: =G249 ->  | EU31: =G250 ->  | EV31: =G251 ->  | EW31: =G252 -> 
A32: 1923-05-31 | B32: =INDIRECT(CONCATENATE("'",B$1,"'!",B$4,(YEAR($A32)-1921)*12+MONTH($A32)+3+IF(ISNUMBER(FIND("PRV",B$6)),1,0)))*IF(AND(B$3>0,TRIM(B$9)="CFS"),Conversions!$C32,1) -> 0 | C32: =INDIRECT(CONCATENATE("'",C$1,"'!",C$4,(YEAR($A32)-1921)*12+MONTH($A32)+3+IF(ISNUMBER(FIND("PRV",C$6)),1,0)))*IF(AND(C$3>0,TRIM(C$9)="CFS"),Conversions!$C32,1) -> 48.46463838 | D32: =INDIRECT(CONCATENATE("'",D$1,"'!",D$4,(YEAR($A32)-1921)*12+MONTH($A32)+3+IF(ISNUMBER(FIND("PRV",D$6)),1,0)))*IF(AND(D$3>0,TRIM(D$9)="CFS"),Conversions!$C32,1) -> 0.5978036814 | E32: =INDIRECT(CONCATENATE("'",E$1,"'!",E$4,(YEAR($A32)-1921)*12+MONTH($A32)+3+IF(ISNUMBER(FIND("PRV",E$6)),1,0)))*IF(AND(E$3>0,TRIM(E$9)="CFS"),Conversions!$C32,1) ->  | F32: =INDIRECT(CONCATENATE("'",F$1,"'!",F$4,(YEAR($A32)-1921)*12+MONTH($A32)+3+IF(ISNUMBER(FIND("PRV",F$6)),1,0)))*IF(AND(F$3>0,TRIM(F$9)="CFS"),Conversions!$C32,1) ->  | G32: =INDIRECT(CONCATENATE("'",G$1,"'!",G$4,(YEAR($A32)-1921)*12+MONTH($A32)+3+IF(ISNUMBER(FIND("PRV",G$6)),1,0)))*IF(AND(G$3>0,TRIM(G$9)="CFS"),Conversions!$C32,1) ->  | K32: 1942 | L32: =B253 -> 0 | M32: =B254 -> 0 | N32: =B255 -> 0 | O32: =B256 -> 0 | P32: =B257 -> 0 | Q32: =B258 -> 0 | R32: =B259 -> 0 | S32: =B260 -> 0 | T32: =B261 -> 0 | U32: =B262 -> 0 | V32: =B263 -> 0 | W32: =B264 -> 0 | Y32: 0 | Z32: 0 | AA32: 0 | AC32: 0 | AD32: 0 | AE32: 0 | AF32: 0 | AG32: 0 | AH32: 0 | AI32: 0 | AK32: 1942 | AL32: =C253 -> 223.8476615 | AM32: =C254 -> 223.8730959 | AN32: =C255 -> 224.9152766 | AO32: =C256 -> 229.2608962 | AP32: =C257 -> 229.4793074 | AQ32: =C258 -> 229.4266864 | AR32: =C259 -> 229.4610153 | AS32: =C260 -> 228.6126868 | AT32: =C261 -> 228.6092011 | AU32: =C262 -> 226.8709507 | AV32: =C263 -> 225.3774111 | AW32: =C264 -> 224.3202883 | AY32: 227.3503938 | AZ32: 227.3907383 | BA32: 227.0045398 | BC32: 226.83315 | BD32: 224.9842318 | BE32: 224.8440003 | BF32: 226.9507915 | BG32: 229.1361607 | BH32: 226.8310126 | BI32: 224.6021575 | BK32: 1942 | BL32: =D253 -> 223.4037083 | BM32: =D254 -> 223.4274168 | BN32: =D255 -> 224.3988759 | BO32: =D256 -> 229.6568599 | BP32: =D257 -> 230 | BQ32: =D258 -> 229.8677271 | BR32: =D259 -> 229.9540235 | BS32: =D260 -> 229.1589901 | BT32: =D261 -> 227.813013 | BU32: =D262 -> 226.1926922 | BV32: =D263 -> 224.8007028 | BW32: =D264 -> 223.8154455 | BY32: 227.7633074 | BZ32: 227.8818763 | CA32: 226.8741213 | CC32: 226.8237741 | CD32: 224.434249 | CE32: 224.4833429 | CF32: 226.9231481 | CG32: 229.4718118 | CH32: 226.3234064 | CI32: 224.6515261 | CK32: 1942 | CL32: =E253 ->  | CM32: =E254 ->  | CN32: =E255 ->  | CO32: =E256 ->  | CP32: =E257 ->  | CQ32: =E258 ->  | CR32: =E259 ->  | CS32: =E260 ->  | CT32: =E261 ->  | CU32: =E262 ->  | CV32: =E263 ->  | CW32: =E264 ->  | DK32: 1942 | DL32: =F253 ->  | DM32: =F254 ->  | DN32: =F255 ->  | DO32: =F256 ->  | DP32: =F257 ->  | DQ32: =F258 ->  | DR32: =F259 ->  | DS32: =F260 ->  | DT32: =F261 ->  | DU32: =F262 ->  | DV32: =F263 ->  | DW32: =F264 ->  | EK32: 1942 | EL32: =G253 ->  | EM32: =G254 ->  | EN32: =G255 ->  | EO32: =G256 ->  | EP32: =G257 ->  | EQ32: =G258 ->  | ER32: =G259 ->  | ES32: =G260 ->  | ET32: =G261 ->  | EU32: =G262 ->  | EV32: =G263 ->  | EW32: =G264 -> 
A33: 1923-06-30 | B33: =INDIRECT(CONCATENATE("'",B$1,"'!",B$4,(YEAR($A33)-1921)*12+MONTH($A33)+3+IF(ISNUMBER(FIND("PRV",B$6)),1,0)))*IF(AND(B$3>0,TRIM(B$9)="CFS"),Conversions!$C33,1) -> 0 | C33: =INDIRECT(CONCATENATE("'",C$1,"'!",C$4,(YEAR($A33)-1921)*12+MONTH($A33)+3+IF(ISNUMBER(FIND("PRV",C$6)),1,0)))*IF(AND(C$3>0,TRIM(C$9)="CFS"),Conversions!$C33,1) -> 48.71898216 | D33: =INDIRECT(CONCATENATE("'",D$1,"'!",D$4,(YEAR($A33)-1921)*12+MONTH($A33)+3+IF(ISNUMBER(FIND("PRV",D$6)),1,0)))*IF(AND(D$3>0,TRIM(D$9)="CFS"),Conversions!$C33,1) -> 1.124629651 | E33: =INDIRECT(CONCATENATE("'",E$1,"'!",E$4,(YEAR($A33)-1921)*12+MONTH($A33)+3+IF(ISNUMBER(FIND("PRV",E$6)),1,0)))*IF(AND(E$3>0,TRIM(E$9)="CFS"),Conversions!$C33,1) ->  | F33: =INDIRECT(CONCATENATE("'",F$1,"'!",F$4,(YEAR($A33)-1921)*12+MONTH($A33)+3+IF(ISNUMBER(FIND("PRV",F$6)),1,0)))*IF(AND(F$3>0,TRIM(F$9)="CFS"),Conversions!$C33,1) ->  | G33: =INDIRECT(CONCATENATE("'",G$1,"'!",G$4,(YEAR($A33)-1921)*12+MONTH($A33)+3+IF(ISNUMBER(FIND("PRV",G$6)),1,0)))*IF(AND(G$3>0,TRIM(G$9)="CFS"),Conversions!$C33,1) ->  | K33: 1943 | L33: =B265 -> 0 | M33: =B266 -> 0 | N33: =B267 -> 0 | O33: =B268 -> 0 | P33: =B269 -> 0 | Q33: =B270 -> 0 | R33: =B271 -> 0 | S33: =B272 -> 0 | T33: =B273 -> 0 | U33: =B274 -> 0 | V33: =B275 -> 0 | W33: =B276 -> 0 | Y33: 0 | Z33: 0 | AA33: 0 | AC33: 0 | AD33: 0 | AE33: 0 | AF33: 0 | AG33: 0 | AH33: 0 | AI33: 0 | AK33: 1943 | AL33: =C265 -> 223.6390413 | AM33: =C266 -> 226.3168747 | AN33: =C267 -> 226.8303658 | AO33: =C268 -> 229.6121084 | AP33: =C269 -> 229.6122298 | AQ33: =C270 -> 229.6142675 | AR33: =C271 -> 228.1484277 | AS33: =C272 -> 226.9018045 | AT33: =C273 -> 225.6757395 | AU33: =C274 -> 223.9796121 | AV33: =C275 -> 222.5364978 | AW33: =C276 -> 221.3464284 | AY33: 221.9983973 | AZ33: 219.3354294 | BA33: 226.1844498 | BC33: 227.7996466 | BD33: 222.0927781 | BE33: 225.93812 | BF33: 228.1356755 | BG33: 228.0771211 | BH33: 224.0789915 | BI33: 218.2705489 | BK33: 1943 | BL33: =D265 -> 223.1805054 | BM33: =D266 -> 229.1165523 | BN33: =D267 -> 229.6031774 | BO33: =D268 -> 230.5398848 | BP33: =D269 -> 230.5398017 | BQ33: =D270 -> 230.5384046 | BR33: =D271 -> 230.1307205 | BS33: =D272 -> 228.9551572 | BT33: =D273 -> 227.7989798 | BU33: =D274 -> 226.1997387 | BV33: =D275 -> 224.8392727 | BW33: =D276 -> 223.7175704 | BY33: 223.9190199 | BZ33: 221.7612479 | CA33: 227.9299805 | CC33: 229.3317742 | CD33: 224.4210923 | CE33: 227.2694751 | CF33: 229.9904131 | CG33: 229.6984183 | CH33: 226.2935887 | CI33: 220.6474945 | CK33: 1943 | CL33: =E265 ->  | CM33: =E266 ->  | CN33: =E267 ->  | CO33: =E268 ->  | CP33: =E269 ->  | CQ33: =E270 ->  | CR33: =E271 ->  | CS33: =E272 ->  | CT33: =E273 ->  | CU33: =E274 ->  | CV33: =E275 ->  | CW33: =E276 ->  | DK33: 1943 | DL33: =F265 ->  | DM33: =F266 ->  | DN33: =F267 ->  | DO33: =F268 ->  | DP33: =F269 ->  | DQ33: =F270 ->  | DR33: =F271 ->  | DS33: =F272 ->  | DT33: =F273 ->  | DU33: =F274 ->  | DV33: =F275 ->  | DW33: =F276 ->  | EK33: 1943 | EL33: =G265 ->  | EM33: =G266 ->  | EN33: =G267 ->  | EO33: =G268 ->  | EP33: =G269 ->  | EQ33: =G270 ->  | ER33: =G271 ->  | ES33: =G272 ->  | ET33: =G273 ->  | EU33: =G274 ->  | EV33: =G275 ->  | EW33: =G276 -> 
A34: 1923-07-31 | B34: =INDIRECT(CONCATENATE("'",B$1,"'!",B$4,(YEAR($A34)-1921)*12+MONTH($A34)+3+IF(ISNUMBER(FIND("PRV",B$6)),1,0)))*IF(AND(B$3>0,TRIM(B$9)="CFS"),Conversions!$C34,1) -> 0 | C34: =INDIRECT(CONCATENATE("'",C$1,"'!",C$4,(YEAR($A34)-1921)*12+MONTH($A34)+3+IF(ISNUMBER(FIND("PRV",C$6)),1,0)))*IF(AND(C$3>0,TRIM(C$9)="CFS"),Conversions!$C34,1) -> 47.14319164 | D34: =INDIRECT(CONCATENATE("'",D$1,"'!",D$4,(YEAR($A34)-1921)*12+MONTH($A34)+3+IF(ISNUMBER(FIND("PRV",D$6)),1,0)))*IF(AND(D$3>0,TRIM(D$9)="CFS"),Conversions!$C34,1) -> 8.709853958e-05 | E34: =INDIRECT(CONCATENATE("'",E$1,"'!",E$4,(YEAR($A34)-1921)*12+MONTH($A34)+3+IF(ISNUMBER(FIND("PRV",E$6)),1,0)))*IF(AND(E$3>0,TRIM(E$9)="CFS"),Conversions!$C34,1) ->  | F34: =INDIRECT(CONCATENATE("'",F$1,"'!",F$4,(YEAR($A34)-1921)*12+MONTH($A34)+3+IF(ISNUMBER(FIND("PRV",F$6)),1,0)))*IF(AND(F$3>0,TRIM(F$9)="CFS"),Conversions!$C34,1) ->  | G34: =INDIRECT(CONCATENATE("'",G$1,"'!",G$4,(YEAR($A34)-1921)*12+MONTH($A34)+3+IF(ISNUMBER(FIND("PRV",G$6)),1,0)))*IF(AND(G$3>0,TRIM(G$9)="CFS"),Conversions!$C34,1) ->  | K34: 1944 | L34: =B277 -> 0 | M34: =B278 -> 0 | N34: =B279 -> 0 | O34: =B280 -> 0 | P34: =B281 -> 0 | Q34: =B282 -> 0 | R34: =B283 -> 0 | S34: =B284 -> 0 | T34: =B285 -> 0 | U34: =B286 -> 0 | V34: =B287 -> 0 | W34: =B288 -> 0 | Y34: 0 | Z34: 0 | AA34: 0 | AC34: 0 | AD34: 0 | AE34: 0 | AF34: 0 | AG34: 0 | AH34: 0 | AI34: 0 | AK34: 1944 | AL34: =C277 -> 220.8112039 | AM34: =C278 -> 202.7715307 | AN34: =C279 -> 202.9709173 | AO34: =C280 -> 203.4176094 | AP34: =C281 -> 223.851114 | AQ34: =C282 -> 223.4087038 | AR34: =C283 -> 215.4145768 | AS34: =C284 -> 140.4740337 | AT34: =C285 -> 88.14866558 | AU34: =C286 -> 62.70686711 | AV34: =C287 -> 41.92502195 | AW34: =C288 -> 38.75253455 | AY34: 114.2738521 | AZ34: 88.0158824 | BA34: 155.3877316 | BC34: 211.024225 | BD34: 44.61938622 | BE34: 209.7339177 | BF34: 206.5666163 | BG34: 183.824301 | BH34: 70.59845969 | BI34: 41.74818061 | BK34: 1944 | BL34: =D277 -> 223.2131287 | BM34: =D278 -> 205.1842962 | BN34: =D279 -> 205.3712832 | BO34: =D280 -> 205.790196 | BP34: =D281 -> 229.3962272 | BQ34: =D282 -> 229.0947544 | BR34: =D283 -> 228.867397 | BS34: =D284 -> 168.6160808 | BT34: =D285 -> 98.88399257 | BU34: =D286 -> 28.48847577 | BV34: =D287 -> 0.001276360815 | BW34: =D288 -> 5.514970616 | BY34: 102.6232556 | BZ34: 70.29265343 | CA34: 152.3685066 | CC34: 214.3791888 | CD34: 8.628143715 | CE34: 212.1306478 | CF34: 209.4839136 | CG34: 197.6795855 | CH34: 53.60981761 | CI34: 7.96651238 | CK34: 1944 | CL34: =E277 ->  | CM34: =E278 ->  | CN34: =E279 ->  | CO34: =E280 ->  | CP34: =E281 ->  | CQ34: =E282 ->  | CR34: =E283 ->  | CS34: =E284 ->  | CT34: =E285 ->  | CU34: =E286 ->  | CV34: =E287 ->  | CW34: =E288 ->  | DK34: 1944 | DL34: =F277 ->  | DM34: =F278 ->  | DN34: =F279 ->  | DO34: =F280 ->  | DP34: =F281 ->  | DQ34: =F282 ->  | DR34: =F283 ->  | DS34: =F284 ->  | DT34: =F285 ->  | DU34: =F286 ->  | DV34: =F287 ->  | DW34: =F288 ->  | EK34: 1944 | EL34: =G277 ->  | EM34: =G278 ->  | EN34: =G279 ->  | EO34: =G280 ->  | EP34: =G281 ->  | EQ34: =G282 ->  | ER34: =G283 ->  | ES34: =G284 ->  | ET34: =G285 ->  | EU34: =G286 ->  | EV34: =G287 ->  | EW34: =G288 -> 
A35: 1923-08-31 | B35: =INDIRECT(CONCATENATE("'",B$1,"'!",B$4,(YEAR($A35)-1921)*12+MONTH($A35)+3+IF(ISNUMBER(FIND("PRV",B$6)),1,0)))*IF(AND(B$3>0,TRIM(B$9)="CFS"),Conversions!$C35,1) -> 0 | C35: =INDIRECT(CONCATENATE("'",C$1,"'!",C$4,(YEAR($A35)-1921)*12+MONTH($A35)+3+IF(ISNUMBER(FIND("PRV",C$6)),1,0)))*IF(AND(C$3>0,TRIM(C$9)="CFS"),Conversions!$C35,1) -> 46.73558329 | D35: =INDIRECT(CONCATENATE("'",D$1,"'!",D$4,(YEAR($A35)-1921)*12+MONTH($A35)+3+IF(ISNUMBER(FIND("PRV",D$6)),1,0)))*IF(AND(D$3>0,TRIM(D$9)="CFS"),Conversions!$C35,1) -> 0 | E35: =INDIRECT(CONCATENATE("'",E$1,"'!",E$4,(YEAR($A35)-1921)*12+MONTH($A35)+3+IF(ISNUMBER(FIND("PRV",E$6)),1,0)))*IF(AND(E$3>0,TRIM(E$9)="CFS"),Conversions!$C35,1) ->  | F35: =INDIRECT(CONCATENATE("'",F$1,"'!",F$4,(YEAR($A35)-1921)*12+MONTH($A35)+3+IF(ISNUMBER(FIND("PRV",F$6)),1,0)))*IF(AND(F$3>0,TRIM(F$9)="CFS"),Conversions!$C35,1) ->  | G35: =INDIRECT(CONCATENATE("'",G$1,"'!",G$4,(YEAR($A35)-1921)*12+MONTH($A35)+3+IF(ISNUMBER(FIND("PRV",G$6)),1,0)))*IF(AND(G$3>0,TRIM(G$9)="CFS"),Conversions!$C35,1) ->  | K35: 1945 | L35: =B289 -> 0 | M35: =B290 -> 0 | N35: =B291 -> 0 | O35: =B292 -> 0 | P35: =B293 -> 0 | Q35: =B294 -> 0 | R35: =B295 -> 0 | S35: =B296 -> 0 | T35: =B297 -> 0 | U35: =B298 -> 0 | V35: =B299 -> 0 | W35: =B300 -> 0 | Y35: 0 | Z35: 0 | AA35: 0 | AC35: 0 | AD35: 0 | AE35: 0 | AF35: 0 | AG35: 0 | AH35: 0 | AI35: 0 | AK35: 1945 | AL35: =C289 -> 43.65433721 | AM35: =C290 -> 43.75031822 | AN35: =C291 -> 45.78244269 | AO35: =C292 -> 46.76783512 | AP35: =C293 -> 65.40525208 | AQ35: =C294 -> 83.06662587 | AR35: =C295 -> 80.64246066 | AS35: =C296 -> 80.5629493 | AT35: =C297 -> 49.66789852 | AU35: =C298 -> 51.46621256 | AV35: =C299 -> 48.72770589 | AW35: =C300 -> 48.3465494 | AY35: 58.33705295 | AZ35: 60.87471117 | BA35: 57.32004896 | BC35: 53.01326593 | BD35: 48.98533052 | BE35: 43.98682074 | BF35: 49.04268765 | BG35: 75.45215278 | BH35: 53.57914158 | BI35: 48.39395344 | BK35: 1945 | BL35: =D289 -> 12.24789256 | BM35: =D290 -> 12.27207156 | BN35: =D291 -> 12.30573202 | BO35: =D292 -> 13.25668279 | BP35: =D293 -> 33.96251469 | BQ35: =D294 -> 51.95732439 | BR35: =D295 -> 51.8211136 | BS35: =D296 -> 51.88119774 | BT35: =D297 -> 0.001160992493 | BU35: =D298 -> 2.308338552 | BV35: =D299 -> 0.0002877723947 | BW35: =D300 -> 0 | BY35: 17.09905171 | BZ35: 16.92627166 | CA35: 20.16785972 | CC35: 20.77992191 | CD35: 0.3848190161 | CE35: 11.55288071 | CF35: 16.22656931 | CG35: 43.16036839 | CH35: 7.062596546 | CI35: 4.796206578e-05 | CK35: 1945 | CL35: =E289 ->  | CM35: =E290 ->  | CN35: =E291 ->  | CO35: =E292 ->  | CP35: =E293 ->  | CQ35: =E294 ->  | CR35: =E295 ->  | CS35: =E296 ->  | CT35: =E297 ->  | CU35: =E298 ->  | CV35: =E299 ->  | CW35: =E300 ->  | DK35: 1945 | DL35: =F289 ->  | DM35: =F290 ->  | DN35: =F291 ->  | DO35: =F292 ->  | DP35: =F293 ->  | DQ35: =F294 ->  | DR35: =F295 ->  | DS35: =F296 ->  | DT35: =F297 ->  | DU35: =F298 ->  | DV35: =F299 ->  | DW35: =F300 ->  | EK35: 1945 | EL35: =G289 ->  | EM35: =G290 ->  | EN35: =G291 ->  | EO35: =G292 ->  | EP35: =G293 ->  | EQ35: =G294 ->  | ER35: =G295 ->  | ES35: =G296 ->  | ET35: =G297 ->  | EU35: =G298 ->  | EV35: =G299 ->  | EW35: =G300 -> 
A36: 1923-09-30 | B36: =INDIRECT(CONCATENATE("'",B$1,"'!",B$4,(YEAR($A36)-1921)*12+MONTH($A36)+3+IF(ISNUMBER(FIND("PRV",B$6)),1,0)))*IF(AND(B$3>0,TRIM(B$9)="CFS"),Conversions!$C36,1) -> 0 | C36: =INDIRECT(CONCATENATE("'",C$1,"'!",C$4,(YEAR($A36)-1921)*12+MONTH($A36)+3+IF(ISNUMBER(FIND("PRV",C$6)),1,0)))*IF(AND(C$3>0,TRIM(C$9)="CFS"),Conversions!$C36,1) -> 46.48675412 | D36: =INDIRECT(CONCATENATE("'",D$1,"'!",D$4,(YEAR($A36)-1921)*12+MONTH($A36)+3+IF(ISNUMBER(FIND("PRV",D$6)),1,0)))*IF(AND(D$3>0,TRIM(D$9)="CFS"),Conversions!$C36,1) -> 0 | E36: =INDIRECT(CONCATENATE("'",E$1,"'!",E$4,(YEAR($A36)-1921)*12+MONTH($A36)+3+IF(ISNUMBER(FIND("PRV",E$6)),1,0)))*IF(AND(E$3>0,TRIM(E$9)="CFS"),Conversions!$C36,1) ->  | F36: =INDIRECT(CONCATENATE("'",F$1,"'!",F$4,(YEAR($A36)-1921)*12+MONTH($A36)+3+IF(ISNUMBER(FIND("PRV",F$6)),1,0)))*IF(AND(F$3>0,TRIM(F$9)="CFS"),Conversions!$C36,1) ->  | G36: =INDIRECT(CONCATENATE("'",G$1,"'!",G$4,(YEAR($A36)-1921)*12+MONTH($A36)+3+IF(ISNUMBER(FIND("PRV",G$6)),1,0)))*IF(AND(G$3>0,TRIM(G$9)="CFS"),Conversions!$C36,1) ->  | K36: 1946 | L36: =B301 -> 0 | M36: =B302 -> 0 | N36: =B303 -> 0 | O36: =B304 -> 0 | P36: =B305 -> 0 | Q36: =B306 -> 0 | R36: =B307 -> 0 | S36: =B308 -> 0 | T36: =B309 -> 0 | U36: =B310 -> 0 | V36: =B311 -> 0 | W36: =B312 -> 0 | Y36: 0 | Z36: 0 | AA36: 0 | AC36: 0 | AD36: 0 | AE36: 0 | AF36: 0 | AG36: 0 | AH36: 0 | AI36: 0 | AK36: 1946 | AL36: =C301 -> 48.29725999 | AM36: =C302 -> 48.34839597 | AN36: =C303 -> 48.74549 | AO36: =C304 -> 70.9175017 | AP36: =C305 -> 71.70748424 | AQ36: =C306 -> 71.78723005 | AR36: =C307 -> 71.54698813 | AS36: =C308 -> 71.36645268 | AT36: =C309 -> 60.20728731 | AU36: =C310 -> 61.90313554 | AV36: =C311 -> 58.99229987 | AW36: =C312 -> 58.52984371 | AY36: 64.34205928 | AZ36: 62.43260783 | BA36: 61.86244743 | BC36: 59.95222339 | BD36: 59.20672618 | BE36: 51.25579288 | BF36: 59.89697727 | BG36: 70.16451416 | BH36: 61.51271773 | BI36: 58.49626876 | BK36: 1946 | BL36: =D301 -> 0 | BM36: =D302 -> 0 | BN36: =D303 -> 0 | BO36: =D304 -> 22.17792088 | BP36: =D305 -> 22.96791604 | BQ36: =D306 -> 23.19657788 | BR36: =D307 -> 23.18468721 | BS36: =D308 -> 23.31796653 | BT36: =D309 -> 0.0003409542669 | BU36: =D310 -> 2.336604981 | BV36: =D311 -> 0.0002002772516 | BW36: =D312 -> 0.0001989256934 | BY36: 9.76520114 | BZ36: 6.224821085 | CA36: 9.76520114 | CC36: 11.34882517 | CD36: 0.3895672311 | CE36: 2.772240111 | CF36: 11.2206263 | CG36: 20.29584003 | CH36: 3.499057235 | CI36: 9.968810639e-05 | CK36: 1946 | CL36: =E301 ->  | CM36: =E302 ->  | CN36: =E303 ->  | CO36: =E304 ->  | CP36: =E305 ->  | CQ36: =E306 ->  | CR36: =E307 ->  | CS36: =E308 ->  | CT36: =E309 ->  | CU36: =E310 ->  | CV36: =E311 ->  | CW36: =E312 ->  | DK36: 1946 | DL36: =F301 ->  | DM36: =F302 ->  | DN36: =F303 ->  | DO36: =F304 ->  | DP36: =F305 ->  | DQ36: =F306 ->  | DR36: =F307 ->  | DS36: =F308 ->  | DT36: =F309 ->  | DU36: =F310 ->  | DV36: =F311 ->  | DW36: =F312 ->  | EK36: 1946 | EL36: =G301 ->  | EM36: =G302 ->  | EN36: =G303 ->  | EO36: =G304 ->  | EP36: =G305 ->  | EQ36: =G306 ->  | ER36: =G307 ->  | ES36: =G308 ->  | ET36: =G309 ->  | EU36: =G310 ->  | EV36: =G311 ->  | EW36: =G312 -> 
A37: 1923-10-31 | B37: =INDIRECT(CONCATENATE("'",B$1,"'!",B$4,(YEAR($A37)-1921)*12+MONTH($A37)+3+IF(ISNUMBER(FIND("PRV",B$6)),1,0)))*IF(AND(B$3>0,TRIM(B$9)="CFS"),Conversions!$C37,1) -> 0 | C37: =INDIRECT(CONCATENATE("'",C$1,"'!",C$4,(YEAR($A37)-1921)*12+MONTH($A37)+3+IF(ISNUMBER(FIND("PRV",C$6)),1,0)))*IF(AND(C$3>0,TRIM(C$9)="CFS"),Conversions!$C37,1) -> 51.8442112 | D37: =INDIRECT(CONCATENATE("'",D$1,"'!",D$4,(YEAR($A37)-1921)*12+MONTH($A37)+3+IF(ISNUMBER(FIND("PRV",D$6)),1,0)))*IF(AND(D$3>0,TRIM(D$9)="CFS"),Conversions!$C37,1) -> 5.505915239 | E37: =INDIRECT(CONCATENATE("'",E$1,"'!",E$4,(YEAR($A37)-1921)*12+MONTH($A37)+3+IF(ISNUMBER(FIND("PRV",E$6)),1,0)))*IF(AND(E$3>0,TRIM(E$9)="CFS"),Conversions!$C37,1) ->  | F37: =INDIRECT(CONCATENATE("'",F$1,"'!",F$4,(YEAR($A37)-1921)*12+MONTH($A37)+3+IF(ISNUMBER(FIND("PRV",F$6)),1,0)))*IF(AND(F$3>0,TRIM(F$9)="CFS"),Conversions!$C37,1) ->  | G37: =INDIRECT(CONCATENATE("'",G$1,"'!",G$4,(YEAR($A37)-1921)*12+MONTH($A37)+3+IF(ISNUMBER(FIND("PRV",G$6)),1,0)))*IF(AND(G$3>0,TRIM(G$9)="CFS"),Conversions!$C37,1) ->  | K37: 1947 | L37: =B313 -> 0 | M37: =B314 -> 0 | N37: =B315 -> 0 | O37: =B316 -> 0 | P37: =B317 -> 0 | Q37: =B318 -> 0 | R37: =B319 -> 0 | S37: =B320 -> 0 | T37: =B321 -> 0 | U37: =B322 -> 0 | V37: =B323 -> 0 | W37: =B324 -> 0 | Y37: 0 | Z37: 0 | AA37: 0 | AC37: 0 | AD37: 0 | AE37: 0 | AF37: 0 | AG37: 0 | AH37: 0 | AI37: 0 | AK37: 1947 | AL37: =C313 -> 58.29293438 | AM37: =C314 -> 58.33975649 | AN37: =C315 -> 58.51379722 | AO37: =C316 -> 58.47486121 | AP37: =C317 -> 61.23670742 | AQ37: =C318 -> 72.34422928 | AR37: =C319 -> 61.48251063 | AS37: =C320 -> 55.2578628 | AT37: =C321 -> 48.21469038 | AU37: =C322 -> 34.02112556 | AV37: =C323 -> 27.05814766 | AW37: =C324 -> 23.36279187 | AY37: 42.88300492 | AZ37: 36.89911577 | BA37: 51.38328457 | BC37: 60.37674083 | BD37: 26.6539722 | BE37: 58.41221014 | BF37: 58.92563013 | BG37: 60.9525754 | BH37: 37.15107273 | BI37: 24.65501084 | BK37: 1947 | BL37: =D313 -> 0 | BM37: =D314 -> 0 | BN37: =D315 -> 0 | BO37: =D316 -> 0.006995969824 | BP37: =D317 -> 2.654280296 | BQ37: =D318 -> 4.183079709 | BR37: =D319 -> 4.243858676 | BS37: =D320 -> 4.472879097 | BT37: =D321 -> 4.438018431 | BU37: =D322 -> 0.001575279555 | BV37: =D323 -> 0.4325341465 | BW37: =D324 -> 2.262838448 | BY37: 1.891338338 | BZ37: 1.669566881 | CA37: 1.891338338 | CC37: 0.950563224 | CD37: 0.898720078 | CE37: 0.0008993619397 | CF37: 0.4447120392 | CG37: 4.111491711 | CH37: 2.059996657 | CI37: 0.826368507 | CK37: 1947 | CL37: =E313 ->  | CM37: =E314 ->  | CN37: =E315 ->  | CO37: =E316 ->  | CP37: =E317 ->  | CQ37: =E318 ->  | CR37: =E319 ->  | CS37: =E320 ->  | CT37: =E321 ->  | CU37: =E322 ->  | CV37: =E323 ->  | CW37: =E324 ->  | DK37: 1947 | DL37: =F313 ->  | DM37: =F314 ->  | DN37: =F315 ->  | DO37: =F316 ->  | DP37: =F317 ->  | DQ37: =F318 ->  | DR37: =F319 ->  | DS37: =F320 ->  | DT37: =F321 ->  | DU37: =F322 ->  | DV37: =F323 ->  | DW37: =F324 ->  | EK37: 1947 | EL37: =G313 ->  | EM37: =G314 ->  | EN37: =G315 ->  | EO37: =G316 ->  | EP37: =G317 ->  | EQ37: =G318 ->  | ER37: =G319 ->  | ES37: =G320 ->  | ET37: =G321 ->  | EU37: =G322 ->  | EV37: =G323 ->  | EW37: =G324 -> 
A38: 1923-11-30 | B38: =INDIRECT(CONCATENATE("'",B$1,"'!",B$4,(YEAR($A38)-1921)*12+MONTH($A38)+3+IF(ISNUMBER(FIND("PRV",B$6)),1,0)))*IF(AND(B$3>0,TRIM(B$9)="CFS"),Conversions!$C38,1) -> 0 | C38: =INDIRECT(CONCATENATE("'",C$1,"'!",C$4,(YEAR($A38)-1921)*12+MONTH($A38)+3+IF(ISNUMBER(FIND("PRV",C$6)),1,0)))*IF(AND(C$3>0,TRIM(C$9)="CFS"),Conversions!$C38,1) -> 50.61643162 | D38: =INDIRECT(CONCATENATE("'",D$1,"'!",D$4,(YEAR($A38)-1921)*12+MONTH($A38)+3+IF(ISNUMBER(FIND("PRV",D$6)),1,0)))*IF(AND(D$3>0,TRIM(D$9)="CFS"),Conversions!$C38,1) -> 4.358529217 | E38: =INDIRECT(CONCATENATE("'",E$1,"'!",E$4,(YEAR($A38)-1921)*12+MONTH($A38)+3+IF(ISNUMBER(FIND("PRV",E$6)),1,0)))*IF(AND(E$3>0,TRIM(E$9)="CFS"),Conversions!$C38,1) ->  | F38: =INDIRECT(CONCATENATE("'",F$1,"'!",F$4,(YEAR($A38)-1921)*12+MONTH($A38)+3+IF(ISNUMBER(FIND("PRV",F$6)),1,0)))*IF(AND(F$3>0,TRIM(F$9)="CFS"),Conversions!$C38,1) ->  | G38: =INDIRECT(CONCATENATE("'",G$1,"'!",G$4,(YEAR($A38)-1921)*12+MONTH($A38)+3+IF(ISNUMBER(FIND("PRV",G$6)),1,0)))*IF(AND(G$3>0,TRIM(G$9)="CFS"),Conversions!$C38,1) ->  | K38: 1948 | L38: =B325 -> 0 | M38: =B326 -> 0 | N38: =B327 -> 0 | O38: =B328 -> 0 | P38: =B329 -> 0 | Q38: =B330 -> 0 | R38: =B331 -> 0 | S38: =B332 -> 0 | T38: =B333 -> 0 | U38: =B334 -> 0 | V38: =B335 -> 0 | W38: =B336 -> 0 | Y38: 0 | Z38: 0 | AA38: 0 | AC38: 0 | AD38: 0 | AE38: 0 | AF38: 0 | AG38: 0 | AH38: 0 | AI38: 0 | AK38: 1948 | AL38: =C325 -> 25.06082857 | AM38: =C326 -> 24.02467651 | AN38: =C327 -> 24.05762711 | AO38: =C328 -> 24.06389612 | AP38: =C329 -> 23.8410027 | AQ38: =C330 -> 35.98739233 | AR38: =C331 -> 34.32161609 | AS38: =C332 -> 34.25652939 | AT38: =C333 -> 51.78389824 | AU38: =C334 -> 37.43820889 | AV38: =C335 -> 36.9256991 | AW38: =C336 -> 36.53922877 | AY38: 35.34826882 | AZ38: 37.43134567 | BA38: 32.35838365 | BC38: 25.30226258 | BD38: 36.78104701 | BE38: 24.21411905 | BF38: 24.01812094 | BG38: 35.59449707 | BH38: 40.38642133 | BI38: 36.47953396 | BK38: 1948 | BL38: =D325 -> 0 | BM38: =D326 -> 0 | BN38: =D327 -> 0 | BO38: =D328 -> 9.397132498e-06 | BP38: =D329 -> 9.390817195e-06 | BQ38: =D330 -> 14.02344414 | BR38: =D331 -> 14.09876123 | BS38: =D332 -> 14.17423654 | BT38: =D333 -> 32.03717657 | BU38: =D334 -> 0.002135228258 | BV38: =D335 -> 1.629817209e-07 | BW38: =D336 -> 0 | BY38: 6.194647721 | BZ38: 6.194646155 | CA38: 6.194647721 | CC38: 1.402348171 | CD38: 0.0003559257035 | CE38: 0.2828559806 | CF38: 4.697513699e-06 | CG38: 14.57875872 | CH38: 9.781607556 | CI38: 2.716362016e-08 | CK38: 1948 | CL38: =E325 ->  | CM38: =E326 ->  | CN38: =E327 ->  | CO38: =E328 ->  | CP38: =E329 ->  | CQ38: =E330 ->  | CR38: =E331 ->  | CS38: =E332 ->  | CT38: =E333 ->  | CU38: =E334 ->  | CV38: =E335 ->  | CW38: =E336 ->  | DK38: 1948 | DL38: =F325 ->  | DM38: =F326 ->  | DN38: =F327 ->  | DO38: =F328 ->  | DP38: =F329 ->  | DQ38: =F330 ->  | DR38: =F331 ->  | DS38: =F332 ->  | DT38: =F333 ->  | DU38: =F334 ->  | DV38: =F335 ->  | DW38: =F336 ->  | EK38: 1948 | EL38: =G325 ->  | EM38: =G326 ->  | EN38: =G327 ->  | EO38: =G328 ->  | EP38: =G329 ->  | EQ38: =G330 ->  | ER38: =G331 ->  | ES38: =G332 ->  | ET38: =G333 ->  | EU38: =G334 ->  | EV38: =G335 ->  | EW38: =G336 -> 
A39: 1923-12-31 | B39: =INDIRECT(CONCATENATE("'",B$1,"'!",B$4,(YEAR($A39)-1921)*12+MONTH($A39)+3+IF(ISNUMBER(FIND("PRV",B$6)),1,0)))*IF(AND(B$3>0,TRIM(B$9)="CFS"),Conversions!$C39,1) -> 0 | C39: =INDIRECT(CONCATENATE("'",C$1,"'!",C$4,(YEAR($A39)-1921)*12+MONTH($A39)+3+IF(ISNUMBER(FIND("PRV",C$6)),1,0)))*IF(AND(C$3>0,TRIM(C$9)="CFS"),Conversions!$C39,1) -> 46.25993392 | D39: =INDIRECT(CONCATENATE("'",D$1,"'!",D$4,(YEAR($A39)-1921)*12+MONTH($A39)+3+IF(ISNUMBER(FIND("PRV",D$6)),1,0)))*IF(AND(D$3>0,TRIM(D$9)="CFS"),Conversions!$C39,1) -> 0.0002119196301 | E39: =INDIRECT(CONCATENATE("'",E$1,"'!",E$4,(YEAR($A39)-1921)*12+MONTH($A39)+3+IF(ISNUMBER(FIND("PRV",E$6)),1,0)))*IF(AND(E$3>0,TRIM(E$9)="CFS"),Conversions!$C39,1) ->  | F39: =INDIRECT(CONCATENATE("'",F$1,"'!",F$4,(YEAR($A39)-1921)*12+MONTH($A39)+3+IF(ISNUMBER(FIND("PRV",F$6)),1,0)))*IF(AND(F$3>0,TRIM(F$9)="CFS"),Conversions!$C39,1) ->  | G39: =INDIRECT(CONCATENATE("'",G$1,"'!",G$4,(YEAR($A39)-1921)*12+MONTH($A39)+3+IF(ISNUMBER(FIND("PRV",G$6)),1,0)))*IF(AND(G$3>0,TRIM(G$9)="CFS"),Conversions!$C39,1) ->  | K39: 1949 | L39: =B337 -> 0 | M39: =B338 -> 0 | N39: =B339 -> 0 | O39: =B340 -> 0 | P39: =B341 -> 0 | Q39: =B342 -> 0 | R39: =B343 -> 0 | S39: =B344 -> 0 | T39: =B345 -> 0 | U39: =B346 -> 0 | V39: =B347 -> 0 | W39: =B348 -> 0 | Y39: 0 | Z39: 0 | AA39: 0 | AC39: 0 | AD39: 0 | AE39: 0 | AF39: 0 | AG39: 0 | AH39: 0 | AI39: 0 | AK39: 1949 | AL39: =C337 -> 36.31821742 | AM39: =C338 -> 36.2366123 | AN39: =C339 -> 36.46692449 | AO39: =C340 -> 36.45088815 | AP39: =C341 -> 36.45093283 | AQ39: =C342 -> 66.29438406 | AR39: =C343 -> 62.61396266 | AS39: =C344 -> 46.38876733 | AT39: =C345 -> 39.79066061 | AU39: =C346 -> 33.97011138 | AV39: =C347 -> 26.14569671 | AW39: =C348 -> 23.29399654 | AY39: 36.42948134 | AZ39: 37.64223615 | BA39: 40.03509621 | BC39: 39.3823317 | BD39: 25.8057603 | BE39: 36.37920317 | BF39: 36.4205284 | BG39: 53.35447769 | BH39: 33.68696266 | BI39: 23.09603161 | BK39: 1949 | BL39: =D337 -> 0 | BM39: =D338 -> 0 | BN39: =D339 -> 0 | BO39: =D340 -> 0 | BP39: =D341 -> 0 | BQ39: =D342 -> 29.46069816 | BR39: =D343 -> 29.33348926 | BS39: =D344 -> 0 | BT39: =D345 -> 0 | BU39: =D346 -> 1.73880823 | BV39: =D347 -> 0.00123496662 | BW39: =D348 -> 7.661863334e-07 | BY39: 5.044655391 | BZ39: 8.607940168 | CA39: 5.044519282 | CC39: 2.946069816 | CD39: 0.2903041379 | CE39: 0 | CF39: 0 | CG39: 14.69854685 | CH39: 0.4350108951 | CI39: 0.0004784545528 | CK39: 1949 | CL39: =E337 ->  | CM39: =E338 ->  | CN39: =E339 ->  | CO39: =E340 ->  | CP39: =E341 ->  | CQ39: =E342 ->  | CR39: =E343 ->  | CS39: =E344 ->  | CT39: =E345 ->  | CU39: =E346 ->  | CV39: =E347 ->  | CW39: =E348 ->  | DK39: 1949 | DL39: =F337 ->  | DM39: =F338 ->  | DN39: =F339 ->  | DO39: =F340 ->  | DP39: =F341 ->  | DQ39: =F342 ->  | DR39: =F343 ->  | DS39: =F344 ->  | DT39: =F345 ->  | DU39: =F346 ->  | DV39: =F347 ->  | DW39: =F348 ->  | EK39: 1949 | EL39: =G337 ->  | EM39: =G338 ->  | EN39: =G339 ->  | EO39: =G340 ->  | EP39: =G341 ->  | EQ39: =G342 ->  | ER39: =G343 ->  | ES39: =G344 ->  | ET39: =G345 ->  | EU39: =G346 ->  | EV39: =G347 ->  | EW39: =G348 -> 
A40: 1924-01-31 | B40: =INDIRECT(CONCATENATE("'",B$1,"'!",B$4,(YEAR($A40)-1921)*12+MONTH($A40)+3+IF(ISNUMBER(FIND("PRV",B$6)),1,0)))*IF(AND(B$3>0,TRIM(B$9)="CFS"),Conversions!$C40,1) -> 0 | C40: =INDIRECT(CONCATENATE("'",C$1,"'!",C$4,(YEAR($A40)-1921)*12+MONTH($A40)+3+IF(ISNUMBER(FIND("PRV",C$6)),1,0)))*IF(AND(C$3>0,TRIM(C$9)="CFS"),Conversions!$C40,1) -> 47.3025248 | D40: =INDIRECT(CONCATENATE("'",D$1,"'!",D$4,(YEAR($A40)-1921)*12+MONTH($A40)+3+IF(ISNUMBER(FIND("PRV",D$6)),1,0)))*IF(AND(D$3>0,TRIM(D$9)="CFS"),Conversions!$C40,1) -> 0.0007382007657 | E40: =INDIRECT(CONCATENATE("'",E$1,"'!",E$4,(YEAR($A40)-1921)*12+MONTH($A40)+3+IF(ISNUMBER(FIND("PRV",E$6)),1,0)))*IF(AND(E$3>0,TRIM(E$9)="CFS"),Conversions!$C40,1) ->  | F40: =INDIRECT(CONCATENATE("'",F$1,"'!",F$4,(YEAR($A40)-1921)*12+MONTH($A40)+3+IF(ISNUMBER(FIND("PRV",F$6)),1,0)))*IF(AND(F$3>0,TRIM(F$9)="CFS"),Conversions!$C40,1) ->  | G40: =INDIRECT(CONCATENATE("'",G$1,"'!",G$4,(YEAR($A40)-1921)*12+MONTH($A40)+3+IF(ISNUMBER(FIND("PRV",G$6)),1,0)))*IF(AND(G$3>0,TRIM(G$9)="CFS"),Conversions!$C40,1) ->  | K40: 1950 | L40: =B349 -> 0 | M40: =B350 -> 0 | N40: =B351 -> 0 | O40: =B352 -> 0 | P40: =B353 -> 0 | Q40: =B354 -> 0 | R40: =B355 -> 0 | S40: =B356 -> 0 | T40: =B357 -> 0 | U40: =B358 -> 0 | V40: =B359 -> 0 | W40: =B360 -> 0 | Y40: 0 | Z40: 0 | AA40: 0 | AC40: 0 | AD40: 0 | AE40: 0 | AF40: 0 | AG40: 0 | AH40: 0 | AI40: 0 | AK40: 1950 | AL40: =C349 -> 21.98506391 | AM40: =C350 -> 21.87237207 | AN40: =C351 -> 21.89693982 | AO40: =C352 -> 38.51267132 | AP40: =C353 -> 48.9422074 | AQ40: =C354 -> 48.88424276 | AR40: =C355 -> 39.54826557 | AS40: =C356 -> 24.55023158 | AT40: =C357 -> 11.8906346 | AU40: =C358 -> 0.009110379799 | AV40: =C359 -> 0.7520176219 | AW40: =C360 -> 0 | AY40: 20.83785036 | AZ40: 27.66096752 | BA40: 23.23697975 | BC40: 33.33176879 | BD40: 0.3140515787 | BE40: 24.16442743 | BF40: 31.93896696 | BG40: 35.84979023 | BH40: 6.231719597 | BI40: 0.3110117382 | BK40: 1950 | BL40: =D349 -> 0.0005451312975 | BM40: =D350 -> 0.0005439657296 | BN40: =D351 -> 0.0005442197877 | BO40: =D352 -> 16.40617246 | BP40: =D353 -> 26.35324486 | BQ40: =D354 -> 26.56325344 | BR40: =D355 -> 26.45497114 | BS40: =D356 -> 26.44372078 | BT40: =D357 -> 26.6401261 | BU40: =D358 -> 0.0185197896 | BV40: =D359 -> 0.7729329315 | BW40: =D360 -> 0 | BY40: 17.24697842 | BZ40: 29.63099692 | CA40: 12.47121457 | CC40: 11.20848096 | CD40: 0.3235887135 | CE40: 2.051179983 | CF40: 9.861203699 | CG40: 26.48965771 | CH40: 10.1633598 | CI40: 1.869774147 | CK40: 1950 | CL40: =E349 ->  | CM40: =E350 ->  | CN40: =E351 ->  | CO40: =E352 ->  | CP40: =E353 ->  | CQ40: =E354 ->  | CR40: =E355 ->  | CS40: =E356 ->  | CT40: =E357 ->  | CU40: =E358 ->  | CV40: =E359 ->  | CW40: =E360 ->  | DK40: 1950 | DL40: =F349 ->  | DM40: =F350 ->  | DN40: =F351 ->  | DO40: =F352 ->  | DP40: =F353 ->  | DQ40: =F354 ->  | DR40: =F355 ->  | DS40: =F356 ->  | DT40: =F357 ->  | DU40: =F358 ->  | DV40: =F359 ->  | DW40: =F360 ->  | EK40: 1950 | EL40: =G349 ->  | EM40: =G350 ->  | EN40: =G351 ->  | EO40: =G352 ->  | EP40: =G353 ->  | EQ40: =G354 ->  | ER40: =G355 ->  | ES40: =G356 ->  | ET40: =G357 ->  | EU40: =G358 ->  | EV40: =G359 ->  | EW40: =G360 -> 
A41: 1924-02-29 | B41: =INDIRECT(CONCATENATE("'",B$1,"'!",B$4,(YEAR($A41)-1921)*12+MONTH($A41)+3+IF(ISNUMBER(FIND("PRV",B$6)),1,0)))*IF(AND(B$3>0,TRIM(B$9)="CFS"),Conversions!$C41,1) -> 0 | C41: =INDIRECT(CONCATENATE("'",C$1,"'!",C$4,(YEAR($A41)-1921)*12+MONTH($A41)+3+IF(ISNUMBER(FIND("PRV",C$6)),1,0)))*IF(AND(C$3>0,TRIM(C$9)="CFS"),Conversions!$C41,1) -> 48.1066695 | D41: =INDIRECT(CONCATENATE("'",D$1,"'!",D$4,(YEAR($A41)-1921)*12+MONTH($A41)+3+IF(ISNUMBER(FIND("PRV",D$6)),1,0)))*IF(AND(D$3>0,TRIM(D$9)="CFS"),Conversions!$C41,1) -> 0.0007394694311 | E41: =INDIRECT(CONCATENATE("'",E$1,"'!",E$4,(YEAR($A41)-1921)*12+MONTH($A41)+3+IF(ISNUMBER(FIND("PRV",E$6)),1,0)))*IF(AND(E$3>0,TRIM(E$9)="CFS"),Conversions!$C41,1) ->  | F41: =INDIRECT(CONCATENATE("'",F$1,"'!",F$4,(YEAR($A41)-1921)*12+MONTH($A41)+3+IF(ISNUMBER(FIND("PRV",F$6)),1,0)))*IF(AND(F$3>0,TRIM(F$9)="CFS"),Conversions!$C41,1) ->  | G41: =INDIRECT(CONCATENATE("'",G$1,"'!",G$4,(YEAR($A41)-1921)*12+MONTH($A41)+3+IF(ISNUMBER(FIND("PRV",G$6)),1,0)))*IF(AND(G$3>0,TRIM(G$9)="CFS"),Conversions!$C41,1) ->  | K41: 1951 | L41: =B361 -> 0 | M41: =B362 -> 0 | N41: =B363 -> 0 | O41: =B364 -> 0 | P41: =B365 -> 0 | Q41: =B366 -> 0 | R41: =B367 -> 0 | S41: =B368 -> 0 | T41: =B369 -> 0 | U41: =B370 -> 0 | V41: =B371 -> 0 | W41: =B372 -> 0 | Y41: 0 | Z41: 0 | AA41: 0 | AC41: 0 | AD41: 0 | AE41: 0 | AF41: 0 | AG41: 0 | AH41: 0 | AI41: 0 | AK41: 1951 | AL41: =C361 -> 0.3711638484 | AM41: =C362 -> 0.3717251102 | AN41: =C363 -> 36.22193415 | AO41: =C364 -> 70.73452432 | AP41: =C365 -> 98.59776035 | AQ41: =C366 -> 121.6758332 | AR41: =C367 -> 121.2587453 | AS41: =C368 -> 120.8459197 | AT41: =C369 -> 70.91817445 | AU41: =C370 -> 74.6406692 | AV41: =C371 -> 69.4041035 | AW41: =C372 -> 68.81687109 | AY41: 85.28615811 | AZ41: 91.37849345 | BA41: 71.15478536 | BC41: 53.38988849 | BD41: 69.95033991 | BE41: 18.08302132 | BF41: 52.14706707 | BG41: 112.1346164 | BH41: 77.44858564 | BI41: 68.83975398 | BK41: 1951 | BL41: =D361 -> 0.3771466282 | BM41: =D362 -> 9.691418692 | BN41: =D363 -> 47.24223422 | BO41: =D364 -> 81.74602676 | BP41: =D365 -> 109.6216125 | BQ41: =D366 -> 155.6924783 | BR41: =D367 -> 155.2244471 | BS41: =D368 -> 154.7457846 | BT41: =D369 -> 63.75099461 | BU41: =D370 -> 0 | BV41: =D371 -> 0 | BW41: =D372 -> 0 | BY41: 60.06511199 | BZ41: 52.58897031 | CA41: 64.84101195 | CC41: 65.26722093 | CD41: 0 | CE41: 24.54595323 | CF41: 62.88159219 | CG41: 138.0872534 | CH41: 35.28097173 | CI41: 0 | CK41: 1951 | CL41: =E361 ->  | CM41: =E362 ->  | CN41: =E363 ->  | CO41: =E364 ->  | CP41: =E365 ->  | CQ41: =E366 ->  | CR41: =E367 ->  | CS41: =E368 ->  | CT41: =E369 ->  | CU41: =E370 ->  | CV41: =E371 ->  | CW41: =E372 ->  | DK41: 1951 | DL41: =F361 ->  | DM41: =F362 ->  | DN41: =F363 ->  | DO41: =F364 ->  | DP41: =F365 ->  | DQ41: =F366 ->  | DR41: =F367 ->  | DS41: =F368 ->  | DT41: =F369 ->  | DU41: =F370 ->  | DV41: =F371 ->  | DW41: =F372 ->  | EK41: 1951 | EL41: =G361 ->  | EM41: =G362 ->  | EN41: =G363 ->  | EO41: =G364 ->  | EP41: =G365 ->  | EQ41: =G366 ->  | ER41: =G367 ->  | ES41: =G368 ->  | ET41: =G369 ->  | EU41: =G370 ->  | EV41: =G371 ->  | EW41: =G372 -> 
A42: 1924-03-31 | B42: =INDIRECT(CONCATENATE("'",B$1,"'!",B$4,(YEAR($A42)-1921)*12+MONTH($A42)+3+IF(ISNUMBER(FIND("PRV",B$6)),1,0)))*IF(AND(B$3>0,TRIM(B$9)="CFS"),Conversions!$C42,1) -> 0 | C42: =INDIRECT(CONCATENATE("'",C$1,"'!",C$4,(YEAR($A42)-1921)*12+MONTH($A42)+3+IF(ISNUMBER(FIND("PRV",C$6)),1,0)))*IF(AND(C$3>0,TRIM(C$9)="CFS"),Conversions!$C42,1) -> 104.2957041 | D42: =INDIRECT(CONCATENATE("'",D$1,"'!",D$4,(YEAR($A42)-1921)*12+MONTH($A42)+3+IF(ISNUMBER(FIND("PRV",D$6)),1,0)))*IF(AND(D$3>0,TRIM(D$9)="CFS"),Conversions!$C42,1) -> 60.00027949 | E42: =INDIRECT(CONCATENATE("'",E$1,"'!",E$4,(YEAR($A42)-1921)*12+MONTH($A42)+3+IF(ISNUMBER(FIND("PRV",E$6)),1,0)))*IF(AND(E$3>0,TRIM(E$9)="CFS"),Conversions!$C42,1) ->  | F42: =INDIRECT(CONCATENATE("'",F$1,"'!",F$4,(YEAR($A42)-1921)*12+MONTH($A42)+3+IF(ISNUMBER(FIND("PRV",F$6)),1,0)))*IF(AND(F$3>0,TRIM(F$9)="CFS"),Conversions!$C42,1) ->  | G42: =INDIRECT(CONCATENATE("'",G$1,"'!",G$4,(YEAR($A42)-1921)*12+MONTH($A42)+3+IF(ISNUMBER(FIND("PRV",G$6)),1,0)))*IF(AND(G$3>0,TRIM(G$9)="CFS"),Conversions!$C42,1) ->  | K42: 1952 | L42: =B373 -> 0 | M42: =B374 -> 0 | N42: =B375 -> 0 | O42: =B376 -> 0 | P42: =B377 -> 0 | Q42: =B378 -> 0 | R42: =B379 -> 0 | S42: =B380 -> 0 | T42: =B381 -> 0 | U42: =B382 -> 0 | V42: =B383 -> 0 | W42: =B384 -> 0 | Y42: 0 | Z42: 0 | AA42: 0 | AC42: 0 | AD42: 0 | AE42: 0 | AF42: 0 | AG42: 0 | AH42: 0 | AI42: 0 | AK42: 1952 | AL42: =C373 -> 68.61942109 | AM42: =C374 -> 68.761836 | AN42: =C375 -> 69.16003905 | AO42: =C376 -> 104.5797694 | AP42: =C377 -> 137.8605393 | AQ42: =C378 -> 214.4048856 | AR42: =C379 -> 228.758918 | AS42: =C380 -> 228.5708046 | AT42: =C381 -> 228.6205901 | AU42: =C382 -> 228.3598199 | AV42: =C383 -> 226.8577115 | AW42: =C384 -> 225.6250399 | AY42: 205.3732077 | AZ42: 223.354319 | BA42: 169.1816145 | BC42: 104.3748674 | BD42: 226.3650585 | BE42: 73.3099041 | BF42: 92.35033204 | BG42: 213.7437932 | BH42: 227.7340109 | BI42: 222.5018524 | BK42: 1952 | BL42: =D373 -> 0 | BM42: =D374 -> 0 | BN42: =D375 -> 0 | BO42: =D376 -> 34.7552922 | BP42: =D377 -> 66.89864684 | BQ42: =D378 -> 229.0726914 | BR42: =D379 -> 228.3710333 | BS42: =D380 -> 227.9199156 | BT42: =D381 -> 228.0449676 | BU42: =D382 -> 227.3887199 | BV42: =D383 -> 225.9896098 | BW42: =D384 -> 227.8399659 | BY42: 195.3152688 | BZ42: 225.0636012 | CA42: 141.3567369 | CC42: 43.23805695 | CD42: 227.0320083 | CE42: 4.344411525 | CF42: 22.73487187 | CG42: 208.2088619 | CH42: 227.3258095 | CI42: 224.2327832 | CK42: 1952 | CL42: =E373 ->  | CM42: =E374 ->  | CN42: =E375 ->  | CO42: =E376 ->  | CP42: =E377 ->  | CQ42: =E378 ->  | CR42: =E379 ->  | CS42: =E380 ->  | CT42: =E381 ->  | CU42: =E382 ->  | CV42: =E383 ->  | CW42: =E384 ->  | DK42: 1952 | DL42: =F373 ->  | DM42: =F374 ->  | DN42: =F375 ->  | DO42: =F376 ->  | DP42: =F377 ->  | DQ42: =F378 ->  | DR42: =F379 ->  | DS42: =F380 ->  | DT42: =F381 ->  | DU42: =F382 ->  | DV42: =F383 ->  | DW42: =F384 ->  | EK42: 1952 | EL42: =G373 ->  | EM42: =G374 ->  | EN42: =G375 ->  | EO42: =G376 ->  | EP42: =G377 ->  | EQ42: =G378 ->  | ER42: =G379 ->  | ES42: =G380 ->  | ET42: =G381 ->  | EU42: =G382 ->  | EV42: =G383 ->  | EW42: =G384 -> 
A43: 1924-04-30 | B43: =INDIRECT(CONCATENATE("'",B$1,"'!",B$4,(YEAR($A43)-1921)*12+MONTH($A43)+3+IF(ISNUMBER(FIND("PRV",B$6)),1,0)))*IF(AND(B$3>0,TRIM(B$9)="CFS"),Conversions!$C43,1) -> 0 | C43: =INDIRECT(CONCATENATE("'",C$1,"'!",C$4,(YEAR($A43)-1921)*12+MONTH($A43)+3+IF(ISNUMBER(FIND("PRV",C$6)),1,0)))*IF(AND(C$3>0,TRIM(C$9)="CFS"),Conversions!$C43,1) -> 82.26230442 | D43: =INDIRECT(CONCATENATE("'",D$1,"'!",D$4,(YEAR($A43)-1921)*12+MONTH($A43)+3+IF(ISNUMBER(FIND("PRV",D$6)),1,0)))*IF(AND(D$3>0,TRIM(D$9)="CFS"),Conversions!$C43,1) -> 40.14778371 | E43: =INDIRECT(CONCATENATE("'",E$1,"'!",E$4,(YEAR($A43)-1921)*12+MONTH($A43)+3+IF(ISNUMBER(FIND("PRV",E$6)),1,0)))*IF(AND(E$3>0,TRIM(E$9)="CFS"),Conversions!$C43,1) ->  | F43: =INDIRECT(CONCATENATE("'",F$1,"'!",F$4,(YEAR($A43)-1921)*12+MONTH($A43)+3+IF(ISNUMBER(FIND("PRV",F$6)),1,0)))*IF(AND(F$3>0,TRIM(F$9)="CFS"),Conversions!$C43,1) ->  | G43: =INDIRECT(CONCATENATE("'",G$1,"'!",G$4,(YEAR($A43)-1921)*12+MONTH($A43)+3+IF(ISNUMBER(FIND("PRV",G$6)),1,0)))*IF(AND(G$3>0,TRIM(G$9)="CFS"),Conversions!$C43,1) ->  | K43: 1953 | L43: =B385 -> 0 | M43: =B386 -> 0 | N43: =B387 -> 0 | O43: =B388 -> 0 | P43: =B389 -> 0 | Q43: =B390 -> 0 | R43: =B391 -> 0 | S43: =B392 -> 0 | T43: =B393 -> 0 | U43: =B394 -> 0 | V43: =B395 -> 0 | W43: =B396 -> 0 | Y43: 0 | Z43: 0 | AA43: 0 | AC43: 0 | AD43: 0 | AE43: 0 | AF43: 0 | AG43: 0 | AH43: 0 | AI43: 0 | AK43: 1953 | AL43: =C385 -> 224.865028 | AM43: =C386 -> 207.1732673 | AN43: =C387 -> 208.8021187 | AO43: =C388 -> 229.1557589 | AP43: =C389 -> 229.0578849 | AQ43: =C390 -> 228.9660242 | AR43: =C391 -> 228.5776394 | AS43: =C392 -> 227.8581366 | AT43: =C393 -> 228.5544144 | AU43: =C394 -> 230.7411358 | AV43: =C395 -> 229.3250278 | AW43: =C396 -> 228.0720472 | AY43: 229.0837273 | AZ43: 229.3900315 | BA43: 225.0957069 | BC43: 220.2209112 | BD43: 228.8334298 | BE43: 217.0577034 | BF43: 218.6911513 | BG43: 228.5519875 | BH43: 229.1464175 | BI43: 228.5130047 | BK43: 1953 | BL43: =D385 -> 227.1441788 | BM43: =D386 -> 209.4388002 | BN43: =D387 -> 210.9194047 | BO43: =D388 -> 229.4401222 | BP43: =D389 -> 229.1938046 | BQ43: =D390 -> 228.9626066 | BR43: =D391 -> 228.5993875 | BS43: =D392 -> 227.9265053 | BT43: =D393 -> 227.8785552 | BU43: =D394 -> 230.1825782 | BV43: =D395 -> 228.8606128 | BW43: =D396 -> 227.6910629 | BY43: 228.6812823 | BZ43: 228.7742588 | CA43: 225.5198016 | CC43: 221.4091049 | CD43: 228.4017779 | CE43: 219.0356069 | CF43: 219.8919431 | CG43: 228.5061698 | CH43: 228.6826326 | CI43: 227.9513577 | CK43: 1953 | CL43: =E385 ->  | CM43: =E386 ->  | CN43: =E387 ->  | CO43: =E388 ->  | CP43: =E389 ->  | CQ43: =E390 ->  | CR43: =E391 ->  | CS43: =E392 ->  | CT43: =E393 ->  | CU43: =E394 ->  | CV43: =E395 ->  | CW43: =E396 ->  | DK43: 1953 | DL43: =F385 ->  | DM43: =F386 ->  | DN43: =F387 ->  | DO43: =F388 ->  | DP43: =F389 ->  | DQ43: =F390 ->  | DR43: =F391 ->  | DS43: =F392 ->  | DT43: =F393 ->  | DU43: =F394 ->  | DV43: =F395 ->  | DW43: =F396 ->  | EK43: 1953 | EL43: =G385 ->  | EM43: =G386 ->  | EN43: =G387 ->  | EO43: =G388 ->  | EP43: =G389 ->  | EQ43: =G390 ->  | ER43: =G391 ->  | ES43: =G392 ->  | ET43: =G393 ->  | EU43: =G394 ->  | EV43: =G395 ->  | EW43: =G396 -> 
A44: 1924-05-31 | B44: =INDIRECT(CONCATENATE("'",B$1,"'!",B$4,(YEAR($A44)-1921)*12+MONTH($A44)+3+IF(ISNUMBER(FIND("PRV",B$6)),1,0)))*IF(AND(B$3>0,TRIM(B$9)="CFS"),Conversions!$C44,1) -> 0 | C44: =INDIRECT(CONCATENATE("'",C$1,"'!",C$4,(YEAR($A44)-1921)*12+MONTH($A44)+3+IF(ISNUMBER(FIND("PRV",C$6)),1,0)))*IF(AND(C$3>0,TRIM(C$9)="CFS"),Conversions!$C44,1) -> 57.3012118 | D44: =INDIRECT(CONCATENATE("'",D$1,"'!",D$4,(YEAR($A44)-1921)*12+MONTH($A44)+3+IF(ISNUMBER(FIND("PRV",D$6)),1,0)))*IF(AND(D$3>0,TRIM(D$9)="CFS"),Conversions!$C44,1) -> 15.51011819 | E44: =INDIRECT(CONCATENATE("'",E$1,"'!",E$4,(YEAR($A44)-1921)*12+MONTH($A44)+3+IF(ISNUMBER(FIND("PRV",E$6)),1,0)))*IF(AND(E$3>0,TRIM(E$9)="CFS"),Conversions!$C44,1) ->  | F44: =INDIRECT(CONCATENATE("'",F$1,"'!",F$4,(YEAR($A44)-1921)*12+MONTH($A44)+3+IF(ISNUMBER(FIND("PRV",F$6)),1,0)))*IF(AND(F$3>0,TRIM(F$9)="CFS"),Conversions!$C44,1) ->  | G44: =INDIRECT(CONCATENATE("'",G$1,"'!",G$4,(YEAR($A44)-1921)*12+MONTH($A44)+3+IF(ISNUMBER(FIND("PRV",G$6)),1,0)))*IF(AND(G$3>0,TRIM(G$9)="CFS"),Conversions!$C44,1) ->  | K44: 1954 | L44: =B397 -> 0 | M44: =B398 -> 0 | N44: =B399 -> 0 | O44: =B400 -> 0 | P44: =B401 -> 0 | Q44: =B402 -> 0 | R44: =B403 -> 0 | S44: =B404 -> 0 | T44: =B405 -> 0 | U44: =B406 -> 0 | V44: =B407 -> 0 | W44: =B408 -> 0 | Y44: 0 | Z44: 0 | AA44: 0 | AC44: 0 | AD44: 0 | AE44: =IF(AE$11="AVG",IF(AE$1="INST-VAL",AVERAGE(W43,L44:N44,L44:O44),AVERAGE(L44:O44)),SUM(L44:O44)) -> 0 | AF44: 0 | AG44: 0 | AH44: 0 | AI44: 0 | AK44: 1954 | AL44: =C397 -> 227.4652929 | AM44: =C398 -> 230.6783204 | AN44: =C399 -> 230.5530455 | AO44: =C400 -> 230.8923506 | AP44: =C401 -> 230.9969426 | AQ44: =C402 -> 230.9222584 | AR44: =C403 -> 230.3320281 | AS44: =C404 -> 211.2707971 | AT44: =C405 -> 136.1185644 | AU44: =C406 -> 139.8116918 | AV44: =C407 -> 134.1500895 | AW44: =C408 -> 133.4286302 | AY44: 173.4567216 | AZ44: 158.8025648 | BA44: 197.2183343 | BC44: 230.462887 | BD44: 134.6576446 | BE44: 229.5447144 | BF44: 230.7610092 | BG44: 214.0207093 | BH44: 145.6075148 | BI44: 133.6795996 | BK44: 1954 | BL44: =D397 -> 227.1247381 | BM44: =D398 -> 229.2159314 | BN44: =D399 -> 229.0994826 | BO44: =D400 -> 229.7454453 | BP44: =D401 -> 230.0042 | BQ44: =D402 -> 230 | BR44: =D403 -> 229.4499405 | BS44: =D404 -> 210.4710608 | BT44: =D405 -> 117.7345496 | BU44: =D406 -> 17.13073233 | BV44: =D407 -> 0 | BW44: =D408 -> 0 | BY44: 105.6683492 | BZ44: 70.36299692 | CA44: 162.4980067 | CC44: 229.3254857 | CD44: 2.855122055 | CE44: =IF(CE$11="AVG",IF(CE$1="INST-VAL",AVERAGE(BW43,BL44:BN44,BL44:BO44),AVERAGE(BL44:BO44)),SUM(BL44:BO44)) -> 228.5396016 | CF44: =IF(CF$11="AVG",IF(CE$1="INST-VAL",AVERAGE(BM44:BO44,BN44:BP44),AVERAGE(BN44:BP44)),SUM(BN44:BP44)) -> 229.4849979 | CG44: =IF(CG$11="AVG",IF(CE$1="INST-VAL",AVERAGE(BP44:BS44,BQ44:BT44),AVERAGE(BQ44:BT44)),SUM(BQ44:BT44)) -> 210.947594 | CH44: =IF(CH$11="AVG",IF(CE$1="INST-VAL",AVERAGE(BS44:BV44,BT44:BW44),AVERAGE(BT44:BW44)),SUM(BT44:BW44)) -> 60.02520309 | CI44: =IF(CI$11="AVG",IF(CE$1="INST-VAL",AVERAGE(BV44:BW44,BL45,BW44,BL45:BM45),AVERAGE(BW44,BL45:BM45)),SUM(BW44,BL45:BM45)) -> 0.29 | CK44: 1954 | CL44: =E397 ->  | CM44: =E398 ->  | CN44: =E399 ->  | CO44: =E400 ->  | CP44: =E401 ->  | CQ44: =E402 ->  | CR44: =E403 ->  | CS44: =E404 ->  | CT44: =E405 ->  | CU44: =E406 ->  | CV44: =E407 ->  | CW44: =E408 ->  | DK44: 1954 | DL44: =F397 ->  | DM44: =F398 ->  | DN44: =F399 ->  | DO44: =F400 ->  | DP44: =F401 ->  | DQ44: =F402 ->  | DR44: =F403 ->  | DS44: =F404 ->  | DT44: =F405 ->  | DU44: =F406 ->  | DV44: =F407 ->  | DW44: =F408 ->  | EK44: 1954 | EL44: =G397 ->  | EM44: =G398 ->  | EN44: =G399 ->  | EO44: =G400 ->  | EP44: =G401 ->  | EQ44: =G402 ->  | ER44: =G403 ->  | ES44: =G404 ->  | ET44: =G405 ->  | EU44: =G406 ->  | EV44: =G407 ->  | EW44: =G408 -> 
A45: 1924-06-30 | B45: =INDIRECT(CONCATENATE("'",B$1,"'!",B$4,(YEAR($A45)-1921)*12+MONTH($A45)+3+IF(ISNUMBER(FIND("PRV",B$6)),1,0)))*IF(AND(B$3>0,TRIM(B$9)="CFS"),Conversions!$C45,1) -> 0 | C45: =INDIRECT(CONCATENATE("'",C$1,"'!",C$4,(YEAR($A45)-1921)*12+MONTH($A45)+3+IF(ISNUMBER(FIND("PRV",C$6)),1,0)))*IF(AND(C$3>0,TRIM(C$9)="CFS"),Conversions!$C45,1) -> 30.91430893 | D45: =INDIRECT(CONCATENATE("'",D$1,"'!",D$4,(YEAR($A45)-1921)*12+MONTH($A45)+3+IF(ISNUMBER(FIND("PRV",D$6)),1,0)))*IF(AND(D$3>0,TRIM(D$9)="CFS"),Conversions!$C45,1) -> 0 | E45: =INDIRECT(CONCATENATE("'",E$1,"'!",E$4,(YEAR($A45)-1921)*12+MONTH($A45)+3+IF(ISNUMBER(FIND("PRV",E$6)),1,0)))*IF(AND(E$3>0,TRIM(E$9)="CFS"),Conversions!$C45,1) ->  | F45: =INDIRECT(CONCATENATE("'",F$1,"'!",F$4,(YEAR($A45)-1921)*12+MONTH($A45)+3+IF(ISNUMBER(FIND("PRV",F$6)),1,0)))*IF(AND(F$3>0,TRIM(F$9)="CFS"),Conversions!$C45,1) ->  | G45: =INDIRECT(CONCATENATE("'",G$1,"'!",G$4,(YEAR($A45)-1921)*12+MONTH($A45)+3+IF(ISNUMBER(FIND("PRV",G$6)),1,0)))*IF(AND(G$3>0,TRIM(G$9)="CFS"),Conversions!$C45,1) ->  | K45: 1955 | L45: =B409 -> 0 | M45: =B410 -> 0 | N45: =B411 -> 0 | O45: =B412 -> 0 | P45: =B413 -> 0 | Q45: =B414 -> 0 | R45: =B415 -> 0 | S45: =B416 -> 0 | T45: =B417 -> 0 | U45: =B418 -> 0 | V45: =B419 -> 0 | W45: =B420 -> 0 | Y45: 0 | Z45: 0 | AA45: 0 | AC45: 0 | AD45: 0 | AE45: 0 | AF45: 0 | AG45: 0 | AH45: 0 | AI45: 0 | AK45: 1955 | AL45: =C409 -> 132.9767362 | AM45: =C410 -> 135.1167756 | AN45: =C411 -> 135.463795 | AO45: =C412 -> 151.6131459 | AP45: =C413 -> 134.4262653 | AQ45: =C414 -> 133.4158756 | AR45: =C415 -> 125.6392608 | AS45: =C416 -> 111.7815941 | AT45: =C417 -> 95.41210404 | AU45: =C418 -> 75.31517441 | AV45: =C419 -> 59.84555655 | AW45: =C420 -> 57.67097224 | AY45: 95.36240284 | AZ45: 91.86288634 | BA45: 112.3897713 | BC45: 137.9632576 | BD45: 62.01561973 | BE45: 136.5195487 | BF45: 140.6161538 | BG45: 121.4389788 | BH45: 78.82477955 | BI45: 60.29615793 | BK45: 1955 | BL45: =D409 -> 0 | BM45: =D410 -> 1.74 | BN45: =D411 -> 1.744261301 | BO45: =D412 -> 17.65477968 | BP45: =D413 -> 18.43063877 | BQ45: =D414 -> 18.65669035 | BR45: =D415 -> 18.72443305 | BS45: =D416 -> 1.027252407 | BT45: =D417 -> 1.020474142 | BU45: =D418 -> 0.9101866663 | BV45: =D419 -> 0.0001318603272 | BW45: =D420 -> 3.385440235 | BY45: 10.07370931 | BZ45: 18.45175313 | CA45: 6.941190705 | CC45: 9.779604985 | CD45: 2.825549414 | CE45: 3.077912785 | CF45: 9.828120121 | CG45: 12.03348307 | CH45: 1.034284747 | CI45: 5.981245031 | CK45: 1955 | CL45: =E409 ->  | CM45: =E410 ->  | CN45: =E411 ->  | CO45: =E412 ->  | CP45: =E413 ->  | CQ45: =E414 ->  | CR45: =E415 ->  | CS45: =E416 ->  | CT45: =E417 ->  | CU45: =E418 ->  | CV45: =E419 ->  | CW45: =E420 ->  | DK45: 1955 | DL45: =F409 ->  | DM45: =F410 ->  | DN45: =F411 ->  | DO45: =F412 ->  | DP45: =F413 ->  | DQ45: =F414 ->  | DR45: =F415 ->  | DS45: =F416 ->  | DT45: =F417 ->  | DU45: =F418 ->  | DV45: =F419 ->  | DW45: =F420 ->  | EK45: 1955 | EL45: =G409 ->  | EM45: =G410 ->  | EN45: =G411 ->  | EO45: =G412 ->  | EP45: =G413 ->  | EQ45: =G414 ->  | ER45: =G415 ->  | ES45: =G416 ->  | ET45: =G417 ->  | EU45: =G418 ->  | EV45: =G419 ->  | EW45: =G420 -> 
A46: 1924-07-31 | B46: =INDIRECT(CONCATENATE("'",B$1,"'!",B$4,(YEAR($A46)-1921)*12+MONTH($A46)+3+IF(ISNUMBER(FIND("PRV",B$6)),1,0)))*IF(AND(B$3>0,TRIM(B$9)="CFS"),Conversions!$C46,1) -> 0 | C46: =INDIRECT(CONCATENATE("'",C$1,"'!",C$4,(YEAR($A46)-1921)*12+MONTH($A46)+3+IF(ISNUMBER(FIND("PRV",C$6)),1,0)))*IF(AND(C$3>0,TRIM(C$9)="CFS"),Conversions!$C46,1) -> 1.389360668 | D46: =INDIRECT(CONCATENATE("'",D$1,"'!",D$4,(YEAR($A46)-1921)*12+MONTH($A46)+3+IF(ISNUMBER(FIND("PRV",D$6)),1,0)))*IF(AND(D$3>0,TRIM(D$9)="CFS"),Conversions!$C46,1) -> 0 | E46: =INDIRECT(CONCATENATE("'",E$1,"'!",E$4,(YEAR($A46)-1921)*12+MONTH($A46)+3+IF(ISNUMBER(FIND("PRV",E$6)),1,0)))*IF(AND(E$3>0,TRIM(E$9)="CFS"),Conversions!$C46,1) ->  | F46: =INDIRECT(CONCATENATE("'",F$1,"'!",F$4,(YEAR($A46)-1921)*12+MONTH($A46)+3+IF(ISNUMBER(FIND("PRV",F$6)),1,0)))*IF(AND(F$3>0,TRIM(F$9)="CFS"),Conversions!$C46,1) ->  | G46: =INDIRECT(CONCATENATE("'",G$1,"'!",G$4,(YEAR($A46)-1921)*12+MONTH($A46)+3+IF(ISNUMBER(FIND("PRV",G$6)),1,0)))*IF(AND(G$3>0,TRIM(G$9)="CFS"),Conversions!$C46,1) ->  | K46: 1956 | L46: =B421 -> 0 | M46: =B422 -> 0 | N46: =B423 -> 0 | O46: =B424 -> 0 | P46: =B425 -> 0 | Q46: =B426 -> 0 | R46: =B427 -> 0 | S46: =B428 -> 0 | T46: =B429 -> 0 | U46: =B430 -> 0 | V46: =B431 -> 0 | W46: =B432 -> 0 | Y46: 0 | Z46: 0 | AA46: 0 | AC46: 0 | AD46: 0 | AE46: 0 | AF46: 0 | AG46: 0 | AH46: 0 | AI46: 0 | AK46: 1956 | AL46: =C421 -> 61.74548639 | AM46: =C422 -> 63.09847376 | AN46: =C423 -> 74.38492498 | AO46: =C424 -> 109.8353724 | AP46: =C425 -> 134.2098408 | AQ46: =C426 -> 162.1572335 | AR46: =C427 -> 161.7788496 | AS46: =C428 -> 160.9750717 | AT46: =C429 -> 159.8015406 | AU46: =C430 -> 158.4364937 | AV46: =C431 -> 157.2442005 | AW46: =C432 -> 156.3272445 | AY46: 149.3491035 | AZ46: 152.4568378 | BA46: 129.999561 | BC46: 98.69599438 | BD46: 156.916881 | BE46: 70.74551436 | BF46: 94.29148488 | BG46: 157.9792114 | BH46: 158.5333482 | BI46: 153.259899 | BK46: 1956 | BL46: =D421 -> 9.271965627 | BM46: =D422 -> 10.5725266 | BN46: =D423 -> 21.22999234 | BO46: =D424 -> 56.16962436 | BP46: =D425 -> 80.45231997 | BQ46: =D426 -> 134.8308022 | BR46: =D427 -> 134.5323628 | BS46: =D428 -> 133.8984061 | BT46: =D429 -> 132.9728242 | BU46: =D430 -> 131.8963053 | BV46: =D431 -> 130.956247 | BW46: =D432 -> 130.232616 | BY46: 118.2896063 | BZ46: 126.0062838 | CA46: 92.25133272 | CC46: 48.09516944 | CD46: 130.6977621 | CE46: 17.71300422 | CF46: 40.97068 | CG46: 127.4935358 | CH46: 131.9727219 | CI46: 127.1845889 | CK46: 1956 | CL46: =E421 ->  | CM46: =E422 ->  | CN46: =E423 ->  | CO46: =E424 ->  | CP46: =E425 ->  | CQ46: =E426 ->  | CR46: =E427 ->  | CS46: =E428 ->  | CT46: =E429 ->  | CU46: =E430 ->  | CV46: =E431 ->  | CW46: =E432 ->  | DK46: 1956 | DL46: =F421 ->  | DM46: =F422 ->  | DN46: =F423 ->  | DO46: =F424 ->  | DP46: =F425 ->  | DQ46: =F426 ->  | DR46: =F427 ->  | DS46: =F428 ->  | DT46: =F429 ->  | DU46: =F430 ->  | DV46: =F431 ->  | DW46: =F432 ->  | EK46: 1956 | EL46: =G421 ->  | EM46: =G422 ->  | EN46: =G423 ->  | EO46: =G424 ->  | EP46: =G425 ->  | EQ46: =G426 ->  | ER46: =G427 ->  | ES46: =G428 ->  | ET46: =G429 ->  | EU46: =G430 ->  | EV46: =G431 ->  | EW46: =G432 -> 
A47: 1924-08-31 | B47: =INDIRECT(CONCATENATE("'",B$1,"'!",B$4,(YEAR($A47)-1921)*12+MONTH($A47)+3+IF(ISNUMBER(FIND("PRV",B$6)),1,0)))*IF(AND(B$3>0,TRIM(B$9)="CFS"),Conversions!$C47,1) -> 0 | C47: =INDIRECT(CONCATENATE("'",C$1,"'!",C$4,(YEAR($A47)-1921)*12+MONTH($A47)+3+IF(ISNUMBER(FIND("PRV",C$6)),1,0)))*IF(AND(C$3>0,TRIM(C$9)="CFS"),Conversions!$C47,1) -> 0.3566451079 | D47: =INDIRECT(CONCATENATE("'",D$1,"'!",D$4,(YEAR($A47)-1921)*12+MONTH($A47)+3+IF(ISNUMBER(FIND("PRV",D$6)),1,0)))*IF(AND(D$3>0,TRIM(D$9)="CFS"),Conversions!$C47,1) -> 0 | E47: =INDIRECT(CONCATENATE("'",E$1,"'!",E$4,(YEAR($A47)-1921)*12+MONTH($A47)+3+IF(ISNUMBER(FIND("PRV",E$6)),1,0)))*IF(AND(E$3>0,TRIM(E$9)="CFS"),Conversions!$C47,1) ->  | F47: =INDIRECT(CONCATENATE("'",F$1,"'!",F$4,(YEAR($A47)-1921)*12+MONTH($A47)+3+IF(ISNUMBER(FIND("PRV",F$6)),1,0)))*IF(AND(F$3>0,TRIM(F$9)="CFS"),Conversions!$C47,1) ->  | G47: =INDIRECT(CONCATENATE("'",G$1,"'!",G$4,(YEAR($A47)-1921)*12+MONTH($A47)+3+IF(ISNUMBER(FIND("PRV",G$6)),1,0)))*IF(AND(G$3>0,TRIM(G$9)="CFS"),Conversions!$C47,1) ->  | K47: 1957 | L47: =B433 -> 0 | M47: =B434 -> 0 | N47: =B435 -> 0 | O47: =B436 -> 0 | P47: =B437 -> 0 | Q47: =B438 -> 0 | R47: =B439 -> 0 | S47: =B440 -> 0 | T47: =B441 -> 0 | U47: =B442 -> 0 | V47: =B443 -> 0 | W47: =B444 -> 0 | Y47: 0 | Z47: 0 | AA47: 0 | AC47: 0 | AD47: 0 | AE47: 0 | AF47: 0 | AG47: 0 | AH47: 0 | AI47: 0 | AK47: 1957 | AL47: =C433 -> 155.9219025 | AM47: =C434 -> 137.8168995 | AN47: =C435 -> 137.6845923 | AO47: =C436 -> 138.1106089 | AP47: =C437 -> 143.2274164 | AQ47: =C438 -> 197.4863629 | AR47: =C439 -> 194.0749542 | AS47: =C440 -> 175.2956704 | AT47: =C441 -> 84.20361789 | AU47: =C442 -> 88.28396046 | AV47: =C443 -> 82.8035259 | AW47: =C444 -> 84.16829562 | AY47: 125.6402796 | AZ47: 135.4723719 | BA47: 134.9231506 | BC47: 146.70873 | BD47: 86.98582167 | BE47: 144.6605803 | BF47: 138.7724531 | BG47: 170.1431262 | BH47: 96.25577181 | BI47: 93.43073876 | BK47: 1957 | BL47: =D433 -> 129.9125412 | BM47: =D434 -> 111.8609721 | BN47: =D435 -> 111.760254 | BO47: =D436 -> 112.0845587 | BP47: =D437 -> 117.1375159 | BQ47: =D438 -> 228.8885096 | BR47: =D439 -> 228.3076405 | BS47: =D440 -> 227.4289105 | BT47: =D441 -> 135.4297312 | BU47: =D442 -> 37.80196277 | BV47: =D443 -> 0 | BW47: =D444 -> 1.74 | BY47: 103.243613 | BZ47: 112.935047 | CA47: 120.1960497 | CC47: 126.4487652 | CD47: 13.14493116 | CE47: 118.6730887 | CF47: 112.7813522 | CG47: 202.727171 | CH47: 71.9540373 | CI47: 22.47717318 | CK47: 1957 | CL47: =E433 ->  | CM47: =E434 ->  | CN47: =E435 ->  | CO47: =E436 ->  | CP47: =E437 ->  | CQ47: =E438 ->  | CR47: =E439 ->  | CS47: =E440 ->  | CT47: =E441 ->  | CU47: =E442 ->  | CV47: =E443 ->  | CW47: =E444 ->  | DK47: 1957 | DL47: =F433 ->  | DM47: =F434 ->  | DN47: =F435 ->  | DO47: =F436 ->  | DP47: =F437 ->  | DQ47: =F438 ->  | DR47: =F439 ->  | DS47: =F440 ->  | DT47: =F441 ->  | DU47: =F442 ->  | DV47: =F443 ->  | DW47: =F444 ->  | EK47: 1957 | EL47: =G433 ->  | EM47: =G434 ->  | EN47: =G435 ->  | EO47: =G436 ->  | EP47: =G437 ->  | EQ47: =G438 ->  | ER47: =G439 ->  | ES47: =G440 ->  | ET47: =G441 ->  | EU47: =G442 ->  | EV47: =G443 ->  | EW47: =G444 -> 
A48: 1924-09-30 | B48: =INDIRECT(CONCATENATE("'",B$1,"'!",B$4,(YEAR($A48)-1921)*12+MONTH($A48)+3+IF(ISNUMBER(FIND("PRV",B$6)),1,0)))*IF(AND(B$3>0,TRIM(B$9)="CFS"),Conversions!$C48,1) -> 0 | C48: =INDIRECT(CONCATENATE("'",C$1,"'!",C$4,(YEAR($A48)-1921)*12+MONTH($A48)+3+IF(ISNUMBER(FIND("PRV",C$6)),1,0)))*IF(AND(C$3>0,TRIM(C$9)="CFS"),Conversions!$C48,1) -> 0.0001384223887 | D48: =INDIRECT(CONCATENATE("'",D$1,"'!",D$4,(YEAR($A48)-1921)*12+MONTH($A48)+3+IF(ISNUMBER(FIND("PRV",D$6)),1,0)))*IF(AND(D$3>0,TRIM(D$9)="CFS"),Conversions!$C48,1) -> 0 | E48: =INDIRECT(CONCATENATE("'",E$1,"'!",E$4,(YEAR($A48)-1921)*12+MONTH($A48)+3+IF(ISNUMBER(FIND("PRV",E$6)),1,0)))*IF(AND(E$3>0,TRIM(E$9)="CFS"),Conversions!$C48,1) ->  | F48: =INDIRECT(CONCATENATE("'",F$1,"'!",F$4,(YEAR($A48)-1921)*12+MONTH($A48)+3+IF(ISNUMBER(FIND("PRV",F$6)),1,0)))*IF(AND(F$3>0,TRIM(F$9)="CFS"),Conversions!$C48,1) ->  | G48: =INDIRECT(CONCATENATE("'",G$1,"'!",G$4,(YEAR($A48)-1921)*12+MONTH($A48)+3+IF(ISNUMBER(FIND("PRV",G$6)),1,0)))*IF(AND(G$3>0,TRIM(G$9)="CFS"),Conversions!$C48,1) ->  | K48: 1958 | L48: =B445 -> 0 | M48: =B446 -> 0 | N48: =B447 -> 0 | O48: =B448 -> 0 | P48: =B449 -> 0 | Q48: =B450 -> 0 | R48: =B451 -> 0 | S48: =B452 -> 0 | T48: =B453 -> 0 | U48: =B454 -> 0 | V48: =B455 -> 0 | W48: =B456 -> 0 | Y48: 0 | Z48: 0 | AA48: 0 | AC48: 0 | AD48: 0 | AE48: 0 | AF48: 0 | AG48: 0 | AH48: 0 | AI48: 0 | AK48: 1958 | AL48: =C445 -> 99.68732651 | AM48: =C446 -> 110.0696624 | AN48: =C447 -> 110.2719532 | AO48: =C448 -> 169.6015478 | AP48: =C449 -> 229.7215855 | AQ48: =C450 -> 229.8829002 | AR48: =C451 -> 229.7555522 | AS48: =C452 -> 229.3707922 | AT48: =C453 -> 228.8795158 | AU48: =C454 -> 227.2437631 | AV48: =C455 -> 225.6060843 | AW48: =C456 -> 224.3568522 | AY48: 219.056334 | AZ48: 223.7610471 | BA48: 192.870628 | BC48: 156.8899725 | BD48: 225.1185801 | BE48: 111.728466 | BF48: 149.9230417 | BG48: 229.5774488 | BH48: 227.1482963 | BI48: 221.1283659 | BK48: 1958 | BL48: =D445 -> 37.5876242 | BM48: =D446 -> 56.20779067 | BN48: =D447 -> 56.30911177 | BO48: =D448 -> 115.3937209 | BP48: =D449 -> 230.1255626 | BQ48: =D450 -> 230.5671177 | BR48: =D451 -> 230.2475653 | BS48: =D452 -> 229.2822 | BT48: =D453 -> 228.0494895 | BU48: =D454 -> 226.5247954 | BV48: =D455 -> 224.9985501 | BW48: =D456 -> 223.8343061 | BY48: 214.3270645 | BZ48: 223.8826741 | CA48: 174.0939862 | CC48: 118.4227114 | CD48: 224.5442077 | CE48: 52.16784677 | CF48: 104.9565031 | CG48: 229.7961023 | CH48: 226.532772 | CI48: 220.6230464 | CK48: 1958 | CL48: =E445 ->  | CM48: =E446 ->  | CN48: =E447 ->  | CO48: =E448 ->  | CP48: =E449 ->  | CQ48: =E450 ->  | CR48: =E451 ->  | CS48: =E452 ->  | CT48: =E453 ->  | CU48: =E454 ->  | CV48: =E455 ->  | CW48: =E456 ->  | DK48: 1958 | DL48: =F445 ->  | DM48: =F446 ->  | DN48: =F447 ->  | DO48: =F448 ->  | DP48: =F449 ->  | DQ48: =F450 ->  | DR48: =F451 ->  | DS48: =F452 ->  | DT48: =F453 ->  | DU48: =F454 ->  | DV48: =F455 ->  | DW48: =F456 ->  | EK48: 1958 | EL48: =G445 ->  | EM48: =G446 ->  | EN48: =G447 ->  | EO48: =G448 ->  | EP48: =G449 ->  | EQ48: =G450 ->  | ER48: =G451 ->  | ES48: =G452 ->  | ET48: =G453 ->  | EU48: =G454 ->  | EV48: =G455 ->  | EW48: =G456 -> 
A49: 1924-10-31 | B49: =INDIRECT(CONCATENATE("'",B$1,"'!",B$4,(YEAR($A49)-1921)*12+MONTH($A49)+3+IF(ISNUMBER(FIND("PRV",B$6)),1,0)))*IF(AND(B$3>0,TRIM(B$9)="CFS"),Conversions!$C49,1) -> 0 | C49: =INDIRECT(CONCATENATE("'",C$1,"'!",C$4,(YEAR($A49)-1921)*12+MONTH($A49)+3+IF(ISNUMBER(FIND("PRV",C$6)),1,0)))*IF(AND(C$3>0,TRIM(C$9)="CFS"),Conversions!$C49,1) -> 0 | D49: =INDIRECT(CONCATENATE("'",D$1,"'!",D$4,(YEAR($A49)-1921)*12+MONTH($A49)+3+IF(ISNUMBER(FIND("PRV",D$6)),1,0)))*IF(AND(D$3>0,TRIM(D$9)="CFS"),Conversions!$C49,1) -> 0 | E49: =INDIRECT(CONCATENATE("'",E$1,"'!",E$4,(YEAR($A49)-1921)*12+MONTH($A49)+3+IF(ISNUMBER(FIND("PRV",E$6)),1,0)))*IF(AND(E$3>0,TRIM(E$9)="CFS"),Conversions!$C49,1) ->  | F49: =INDIRECT(CONCATENATE("'",F$1,"'!",F$4,(YEAR($A49)-1921)*12+MONTH($A49)+3+IF(ISNUMBER(FIND("PRV",F$6)),1,0)))*IF(AND(F$3>0,TRIM(F$9)="CFS"),Conversions!$C49,1) ->  | G49: =INDIRECT(CONCATENATE("'",G$1,"'!",G$4,(YEAR($A49)-1921)*12+MONTH($A49)+3+IF(ISNUMBER(FIND("PRV",G$6)),1,0)))*IF(AND(G$3>0,TRIM(G$9)="CFS"),Conversions!$C49,1) ->  | K49: 1959 | L49: =B457 -> 0 | M49: =B458 -> 0 | N49: =B459 -> 0 | O49: =B460 -> 0 | P49: =B461 -> 0 | Q49: =B462 -> 0 | R49: =B463 -> 0 | S49: =B464 -> 0 | T49: =B465 -> 0 | U49: =B466 -> 0 | V49: =B467 -> 0 | W49: =B468 -> 0 | Y49: 0 | Z49: 0 | AA49: 0 | AC49: 0 | AD49: 0 | AE49: 0 | AF49: 0 | AG49: 0 | AH49: 0 | AI49: 0 | AK49: 1959 | AL49: =C457 -> 223.5418448 | AM49: =C458 -> 205.3667168 | AN49: =C459 -> 205.3488528 | AO49: =C460 -> 226.2545378 | AP49: =C461 -> 229.5251528 | AQ49: =C462 -> 228.9557078 | AR49: =C463 -> 202.5120358 | AS49: =C464 -> 133.1712566 | AT49: =C465 -> 132.6772111 | AU49: =C466 -> 131.0117499 | AV49: =C467 -> 130.0589755 | AW49: =C468 -> 129.4826247 | AY49: 161.2451688 | AZ49: 149.4804007 | BA49: 181.4922222 | BC49: 218.5488073 | BD49: 130.4454776 | BE49: 214.8907774 | BF49: 216.3497751 | BG49: 186.4350455 | BH49: 131.2687193 | BI49: 130.6886794 | BK49: 1959 | BL49: =D457 -> 223.0747384 | BM49: =D458 -> 204.9216393 | BN49: =D459 -> 204.9050887 | BO49: =D460 -> 229.7654094 | BP49: =D461 -> 230.4211899 | BQ49: =D462 -> 229.9726062 | BR49: =D463 -> 206.6840095 | BS49: =D464 -> 118.0708701 | BT49: =D465 -> 29.12700815 | BU49: =D466 -> 0.0003722474878 | BV49: =D467 -> 0 | BW49: =D468 -> 0 | BY49: 87.4106913 | BZ49: 53.71073818 | CA49: 139.7452443 | CC49: 219.3073999 | CD49: 0.6068926258 | CE49: 214.925331 | CF49: 217.4473042 | CG49: 171.1253962 | CH49: 22.04070386 | CI49: 1.421216279 | CK49: 1959 | CL49: =E457 ->  | CM49: =E458 ->  | CN49: =E459 ->  | CO49: =E460 ->  | CP49: =E461 ->  | CQ49: =E462 ->  | CR49: =E463 ->  | CS49: =E464 ->  | CT49: =E465 ->  | CU49: =E466 ->  | CV49: =E467 ->  | CW49: =E468 ->  | DK49: 1959 | DL49: =F457 ->  | DM49: =F458 ->  | DN49: =F459 ->  | DO49: =F460 ->  | DP49: =F461 ->  | DQ49: =F462 ->  | DR49: =F463 ->  | DS49: =F464 ->  | DT49: =F465 ->  | DU49: =F466 ->  | DV49: =F467 ->  | DW49: =F468 ->  | EK49: 1959 | EL49: =G457 ->  | EM49: =G458 ->  | EN49: =G459 ->  | EO49: =G460 ->  | EP49: =G461 ->  | EQ49: =G462 ->  | ER49: =G463 ->  | ES49: =G464 ->  | ET49: =G465 ->  | EU49: =G466 ->  | EV49: =G467 ->  | EW49: =G468 -> 
A50: 1924-11-30 | B50: =INDIRECT(CONCATENATE("'",B$1,"'!",B$4,(YEAR($A50)-1921)*12+MONTH($A50)+3+IF(ISNUMBER(FIND("PRV",B$6)),1,0)))*IF(AND(B$3>0,TRIM(B$9)="CFS"),Conversions!$C50,1) -> 0 | C50: =INDIRECT(CONCATENATE("'",C$1,"'!",C$4,(YEAR($A50)-1921)*12+MONTH($A50)+3+IF(ISNUMBER(FIND("PRV",C$6)),1,0)))*IF(AND(C$3>0,TRIM(C$9)="CFS"),Conversions!$C50,1) -> 0 | D50: =INDIRECT(CONCATENATE("'",D$1,"'!",D$4,(YEAR($A50)-1921)*12+MONTH($A50)+3+IF(ISNUMBER(FIND("PRV",D$6)),1,0)))*IF(AND(D$3>0,TRIM(D$9)="CFS"),Conversions!$C50,1) -> 0 | E50: =INDIRECT(CONCATENATE("'",E$1,"'!",E$4,(YEAR($A50)-1921)*12+MONTH($A50)+3+IF(ISNUMBER(FIND("PRV",E$6)),1,0)))*IF(AND(E$3>0,TRIM(E$9)="CFS"),Conversions!$C50,1) ->  | F50: =INDIRECT(CONCATENATE("'",F$1,"'!",F$4,(YEAR($A50)-1921)*12+MONTH($A50)+3+IF(ISNUMBER(FIND("PRV",F$6)),1,0)))*IF(AND(F$3>0,TRIM(F$9)="CFS"),Conversions!$C50,1) ->  | G50: =INDIRECT(CONCATENATE("'",G$1,"'!",G$4,(YEAR($A50)-1921)*12+MONTH($A50)+3+IF(ISNUMBER(FIND("PRV",G$6)),1,0)))*IF(AND(G$3>0,TRIM(G$9)="CFS"),Conversions!$C50,1) ->  | K50: 1960 | L50: =B469 -> 0 | M50: =B470 -> 0 | N50: =B471 -> 0 | O50: =B472 -> 0 | P50: =B473 -> 0 | Q50: =B474 -> 0 | R50: =B475 -> 0 | S50: =B476 -> 0 | T50: =B477 -> 0 | U50: =B478 -> 0 | V50: =B479 -> 0 | W50: =B480 -> 0 | Y50: 0 | Z50: 0 | AA50: 0 | AC50: 0 | AD50: 0 | AE50: 0 | AF50: 0 | AG50: 0 | AH50: 0 | AI50: 0 | AK50: 1960 | AL50: =C469 -> 132.5779152 | AM50: =C470 -> 129.9520214 | AN50: =C471 -> 128.7628365 | AO50: =C472 -> 130.1361858 | AP50: =C473 -> 184.4662886 | AQ50: =C474 -> 220.7309313 | AR50: =C475 -> 142.5884405 | AS50: =C476 -> 127.6410776 | AT50: =C477 -> 84.21328937 | AU50: =C478 -> 62.94604782 | AV50: =C479 -> 40.81286165 | AW50: =C480 -> 39.29652604 | AY50: 97.34983741 | AZ50: 80.2344541 | BA50: 118.6770351 | BC50: 149.9943511 | BD50: 44.40042107 | BE50: 130.2755446 | BF50: 138.7027258 | BG50: 156.3250596 | BH50: 67.86025017 | BI50: 41.8201123 | BK50: 1960 | BL50: =D469 -> 3.640983507 | BM50: =D470 -> 1.245330661 | BN50: =D471 -> 0.0005159034438 | BO50: =D472 -> 0.9405175561 | BP50: =D473 -> 54.84664433 | BQ50: =D474 -> 164.1440095 | BR50: =D475 -> 145.9663284 | BS50: =D476 -> 145.5387864 | BT50: =D477 -> 74.4320807 | BU50: =D478 -> 2.709759231 | BV50: =D479 -> 0.0003848035375 | BW50: =D480 -> 6.170205084 | BY50: 51.53543431 | BZ50: 48.6621996 | CA50: 49.96962885 | CC50: 28.18510099 | CD50: 4.639427796 | CE50: 1.339272213 | CF50: 9.662340318 | CG50: 130.0721217 | CH50: 38.24918012 | CI50: 7.360842101 | CK50: 1960 | CL50: =E469 ->  | CM50: =E470 ->  | CN50: =E471 ->  | CO50: =E472 ->  | CP50: =E473 ->  | CQ50: =E474 ->  | CR50: =E475 ->  | CS50: =E476 ->  | CT50: =E477 ->  | CU50: =E478 ->  | CV50: =E479 ->  | CW50: =E480 ->  | DK50: 1960 | DL50: =F469 ->  | DM50: =F470 ->  | DN50: =F471 ->  | DO50: =F472 ->  | DP50: =F473 ->  | DQ50: =F474 ->  | DR50: =F475 ->  | DS50: =F476 ->  | DT50: =F477 ->  | DU50: =F478 ->  | DV50: =F479 ->  | DW50: =F480 ->  | EK50: 1960 | EL50: =G469 ->  | EM50: =G470 ->  | EN50: =G471 ->  | EO50: =G472 ->  | EP50: =G473 ->  | EQ50: =G474 ->  | ER50: =G475 ->  | ES50: =G476 ->  | ET50: =G477 ->  | EU50: =G478 ->  | EV50: =G479 ->  | EW50: =G480 -> 
A51: 1924-12-31 | B51: =INDIRECT(CONCATENATE("'",B$1,"'!",B$4,(YEAR($A51)-1921)*12+MONTH($A51)+3+IF(ISNUMBER(FIND("PRV",B$6)),1,0)))*IF(AND(B$3>0,TRIM(B$9)="CFS"),Conversions!$C51,1) -> 0 | C51: =INDIRECT(CONCATENATE("'",C$1,"'!",C$4,(YEAR($A51)-1921)*12+MONTH($A51)+3+IF(ISNUMBER(FIND("PRV",C$6)),1,0)))*IF(AND(C$3>0,TRIM(C$9)="CFS"),Conversions!$C51,1) -> 10.05853362 | D51: =INDIRECT(CONCATENATE("'",D$1,"'!",D$4,(YEAR($A51)-1921)*12+MONTH($A51)+3+IF(ISNUMBER(FIND("PRV",D$6)),1,0)))*IF(AND(D$3>0,TRIM(D$9)="CFS"),Conversions!$C51,1) -> 27.02435238 | E51: =INDIRECT(CONCATENATE("'",E$1,"'!",E$4,(YEAR($A51)-1921)*12+MONTH($A51)+3+IF(ISNUMBER(FIND("PRV",E$6)),1,0)))*IF(AND(E$3>0,TRIM(E$9)="CFS"),Conversions!$C51,1) ->  | F51: =INDIRECT(CONCATENATE("'",F$1,"'!",F$4,(YEAR($A51)-1921)*12+MONTH($A51)+3+IF(ISNUMBER(FIND("PRV",F$6)),1,0)))*IF(AND(F$3>0,TRIM(F$9)="CFS"),Conversions!$C51,1) ->  | G51: =INDIRECT(CONCATENATE("'",G$1,"'!",G$4,(YEAR($A51)-1921)*12+MONTH($A51)+3+IF(ISNUMBER(FIND("PRV",G$6)),1,0)))*IF(AND(G$3>0,TRIM(G$9)="CFS"),Conversions!$C51,1) ->  | K51: 1961 | L51: =B481 -> 0 | M51: =B482 -> 0 | N51: =B483 -> 0 | O51: =B484 -> 0 | P51: =B485 -> 0 | Q51: =B486 -> 0 | R51: =B487 -> 0 | S51: =B488 -> 0 | T51: =B489 -> 0 | U51: =B490 -> 0 | V51: =B491 -> 0 | W51: =B492 -> 0 | Y51: 0 | Z51: 0 | AA51: 0 | AC51: 0 | AD51: 0 | AE51: 0 | AF51: 0 | AG51: 0 | AH51: 0 | AI51: 0 | AK51: 1961 | AL51: =C481 -> 43.23770322 | AM51: =C482 -> 45.03935364 | AN51: =C483 -> 47.08934346 | AO51: =C484 -> 48.18174649 | AP51: =C485 -> 61.03612815 | AQ51: =C486 -> 64.27612488 | AR51: =C487 -> 59.37448043 | AS51: =C488 -> 26.7768684 | AT51: =C489 -> 17.54806578 | AU51: =C490 -> 7.081629467 | AV51: =C491 -> 0.0005289232176 | AW51: =C492 -> 1.735056074e-07 | AY51: 26.55569144 | AZ51: 22.05836001 | BA51: 34.97016442 | BC51: 51.02069716 | BD51: 1.180667731 | BE51: 44.77638415 | BF51: 49.43627695 | BG51: 47.42989267 | BH51: 9.504664614 | BI51: 0.0005283246336 | BK51: 1961 | BL51: =D481 -> 12.78562777 | BM51: =D482 -> 6.2530021 | BN51: =D483 -> 4.637865806 | BO51: =D484 -> 4.651916833 | BP51: =D485 -> 16.65642846 | BQ51: =D486 -> 23.48794571 | BR51: =D487 -> 7.031007441 | BS51: =D488 -> 0 | BT51: =D489 -> 0 | BU51: =D490 -> 0.5201558442 | BV51: =D491 -> 1.133645438 | BW51: =D492 -> 0.0003681236104 | BY51: 4.553186641 | BZ51: 5.136089852 | CA51: 6.429830293 | CC51: 10.06719999 | CD51: 0.4647608115 | CE51: 7.271889158 | CF51: 6.914832639 | CG51: 9.711791845 | CH51: 0.413496336 | CI51: 0.1891910625 | CK51: 1961 | CL51: =E481 ->  | CM51: =E482 ->  | CN51: =E483 ->  | CO51: =E484 ->  | CP51: =E485 ->  | CQ51: =E486 ->  | CR51: =E487 ->  | CS51: =E488 ->  | CT51: =E489 ->  | CU51: =E490 ->  | CV51: =E491 ->  | CW51: =E492 ->  | DK51: 1961 | DL51: =F481 ->  | DM51: =F482 ->  | DN51: =F483 ->  | DO51: =F484 ->  | DP51: =F485 ->  | DQ51: =F486 ->  | DR51: =F487 ->  | DS51: =F488 ->  | DT51: =F489 ->  | DU51: =F490 ->  | DV51: =F491 ->  | DW51: =F492 ->  | EK51: 1961 | EL51: =G481 ->  | EM51: =G482 ->  | EN51: =G483 ->  | EO51: =G484 ->  | EP51: =G485 ->  | EQ51: =G486 ->  | ER51: =G487 ->  | ES51: =G488 ->  | ET51: =G489 ->  | EU51: =G490 ->  | EV51: =G491 ->  | EW51: =G492 -> 
A52: 1925-01-31 | B52: =INDIRECT(CONCATENATE("'",B$1,"'!",B$4,(YEAR($A52)-1921)*12+MONTH($A52)+3+IF(ISNUMBER(FIND("PRV",B$6)),1,0)))*IF(AND(B$3>0,TRIM(B$9)="CFS"),Conversions!$C52,1) -> 0 | C52: =INDIRECT(CONCATENATE("'",C$1,"'!",C$4,(YEAR($A52)-1921)*12+MONTH($A52)+3+IF(ISNUMBER(FIND("PRV",C$6)),1,0)))*IF(AND(C$3>0,TRIM(C$9)="CFS"),Conversions!$C52,1) -> 10.99865585 | D52: =INDIRECT(CONCATENATE("'",D$1,"'!",D$4,(YEAR($A52)-1921)*12+MONTH($A52)+3+IF(ISNUMBER(FIND("PRV",D$6)),1,0)))*IF(AND(D$3>0,TRIM(D$9)="CFS"),Conversions!$C52,1) -> 27.0246416 | E52: =INDIRECT(CONCATENATE("'",E$1,"'!",E$4,(YEAR($A52)-1921)*12+MONTH($A52)+3+IF(ISNUMBER(FIND("PRV",E$6)),1,0)))*IF(AND(E$3>0,TRIM(E$9)="CFS"),Conversions!$C52,1) ->  | F52: =INDIRECT(CONCATENATE("'",F$1,"'!",F$4,(YEAR($A52)-1921)*12+MONTH($A52)+3+IF(ISNUMBER(FIND("PRV",F$6)),1,0)))*IF(AND(F$3>0,TRIM(F$9)="CFS"),Conversions!$C52,1) ->  | G52: =INDIRECT(CONCATENATE("'",G$1,"'!",G$4,(YEAR($A52)-1921)*12+MONTH($A52)+3+IF(ISNUMBER(FIND("PRV",G$6)),1,0)))*IF(AND(G$3>0,TRIM(G$9)="CFS"),Conversions!$C52,1) ->  | K52: 1962 | L52: =B493 -> 0 | M52: =B494 -> 0 | N52: =B495 -> 0 | O52: =B496 -> 0 | P52: =B497 -> 0 | Q52: =B498 -> 0 | R52: =B499 -> 0 | S52: =B500 -> 0 | T52: =B501 -> 0 | U52: =B502 -> 0 | V52: =B503 -> 0 | W52: =B504 -> 0 | Y52: 0 | Z52: 0 | AA52: 0 | AC52: 0 | AD52: 0 | AE52: 0 | AF52: 0 | AG52: 0 | AH52: 0 | AI52: 0 | AK52: 1962 | AL52: =C493 -> 0.001318725451 | AM52: =C494 -> 3.226670063e-06 | AN52: =C495 -> 34.39140267 | AO52: =C496 -> 16.54675552 | AP52: =C497 -> 38.70314196 | AQ52: =C498 -> 61.72728001 | AR52: =C499 -> 58.65538963 | AS52: =C500 -> 33.83396562 | AT52: =C501 -> 33.39939118 | AU52: =C502 -> 34.11621045 | AV52: =C503 -> 32.36787665 | AW52: =C504 -> 31.96038288 | AY52: 37.69225268 | AZ52: 42.59711291 | BA52: 31.30859321 | BC52: 24.10112055 | BD52: 32.46939131 | BE52: 10.66652562 | BF52: 23.42991026 | BG52: 47.56697546 | BH52: 33.19516313 | BI52: 32.67239274 | BK52: 1962 | BL52: =D493 -> 0.0003819018757 | BM52: =D494 -> 8.863644143e-07 | BN52: =D495 -> 1.156389058 | BO52: =D496 -> 1.898778763 | BP52: =D497 -> 26.40440505 | BQ52: =D498 -> 48.44090995 | BR52: =D499 -> 48.22411859 | BS52: =D500 -> 0 | BT52: =D501 -> 0 | BU52: =D502 -> 1.858185213 | BV52: =D503 -> 0.0003456457056 | BW52: =D504 -> 0 | BY52: 11.7846985 | BZ52: 13.5172814 | CA52: 10.66529292 | CC52: 10.73604394 | CD52: 0.3098127507 | CE52: 0.5265863224 | CF52: 5.419123597 | CG52: 27.46680777 | CH52: 0.4646327147 | CI52: 0.5900993659 | CK52: 1962 | CL52: =E493 ->  | CM52: =E494 ->  | CN52: =E495 ->  | CO52: =E496 ->  | CP52: =E497 ->  | CQ52: =E498 ->  | CR52: =E499 ->  | CS52: =E500 ->  | CT52: =E501 ->  | CU52: =E502 ->  | CV52: =E503 ->  | CW52: =E504 ->  | DK52: 1962 | DL52: =F493 ->  | DM52: =F494 ->  | DN52: =F495 ->  | DO52: =F496 ->  | DP52: =F497 ->  | DQ52: =F498 ->  | DR52: =F499 ->  | DS52: =F500 ->  | DT52: =F501 ->  | DU52: =F502 ->  | DV52: =F503 ->  | DW52: =F504 ->  | EK52: 1962 | EL52: =G493 ->  | EM52: =G494 ->  | EN52: =G495 ->  | EO52: =G496 ->  | EP52: =G497 ->  | EQ52: =G498 ->  | ER52: =G499 ->  | ES52: =G500 ->  | ET52: =G501 ->  | EU52: =G502 ->  | EV52: =G503 ->  | EW52: =G504 -> 
A53: 1925-02-28 | B53: =INDIRECT(CONCATENATE("'",B$1,"'!",B$4,(YEAR($A53)-1921)*12+MONTH($A53)+3+IF(ISNUMBER(FIND("PRV",B$6)),1,0)))*IF(AND(B$3>0,TRIM(B$9)="CFS"),Conversions!$C53,1) -> 0 | C53: =INDIRECT(CONCATENATE("'",C$1,"'!",C$4,(YEAR($A53)-1921)*12+MONTH($A53)+3+IF(ISNUMBER(FIND("PRV",C$6)),1,0)))*IF(AND(C$3>0,TRIM(C$9)="CFS"),Conversions!$C53,1) -> 42.1752828 | D53: =INDIRECT(CONCATENATE("'",D$1,"'!",D$4,(YEAR($A53)-1921)*12+MONTH($A53)+3+IF(ISNUMBER(FIND("PRV",D$6)),1,0)))*IF(AND(D$3>0,TRIM(D$9)="CFS"),Conversions!$C53,1) -> 57.601929 | E53: =INDIRECT(CONCATENATE("'",E$1,"'!",E$4,(YEAR($A53)-1921)*12+MONTH($A53)+3+IF(ISNUMBER(FIND("PRV",E$6)),1,0)))*IF(AND(E$3>0,TRIM(E$9)="CFS"),Conversions!$C53,1) ->  | F53: =INDIRECT(CONCATENATE("'",F$1,"'!",F$4,(YEAR($A53)-1921)*12+MONTH($A53)+3+IF(ISNUMBER(FIND("PRV",F$6)),1,0)))*IF(AND(F$3>0,TRIM(F$9)="CFS"),Conversions!$C53,1) ->  | G53: =INDIRECT(CONCATENATE("'",G$1,"'!",G$4,(YEAR($A53)-1921)*12+MONTH($A53)+3+IF(ISNUMBER(FIND("PRV",G$6)),1,0)))*IF(AND(G$3>0,TRIM(G$9)="CFS"),Conversions!$C53,1) ->  | K53: 1963 | L53: =B505 -> 0 | M53: =B506 -> 0 | N53: =B507 -> 0 | O53: =B508 -> 0 | P53: =B509 -> 0 | Q53: =B510 -> 0 | R53: =B511 -> 0 | S53: =B512 -> 0 | T53: =B513 -> 0 | U53: =B514 -> 0 | V53: =B515 -> 0 | W53: =B516 -> 0 | Y53: 0 | Z53: 0 | AA53: 0 | AC53: 0 | AD53: 0 | AE53: 0 | AF53: 0 | AG53: 0 | AH53: 0 | AI53: 0 | AK53: 1963 | AL53: =C505 -> 32.04361834 | AM53: =C506 -> 35.65847736 | AN53: =C507 -> 43.29454261 | AO53: =C508 -> 44.43902218 | AP53: =C509 -> 69.66919797 | AQ53: =C510 -> 87.13267688 | AR53: =C511 -> 121.8730046 | AS53: =C512 -> 121.2647934 | AT53: =C513 -> 120.2838129 | AU53: =C514 -> 121.9400929 | AV53: =C515 -> 120.8375333 | AW53: =C516 -> 119.9941471 | AY53: 107.2221567 | AZ53: 117.3674518 | BA53: 86.53590996 | BC53: 50.52987755 | BD53: 120.5653187 | BE53: 37.29908521 | BF53: 46.79913415 | BG53: 106.3117451 | BH53: 120.9227273 | BI53: 120.8735517 | BK53: 1963 | BL53: =D505 -> 0 | BM53: =D506 -> 3.54025055 | BN53: =D507 -> 11.0493882 | BO53: =D508 -> 12.02500758 | BP53: =D509 -> 37.06917108 | BQ53: =D510 -> 53.78279381 | BR53: =D511 -> 88.49851964 | BS53: =D512 -> 88.11549235 | BT53: =D513 -> 87.49770962 | BU53: =D514 -> 90.39011197 | BV53: =D515 -> 89.68166275 | BW53: =D516 -> 89.13942566 | BY53: 75.40614556 | BZ53: 86.16756094 | CA53: 54.2324611 | CC53: 18.11504286 | CD53: 89.50663122 | CE53: 5.150535636 | CF53: 14.4597022 | CG53: 73.17006154 | CH53: 89.04923584 | CI53: 89.97534326 | CK53: 1963 | CL53: =E505 ->  | CM53: =E506 ->  | CN53: =E507 ->  | CO53: =E508 ->  | CP53: =E509 ->  | CQ53: =E510 ->  | CR53: =E511 ->  | CS53: =E512 ->  | CT53: =E513 ->  | CU53: =E514 ->  | CV53: =E515 ->  | CW53: =E516 ->  | DK53: 1963 | DL53: =F505 ->  | DM53: =F506 ->  | DN53: =F507 ->  | DO53: =F508 ->  | DP53: =F509 ->  | DQ53: =F510 ->  | DR53: =F511 ->  | DS53: =F512 ->  | DT53: =F513 ->  | DU53: =F514 ->  | DV53: =F515 ->  | DW53: =F516 ->  | EK53: 1963 | EL53: =G505 ->  | EM53: =G506 ->  | EN53: =G507 ->  | EO53: =G508 ->  | EP53: =G509 ->  | EQ53: =G510 ->  | ER53: =G511 ->  | ES53: =G512 ->  | ET53: =G513 ->  | EU53: =G514 ->  | EV53: =G515 ->  | EW53: =G516 -> 
A54: 1925-03-31 | B54: =INDIRECT(CONCATENATE("'",B$1,"'!",B$4,(YEAR($A54)-1921)*12+MONTH($A54)+3+IF(ISNUMBER(FIND("PRV",B$6)),1,0)))*IF(AND(B$3>0,TRIM(B$9)="CFS"),Conversions!$C54,1) -> 0 | C54: =INDIRECT(CONCATENATE("'",C$1,"'!",C$4,(YEAR($A54)-1921)*12+MONTH($A54)+3+IF(ISNUMBER(FIND("PRV",C$6)),1,0)))*IF(AND(C$3>0,TRIM(C$9)="CFS"),Conversions!$C54,1) -> 11.50608549 | D54: =INDIRECT(CONCATENATE("'",D$1,"'!",D$4,(YEAR($A54)-1921)*12+MONTH($A54)+3+IF(ISNUMBER(FIND("PRV",D$6)),1,0)))*IF(AND(D$3>0,TRIM(D$9)="CFS"),Conversions!$C54,1) -> 48.19216773 | E54: =INDIRECT(CONCATENATE("'",E$1,"'!",E$4,(YEAR($A54)-1921)*12+MONTH($A54)+3+IF(ISNUMBER(FIND("PRV",E$6)),1,0)))*IF(AND(E$3>0,TRIM(E$9)="CFS"),Conversions!$C54,1) ->  | F54: =INDIRECT(CONCATENATE("'",F$1,"'!",F$4,(YEAR($A54)-1921)*12+MONTH($A54)+3+IF(ISNUMBER(FIND("PRV",F$6)),1,0)))*IF(AND(F$3>0,TRIM(F$9)="CFS"),Conversions!$C54,1) ->  | G54: =INDIRECT(CONCATENATE("'",G$1,"'!",G$4,(YEAR($A54)-1921)*12+MONTH($A54)+3+IF(ISNUMBER(FIND("PRV",G$6)),1,0)))*IF(AND(G$3>0,TRIM(G$9)="CFS"),Conversions!$C54,1) ->  | K54: 1964 | L54: =B517 -> 0 | M54: =B518 -> 0 | N54: =B519 -> 0 | O54: =B520 -> 0 | P54: =B521 -> 0 | Q54: =B522 -> 0 | R54: =B523 -> 0 | S54: =B524 -> 0 | T54: =B525 -> 0 | U54: =B526 -> 0 | V54: =B527 -> 0 | W54: =B528 -> 0 | Y54: 0 | Z54: 0 | AA54: 0 | AC54: 0 | AD54: 0 | AE54: 0 | AF54: 0 | AG54: 0 | AH54: 0 | AI54: 0 | AK54: 1964 | AL54: =C517 -> 119.7884587 | AM54: =C518 -> 124.8385652 | AN54: =C519 -> 114.604575 | AO54: =C520 -> 118.1560349 | AP54: =C521 -> 117.6957266 | AQ54: =C522 -> 115.964012 | AR54: =C523 -> 73.9136864 | AS54: =C524 -> 58.91962088 | AT54: =C525 -> 43.88551745 | AU54: =C526 -> 27.46730063 | AV54: =C527 -> 9.967357698 | AW54: =C528 -> 4.41696592 | AY54: 48.75241805 | AZ54: 36.29309189 | BA54: 77.46815179 | BC54: 118.6342274 | BD54: 10.04726219 | BE54: 119.5766725 | BF54: 118.009252 | BG54: 82.39698534 | BH54: 28.2471173 | BI54: 5.358394287 | BK54: 1964 | BL54: =D517 -> 89.00749855 | BM54: =D518 -> 93.87654837 | BN54: =D519 -> 85.7898053 | BO54: =D520 -> 89.26527309 | BP54: =D521 -> 88.96589021 | BQ54: =D522 -> 88.77058768 | BR54: =D523 -> 58.92469307 | BS54: =D524 -> 0.006792865589 | BT54: =D525 -> 0.006740919463 | BU54: =D526 -> 3.010333009e-06 | BV54: =D527 -> 0 | BW54: =D528 -> 0 | BY54: 27.3154605 | BZ54: 18.76069947 | CA54: 49.55115276 | CC54: 89.35731202 | CD54: 0.3006659122 | CE54: 89.4690504 | CF54: 88.82543256 | CG54: 48.04709729 | CH54: 0.002535090647 | CI54: 0.6032199053 | CK54: 1964 | CL54: =E517 ->  | CM54: =E518 ->  | CN54: =E519 ->  | CO54: =E520 ->  | CP54: =E521 ->  | CQ54: =E522 ->  | CR54: =E523 ->  | CS54: =E524 ->  | CT54: =E525 ->  | CU54: =E526 ->  | CV54: =E527 ->  | CW54: =E528 ->  | DK54: 1964 | DL54: =F517 ->  | DM54: =F518 ->  | DN54: =F519 ->  | DO54: =F520 ->  | DP54: =F521 ->  | DQ54: =F522 ->  | DR54: =F523 ->  | DS54: =F524 ->  | DT54: =F525 ->  | DU54: =F526 ->  | DV54: =F527 ->  | DW54: =F528 ->  | EK54: 1964 | EL54: =G517 ->  | EM54: =G518 ->  | EN54: =G519 ->  | EO54: =G520 ->  | EP54: =G521 ->  | EQ54: =G522 ->  | ER54: =G523 ->  | ES54: =G524 ->  | ET54: =G525 ->  | EU54: =G526 ->  | EV54: =G527 ->  | EW54: =G528 -> 
A55: 1925-04-30 | B55: =INDIRECT(CONCATENATE("'",B$1,"'!",B$4,(YEAR($A55)-1921)*12+MONTH($A55)+3+IF(ISNUMBER(FIND("PRV",B$6)),1,0)))*IF(AND(B$3>0,TRIM(B$9)="CFS"),Conversions!$C55,1) -> 0 | C55: =INDIRECT(CONCATENATE("'",C$1,"'!",C$4,(YEAR($A55)-1921)*12+MONTH($A55)+3+IF(ISNUMBER(FIND("PRV",C$6)),1,0)))*IF(AND(C$3>0,TRIM(C$9)="CFS"),Conversions!$C55,1) -> 11.54872278 | D55: =INDIRECT(CONCATENATE("'",D$1,"'!",D$4,(YEAR($A55)-1921)*12+MONTH($A55)+3+IF(ISNUMBER(FIND("PRV",D$6)),1,0)))*IF(AND(D$3>0,TRIM(D$9)="CFS"),Conversions!$C55,1) -> 48.026958 | E55: =INDIRECT(CONCATENATE("'",E$1,"'!",E$4,(YEAR($A55)-1921)*12+MONTH($A55)+3+IF(ISNUMBER(FIND("PRV",E$6)),1,0)))*IF(AND(E$3>0,TRIM(E$9)="CFS"),Conversions!$C55,1) ->  | F55: =INDIRECT(CONCATENATE("'",F$1,"'!",F$4,(YEAR($A55)-1921)*12+MONTH($A55)+3+IF(ISNUMBER(FIND("PRV",F$6)),1,0)))*IF(AND(F$3>0,TRIM(F$9)="CFS"),Conversions!$C55,1) ->  | G55: =INDIRECT(CONCATENATE("'",G$1,"'!",G$4,(YEAR($A55)-1921)*12+MONTH($A55)+3+IF(ISNUMBER(FIND("PRV",G$6)),1,0)))*IF(AND(G$3>0,TRIM(G$9)="CFS"),Conversions!$C55,1) ->  | K55: 1965 | L55: =B529 -> 0 | M55: =B530 -> 0 | N55: =B531 -> 0 | O55: =B532 -> 0 | P55: =B533 -> 0 | Q55: =B534 -> 0 | R55: =B535 -> 0 | S55: =B536 -> 0 | T55: =B537 -> 0 | U55: =B538 -> 0 | V55: =B539 -> 0 | W55: =B540 -> 0 | Y55: 0 | Z55: 0 | AA55: 0 | AC55: 0 | AD55: 0 | AE55: 0 | AF55: 0 | AG55: 0 | AH55: 0 | AI55: 0 | AK55: 1965 | AL55: =C529 -> 4.047625281 | AM55: =C530 -> 5.253825621 | AN55: =C531 -> 5.341343125 | AO55: =C532 -> 39.2479799 | AP55: =C533 -> 47.09186777 | AQ55: =C534 -> 62.20750863 | AR55: =C535 -> 87.11048796 | AS55: =C536 -> 86.38254052 | AT55: =C537 -> 85.58469482 | AU55: =C538 -> 84.6184566 | AV55: =C539 -> 83.94321451 | AW55: =C540 -> 83.29394836 | AY55: 76.89530625 | AZ55: 87.47871109 | BA55: 56.17695776 | BC55: 26.01251667 | BD55: 83.65306241 | BE55: 9.118816734 | BF55: 23.58738991 | BG55: 75.5097046 | BH55: 84.74615259 | BI55: 83.91402998 | BK55: 1965 | BL55: =D529 -> 1.803992463 | BM55: =D530 -> 0.01133450608 | BN55: =D531 -> 0.03021816221 | BO55: =D532 -> 33.84585199 | BP55: =D533 -> 41.72817894 | BQ55: =D534 -> 62.48462946 | BR55: =D535 -> 92.10649022 | BS55: =D536 -> 91.46275826 | BT55: =D537 -> 90.75717013 | BU55: =D538 -> 89.90343334 | BV55: =D539 -> 89.3071119 | BW55: =D540 -> 88.73582919 | BY55: 79.99495424 | BZ55: 92.38133553 | CA55: 56.84808321 | CC55: 21.55197891 | CD55: 89.05235883 | CE55: 4.692117781 | CF55: 18.24860896 | CG55: 78.07413812 | CH55: 90.01675227 | CI55: 89.3602348 | CK55: 1965 | CL55: =E529 ->  | CM55: =E530 ->  | CN55: =E531 ->  | CO55: =E532 ->  | CP55: =E533 ->  | CQ55: =E534 ->  | CR55: =E535 ->  | CS55: =E536 ->  | CT55: =E537 ->  | CU55: =E538 ->  | CV55: =E539 ->  | CW55: =E540 ->  | DK55: 1965 | DL55: =F529 ->  | DM55: =F530 ->  | DN55: =F531 ->  | DO55: =F532 ->  | DP55: =F533 ->  | DQ55: =F534 ->  | DR55: =F535 ->  | DS55: =F536 ->  | DT55: =F537 ->  | DU55: =F538 ->  | DV55: =F539 ->  | DW55: =F540 ->  | EK55: 1965 | EL55: =G529 ->  | EM55: =G530 ->  | EN55: =G531 ->  | EO55: =G532 ->  | EP55: =G533 ->  | EQ55: =G534 ->  | ER55: =G535 ->  | ES55: =G536 ->  | ET55: =G537 ->  | EU55: =G538 ->  | EV55: =G539 ->  | EW55: =G540 -> 
A56: 1925-05-31 | B56: =INDIRECT(CONCATENATE("'",B$1,"'!",B$4,(YEAR($A56)-1921)*12+MONTH($A56)+3+IF(ISNUMBER(FIND("PRV",B$6)),1,0)))*IF(AND(B$3>0,TRIM(B$9)="CFS"),Conversions!$C56,1) -> 0 | C56: =INDIRECT(CONCATENATE("'",C$1,"'!",C$4,(YEAR($A56)-1921)*12+MONTH($A56)+3+IF(ISNUMBER(FIND("PRV",C$6)),1,0)))*IF(AND(C$3>0,TRIM(C$9)="CFS"),Conversions!$C56,1) -> 11.74520916 | D56: =INDIRECT(CONCATENATE("'",D$1,"'!",D$4,(YEAR($A56)-1921)*12+MONTH($A56)+3+IF(ISNUMBER(FIND("PRV",D$6)),1,0)))*IF(AND(D$3>0,TRIM(D$9)="CFS"),Conversions!$C56,1) -> 47.74806029 | E56: =INDIRECT(CONCATENATE("'",E$1,"'!",E$4,(YEAR($A56)-1921)*12+MONTH($A56)+3+IF(ISNUMBER(FIND("PRV",E$6)),1,0)))*IF(AND(E$3>0,TRIM(E$9)="CFS"),Conversions!$C56,1) ->  | F56: =INDIRECT(CONCATENATE("'",F$1,"'!",F$4,(YEAR($A56)-1921)*12+MONTH($A56)+3+IF(ISNUMBER(FIND("PRV",F$6)),1,0)))*IF(AND(F$3>0,TRIM(F$9)="CFS"),Conversions!$C56,1) ->  | G56: =INDIRECT(CONCATENATE("'",G$1,"'!",G$4,(YEAR($A56)-1921)*12+MONTH($A56)+3+IF(ISNUMBER(FIND("PRV",G$6)),1,0)))*IF(AND(G$3>0,TRIM(G$9)="CFS"),Conversions!$C56,1) ->  | K56: 1966 | L56: =B541 -> 0 | M56: =B542 -> 0 | N56: =B543 -> 0 | O56: =B544 -> 0 | P56: =B545 -> 0 | Q56: =B546 -> 0 | R56: =B547 -> 0 | S56: =B548 -> 0 | T56: =B549 -> 0 | U56: =B550 -> 0 | V56: =B551 -> 0 | W56: =B552 -> 0 | Y56: 0 | Z56: 0 | AA56: 0 | AC56: 0 | AD56: 0 | AE56: 0 | AF56: 0 | AG56: 0 | AH56: 0 | AI56: 0 | AK56: 1966 | AL56: =C541 -> 82.82559215 | AM56: =C542 -> 87.30188437 | AN56: =C543 -> 93.13549947 | AO56: =C544 -> 101.8684124 | AP56: =C545 -> 111.4722932 | AQ56: =C546 -> 136.9982242 | AR56: =C547 -> 136.120659 | AS56: =C548 -> 79.44498859 | AT56: =C549 -> 79.19181293 | AU56: =C550 -> 80.56001338 | AV56: =C551 -> 77.04545164 | AW56: =C552 -> 76.44902883 | AY56: 92.57689525 | AZ56: 92.2362232 | BA56: 95.20115502 | BC56: 100.7379995 | BD56: 77.68046987 | BE56: 88.9610391 | BF56: 98.13033356 | BG56: 111.9739812 | BH56: 78.68607166 | BI56: 77.24442238 | BK56: 1966 | BL56: =D541 -> 88.32483748 | BM56: =D542 -> 92.73296358 | BN56: =D543 -> 98.55019633 | BO56: =D544 -> 107.3092305 | BP56: =D545 -> 116.9013759 | BQ56: =D546 -> 139.689552 | BR56: =D547 -> 139.022553 | BS56: =D548 -> 52.34574986 | BT56: =D549 -> 0.0007995001529 | BU56: =D550 -> 1.288887876 | BV56: =D551 -> 6.484700593e-05 | BW56: =D552 -> 0 | BY56: 46.53799297 | BZ56: 32.40542457 | CA56: 69.68051758 | CC56: 105.9001922 | CD56: 0.5210868979 | CE56: 94.40763181 | CF56: 103.5588655 | CG56: 97.37723566 | CH56: 6.865656789 | CI56: 0.6139896765 | CK56: 1966 | CL56: =E541 ->  | CM56: =E542 ->  | CN56: =E543 ->  | CO56: =E544 ->  | CP56: =E545 ->  | CQ56: =E546 ->  | CR56: =E547 ->  | CS56: =E548 ->  | CT56: =E549 ->  | CU56: =E550 ->  | CV56: =E551 ->  | CW56: =E552 ->  | DK56: 1966 | DL56: =F541 ->  | DM56: =F542 ->  | DN56: =F543 ->  | DO56: =F544 ->  | DP56: =F545 ->  | DQ56: =F546 ->  | DR56: =F547 ->  | DS56: =F548 ->  | DT56: =F549 ->  | DU56: =F550 ->  | DV56: =F551 ->  | DW56: =F552 ->  | EK56: 1966 | EL56: =G541 ->  | EM56: =G542 ->  | EN56: =G543 ->  | EO56: =G544 ->  | EP56: =G545 ->  | EQ56: =G546 ->  | ER56: =G547 ->  | ES56: =G548 ->  | ET56: =G549 ->  | EU56: =G550 ->  | EV56: =G551 ->  | EW56: =G552 -> 
A57: 1925-06-30 | B57: =INDIRECT(CONCATENATE("'",B$1,"'!",B$4,(YEAR($A57)-1921)*12+MONTH($A57)+3+IF(ISNUMBER(FIND("PRV",B$6)),1,0)))*IF(AND(B$3>0,TRIM(B$9)="CFS"),Conversions!$C57,1) -> 0 | C57: =INDIRECT(CONCATENATE("'",C$1,"'!",C$4,(YEAR($A57)-1921)*12+MONTH($A57)+3+IF(ISNUMBER(FIND("PRV",C$6)),1,0)))*IF(AND(C$3>0,TRIM(C$9)="CFS"),Conversions!$C57,1) -> 0.002548541769 | D57: =INDIRECT(CONCATENATE("'",D$1,"'!",D$4,(YEAR($A57)-1921)*12+MONTH($A57)+3+IF(ISNUMBER(FIND("PRV",D$6)),1,0)))*IF(AND(D$3>0,TRIM(D$9)="CFS"),Conversions!$C57,1) -> 0.009713160339 | E57: =INDIRECT(CONCATENATE("'",E$1,"'!",E$4,(YEAR($A57)-1921)*12+MONTH($A57)+3+IF(ISNUMBER(FIND("PRV",E$6)),1,0)))*IF(AND(E$3>0,TRIM(E$9)="CFS"),Conversions!$C57,1) ->  | F57: =INDIRECT(CONCATENATE("'",F$1,"'!",F$4,(YEAR($A57)-1921)*12+MONTH($A57)+3+IF(ISNUMBER(FIND("PRV",F$6)),1,0)))*IF(AND(F$3>0,TRIM(F$9)="CFS"),Conversions!$C57,1) ->  | G57: =INDIRECT(CONCATENATE("'",G$1,"'!",G$4,(YEAR($A57)-1921)*12+MONTH($A57)+3+IF(ISNUMBER(FIND("PRV",G$6)),1,0)))*IF(AND(G$3>0,TRIM(G$9)="CFS"),Conversions!$C57,1) ->  | K57: 1967 | L57: =B553 -> 0 | M57: =B554 -> 0 | N57: =B555 -> 0 | O57: =B556 -> 0 | P57: =B557 -> 0 | Q57: =B558 -> 0 | R57: =B559 -> 0 | S57: =B560 -> 0 | T57: =B561 -> 0 | U57: =B562 -> 0 | V57: =B563 -> 0 | W57: =B564 -> 0 | Y57: 0 | Z57: 0 | AA57: 0 | AC57: 0 | AD57: 0 | AE57: 0 | AF57: 0 | AG57: 0 | AH57: 0 | AI57: 0 | AK57: 1967 | AL57: =C553 -> 78.53384488 | AM57: =C554 -> 76.45533523 | AN57: =C555 -> 76.78267862 | AO57: =C556 -> 91.32701677 | AP57: =C557 -> 117.9256242 | AQ57: =C558 -> 145.5306492 | AR57: =C559 -> 217.9741812 | AS57: =C560 -> 228.5852158 | AT57: =C561 -> 228.7013906 | AU57: =C562 -> 227.0444526 | AV57: =C563 -> 225.4234877 | AW57: =C564 -> 224.224645 | AY57: 197.0058597 | AZ57: 217.5899259 | BA57: 161.5423768 | BC57: 94.90458038 | BD57: 224.9834206 | BE57: 78.91497039 | BF57: 88.4333917 | BG57: 191.3508884 | BH57: 226.8935653 | BI57: 224.4553452 | BK57: 1967 | BL57: =D553 -> 1.837503817 | BM57: =D554 -> 0.008865577822 | BN57: =D555 -> 0.0513327385 | BO57: =D556 -> 13.91039038 | BP57: =D557 -> 40.70939515 | BQ57: =D558 -> 106.7919025 | BR57: =D559 -> 229.1830148 | BS57: =D560 -> 228.0199715 | BT57: =D561 -> 228.2426028 | BU57: =D562 -> 226.6959527 | BV57: =D563 -> 225.1828838 | BW57: =D564 -> 224.0681255 | BY57: 182.2070616 | BZ57: 216.0132386 | CA57: 127.0584951 | CC57: 21.7989374 | CD57: 224.773049 | CE57: 2.213224331 | CF57: 11.44028449 | CG57: 174.6177219 | CH57: 226.5413719 | CI57: 224.8625985 | CK57: 1967 | CL57: =E553 ->  | CM57: =E554 ->  | CN57: =E555 ->  | CO57: =E556 ->  | CP57: =E557 ->  | CQ57: =E558 ->  | CR57: =E559 ->  | CS57: =E560 ->  | CT57: =E561 ->  | CU57: =E562 ->  | CV57: =E563 ->  | CW57: =E564 ->  | DK57: 1967 | DL57: =F553 ->  | DM57: =F554 ->  | DN57: =F555 ->  | DO57: =F556 ->  | DP57: =F557 ->  | DQ57: =F558 ->  | DR57: =F559 ->  | DS57: =F560 ->  | DT57: =F561 ->  | DU57: =F562 ->  | DV57: =F563 ->  | DW57: =F564 ->  | EK57: 1967 | EL57: =G553 ->  | EM57: =G554 ->  | EN57: =G555 ->  | EO57: =G556 ->  | EP57: =G557 ->  | EQ57: =G558 ->  | ER57: =G559 ->  | ES57: =G560 ->  | ET57: =G561 ->  | EU57: =G562 ->  | EV57: =G563 ->  | EW57: =G564 -> 
A58: 1925-07-31 | B58: =INDIRECT(CONCATENATE("'",B$1,"'!",B$4,(YEAR($A58)-1921)*12+MONTH($A58)+3+IF(ISNUMBER(FIND("PRV",B$6)),1,0)))*IF(AND(B$3>0,TRIM(B$9)="CFS"),Conversions!$C58,1) -> 0 | C58: =INDIRECT(CONCATENATE("'",C$1,"'!",C$4,(YEAR($A58)-1921)*12+MONTH($A58)+3+IF(ISNUMBER(FIND("PRV",C$6)),1,0)))*IF(AND(C$3>0,TRIM(C$9)="CFS"),Conversions!$C58,1) -> 1.177081478 | D58: =INDIRECT(CONCATENATE("'",D$1,"'!",D$4,(YEAR($A58)-1921)*12+MONTH($A58)+3+IF(ISNUMBER(FIND("PRV",D$6)),1,0)))*IF(AND(D$3>0,TRIM(D$9)="CFS"),Conversions!$C58,1) -> 0.6782734968 | E58: =INDIRECT(CONCATENATE("'",E$1,"'!",E$4,(YEAR($A58)-1921)*12+MONTH($A58)+3+IF(ISNUMBER(FIND("PRV",E$6)),1,0)))*IF(AND(E$3>0,TRIM(E$9)="CFS"),Conversions!$C58,1) ->  | F58: =INDIRECT(CONCATENATE("'",F$1,"'!",F$4,(YEAR($A58)-1921)*12+MONTH($A58)+3+IF(ISNUMBER(FIND("PRV",F$6)),1,0)))*IF(AND(F$3>0,TRIM(F$9)="CFS"),Conversions!$C58,1) ->  | G58: =INDIRECT(CONCATENATE("'",G$1,"'!",G$4,(YEAR($A58)-1921)*12+MONTH($A58)+3+IF(ISNUMBER(FIND("PRV",G$6)),1,0)))*IF(AND(G$3>0,TRIM(G$9)="CFS"),Conversions!$C58,1) ->  | K58: 1968 | L58: =B565 -> 0 | M58: =B566 -> 0 | N58: =B567 -> 0 | O58: =B568 -> 0 | P58: =B569 -> 0 | Q58: =B570 -> 0 | R58: =B571 -> 0 | S58: =B572 -> 0 | T58: =B573 -> 0 | U58: =B574 -> 0 | V58: =B575 -> 0 | W58: =B576 -> 0 | Y58: 0 | Z58: 0 | AA58: 0 | AC58: 0 | AD58: 0 | AE58: 0 | AF58: 0 | AG58: 0 | AH58: 0 | AI58: 0 | AK58: 1968 | AL58: =C565 -> 223.5598058 | AM58: =C566 -> 225.739682 | AN58: =C567 -> 208.034166 | AO58: =C568 -> 226.7445632 | AP58: =C569 -> 229.5168718 | AQ58: =C570 -> 229.4314321 | AR58: =C571 -> 226.1189291 | AS58: =C572 -> 142.5417018 | AT58: =C573 -> 133.4972327 | AU58: =C574 -> 133.7016215 | AV58: =C575 -> 131.8121403 | AW58: =C576 -> 131.0443424 | AY58: 166.6640905 | AZ58: 166.5505442 | BA58: 186.811874 | BC58: 223.3061804 | BD58: 132.7382073 | BE58: 220.7045645 | BF58: 220.8023353 | BG58: 194.8997788 | BH58: 133.9510041 | BI58: 134.4702989 | BK58: 1968 | BL58: =D565 -> 223.440323 | BM58: =D566 -> 228.9758104 | BN58: =D567 -> 211.2643673 | BO58: =D568 -> 229.8642022 | BP58: =D569 -> 230.4297069 | BQ58: =D570 -> 230.2146172 | BR58: =D571 -> 229.3355151 | BS58: =D572 -> 145.808696 | BT58: =D573 -> 57.87194955 | BU58: =D574 -> 0.000999342273 | BV58: =D575 -> 0 | BW58: =D576 -> 0 | BY58: 95.4967229 | BZ58: 88.47635981 | CA58: 148.9338489 | CC58: 225.4723114 | CD58: 1.056426557 | CE58: 222.6616661 | CF58: 223.6104427 | CG58: 187.3774141 | CH58: 32.69432422 | CI58: 3.450460404 | CK58: 1968 | CL58: =E565 ->  | CM58: =E566 ->  | CN58: =E567 ->  | CO58: =E568 ->  | CP58: =E569 ->  | CQ58: =E570 ->  | CR58: =E571 ->  | CS58: =E572 ->  | CT58: =E573 ->  | CU58: =E574 ->  | CV58: =E575 ->  | CW58: =E576 ->  | DK58: 1968 | DL58: =F565 ->  | DM58: =F566 ->  | DN58: =F567 ->  | DO58: =F568 ->  | DP58: =F569 ->  | DQ58: =F570 ->  | DR58: =F571 ->  | DS58: =F572 ->  | DT58: =F573 ->  | DU58: =F574 ->  | DV58: =F575 ->  | DW58: =F576 ->  | EK58: 1968 | EL58: =G565 ->  | EM58: =G566 ->  | EN58: =G567 ->  | EO58: =G568 ->  | EP58: =G569 ->  | EQ58: =G570 ->  | ER58: =G571 ->  | ES58: =G572 ->  | ET58: =G573 ->  | EU58: =G574 ->  | EV58: =G575 ->  | EW58: =G576 -> 
A59: 1925-08-31 | B59: =INDIRECT(CONCATENATE("'",B$1,"'!",B$4,(YEAR($A59)-1921)*12+MONTH($A59)+3+IF(ISNUMBER(FIND("PRV",B$6)),1,0)))*IF(AND(B$3>0,TRIM(B$9)="CFS"),Conversions!$C59,1) -> 0 | C59: =INDIRECT(CONCATENATE("'",C$1,"'!",C$4,(YEAR($A59)-1921)*12+MONTH($A59)+3+IF(ISNUMBER(FIND("PRV",C$6)),1,0)))*IF(AND(C$3>0,TRIM(C$9)="CFS"),Conversions!$C59,1) -> 0.00123187183 | D59: =INDIRECT(CONCATENATE("'",D$1,"'!",D$4,(YEAR($A59)-1921)*12+MONTH($A59)+3+IF(ISNUMBER(FIND("PRV",D$6)),1,0)))*IF(AND(D$3>0,TRIM(D$9)="CFS"),Conversions!$C59,1) -> 0.0007587589386 | E59: =INDIRECT(CONCATENATE("'",E$1,"'!",E$4,(YEAR($A59)-1921)*12+MONTH($A59)+3+IF(ISNUMBER(FIND("PRV",E$6)),1,0)))*IF(AND(E$3>0,TRIM(E$9)="CFS"),Conversions!$C59,1) ->  | F59: =INDIRECT(CONCATENATE("'",F$1,"'!",F$4,(YEAR($A59)-1921)*12+MONTH($A59)+3+IF(ISNUMBER(FIND("PRV",F$6)),1,0)))*IF(AND(F$3>0,TRIM(F$9)="CFS"),Conversions!$C59,1) ->  | G59: =INDIRECT(CONCATENATE("'",G$1,"'!",G$4,(YEAR($A59)-1921)*12+MONTH($A59)+3+IF(ISNUMBER(FIND("PRV",G$6)),1,0)))*IF(AND(G$3>0,TRIM(G$9)="CFS"),Conversions!$C59,1) ->  | K59: 1969 | L59: =B577 -> 0 | M59: =B578 -> 0 | N59: =B579 -> 0 | O59: =B580 -> 0 | P59: =B581 -> 0 | Q59: =B582 -> 0 | R59: =B583 -> 0 | S59: =B584 -> 0 | T59: =B585 -> 0 | U59: =B586 -> 0 | V59: =B587 -> 0 | W59: =B588 -> 0 | Y59: 0 | Z59: 0 | AA59: 0 | AC59: 0 | AD59: 0 | AE59: 0 | AF59: 0 | AG59: 0 | AH59: 0 | AI59: 0 | AK59: 1969 | AL59: =C577 -> 137.0146568 | AM59: =C578 -> 138.891655 | AN59: =C579 -> 139.6539395 | AO59: =C580 -> 224.4204509 | AP59: =C581 -> 230.478428 | AQ59: =C582 -> 230.2834231 | AR59: =C583 -> 230.1843547 | AS59: =C584 -> 229.6722567 | AT59: =C585 -> 228.497621 | AU59: =C586 -> 226.7821479 | AV59: =C587 -> 225.1729845 | AW59: =C588 -> 224.0452605 | AY59: 226.728478 | AZ59: 227.0969269 | BA59: 205.4247649 | BC59: 183.4187027 | BD59: 224.7958407 | BE59: 148.323162 | BF59: 182.9198106 | BG59: 229.9070147 | BH59: 226.827878 | BI59: 223.942953 | BK59: 1969 | BL59: =D577 -> 6.337559999 | BM59: =D578 -> 8.027642423 | BN59: =D579 -> 8.069786086 | BO59: =D580 -> 146.2020256 | BP59: =D581 -> 229.8475264 | BQ59: =D582 -> 229.6579665 | BR59: =D583 -> 229.1090007 | BS59: =D584 -> 227.835981 | BT59: =D585 -> 226.7452234 | BU59: =D586 -> 225.1524963 | BV59: =D587 -> 223.6587187 | BW59: =D588 -> 222.6119981 | BY59: 219.3643607 | BZ59: 226.4369715 | CA59: 165.2713271 | CC59: 102.0289488 | CD59: 223.3084066 | CE59: 23.88400033 | CF59: 91.06979871 | CG59: 228.7248308 | CH59: 225.195107 | CI59: 222.8983512 | CK59: 1969 | CL59: =E577 ->  | CM59: =E578 ->  | CN59: =E579 ->  | CO59: =E580 ->  | CP59: =E581 ->  | CQ59: =E582 ->  | CR59: =E583 ->  | CS59: =E584 ->  | CT59: =E585 ->  | CU59: =E586 ->  | CV59: =E587 ->  | CW59: =E588 ->  | DK59: 1969 | DL59: =F577 ->  | DM59: =F578 ->  | DN59: =F579 ->  | DO59: =F580 ->  | DP59: =F581 ->  | DQ59: =F582 ->  | DR59: =F583 ->  | DS59: =F584 ->  | DT59: =F585 ->  | DU59: =F586 ->  | DV59: =F587 ->  | DW59: =F588 ->  | EK59: 1969 | EL59: =G577 ->  | EM59: =G578 ->  | EN59: =G579 ->  | EO59: =G580 ->  | EP59: =G581 ->  | EQ59: =G582 ->  | ER59: =G583 ->  | ES59: =G584 ->  | ET59: =G585 ->  | EU59: =G586 ->  | EV59: =G587 ->  | EW59: =G588 -> 
A60: 1925-09-30 | B60: =INDIRECT(CONCATENATE("'",B$1,"'!",B$4,(YEAR($A60)-1921)*12+MONTH($A60)+3+IF(ISNUMBER(FIND("PRV",B$6)),1,0)))*IF(AND(B$3>0,TRIM(B$9)="CFS"),Conversions!$C60,1) -> 0 | C60: =INDIRECT(CONCATENATE("'",C$1,"'!",C$4,(YEAR($A60)-1921)*12+MONTH($A60)+3+IF(ISNUMBER(FIND("PRV",C$6)),1,0)))*IF(AND(C$3>0,TRIM(C$9)="CFS"),Conversions!$C60,1) -> 0 | D60: =INDIRECT(CONCATENATE("'",D$1,"'!",D$4,(YEAR($A60)-1921)*12+MONTH($A60)+3+IF(ISNUMBER(FIND("PRV",D$6)),1,0)))*IF(AND(D$3>0,TRIM(D$9)="CFS"),Conversions!$C60,1) -> 0 | E60: =INDIRECT(CONCATENATE("'",E$1,"'!",E$4,(YEAR($A60)-1921)*12+MONTH($A60)+3+IF(ISNUMBER(FIND("PRV",E$6)),1,0)))*IF(AND(E$3>0,TRIM(E$9)="CFS"),Conversions!$C60,1) ->  | F60: =INDIRECT(CONCATENATE("'",F$1,"'!",F$4,(YEAR($A60)-1921)*12+MONTH($A60)+3+IF(ISNUMBER(FIND("PRV",F$6)),1,0)))*IF(AND(F$3>0,TRIM(F$9)="CFS"),Conversions!$C60,1) ->  | G60: =INDIRECT(CONCATENATE("'",G$1,"'!",G$4,(YEAR($A60)-1921)*12+MONTH($A60)+3+IF(ISNUMBER(FIND("PRV",G$6)),1,0)))*IF(AND(G$3>0,TRIM(G$9)="CFS"),Conversions!$C60,1) ->  | K60: 1970 | L60: =B589 -> 0 | M60: =B590 -> 0 | N60: =B591 -> 0 | O60: =B592 -> 0 | P60: =B593 -> 0 | Q60: =B594 -> 0 | R60: =B595 -> 0 | S60: =B596 -> 0 | T60: =B597 -> 0 | U60: =B598 -> 0 | V60: =B599 -> 0 | W60: =B600 -> 0 | Y60: 0 | Z60: 0 | AA60: 0 | AC60: 0 | AD60: 0 | AE60: 0 | AF60: 0 | AG60: 0 | AH60: 0 | AI60: 0 | AK60: 1970 | AL60: =C589 -> 223.5564066 | AM60: =C590 -> 223.2813994 | AN60: =C591 -> 224.3670023 | AO60: =C592 -> 229.6464185 | AP60: =C593 -> 229.6738482 | AQ60: =C594 -> 229.5525412 | AR60: =C595 -> 224.7109053 | AS60: =C596 -> 223.4594791 | AT60: =C597 -> 222.2391725 | AU60: =C598 -> 224.4788782 | AV60: =C599 -> 222.9413021 | AW60: =C600 -> 221.6761023 | AY60: 225.8610447 | AZ60: 225.9189911 | BA60: 224.965288 | BC60: 226.7046285 | BD60: 222.4751637 | BE60: 224.5126619 | BF60: 226.8303482 | BG60: 225.919859 | BH60: 223.0567859 | BI60: 223.2145224 | BK60: 1970 | BL60: =D589 -> 222.1565097 | BM60: =D590 -> 224.1943728 | BN60: =D591 -> 225.2005093 | BO60: =D592 -> 230.5991273 | BP60: =D593 -> 230.3217546 | BQ60: =D594 -> 230.0170165 | BR60: =D595 -> 229.2585553 | BS60: =D596 -> 228.0660712 | BT60: =D597 -> 226.9032391 | BU60: =D598 -> 229.2226658 | BV60: =D599 -> 227.756843 | BW60: =D600 -> 226.5508928 | BY60: 228.7308783 | BZ60: 228.6309134 | CA60: 227.5206298 | CC60: 227.2805054 | CD60: 227.3125849 | CE60: 224.5392386 | CF60: 227.6859001 | CG60: 228.988535 | CH60: 227.7978075 | CI60: 227.1617291 | CK60: 1970 | CL60: =E589 ->  | CM60: =E590 ->  | CN60: =E591 ->  | CO60: =E592 ->  | CP60: =E593 ->  | CQ60: =E594 ->  | CR60: =E595 ->  | CS60: =E596 ->  | CT60: =E597 ->  | CU60: =E598 ->  | CV60: =E599 ->  | CW60: =E600 ->  | DK60: 1970 | DL60: =F589 ->  | DM60: =F590 ->  | DN60: =F591 ->  | DO60: =F592 ->  | DP60: =F593 ->  | DQ60: =F594 ->  | DR60: =F595 ->  | DS60: =F596 ->  | DT60: =F597 ->  | DU60: =F598 ->  | DV60: =F599 ->  | DW60: =F600 ->  | EK60: 1970 | EL60: =G589 ->  | EM60: =G590 ->  | EN60: =G591 ->  | EO60: =G592 ->  | EP60: =G593 ->  | EQ60: =G594 ->  | ER60: =G595 ->  | ES60: =G596 ->  | ET60: =G597 ->  | EU60: =G598 ->  | EV60: =G599 ->  | EW60: =G600 -> 
A61: 1925-10-31 | B61: =INDIRECT(CONCATENATE("'",B$1,"'!",B$4,(YEAR($A61)-1921)*12+MONTH($A61)+3+IF(ISNUMBER(FIND("PRV",B$6)),1,0)))*IF(AND(B$3>0,TRIM(B$9)="CFS"),Conversions!$C61,1) -> 0 | C61: =INDIRECT(CONCATENATE("'",C$1,"'!",C$4,(YEAR($A61)-1921)*12+MONTH($A61)+3+IF(ISNUMBER(FIND("PRV",C$6)),1,0)))*IF(AND(C$3>0,TRIM(C$9)="CFS"),Conversions!$C61,1) -> 0 | D61: =INDIRECT(CONCATENATE("'",D$1,"'!",D$4,(YEAR($A61)-1921)*12+MONTH($A61)+3+IF(ISNUMBER(FIND("PRV",D$6)),1,0)))*IF(AND(D$3>0,TRIM(D$9)="CFS"),Conversions!$C61,1) -> 2.948889803 | E61: =INDIRECT(CONCATENATE("'",E$1,"'!",E$4,(YEAR($A61)-1921)*12+MONTH($A61)+3+IF(ISNUMBER(FIND("PRV",E$6)),1,0)))*IF(AND(E$3>0,TRIM(E$9)="CFS"),Conversions!$C61,1) ->  | F61: =INDIRECT(CONCATENATE("'",F$1,"'!",F$4,(YEAR($A61)-1921)*12+MONTH($A61)+3+IF(ISNUMBER(FIND("PRV",F$6)),1,0)))*IF(AND(F$3>0,TRIM(F$9)="CFS"),Conversions!$C61,1) ->  | G61: =INDIRECT(CONCATENATE("'",G$1,"'!",G$4,(YEAR($A61)-1921)*12+MONTH($A61)+3+IF(ISNUMBER(FIND("PRV",G$6)),1,0)))*IF(AND(G$3>0,TRIM(G$9)="CFS"),Conversions!$C61,1) ->  | K61: 1971 | L61: =B601 -> 0 | M61: =B602 -> 0 | N61: =B603 -> 0 | O61: =B604 -> 0 | P61: =B605 -> 0 | Q61: =B606 -> 0 | R61: =B607 -> 0 | S61: =B608 -> 0 | T61: =B609 -> 0 | U61: =B610 -> 0 | V61: =B611 -> 0 | W61: =B612 -> 0 | Y61: 0 | Z61: 0 | AA61: 0 | AC61: 0 | AD61: 0 | AE61: 0 | AF61: 0 | AG61: 0 | AH61: 0 | AI61: 0 | AK61: 1971 | AL61: =C601 -> 221.1372953 | AM61: =C602 -> 230.7190371 | AN61: =C603 -> 230.0975564 | AO61: =C604 -> 230.0635914 | AP61: =C605 -> 229.9520321 | AQ61: =C606 -> 229.9379992 | AR61: =C607 -> 229.2298128 | AS61: =C608 -> 228.4586763 | AT61: =C609 -> 228.8888653 | AU61: =C610 -> 231.1306736 | AV61: =C611 -> 229.5460596 | AW61: =C612 -> 228.2460812 | AY61: 228.7356951 | AZ61: 228.3563106 | BA61: 228.95064 | BC61: 229.2739728 | BD61: 229.0355551 | BE61: 226.9559339 | BF61: 230.1655608 | BG61: 229.2617343 | BH61: 229.4794943 | BI61: 227.7780241 | BK61: 1971 | BL61: =D601 -> 226.0373722 | BM61: =D602 -> 230.0370018 | BN61: =D603 -> 230 | BO61: =D604 -> 230 | BP61: =D605 -> 229.7213029 | BQ61: =D606 -> 229.6862417 | BR61: =D607 -> 229.0244124 | BS61: =D608 -> 228.3037536 | BT61: =D609 -> 227.7613516 | BU61: =D610 -> 230.1194253 | BV61: =D611 -> 228.6426333 | BW61: =D612 -> 227.4312795 | BY61: 231.4091904 | BZ61: 233.9401794 | CA61: 228.8970645 | CC61: 229.5240223 | CD61: 228.1669818 | CE61: 228.5874551 | CF61: 229.9597174 | CG61: 228.9389337 | CH61: 228.5977317 | CI61: 230.2351902 | CK61: 1971 | CL61: =E601 ->  | CM61: =E602 ->  | CN61: =E603 ->  | CO61: =E604 ->  | CP61: =E605 ->  | CQ61: =E606 ->  | CR61: =E607 ->  | CS61: =E608 ->  | CT61: =E609 ->  | CU61: =E610 ->  | CV61: =E611 ->  | CW61: =E612 ->  | DK61: 1971 | DL61: =F601 ->  | DM61: =F602 ->  | DN61: =F603 ->  | DO61: =F604 ->  | DP61: =F605 ->  | DQ61: =F606 ->  | DR61: =F607 ->  | DS61: =F608 ->  | DT61: =F609 ->  | DU61: =F610 ->  | DV61: =F611 ->  | DW61: =F612 ->  | EK61: 1971 | EL61: =G601 ->  | EM61: =G602 ->  | EN61: =G603 ->  | EO61: =G604 ->  | EP61: =G605 ->  | EQ61: =G606 ->  | ER61: =G607 ->  | ES61: =G608 ->  | ET61: =G609 ->  | EU61: =G610 ->  | EV61: =G611 ->  | EW61: =G612 -> 
A62: 1925-11-30 | B62: =INDIRECT(CONCATENATE("'",B$1,"'!",B$4,(YEAR($A62)-1921)*12+MONTH($A62)+3+IF(ISNUMBER(FIND("PRV",B$6)),1,0)))*IF(AND(B$3>0,TRIM(B$9)="CFS"),Conversions!$C62,1) -> 0 | C62: =INDIRECT(CONCATENATE("'",C$1,"'!",C$4,(YEAR($A62)-1921)*12+MONTH($A62)+3+IF(ISNUMBER(FIND("PRV",C$6)),1,0)))*IF(AND(C$3>0,TRIM(C$9)="CFS"),Conversions!$C62,1) -> 0 | D62: =INDIRECT(CONCATENATE("'",D$1,"'!",D$4,(YEAR($A62)-1921)*12+MONTH($A62)+3+IF(ISNUMBER(FIND("PRV",D$6)),1,0)))*IF(AND(D$3>0,TRIM(D$9)="CFS"),Conversions!$C62,1) -> 0 | E62: =INDIRECT(CONCATENATE("'",E$1,"'!",E$4,(YEAR($A62)-1921)*12+MONTH($A62)+3+IF(ISNUMBER(FIND("PRV",E$6)),1,0)))*IF(AND(E$3>0,TRIM(E$9)="CFS"),Conversions!$C62,1) ->  | F62: =INDIRECT(CONCATENATE("'",F$1,"'!",F$4,(YEAR($A62)-1921)*12+MONTH($A62)+3+IF(ISNUMBER(FIND("PRV",F$6)),1,0)))*IF(AND(F$3>0,TRIM(F$9)="CFS"),Conversions!$C62,1) ->  | G62: =INDIRECT(CONCATENATE("'",G$1,"'!",G$4,(YEAR($A62)-1921)*12+MONTH($A62)+3+IF(ISNUMBER(FIND("PRV",G$6)),1,0)))*IF(AND(G$3>0,TRIM(G$9)="CFS"),Conversions!$C62,1) ->  | K62: 1972 | L62: =B613 -> 0 | M62: =B614 -> 0 | N62: =B615 -> 0 | O62: =B616 -> 0 | P62: =B617 -> 0 | Q62: =B618 -> 0 | R62: =B619 -> 0 | S62: =B620 -> 0 | T62: =B621 -> 0 | U62: =B622 -> 0 | V62: =B623 -> 0 | W62: =B624 -> 0 | Y62: 0 | Z62: 0 | AA62: 0 | AC62: 0 | AD62: 0 | AE62: 0 | AF62: 0 | AG62: 0 | AH62: 0 | AI62: 0 | AK62: 1972 | AL62: =C613 -> 227.498375 | AM62: =C614 -> 225.6331726 | AN62: =C615 -> 226.2430019 | AO62: =C616 -> 226.2298661 | AP62: =C617 -> 229.2331433 | AQ62: =C618 -> 229.0110864 | AR62: =C619 -> 220.3527128 | AS62: =C620 -> 214.4676633 | AT62: =C621 -> 129.1086319 | AU62: =C622 -> 110.7934667 | AV62: =C623 -> 104.7740392 | AW62: =C624 -> 106.7177988 | AY62: 157.277379 | AZ62: 154.9126965 | BA62: 187.5052465 | BC62: 227.1187829 | BD62: 106.4940692 | BE62: 226.6531308 | BF62: 226.635342 | BG62: 210.7505875 | BH62: 126.3172172 | BI62: 105.6993911 | BK62: 1972 | BL62: =D613 -> 226.7346396 | BM62: =D614 -> 244.4366693 | BN62: =D615 -> 245.0485751 | BO62: =D616 -> 245.0353946 | BP62: =D617 -> 245.0577768 | BQ62: =D618 -> 244.4675899 | BR62: =D619 -> 243.6443488 | BS62: =D620 -> 242.5492654 | BT62: =D621 -> 102.8509942 | BU62: =D622 -> 17.96293423 | BV62: =D623 -> 0.0002215216551 | BW62: =D624 -> 0 | BY62: 114.0864432 | BZ62: 106.255759 | CA62: 171.4823675 | CC62: 243.0359061 | CD62: 2.993896212 | CE62: 238.1133053 | CF62: 244.9437309 | CG62: 226.1538974 | CH62: 60.52219567 | CI62: 3.692027585e-05 | CK62: 1972 | CL62: =E613 ->  | CM62: =E614 ->  | CN62: =E615 ->  | CO62: =E616 ->  | CP62: =E617 ->  | CQ62: =E618 ->  | CR62: =E619 ->  | CS62: =E620 ->  | CT62: =E621 ->  | CU62: =E622 ->  | CV62: =E623 ->  | CW62: =E624 ->  | DK62: 1972 | DL62: =F613 ->  | DM62: =F614 ->  | DN62: =F615 ->  | DO62: =F616 ->  | DP62: =F617 ->  | DQ62: =F618 ->  | DR62: =F619 ->  | DS62: =F620 ->  | DT62: =F621 ->  | DU62: =F622 ->  | DV62: =F623 ->  | DW62: =F624 ->  | EK62: 1972 | EL62: =G613 ->  | EM62: =G614 ->  | EN62: =G615 ->  | EO62: =G616 ->  | EP62: =G617 ->  | EQ62: =G618 ->  | ER62: =G619 ->  | ES62: =G620 ->  | ET62: =G621 ->  | EU62: =G622 ->  | EV62: =G623 ->  | EW62: =G624 -> 
A63: 1925-12-31 | B63: =INDIRECT(CONCATENATE("'",B$1,"'!",B$4,(YEAR($A63)-1921)*12+MONTH($A63)+3+IF(ISNUMBER(FIND("PRV",B$6)),1,0)))*IF(AND(B$3>0,TRIM(B$9)="CFS"),Conversions!$C63,1) -> 0 | C63: =INDIRECT(CONCATENATE("'",C$1,"'!",C$4,(YEAR($A63)-1921)*12+MONTH($A63)+3+IF(ISNUMBER(FIND("PRV",C$6)),1,0)))*IF(AND(C$3>0,TRIM(C$9)="CFS"),Conversions!$C63,1) -> 0 | D63: =INDIRECT(CONCATENATE("'",D$1,"'!",D$4,(YEAR($A63)-1921)*12+MONTH($A63)+3+IF(ISNUMBER(FIND("PRV",D$6)),1,0)))*IF(AND(D$3>0,TRIM(D$9)="CFS"),Conversions!$C63,1) -> 0 | E63: =INDIRECT(CONCATENATE("'",E$1,"'!",E$4,(YEAR($A63)-1921)*12+MONTH($A63)+3+IF(ISNUMBER(FIND("PRV",E$6)),1,0)))*IF(AND(E$3>0,TRIM(E$9)="CFS"),Conversions!$C63,1) ->  | F63: =INDIRECT(CONCATENATE("'",F$1,"'!",F$4,(YEAR($A63)-1921)*12+MONTH($A63)+3+IF(ISNUMBER(FIND("PRV",F$6)),1,0)))*IF(AND(F$3>0,TRIM(F$9)="CFS"),Conversions!$C63,1) ->  | G63: =INDIRECT(CONCATENATE("'",G$1,"'!",G$4,(YEAR($A63)-1921)*12+MONTH($A63)+3+IF(ISNUMBER(FIND("PRV",G$6)),1,0)))*IF(AND(G$3>0,TRIM(G$9)="CFS"),Conversions!$C63,1) ->  | K63: 1973 | L63: =B625 -> 0 | M63: =B626 -> 0 | N63: =B627 -> 0 | O63: =B628 -> 0 | P63: =B629 -> 0 | Q63: =B630 -> 0 | R63: =B631 -> 0 | S63: =B632 -> 0 | T63: =B633 -> 0 | U63: =B634 -> 0 | V63: =B635 -> 0 | W63: =B636 -> 0 | Y63: 0 | Z63: 0 | AA63: 0 | AC63: 0 | AD63: 0 | AE63: 0 | AF63: 0 | AG63: 0 | AH63: 0 | AI63: 0 | AK63: 1973 | AL63: =C625 -> 105.1872726 | AM63: =C626 -> 105.6121648 | AN63: =C627 -> 105.8407016 | AO63: =C628 -> 195.8807367 | AP63: =C629 -> 231.2060829 | AQ63: =C630 -> 231.2480997 | AR63: =C631 -> 230.4044912 | AS63: =C632 -> 229.4702916 | AT63: =C633 -> 135.7650783 | AU63: =C634 -> 139.524873 | AV63: =C635 -> 133.7120927 | AW63: =C636 -> 132.9850912 | AY63: 187.6460383 | AZ63: 190.814221 | BA63: 164.7364147 | BC63: 161.3514744 | BD63: 134.2811494 | BE63: 116.9848517 | BF63: 156.7101874 | BG63: 218.6521158 | BH63: 147.5574338 | BI63: 148.5584211 | BK63: 1973 | BL63: =D625 -> 0 | BM63: =D626 -> 0 | BN63: =D627 -> 27.46879331 | BO63: =D628 -> 165.4705441 | BP63: =D629 -> 230.6544165 | BQ63: =D630 -> 230.7583963 | BR63: =D631 -> 229.9760138 | BS63: =D632 -> 229.1209519 | BT63: =D633 -> 77.41747747 | BU63: =D634 -> 2.595934688 | BV63: =D635 -> 0 | BW63: =D636 -> 0 | BY63: 127.0967819 | BZ63: 132.5419748 | CA63: 99.45521067 | CC63: 107.7945904 | CD63: 0.4326557813 | CE63: 27.55101634 | CF63: 102.7555152 | CG63: 210.9728273 | CH63: 48.64347203 | CI63: 21.3543327 | CK63: 1973 | CL63: =E625 ->  | CM63: =E626 ->  | CN63: =E627 ->  | CO63: =E628 ->  | CP63: =E629 ->  | CQ63: =E630 ->  | CR63: =E631 ->  | CS63: =E632 ->  | CT63: =E633 ->  | CU63: =E634 ->  | CV63: =E635 ->  | CW63: =E636 ->  | DK63: 1973 | DL63: =F625 ->  | DM63: =F626 ->  | DN63: =F627 ->  | DO63: =F628 ->  | DP63: =F629 ->  | DQ63: =F630 ->  | DR63: =F631 ->  | DS63: =F632 ->  | DT63: =F633 ->  | DU63: =F634 ->  | DV63: =F635 ->  | DW63: =F636 ->  | EK63: 1973 | EL63: =G625 ->  | EM63: =G626 ->  | EN63: =G627 ->  | EO63: =G628 ->  | EP63: =G629 ->  | EQ63: =G630 ->  | ER63: =G631 ->  | ES63: =G632 ->  | ET63: =G633 ->  | EU63: =G634 ->  | EV63: =G635 ->  | EW63: =G636 -> 
A64: 1926-01-31 | B64: =INDIRECT(CONCATENATE("'",B$1,"'!",B$4,(YEAR($A64)-1921)*12+MONTH($A64)+3+IF(ISNUMBER(FIND("PRV",B$6)),1,0)))*IF(AND(B$3>0,TRIM(B$9)="CFS"),Conversions!$C64,1) -> 0 | C64: =INDIRECT(CONCATENATE("'",C$1,"'!",C$4,(YEAR($A64)-1921)*12+MONTH($A64)+3+IF(ISNUMBER(FIND("PRV",C$6)),1,0)))*IF(AND(C$3>0,TRIM(C$9)="CFS"),Conversions!$C64,1) -> 13.05703902 | D64: =INDIRECT(CONCATENATE("'",D$1,"'!",D$4,(YEAR($A64)-1921)*12+MONTH($A64)+3+IF(ISNUMBER(FIND("PRV",D$6)),1,0)))*IF(AND(D$3>0,TRIM(D$9)="CFS"),Conversions!$C64,1) -> 0 | E64: =INDIRECT(CONCATENATE("'",E$1,"'!",E$4,(YEAR($A64)-1921)*12+MONTH($A64)+3+IF(ISNUMBER(FIND("PRV",E$6)),1,0)))*IF(AND(E$3>0,TRIM(E$9)="CFS"),Conversions!$C64,1) ->  | F64: =INDIRECT(CONCATENATE("'",F$1,"'!",F$4,(YEAR($A64)-1921)*12+MONTH($A64)+3+IF(ISNUMBER(FIND("PRV",F$6)),1,0)))*IF(AND(F$3>0,TRIM(F$9)="CFS"),Conversions!$C64,1) ->  | G64: =INDIRECT(CONCATENATE("'",G$1,"'!",G$4,(YEAR($A64)-1921)*12+MONTH($A64)+3+IF(ISNUMBER(FIND("PRV",G$6)),1,0)))*IF(AND(G$3>0,TRIM(G$9)="CFS"),Conversions!$C64,1) ->  | K64: 1974 | L64: =B637 -> 0 | M64: =B638 -> 0 | N64: =B639 -> 0 | O64: =B640 -> 0 | P64: =B641 -> 0 | Q64: =B642 -> 0 | R64: =B643 -> 0 | S64: =B644 -> 0 | T64: =B645 -> 0 | U64: =B646 -> 0 | V64: =B647 -> 0 | W64: =B648 -> 0 | Y64: 0 | Z64: 0 | AA64: 0 | AC64: 0 | AD64: 0 | AE64: 0 | AF64: 0 | AG64: 0 | AH64: 0 | AI64: 0 | AK64: 1974 | AL64: =C637 -> 132.7676559 | AM64: =C638 -> 226.13294 | AN64: =C639 -> 232.6550265 | AO64: =C640 -> 232.5929553 | AP64: =C641 -> 232.512057 | AQ64: =C642 -> 232.220104 | AR64: =C643 -> 231.7393707 | AS64: =C644 -> 230.5840689 | AT64: =C645 -> 229.1868083 | AU64: =C646 -> 227.8465133 | AV64: =C647 -> 226.3666478 | AW64: =C648 -> 225.0692735 | AY64: 228.4819089 | AZ64: 227.6191045 | BA64: 221.6394518 | BC64: 221.2773717 | BD64: 225.8656783 | BE64: 193.5861614 | BF64: 231.5234934 | BG64: 231.3482441 | BH64: 227.8066602 | BI64: 224.955118 | BK64: 1974 | BL64: =D637 -> 0 | BM64: =D638 -> 128.1259962 | BN64: =D639 -> 231.0416521 | BO64: =D640 -> 230.7712036 | BP64: =D641 -> 230.6960719 | BQ64: =D642 -> 230.3999878 | BR64: =D643 -> 229.953572 | BS64: =D644 -> 228.880559 | BT64: =D645 -> 227.5828213 | BU64: =D646 -> 226.3379916 | BV64: =D647 -> 224.9637517 | BW64: =D648 -> 223.7589767 | BY64: 226.9324385 | BZ64: 226.278421 | CA64: 201.0427153 | CC64: 187.1669835 | CD64: 224.4985383 | CE64: 118.6383125 | CF64: 213.7412966 | CG64: 229.5933913 | CH64: 226.3010831 | CI64: 223.6529688 | CK64: 1974 | CL64: =E637 ->  | CM64: =E638 ->  | CN64: =E639 ->  | CO64: =E640 ->  | CP64: =E641 ->  | CQ64: =E642 ->  | CR64: =E643 ->  | CS64: =E644 ->  | CT64: =E645 ->  | CU64: =E646 ->  | CV64: =E647 ->  | CW64: =E648 ->  | DK64: 1974 | DL64: =F637 ->  | DM64: =F638 ->  | DN64: =F639 ->  | DO64: =F640 ->  | DP64: =F641 ->  | DQ64: =F642 ->  | DR64: =F643 ->  | DS64: =F644 ->  | DT64: =F645 ->  | DU64: =F646 ->  | DV64: =F647 ->  | DW64: =F648 ->  | EK64: 1974 | EL64: =G637 ->  | EM64: =G638 ->  | EN64: =G639 ->  | EO64: =G640 ->  | EP64: =G641 ->  | EQ64: =G642 ->  | ER64: =G643 ->  | ES64: =G644 ->  | ET64: =G645 ->  | EU64: =G646 ->  | EV64: =G647 ->  | EW64: =G648 -> 
A65: 1926-02-28 | B65: =INDIRECT(CONCATENATE("'",B$1,"'!",B$4,(YEAR($A65)-1921)*12+MONTH($A65)+3+IF(ISNUMBER(FIND("PRV",B$6)),1,0)))*IF(AND(B$3>0,TRIM(B$9)="CFS"),Conversions!$C65,1) -> 0 | C65: =INDIRECT(CONCATENATE("'",C$1,"'!",C$4,(YEAR($A65)-1921)*12+MONTH($A65)+3+IF(ISNUMBER(FIND("PRV",C$6)),1,0)))*IF(AND(C$3>0,TRIM(C$9)="CFS"),Conversions!$C65,1) -> 26.6930445 | D65: =INDIRECT(CONCATENATE("'",D$1,"'!",D$4,(YEAR($A65)-1921)*12+MONTH($A65)+3+IF(ISNUMBER(FIND("PRV",D$6)),1,0)))*IF(AND(D$3>0,TRIM(D$9)="CFS"),Conversions!$C65,1) -> 14.31696445 | E65: =INDIRECT(CONCATENATE("'",E$1,"'!",E$4,(YEAR($A65)-1921)*12+MONTH($A65)+3+IF(ISNUMBER(FIND("PRV",E$6)),1,0)))*IF(AND(E$3>0,TRIM(E$9)="CFS"),Conversions!$C65,1) ->  | F65: =INDIRECT(CONCATENATE("'",F$1,"'!",F$4,(YEAR($A65)-1921)*12+MONTH($A65)+3+IF(ISNUMBER(FIND("PRV",F$6)),1,0)))*IF(AND(F$3>0,TRIM(F$9)="CFS"),Conversions!$C65,1) ->  | G65: =INDIRECT(CONCATENATE("'",G$1,"'!",G$4,(YEAR($A65)-1921)*12+MONTH($A65)+3+IF(ISNUMBER(FIND("PRV",G$6)),1,0)))*IF(AND(G$3>0,TRIM(G$9)="CFS"),Conversions!$C65,1) ->  | K65: 1975 | L65: =B649 -> 0 | M65: =B650 -> 0 | N65: =B651 -> 0 | O65: =B652 -> 0 | P65: =B653 -> 0 | Q65: =B654 -> 0 | R65: =B655 -> 0 | S65: =B656 -> 0 | T65: =B657 -> 0 | U65: =B658 -> 0 | V65: =B659 -> 0 | W65: =B660 -> 0 | Y65: 0 | Z65: 0 | AA65: 0 | AC65: 0 | AD65: 0 | AE65: 0 | AF65: 0 | AG65: 0 | AH65: 0 | AI65: 0 | AK65: 1975 | AL65: =C649 -> 224.4757137 | AM65: =C650 -> 224.2740859 | AN65: =C651 -> 224.915308 | AO65: =C652 -> 224.8952879 | AP65: =C653 -> 229.8560721 | AQ65: =C654 -> 221.3976113 | AR65: =C655 -> 220.9213352 | AS65: =C656 -> 219.6167159 | AT65: =C657 -> 218.110679 | AU65: =C658 -> 216.7077542 | AV65: =C659 -> 215.4385694 | AW65: =C660 -> 214.3177768 | AY65: 222.3082529 | AZ65: 222.48168 | BA65: 221.2439091 | BC65: 225.3754833 | BD65: 217.5273033 | BE65: 224.6618471 | BF65: 225.625225 | BG65: 221.4797595 | BH65: 216.8060622 | BI65: 221.7865026 | BK65: 1975 | BL65: =D649 -> 223.2077816 | BM65: =D650 -> 223.0205447 | BN65: =D651 -> 223.6160006 | BO65: =D652 -> 223.5974094 | BP65: =D653 -> 230.021656 | BQ65: =D654 -> 221.9229948 | BR65: =D655 -> 221.4775953 | BS65: =D656 -> 220.257553 | BT65: =D657 -> 218.8491506 | BU65: =D658 -> 217.5373191 | BV65: =D659 -> 216.3507436 | BW65: =D660 -> 215.3030188 | BY65: 222.641144 | BZ65: 222.9152621 | CA65: 221.2634806 | CC65: 224.5641998 | CD65: 218.2823653 | CE65: 223.38063 | CF65: 224.5781701 | CG65: 222.0233866 | CH65: 217.6293748 | CI65: 222.2382393 | CK65: 1975 | CL65: =E649 ->  | CM65: =E650 ->  | CN65: =E651 ->  | CO65: =E652 ->  | CP65: =E653 ->  | CQ65: =E654 ->  | CR65: =E655 ->  | CS65: =E656 ->  | CT65: =E657 ->  | CU65: =E658 ->  | CV65: =E659 ->  | CW65: =E660 ->  | DK65: 1975 | DL65: =F649 ->  | DM65: =F650 ->  | DN65: =F651 ->  | DO65: =F652 ->  | DP65: =F653 ->  | DQ65: =F654 ->  | DR65: =F655 ->  | DS65: =F656 ->  | DT65: =F657 ->  | DU65: =F658 ->  | DV65: =F659 ->  | DW65: =F660 ->  | EK65: 1975 | EL65: =G649 ->  | EM65: =G650 ->  | EN65: =G651 ->  | EO65: =G652 ->  | EP65: =G653 ->  | EQ65: =G654 ->  | ER65: =G655 ->  | ES65: =G656 ->  | ET65: =G657 ->  | EU65: =G658 ->  | EV65: =G659 ->  | EW65: =G660 -> 
